Workbook

Sheet instruction
A1: यह एक्सेल प्रोग्राम परम पूज्य गुरुदेव स्वामी वासुदेवजी महाराज व इष्ट प्रभु जय बजरंग बली व पाबूजी महाराज के आशीर्वाद का फल है I माता - पिता व गुरुजनों के आशीर्वाद से यह एक्सेल प्रोग्राम शिक्षा विभाग को समर्पित करता हूँ I
A2: यह एक्सेल शीट आप शाला दर्पण के रिजल्ट टैब से डाउनलोड कर सकते है I इसके अलावा www.rajgyan.co.in , www.rajteachers.com , www.rajsevak.com/excel , www.rajguruji.com से भी डाउनलोड कर सकते है I आप गूगल पर जाकर heeralal jat लिखकर सर्च करेंगे तो भी उपरोक्त वेब लिंक सर्च में सबसे उपर मिल जायेंगे I
A3: :: इस एक्सेल शीट पर कार्य करने हेतु विशेष निर्देश :: | E3: परम पूज्य गुरुदेव स्वामी वासुदेव जी महाराज
A4: यह एक्सेल शीट 200 विद्यार्थियों को ध्यान में रखकर बनाई गयी है I आप अलग अलग संकाय के लिए अलग अलग वर्कबुक काम में ले सकते है I जिसमे वर्क करने में आपको किसी भी प्रकार की दुविधा न हो I अगर आपकी स्कूल में विद्यार्थी 200 से कम है तो अतिरिक्त कॉलम की हाईड कर लेवे, जिससे प्रिंट निकालने में असुविधा न हो I अगर विद्यार्थी एक संकाय में 200 से भी अधिक है तो फिर सेक्शन वार शीट भी तैयार कर सकते है I | E4: Updated On
E5: 2024-04-30
A6: इस वर्कबुक की सिक्यूरिटी के लिए Class11 पासवर्ड है I ( जो इंस्ट्रक्शन शीट , मास्टर शीट व सिंगल मार्कशीट शीट पर काम नहीं करेगी - सिक्यूरिटी के लिए ) | E6: you tube विडियो लिंक
A7: कक्षा 11 के प्रत्येक विद्यार्थी के विभिन्न वैकल्पिक विषय को भरने हेतु प्रत्येक वैकल्पिक विषय में तीन-तीन ऑप्शन दे रखे है , इसके लिए आप A , B , C कोड भर सकते है I इनका सम्बन्ध वैकल्पिक विषय के स्थान के क्रमानुसार है I | E7: https://youtu.be/aJjzQ4EcoqQ
A8: इसके अतिरिक्त रिजल्ट वर्कबुक में एंट्री करते समय आनेवाली सामान्य समस्याएं व समाधान
A9: सबसे पहले शीट को ओपन करने के बाद मास्टर शीट पर जो विद्यालय से सम्बंधित जो सामान्य जानकारी पूर्ण कर लेवें I | E9: https://youtu.be/5tJOXnI2VpI
A10: दुसरे नंबर पर स्टूडेंट डाटा एंट्री शीट पर स्टूडेंट की डिटेल भरे I विद्यार्थी की उपस्थिति भी इसी शीट पर फिल की जाएगी I स्टूडेंट की फोटोयुक्त मार्कशीट प्राप्त करने हेतु आप इसी शीट के अंतिम कॉलम में स्माल साइज़ का फोटो कॉपी पेस्ट कर देवें I
A11: तत्पश्चात आप मार्क एंट्री शीट पर जाये I यहाँ पर बाकि डिटेल तो स्वतः आ जाएगी I आपको विद्यार्थी के सत्रवार अंकों की डिटेल यहाँ फिल करनी है I विद्यार्थियों के अंक सावधानी से भरें I अगर विधार्थी किसी परीक्षा में अनुपस्थित रहा है तो आप AB फिल करे I अगर विधार्थी प्रथम परख में किन्ही कारणों से शामिल नहीं हो पाया अथवा देरी से विद्यालय में प्रवेश लिया है तो उक्त टेस्ट में NA फिल कर सकते है I और यदि विद्यार्थी मेडिकल बेस पर एग्जाम नहीं दे पाया है तो आप अंको की जगह ML फिल कर सकते हैं I यह ध्यान रहे कि मार्क एंट्री के कॉलम में आप अंकों , NA , AB , ML के अलावा कुछ भी फिल नहीं कर पाएंगे I
A12: आगे की शीट केवल रिपोर्ट जनरेट करेगी I वहां एंट्री नहीं होगी I केवल रिपोर्ट जनरेट करने हेतु डाटा इनपुट के लिए केवल एक - दो कॉलम अनलॉक मिलेंगे , जिसके द्वारा आप मनचाही रिपोर्ट प्रिंट कर सकते है I यह सभी शीट्स A4 साइज़ के पेपर पर व्यवस्थित की हुई है I मार्कशीट हेतु दो शीट पर मार्कशीट डिजाईन की गयी है I एक शीट पर आप विद्यार्थी की फोटोयुक्त सिंगल मार्कशीट निकाल सकते है और दूसरी शीट पर आप पूरी कक्षा जिसमे 200 विद्यार्थियों की मार्कशीट्स एक साथ निकाल सकते है I
A13: PASTE SPECIAL का प्रयोग कहां और कैसे करना है
A14: आप अपनी पुरानी वर्कबुक के Master sheet & Student Data Entry & Marks Entry sheet से data को copy कर नई शीट में paste करना चाहते हो तो paste special option का ही प्रयोग करें I एसा करने पर नई वर्कबुक के formatting और data validation नहीं बिगड़ेंगे I
A15: Paste special आप्शन से जहा paste करना हो वहा right click कर paste special से paste values का option select करें I Cut Paste बिल्कुल न करें I किसी भी Cell को delete नहीं करें I
A16: तारीख का FORMAT किस प्रकार रखना है
A17: अपने कंप्यूटर का date format set करें क्योंकि कंप्यूटर में डेट फॉर्मेट by default mm/dd/yy होता है जबकि हमें इस रिजल्ट शीट हेतु dd/mm/yyyy की आवश्यकता होती है I
A18: date format को बदलने के लिए control panel में regional language setting में date format mm/dd/yy के स्थान पर dd/mm/yy कर देवे I
A19: Fonts के बारें में जानकारी
A20: रिजल्ट वर्कबुक हिंदी , अंग्रेजी व गूगल हिंदी इनपुट टूल तीनों में उपलब्ध है I आप अपनी आवश्यकतानुसार शीट काम में ले सकते है I लेकिन इतना ध्यान रखे की Font Change न करें I
A21: प्रत्येक वर्कबुक में हिंदी हेतु Google Input hindi tool अंग्रेजी हेतु calibri & Cambria English font प्रयोग में लिया गया है I यदि उक्त font आपके computer में installed न हो तो website से download कर save करने के पश्चात् नीचे दिए तरीके के अनुसार install कर सकते है I Google Input hindi tool का प्रयोग करके भी शीट तैयार की गयी है ताकि आप मोबाइल में भी काम कर सकते है I
A22: सबसे पहले आप start menu सेs control pannel खोलें
A23: control pannel में fonts नाम के folder पर right click करें और paste करें I
A24: मार्क्स एंट्री करते समय रखी जाने वाली सावधानियां
A25: यह वर्कबुक कक्षा 11 के सभी संकायों कला वर्ग, विज्ञान वर्ग, वाणिज्य वर्ग तथा कृषि वर्ग के लिए समान रूप से उपयोगी है I संकाय व विषय के सम्बन्ध में डिटेल आप मास्टर शीट पर फिल कर सकते है I आवश्यकता होने पर केवल ऐच्छिक विषयों के सैद्धान्तिक व प्रायोगिक के पूर्णाक में बदलाव कर सकते है I
A26: तकनिकी error आने पर statement of marks व मार्कशीट की शीट के cell में #### , frm , Value?, दिखाई देंगे I Formulla के लिंक हट जाने पर #Ref# दिखाई होगा I
A27: #### की समस्या को हल करने हेतु आप कॉलम की साइज़ को बड़ा कर दो I यह समस्या सोल्व हो जाएगी I master sheet , Student Data एंट्री , marks एंट्री की शीट में किसी भी प्रकार Cell को Delete नहीं करना है, और न ही Cut Paste करना है I प्रविष्टियों को delete करने के लिए keyboard के delete का प्रयोग करें I या फिर clear content option का प्रयोग करे I अगर किसी विद्यार्थी का नाम किन्ही कारणों से NSO किया है student data entry में उसके नामांक के स्थान पर NSO लिखें I जिससे विद्यार्थियों की संख्या सही आयेगी I मेडिकल के लिए ML और अनुपस्थित के लिए अंको के स्थान पर AB फिल करना है I
A28: अन्य महत्वपूर्ण जानकारी प्रिंट से सम्बंधित
A29: Master sheet , Student Data Entry & Marks Entry sheet इन तीनों को प्रिंट नहीं करें I यह सिर्फ़ एंट्री करने के लिए है I
A30: Statement of Marks, Teacher and cat. wise result, Result Aggregate and Subject-wise Result को legal size / A4 size papers, landscape में print करें व pages को गोंद से चिपका सकते है I आजकल इसको रोल प्रिंट पर भी छापते है I आपकी सुविधा व बजट allow करे उस हिसाब से प्रिंट करवाए I प्रिंट करने से पहले प्रिंट प्रीव्यू जरुर चेक करें और उसके बाद ही प्रिंट करें I जो अनुपयोगी rows व कॉलम है उनकों hide करें I Hide करने के लिए अनुपयोगी rows ds header को select कर right click करें व hide option पर click करें I
A31: नोट :- वैसे परिणाम तैयार करने में पूरी सावधानी बरती गयी है , फिर भी आप एतिहात के तौर पर जरुर चैक करे I किसी भी त्रुटि के लिए निर्माणकर्ता जिम्मेदार नहीं होगा I
A32: Programmer & Presented By
A33: HEERA LAL JAT
A34: Sr. Teacher at MGGS BAR (PALI)
A35: V./P. - CHANDAWAL NAGAR , SOJAT (PALI)
A36: heeralaljatchandawal@gmail.com
A37: #Heeralaljat

Sheet Master Sheet
L2: Optional Subject List | M2: Hallf Yearly Marks | O2: Yearly Marks | Q2: Optional Subject List | R2: Hallf Yearly Marks | T2: Yearly Marks
L3: Non_Practical_Optional_Subject_List | M3: Th. | N3: Pract. | O3: Th. | P3: Pract. | Q3: Practical_1_Optional_Subject_List | R3: Th. | S3: Pract. | T3: Th. | U3: Pract.
G4: =IF($D$11="Hindi","विषय","Subject") -> विषय | H4: =IF($D$11="Hindi","विषयाध्यापक का नाम","Subject Teacher's Name") -> विषयाध्यापक का नाम | L4: ACCOUNTANCY | M4: 70 | N4: 0 | O4: 100 | P4: 0 | Q4: AGRICULTURE | R4: 50 | S4: 20 | T4: 70 | U4: 30 | AA4: =IF(ISNUMBER(SEARCH($AC$2,AB4)),MAX($AA$3:AA3)+1,0) -> 1 | AB4: =IF(L4="","",L4) -> ACCOUNTANCY | AC4: =IFERROR(VLOOKUP(ROWS($AB$4:AB4),$AA$4:$AB$66,2,0),"") -> ACCOUNTANCY | AF4: =OFFSET($AC$4,,,COUNTIF($AC$4:AC66,"?*")) -> ACCOUNTANCY
L5: BUSINESS STUDIES | M5: 70 | N5: 0 | O5: 100 | P5: 0 | Q5: AGRICULTURE BIOLOGY | R5: 50 | S5: 20 | T5: 70 | U5: 30 | AA5: =IF(ISNUMBER(SEARCH($AC$2,AB5)),MAX($AA$3:AA4)+1,0) -> 2 | AB5: =IF(L5="","",L5) -> BUSINESS STUDIES | AC5: =IFERROR(VLOOKUP(ROWS($AB$4:AB5),$AA$4:$AB$66,2,0),"") -> BUSINESS STUDIES
C6: School Recognition (विद्यालय मान्यता क्रमांक) :- | D6: शिक्षा/पाली/1995/2001 | F6: 1 | G6: Com. Hindi | H6: Radheshyam | L6: ECONOMICS | M6: 70 | N6: 0 | O6: 100 | P6: 0 | Q6: AGRICULTURE CHEMISTRY | R6: 50 | S6: 20 | T6: 70 | U6: 30 | AA6: =IF(ISNUMBER(SEARCH($AC$2,AB6)),MAX($AA$3:AA5)+1,0) -> 3 | AB6: ECONOMICS | AC6: =IFERROR(VLOOKUP(ROWS($AB$4:AB6),$AA$4:$AB$66,2,0),"") -> ECONOMICS
C7: Name of School (In English) :- | D7: Mahatma Gandhi Government School (English Medium) Bar, Pali | F7: 2 | G7: Com. English | H7: Heeralal Jat | L7: ENGLISH LITERATURE | M7: 70 | N7: 0 | O7: 100 | P7: 0 | Q7: BIOLOGY | R7: 50 | S7: 20 | T7: 70 | U7: 30 | AA7: =IF(ISNUMBER(SEARCH($AC$2,AB7)),MAX($AA$3:AA6)+1,0) -> 4 | AB7: ENGLISH LITERATURE | AC7: =IFERROR(VLOOKUP(ROWS($AB$4:AB7),$AA$4:$AB$66,2,0),"") -> ENGLISH LITERATURE
C8: Name of School (In Hindi) :- | D8: महात्मा गाँधी राजकीय विद्यालय (अंग्रेजी माध्यम) बर, पाली | F8: 3 | G8: POLITICAL SCIENCE | H8: Heeralal Jat | L8: ENVIRONMENTAL STUDIES | M8: 70 | N8: 0 | O8: 100 | P8: 0 | Q8: CHEMISTRY | R8: 50 | S8: 20 | T8: 70 | U8: 30 | AA8: =IF(ISNUMBER(SEARCH($AC$2,AB8)),MAX($AA$3:AA7)+1,0) -> 5 | AB8: ENVIRONMENTAL STUDIES | AC8: =IFERROR(VLOOKUP(ROWS($AB$4:AB8),$AA$4:$AB$66,2,0),"") -> ENVIRONMENTAL STUDIES
C9: Exam Nodel & Collection Centre Name :- | D9: G.S.S.S. BAR | F9: 4 | G9: HISTORY | H9: Rakesh Kumar | L9: FARSI LITERATURE | M9: 70 | N9: 0 | O9: 100 | P9: 0 | Q9: COMPUTER SCIENCE | R9: 50 | S9: 20 | T9: 70 | U9: 30 | AA9: =IF(ISNUMBER(SEARCH($AC$2,AB9)),MAX($AA$3:AA8)+1,0) -> 6 | AB9: FARSI LITERATURE | AC9: =IFERROR(VLOOKUP(ROWS($AB$4:AB9),$AA$4:$AB$66,2,0),"") -> FARSI LITERATURE
C10: Date of result declaration :- | D10: 2024-05-07 | F10: 5 | G10: GEOGRAPHY | H10: Yogendra | L10: GUJRATI LITERATURE | M10: 70 | N10: 0 | O10: 100 | P10: 0 | Q10: GEO SCIENCE | R10: 50 | S10: 20 | T10: 70 | U10: 30 | W10: Gurudev Vasudev Ji Maharaj | AA10: =IF(ISNUMBER(SEARCH($AC$2,AB10)),MAX($AA$3:AA9)+1,0) -> 7 | AB10: GUJRATI LITERATURE | AC10: =IFERROR(VLOOKUP(ROWS($AB$4:AB10),$AA$4:$AB$66,2,0),"") -> GUJRATI LITERATURE
C11: Medium :- | D11: Hindi | F11: 6 | G11: MUSIC | H11: Pushpendra | L11: HINDI LITERATURE | M11: 70 | N11: 0 | O11: 100 | P11: 0 | Q11: GEOGRAPHY | R11: 50 | S11: 20 | T11: 70 | U11: 30 | AA11: =IF(ISNUMBER(SEARCH($AC$2,AB11)),MAX($AA$3:AA10)+1,0) -> 8 | AB11: HINDI LITERATURE | AC11: =IFERROR(VLOOKUP(ROWS($AB$4:AB11),$AA$4:$AB$66,2,0),"") -> HINDI LITERATURE
C12: Principal Name :- | D12: USHA PALIYA | F12: 7 | G12: HINDI LITERATURE | L12: HISTORY | M12: 70 | N12: 0 | O12: 100 | P12: 0 | Q12: HOME SCIENCE | R12: 50 | S12: 20 | T12: 70 | U12: 30 | AA12: =IF(ISNUMBER(SEARCH($AC$2,AB12)),MAX($AA$3:AA11)+1,0) -> 9 | AB12: HISTORY | AC12: =IFERROR(VLOOKUP(ROWS($AB$4:AB12),$AA$4:$AB$66,2,0),"") -> HISTORY
C13: Principal Mobile No. :- | D13: 9828765219 | F13: 8 | L13: MATHEMATICS | M13: 70 | N13: 0 | O13: 100 | P13: 0 | Q13: INFORMATION PRACTICE | R13: 50 | S13: 20 | T13: 70 | U13: 30 | AA13: =IF(ISNUMBER(SEARCH($AC$2,AB13)),MAX($AA$3:AA12)+1,0) -> 10 | AB13: MATHEMATICS | AC13: =IFERROR(VLOOKUP(ROWS($AB$4:AB13),$AA$4:$AB$66,2,0),"") -> MATHEMATICS
C14: Exam Incharge :- | D14: Heeralal Jat | F14: 9 | L14: PHILOSOPHY | M14: 70 | N14: 0 | O14: 100 | P14: 0 | Q14: INFORMATION TECHNOLOGY AND PROCESSING 1 | R14: 50 | S14: 20 | T14: 70 | U14: 30 | AA14: =IF(ISNUMBER(SEARCH($AC$2,AB14)),MAX($AA$3:AA13)+1,0) -> 11 | AB14: PHILOSOPHY | AC14: =IFERROR(VLOOKUP(ROWS($AB$4:AB14),$AA$4:$AB$66,2,0),"") -> PHILOSOPHY
C15: Result Checker :- | D15: Rakesh Kumar | F15: 10 | L15: PHYSICAL EDUCATION | M15: 70 | N15: 0 | O15: 100 | P15: 0 | Q15: MULTIMEDIA WEB TECH | R15: 50 | S15: 20 | T15: 70 | U15: 30 | AA15: =IF(ISNUMBER(SEARCH($AC$2,AB15)),MAX($AA$3:AA14)+1,0) -> 12 | AB15: PHYSICAL EDUCATION | AC15: =IFERROR(VLOOKUP(ROWS($AB$4:AB15),$AA$4:$AB$66,2,0),"") -> PHYSICAL EDUCATION
C16: Result Maker :- | D16: Suresh Kumar | F16: 11 | L16: POLITICAL SCIENCE | M16: 70 | N16: 0 | O16: 100 | P16: 0 | Q16: PHYSICS | R16: 50 | S16: 20 | T16: 70 | U16: 30 | AA16: =IF(ISNUMBER(SEARCH($AC$2,AB16)),MAX($AA$3:AA15)+1,0) -> 13 | AB16: POLITICAL SCIENCE | AC16: =IFERROR(VLOOKUP(ROWS($AB$4:AB16),$AA$4:$AB$66,2,0),"") -> POLITICAL SCIENCE
C17: Class Teacher 11th :- | D17: Yogesh | F17: 12 | L17: PRAKRIT LITERATURE | M17: 70 | N17: 0 | O17: 100 | P17: 0 | Q17: PSYCHOLOGY | R17: 50 | S17: 20 | T17: 70 | U17: 30 | AA17: =IF(ISNUMBER(SEARCH($AC$2,AB17)),MAX($AA$3:AA16)+1,0) -> 14 | AB17: PRAKRIT LITERATURE | AC17: =IFERROR(VLOOKUP(ROWS($AB$4:AB17),$AA$4:$AB$66,2,0),"") -> PRAKRIT LITERATURE
C18: Date of Supplementary result declaration :- | D18: 2024-05-15 | F18: 13 | L18: PUBLIC ADMINISTRATION | M18: 70 | N18: 0 | O18: 100 | P18: 0 | Q18: Typing Subject List | R18: Hallf Yearly Marks | T18: Yearly Marks | AA18: =IF(ISNUMBER(SEARCH($AC$2,AB18)),MAX($AA$3:AA17)+1,0) -> 15 | AB18: PUBLIC ADMINISTRATION | AC18: =IFERROR(VLOOKUP(ROWS($AB$4:AB18),$AA$4:$AB$66,2,0),"") -> PUBLIC ADMINISTRATION
C19: Vacational Subject :- | D19: No | F19: 14 | L19: PUNJABI LITERATURE | M19: 70 | N19: 0 | O19: 100 | P19: 0 | Q19: Practical_3_Optional_Subject_List | R19: Th. | S19: Pract. | T19: Th. | U19: Pract. | AA19: =IF(ISNUMBER(SEARCH($AC$2,AB19)),MAX($AA$3:AA18)+1,0) -> 16 | AB19: PUNJABI LITERATURE | AC19: =IFERROR(VLOOKUP(ROWS($AB$4:AB19),$AA$4:$AB$66,2,0),"") -> PUNJABI LITERATURE
F20: 15 | G20: =IF($D$11="Hindi","जीवन कौशल","JEEVAN KAUSHAL") -> जीवन कौशल | H20: Lalit Kumar | L20: RAJASTHANI LITERATURE | M20: 70 | N20: 0 | O20: 100 | P20: 0 | Q20: SHORT HAND (ENGLISH) | R20: 70 | T20: 100 | AA20: =IF(ISNUMBER(SEARCH($AC$2,AB20)),MAX($AA$3:AA19)+1,0) -> 17 | AB20: RAJASTHANI LITERATURE | AC20: =IFERROR(VLOOKUP(ROWS($AB$4:AB20),$AA$4:$AB$66,2,0),"") -> RAJASTHANI LITERATURE
F21: 16 | G21: =IF($D$11="Hindi","आजादी के बाद का स्वर्णिम भारत ","Azadi ke Baad ka Swarnim Bharat") -> आजादी के बाद का स्वर्णिम भारत | H21: Pravin Kumar | L21: SANSKRIT LITERATURE | M21: 70 | N21: 0 | O21: 100 | P21: 0 | Q21: SHORT HAND (HINDI) | R21: 70 | T21: 100 | AA21: =IF(ISNUMBER(SEARCH($AC$2,AB21)),MAX($AA$3:AA20)+1,0) -> 18 | AB21: SANSKRIT LITERATURE | AC21: =IFERROR(VLOOKUP(ROWS($AB$4:AB21),$AA$4:$AB$66,2,0),"") -> SANSKRIT LITERATURE
L22: SINDHI LITERATURE | M22: 70 | N22: 0 | O22: 100 | P22: 0 | Q22: TYPING | R22: 70 | T22: 100 | AA22: =IF(ISNUMBER(SEARCH($AC$2,AB22)),MAX($AA$3:AA21)+1,0) -> 19 | AB22: SINDHI LITERATURE | AC22: =IFERROR(VLOOKUP(ROWS($AB$4:AB22),$AA$4:$AB$66,2,0),"") -> SINDHI LITERATURE
L23: SOCIOLOGY | M23: 70 | N23: 0 | O23: 100 | P23: 0 | Q23: TYPING (ENGLISH) | R23: 70 | T23: 100 | AA23: =IF(ISNUMBER(SEARCH($AC$2,AB23)),MAX($AA$3:AA22)+1,0) -> 20 | AB23: SOCIOLOGY | AC23: =IFERROR(VLOOKUP(ROWS($AB$4:AB23),$AA$4:$AB$66,2,0),"") -> SOCIOLOGY
H24: 1 | L24: URDU LITERATURE | M24: 70 | N24: 0 | O24: 100 | P24: 0 | Q24: TYPING HINDI | R24: 70 | T24: 100 | AA24: =IF(ISNUMBER(SEARCH($AC$2,AB24)),MAX($AA$3:AA23)+1,0) -> 21 | AB24: URDU LITERATURE | AC24: =IFERROR(VLOOKUP(ROWS($AB$4:AB24),$AA$4:$AB$66,2,0),"") -> URDU LITERATURE
H25: 1 | L25: Optional Subject List | M25: Hallf Yearly Marks | O25: Yearly Marks | Q25: Vocational Subject List | R25: Only Yearly Marks | AA25: =IF(ISNUMBER(SEARCH($AC$2,AB25)),MAX($AA$3:AA24)+1,0) -> 22 | AB25: =IF(Q4="","",Q4) -> AGRICULTURE | AC25: =IFERROR(VLOOKUP(ROWS($AB$4:AB25),$AA$4:$AB$66,2,0),"") -> AGRICULTURE
L26: Practical_2_Optional_Subject_List | M26: Th. | N26: Pract. | O26: Th. | P26: Pract. | Q26: Practical_4_Optional_Subject_List | R26: Th. | S26: Portfolio | T26: Pract. | AA26: =IF(ISNUMBER(SEARCH($AC$2,AB26)),MAX($AA$3:AA25)+1,0) -> 23 | AB26: =IF(Q5="","",Q5) -> AGRICULTURE BIOLOGY | AC26: =IFERROR(VLOOKUP(ROWS($AB$4:AB26),$AA$4:$AB$66,2,0),"") -> AGRICULTURE BIOLOGY
D27: Presented By :- | G27: You tube Video Link : | L27: DANCE KATTHAK | M27: 20 | N27: 50 | O27: 30 | P27: 70 | Q27: AUTOMOBILE | R27: 30 | S27: 20 | T27: 50 | AA27: =IF(ISNUMBER(SEARCH($AC$2,AB27)),MAX($AA$3:AA26)+1,0) -> 24 | AB27: AGRICULTURE CHEMISTRY | AC27: =IFERROR(VLOOKUP(ROWS($AB$4:AB27),$AA$4:$AB$66,2,0),"") -> AGRICULTURE CHEMISTRY
L28: DRAWING | M28: 20 | N28: 50 | O28: 30 | P28: 70 | Q28: BEAUTY AND HEALTH | R28: 30 | S28: 20 | T28: 50 | AA28: =IF(ISNUMBER(SEARCH($AC$2,AB28)),MAX($AA$3:AA27)+1,0) -> 25 | AB28: BIOLOGY | AC28: =IFERROR(VLOOKUP(ROWS($AB$4:AB28),$AA$4:$AB$66,2,0),"") -> BIOLOGY
D29: HEERA LAL JAT | G29: https://youtu.be/aJjzQ4EcoqQ | L29: MUSIC INSTR. DILRUBA | M29: 20 | N29: 50 | O29: 30 | P29: 70 | Q29: DRESS DESIGNING AND HOME DECORATION | R29: 30 | S29: 20 | T29: 50 | AA29: =IF(ISNUMBER(SEARCH($AC$2,AB29)),MAX($AA$3:AA28)+1,0) -> 26 | AB29: CHEMISTRY | AC29: =IFERROR(VLOOKUP(ROWS($AB$4:AB29),$AA$4:$AB$66,2,0),"") -> CHEMISTRY
L30: MUSIC INSTR. FLUTE | M30: 20 | N30: 50 | O30: 30 | P30: 70 | Q30: ELECTRICALS AND ELECTRONICS | R30: 30 | S30: 20 | T30: 50 | AA30: =IF(ISNUMBER(SEARCH($AC$2,AB30)),MAX($AA$3:AA29)+1,0) -> 27 | AB30: COMPUTER SCIENCE | AC30: =IFERROR(VLOOKUP(ROWS($AB$4:AB30),$AA$4:$AB$66,2,0),"") -> COMPUTER SCIENCE
D31: Sr. Teacher at MGGS BAR (PALI) | G31: Updated On | L31: MUSIC INSTR. FLUTE | M31: 20 | N31: 50 | O31: 30 | P31: 70 | Q31: HEALTH CARE | R31: 30 | S31: 20 | T31: 50 | AA31: =IF(ISNUMBER(SEARCH($AC$2,AB31)),MAX($AA$3:AA30)+1,0) -> 28 | AB31: GEO SCIENCE | AC31: =IFERROR(VLOOKUP(ROWS($AB$4:AB31),$AA$4:$AB$66,2,0),"") -> GEO SCIENCE
L32: MUSIC INSTR. GUITAR | M32: 20 | N32: 50 | O32: 30 | P32: 70 | Q32: INFORMATION TECHNOLOGY Ites | R32: 30 | S32: 20 | T32: 50 | AA32: =IF(ISNUMBER(SEARCH($AC$2,AB32)),MAX($AA$3:AA31)+1,0) -> 29 | AB32: GEOGRAPHY | AC32: =IFERROR(VLOOKUP(ROWS($AB$4:AB32),$AA$4:$AB$66,2,0),"") -> GEOGRAPHY
D33: V./P. - CHANDAWAL NAGAR , SOJAT (PALI) | G33: 2024-04-28 | L33: MUSIC INSTR. PKHAAVAJ | M33: 20 | N33: 50 | O33: 30 | P33: 70 | Q33: MICRO IRRIGATION SYSTEM | R33: 30 | S33: 20 | T33: 50 | AA33: =IF(ISNUMBER(SEARCH($AC$2,AB33)),MAX($AA$3:AA32)+1,0) -> 30 | AB33: HOME SCIENCE | AC33: =IFERROR(VLOOKUP(ROWS($AB$4:AB33),$AA$4:$AB$66,2,0),"") -> HOME SCIENCE
L34: MUSIC INSTR. SAROD | M34: 20 | N34: 50 | O34: 30 | P34: 70 | Q34: PERSONAL SECURITY | R34: 30 | S34: 20 | T34: 50 | AA34: =IF(ISNUMBER(SEARCH($AC$2,AB34)),MAX($AA$3:AA33)+1,0) -> 31 | AB34: INFORMATION PRACTICE | AC34: =IFERROR(VLOOKUP(ROWS($AB$4:AB34),$AA$4:$AB$66,2,0),"") -> INFORMATION PRACTICE
D35: #Heeralaljat | L35: MUSIC INSTR. SITARA | M35: 20 | N35: 50 | O35: 30 | P35: 70 | Q35: RETAIL SALE | R35: 30 | S35: 20 | T35: 50 | AA35: =IF(ISNUMBER(SEARCH($AC$2,AB35)),MAX($AA$3:AA34)+1,0) -> 32 | AB35: INFORMATION TECHNOLOGY AND PROCESSING 1 | AC35: =IFERROR(VLOOKUP(ROWS($AB$4:AB35),$AA$4:$AB$66,2,0),"") -> INFORMATION TECHNOLOGY AND PROCESSING 1
L36: MUSIC INSTR. TABLA | M36: 20 | N36: 50 | O36: 30 | P36: 70 | Q36: TOURISM AND TRAVEL | R36: 30 | S36: 20 | T36: 50 | AA36: =IF(ISNUMBER(SEARCH($AC$2,AB36)),MAX($AA$3:AA35)+1,0) -> 33 | AB36: MULTIMEDIA WEB TECH | AC36: =IFERROR(VLOOKUP(ROWS($AB$4:AB36),$AA$4:$AB$66,2,0),"") -> MULTIMEDIA WEB TECH
D37: heeralaljatchandawal@gmail.com | L37: MUSIC VOCAL | M37: 20 | N37: 50 | O37: 30 | P37: 70 | AA37: =IF(ISNUMBER(SEARCH($AC$2,AB37)),MAX($AA$3:AA36)+1,0) -> 34 | AB37: PHYSICS | AC37: =IFERROR(VLOOKUP(ROWS($AB$4:AB37),$AA$4:$AB$66,2,0),"") -> PHYSICS
AA38: =IF(ISNUMBER(SEARCH($AC$2,AB38)),MAX($AA$3:AA37)+1,0) -> 35 | AB38: PSYCHOLOGY | AC38: =IFERROR(VLOOKUP(ROWS($AB$4:AB38),$AA$4:$AB$66,2,0),"") -> PSYCHOLOGY
AA39: =IF(ISNUMBER(SEARCH($AC$2,AB39)),MAX($AA$3:AA38)+1,0) -> 36 | AB39: =IF(Q20="","",Q20) -> SHORT HAND (ENGLISH) | AC39: =IFERROR(VLOOKUP(ROWS($AB$4:AB39),$AA$4:$AB$66,2,0),"") -> SHORT HAND (ENGLISH)
AA40: =IF(ISNUMBER(SEARCH($AC$2,AB40)),MAX($AA$3:AA39)+1,0) -> 37 | AB40: =IF(Q21="","",Q21) -> SHORT HAND (HINDI) | AC40: =IFERROR(VLOOKUP(ROWS($AB$4:AB40),$AA$4:$AB$66,2,0),"") -> SHORT HAND (HINDI)
AA41: =IF(ISNUMBER(SEARCH($AC$2,AB41)),MAX($AA$3:AA40)+1,0) -> 38 | AB41: TYPING | AC41: =IFERROR(VLOOKUP(ROWS($AB$4:AB41),$AA$4:$AB$66,2,0),"") -> TYPING
AA42: =IF(ISNUMBER(SEARCH($AC$2,AB42)),MAX($AA$3:AA41)+1,0) -> 39 | AB42: TYPING (ENGLISH) | AC42: =IFERROR(VLOOKUP(ROWS($AB$4:AB42),$AA$4:$AB$66,2,0),"") -> TYPING (ENGLISH)
AA43: =IF(ISNUMBER(SEARCH($AC$2,AB43)),MAX($AA$3:AA42)+1,0) -> 40 | AB43: TYPING HINDI | AC43: =IFERROR(VLOOKUP(ROWS($AB$4:AB43),$AA$4:$AB$66,2,0),"") -> TYPING HINDI
AA44: =IF(ISNUMBER(SEARCH($AC$2,AB44)),MAX($AA$3:AA43)+1,0) -> 41 | AB44: =IF(Q27="","",Q27) -> AUTOMOBILE | AC44: =IFERROR(VLOOKUP(ROWS($AB$4:AB44),$AA$4:$AB$66,2,0),"") -> AUTOMOBILE
AA45: =IF(ISNUMBER(SEARCH($AC$2,AB45)),MAX($AA$3:AA44)+1,0) -> 42 | AB45: =IF(Q28="","",Q28) -> BEAUTY AND HEALTH | AC45: =IFERROR(VLOOKUP(ROWS($AB$4:AB45),$AA$4:$AB$66,2,0),"") -> BEAUTY AND HEALTH
AA46: =IF(ISNUMBER(SEARCH($AC$2,AB46)),MAX($AA$3:AA45)+1,0) -> 43 | AB46: DRESS DESIGNING AND HOME DECORATION | AC46: =IFERROR(VLOOKUP(ROWS($AB$4:AB46),$AA$4:$AB$66,2,0),"") -> DRESS DESIGNING AND HOME DECORATION
AA47: =IF(ISNUMBER(SEARCH($AC$2,AB47)),MAX($AA$3:AA46)+1,0) -> 44 | AB47: ELECTRICALS AND ELECTRONICS | AC47: =IFERROR(VLOOKUP(ROWS($AB$4:AB47),$AA$4:$AB$66,2,0),"") -> ELECTRICALS AND ELECTRONICS
AA48: =IF(ISNUMBER(SEARCH($AC$2,AB48)),MAX($AA$3:AA47)+1,0) -> 45 | AB48: HEALTH CARE | AC48: =IFERROR(VLOOKUP(ROWS($AB$4:AB48),$AA$4:$AB$66,2,0),"") -> HEALTH CARE
AA49: =IF(ISNUMBER(SEARCH($AC$2,AB49)),MAX($AA$3:AA48)+1,0) -> 46 | AB49: INFORMATION TECHNOLOGY Ites | AC49: =IFERROR(VLOOKUP(ROWS($AB$4:AB49),$AA$4:$AB$66,2,0),"") -> INFORMATION TECHNOLOGY Ites
AA50: =IF(ISNUMBER(SEARCH($AC$2,AB50)),MAX($AA$3:AA49)+1,0) -> 47 | AB50: MICRO IRRIGATION SYSTEM | AC50: =IFERROR(VLOOKUP(ROWS($AB$4:AB50),$AA$4:$AB$66,2,0),"") -> MICRO IRRIGATION SYSTEM
AA51: =IF(ISNUMBER(SEARCH($AC$2,AB51)),MAX($AA$3:AA50)+1,0) -> 48 | AB51: PERSONAL SECURITY | AC51: =IFERROR(VLOOKUP(ROWS($AB$4:AB51),$AA$4:$AB$66,2,0),"") -> PERSONAL SECURITY
AA52: =IF(ISNUMBER(SEARCH($AC$2,AB52)),MAX($AA$3:AA51)+1,0) -> 49 | AB52: RETAIL SALE | AC52: =IFERROR(VLOOKUP(ROWS($AB$4:AB52),$AA$4:$AB$66,2,0),"") -> RETAIL SALE
AA53: =IF(ISNUMBER(SEARCH($AC$2,AB53)),MAX($AA$3:AA52)+1,0) -> 50 | AB53: TOURISM AND TRAVEL | AC53: =IFERROR(VLOOKUP(ROWS($AB$4:AB53),$AA$4:$AB$66,2,0),"") -> TOURISM AND TRAVEL
AA54: =IF(ISNUMBER(SEARCH($AC$2,AB54)),MAX($AA$3:AA53)+1,0) -> 51 | AB54: =IF(L27="","",L27) -> DANCE KATTHAK | AC54: =IFERROR(VLOOKUP(ROWS($AB$4:AB54),$AA$4:$AB$66,2,0),"") -> DANCE KATTHAK
AA55: =IF(ISNUMBER(SEARCH($AC$2,AB55)),MAX($AA$3:AA54)+1,0) -> 52 | AB55: =IF(L28="","",L28) -> DRAWING | AC55: =IFERROR(VLOOKUP(ROWS($AB$4:AB55),$AA$4:$AB$66,2,0),"") -> DRAWING
AA56: =IF(ISNUMBER(SEARCH($AC$2,AB56)),MAX($AA$3:AA55)+1,0) -> 53 | AB56: MUSIC INSTR. DILRUBA | AC56: =IFERROR(VLOOKUP(ROWS($AB$4:AB56),$AA$4:$AB$66,2,0),"") -> MUSIC INSTR. DILRUBA
AA57: =IF(ISNUMBER(SEARCH($AC$2,AB57)),MAX($AA$3:AA56)+1,0) -> 54 | AB57: MUSIC INSTR. FLUTE | AC57: =IFERROR(VLOOKUP(ROWS($AB$4:AB57),$AA$4:$AB$66,2,0),"") -> MUSIC INSTR. FLUTE
AA58: =IF(ISNUMBER(SEARCH($AC$2,AB58)),MAX($AA$3:AA57)+1,0) -> 55 | AB58: MUSIC INSTR. FLUTE | AC58: =IFERROR(VLOOKUP(ROWS($AB$4:AB58),$AA$4:$AB$66,2,0),"") -> MUSIC INSTR. FLUTE
AA59: =IF(ISNUMBER(SEARCH($AC$2,AB59)),MAX($AA$3:AA58)+1,0) -> 56 | AB59: MUSIC INSTR. GUITAR | AC59: =IFERROR(VLOOKUP(ROWS($AB$4:AB59),$AA$4:$AB$66,2,0),"") -> MUSIC INSTR. GUITAR
AA60: =IF(ISNUMBER(SEARCH($AC$2,AB60)),MAX($AA$3:AA59)+1,0) -> 57 | AB60: MUSIC INSTR. PKHAAVAJ | AC60: =IFERROR(VLOOKUP(ROWS($AB$4:AB60),$AA$4:$AB$66,2,0),"") -> MUSIC INSTR. PKHAAVAJ
AA61: =IF(ISNUMBER(SEARCH($AC$2,AB61)),MAX($AA$3:AA60)+1,0) -> 58 | AB61: MUSIC INSTR. SAROD | AC61: =IFERROR(VLOOKUP(ROWS($AB$4:AB61),$AA$4:$AB$66,2,0),"") -> MUSIC INSTR. SAROD
AA62: =IF(ISNUMBER(SEARCH($AC$2,AB62)),MAX($AA$3:AA61)+1,0) -> 59 | AB62: MUSIC INSTR. SITARA | AC62: =IFERROR(VLOOKUP(ROWS($AB$4:AB62),$AA$4:$AB$66,2,0),"") -> MUSIC INSTR. SITARA
AA63: =IF(ISNUMBER(SEARCH($AC$2,AB63)),MAX($AA$3:AA62)+1,0) -> 60 | AB63: MUSIC INSTR. TABLA | AC63: =IFERROR(VLOOKUP(ROWS($AB$4:AB63),$AA$4:$AB$66,2,0),"") -> MUSIC INSTR. TABLA
AA64: =IF(ISNUMBER(SEARCH($AC$2,AB64)),MAX($AA$3:AA63)+1,0) -> 61 | AB64: =IF(L37="","",L37) -> MUSIC VOCAL | AC64: =IFERROR(VLOOKUP(ROWS($AB$4:AB64),$AA$4:$AB$66,2,0),"") -> MUSIC VOCAL
AA65: =IF(ISNUMBER(SEARCH($AC$2,AB65)),MAX($AA$3:AA64)+1,0) -> 0 | AC65: =IFERROR(VLOOKUP(ROWS($AB$4:AB65),$AA$4:$AB$66,2,0),"") -> 
AA66: =IF(ISNUMBER(SEARCH($AC$2,AB66)),MAX($AA$3:AA65)+1,0) -> 0 | AB66: =IF(Q37="","",Q37) ->  | AC66: =IFERROR(VLOOKUP(ROWS($AB$4:AB66),$AA$4:$AB$66,2,0),"") -> 
AB67: =IF(Q38="","",Q38) ->  | AC67: =IFERROR(VLOOKUP(ROWS($AB$4:AB67),$AA$4:$AB$66,2,0),"") -> 

Sheet Student DATA Entry
B1: =IF('Master Sheet'!D11="Hindi",CONCATENATE("विद्यालय का नाम :-"," ",'Master Sheet'!D8),CONCATENATE("School Name :-"," ",'Master Sheet'!D7)) -> विद्यालय का नाम :- महात्मा गाँधी राजकीय विद्यालय (अंग्रेजी माध्यम) बर, पाली | K1: Sheet Password :- | M1: Class11
A2: S. N. | B2: ROLL NO | C2: Class | D2: Section | E2: SR. NO. | F2: Name of student | G2: Father's Name | H2: Mother's Name | I2: Date of Birth | J2: Gender | K2: Category | L2: Total Attendance
A3: क्र स | B3: नामांक | C3: कक्षा | D3: वर्ग | E3: प्रवेशांक | F3: विद्यार्थी का नाम | G3: पिता का नाम | H3: माता का नाम | I3: जन्मतिथि | J3: लिंग | K3: वर्ग | L3: कुल कार्य दिवस | M3: छात्र उपस्थिति
A4: 1 | B4: 1101 | C4: 11 | D4: A | E4: 230 | F4: A | G4: X | H4: M | I4: 2003-01-01 | J4: M | K4: GEN | L4: 350 | M4: 340
A5: 2 | B5: 1102 | C5: 11 | D5: A | E5: 231 | F5: B | G5: Y | H5: N | I5: 2004-04-13 | J5: M | K5: OBC | L5: 360 | M5: 344
A6: 3 | B6: 1103 | C6: 11 | D6: A | E6: 555 | F6: C | G6: Z | H6: O | I6: 2005-03-03 | J6: F | K6: SC | L6: 370 | M6: 346
A7: 4 | B7: 1104 | C7: 11 | D7: A | E7: 444 | F7: D | G7: W | H7: P | I7: 2006-06-06 | J7: M | K7: ST | L7: 340 | M7: 330
A8: 5 | B8: 1105 | C8: 11 | D8: A | E8: 333 | F8: E | G8: V | H8: Q | I8: 2007-07-07 | J8: F | K8: SBC | L8: 320 | M8: 318
A9: 6 | B9: 1106 | C9: 11 | D9: A | E9: 666 | F9: F | G9: U | H9: R | I9: 2008-08-08 | J9: M | K9: OBC | L9: 320 | M9: 310
A10: 7 | B10: 1107 | C10: 11 | D10: A | E10: 222 | F10: G | G10: T | H10: S | I10: 2009-09-09 | J10: M | K10: GEN | L10: 380 | M10: 370
A11: 8 | B11: 1108 | C11: 11 | D11: A | E11: 123 | F11: O | G11: R | H11: I | I11: 2008-11-11 | J11: M | K11: OBC | L11: 360 | M11: 330
A12: 9 | B12: 1109 | C12: 11 | D12: A | E12: 345 | F12: P | G12: P | H12: N | I12: 2011-09-09 | J12: F | K12: SC | L12: 340 | M12: 330
A13: 10 | B13: 1110 | C13: 11 | D13: A | E13: 678 | F13: S | G13: M | H13: B | I13: 2006-05-04 | J13: M | K13: MIN | L13: 330 | M13: 310
A14: 11 | B14: 1111 | C14: 11 | D14: A | E14: 654 | F14: M | G14: N | H14: A | I14: 2008-07-06 | J14: M | K14: SBC | L14: 370 | M14: 360
A15: 12
A16: 13
A17: 14
A18: 15
A19: 16
A20: 17
A21: 18
A22: 19
A23: 20
A24: 21
A25: 22
A26: 23
A27: 24
A28: 25
A29: 26
A30: 27
A31: 28
A32: 29
A33: 30
A34: 31
A35: 32
A36: 33
A37: 34
A38: 35
A39: 36
A40: 37
A41: 38
A42: 39
A43: 40
A44: 41
A45: 42
A46: 43
A47: 44
A48: 45
A49: 46
A50: 47
A51: 48
A52: 49
A53: 50
A54: 51
A55: 52
A56: 53
A57: 54
A58: 55
A59: 56
A60: 57
A61: 58
A62: 59
A63: 60
A64: 61
A65: 62
A66: 63
A67: 64
A68: 65
A69: 66
A70: 67
A71: 68
A72: 69
A73: 70
A74: 71
A75: 72
A76: 73
A77: 74
A78: 75
A79: 76
A80: 77
A81: 78
A82: 79
A83: 80
A84: 81
A85: 82
A86: 83
A87: 84
A88: 85
A89: 86
A90: 87
A91: 88
A92: 89
A93: 90
A94: 91
A95: 92
A96: 93
A97: 94
A98: 95
A99: 96
A100: 97
A101: 98
A102: 99
A103: 100
A104: 101
A105: 102
A106: 103
A107: 104
A108: 105
A109: 106
A110: 107
A111: 108
A112: 109
A113: 110
A114: 111
A115: 112
A116: 113
A117: 114
A118: 115
A119: 116
A120: 117
A121: 118
A122: 119
A123: 120
A124: 121
A125: 122
A126: 123
A127: 124
A128: 125
A129: 126
A130: 127
A131: 128
A132: 129
A133: 130
A134: 131
A135: 132
A136: 133
A137: 134
A138: 135
A139: 136
A140: 137
A141: 138
A142: 139
A143: 140
A144: 141
A145: 142
A146: 143
A147: 144
A148: 145
A149: 146
A150: 147
A151: 148
A152: 149
A153: 150
A154: 151
A155: 152
A156: 153
A157: 154
A158: 155
A159: 156
A160: 157
A161: 158
A162: 159
A163: 160
A164: 161
A165: 162
A166: 163
A167: 164
A168: 165
A169: 166
A170: 167
A171: 168
A172: 169
A173: 170
A174: 171
A175: 172
A176: 173
A177: 174
A178: 175
A179: 176
A180: 177
A181: 178
A182: 179
A183: 180
A184: 181
A185: 182
A186: 183
A187: 184
A188: 185
A189: 186
A190: 187
A191: 188
A192: 189
A193: 190
A194: 191
A195: 192
A196: 193
A197: 194
A198: 195
A199: 196
A200: 197
... 3 more rows

Sheet Marks Entry
A1: =IF('Master Sheet'!D11="Hindi",CONCATENATE("विद्यालय का नाम :-"," ",'Master Sheet'!D8),CONCATENATE("School Name :-"," ",'Master Sheet'!D7)) -> विद्यालय का नाम :- महात्मा गाँधी राजकीय विद्यालय (अंग्रेजी माध्यम) बर, पाली | G1: =IF('Master Sheet'!$D$11="Hindi","सत्र :-","Session :-") -> सत्र :- | H1: 2023-2024 | K1: ='Master Sheet'!G6 -> Com. Hindi | P1: ='Master Sheet'!G7 -> Com. English | U1: Optional Subject - 01 | AC1: Optional Subject - 02 | AK1: Optional Subject - 03 | AS1: Additional Sub. / Vocational Subject | BA1: =AW220 -> 1 | BE1: ='Master Sheet'!G21 -> आजादी के बाद का स्वर्णिम भारत
G2: =IF('Master Sheet'!$D$11="Hindi","कक्षा :-","Class :-") -> कक्षा :- | H2: 11 | U2: POLITICAL SCIENCE | Y2: BIOLOGY | AC2: HISTORY | AG2: ACCOUNTANCY | AI2: ECONOMICS | AK2: GEOGRAPHY | AO2: HOME SCIENCE | AQ2: TYPING | AS2: MATHEMATICS | AW2: TOURISM AND TRAVEL | AY2: HEALTH CARE | BB2: ='Master Sheet'!G20 -> जीवन कौशल | BE2: ='Master Sheet'!H21 -> Pravin Kumar
G3: =IF('Master Sheet'!$D$11="Hindi","संकाय :-","Faculty :-") -> संकाय :- | H3: Arts | I3: जाति वर्ग (Category) | J3: लिंग (Gender) | K3: =IF('Master Sheet'!H6="","",'Master Sheet'!H6) -> Radheshyam | P3: =IF('Master Sheet'!H7="","",'Master Sheet'!H7) -> Heeralal Jat | U3: =IFERROR(IF(AND(U2=""),"A",VLOOKUP(U2,'Master Sheet'!$G$8:$H$19,2,0)),"") -> Heeralal Jat | Y3: =IFERROR(IF(AND(Y2=""),"B",VLOOKUP(Y2,'Master Sheet'!$G$8:$H$19,2,0)),"") ->  | AA3: =IFERROR(IF(AND(AA2=""),"C",VLOOKUP(AA2,'Master Sheet'!$G$8:$H$19,2,0)),"") -> C | AC3: =IFERROR(IF(AND(AC2=""),"A",VLOOKUP(AC2,'Master Sheet'!$G$8:$H$19,2,0)),"") -> Rakesh Kumar | AG3: =IFERROR(IF(AND(AG2=""),"B",VLOOKUP(AG2,'Master Sheet'!$G$8:$H$19,2,0)),"") ->  | AI3: =IFERROR(IF(AND(AI2=""),"C",VLOOKUP(AI2,'Master Sheet'!$G$8:$H$19,2,0)),"") ->  | AK3: =IFERROR(IF(AND(AK2=""),"A",VLOOKUP(AK2,'Master Sheet'!$G$8:$H$19,2,0)),"") -> Yogendra | AO3: =IFERROR(IF(AND(AO2=""),"B",VLOOKUP(AO2,'Master Sheet'!$G$8:$H$19,2,0)),"") ->  | AQ3: =IFERROR(IF(AND(AQ2=""),"C",VLOOKUP(AQ2,'Master Sheet'!$G$8:$H$19,2,0)),"") ->  | AS3: =IFERROR(IF(AND(AS2=""),"A",VLOOKUP(AS2,'Master Sheet'!$G$8:$H$19,2,0)),"") ->  | AW3: =IFERROR(IF(AND(AW2=""),"B",VLOOKUP(AW2,'Master Sheet'!$G$8:$H$19,2,0)),"") ->  | AY3: =IFERROR(IF(AND(AY2=""),"C",VLOOKUP(AY2,'Master Sheet'!$G$8:$H$19,2,0)),"") ->  | BB3: =IF('Master Sheet'!H20="","",'Master Sheet'!H20) -> Lalit Kumar | BE3: =IF('Master Sheet'!$D$11="Hindi","सामयिक परख","Seasonal Exam") -> सामयिक परख | BH3: =IF('Master Sheet'!$D$11="Hindi","अर्द्धवार्षिक","Half Yearly") -> अर्द्धवार्षिक | BI3: =IF('Master Sheet'!$D$11="Hindi","वार्षिक","Yearly Exam") -> वार्षिक | BN3: oSdfYid fo"k;ksa dh lwph
A4: क्रमांक | B4: नामांक Roll No. | C4: वर्ग Section. | D4: प्रवेशांक SR. No. | E4: जन्मतिथि Date of Birth | F4: =IF('Master Sheet'!$D$11="Hindi","विद्यार्थी विवरण","Student Details") -> विद्यार्थी विवरण | K4: =IF('Master Sheet'!$D$11="Hindi","सामयिक परख","Seasonal Exam") -> सामयिक परख | N4: =IF('Master Sheet'!$D$11="Hindi","अर्द्धवार्षिक","Half Yearly") -> अर्द्धवार्षिक | O4: =IF('Master Sheet'!$D$11="Hindi","वार्षिक","Yearly Exam") -> वार्षिक | P4: =IF('Master Sheet'!$D$11="Hindi","सामयिक परख","Seasonal Exam") -> सामयिक परख | S4: =IF('Master Sheet'!$D$11="Hindi","अर्द्धवार्षिक","Half Yearly") -> अर्द्धवार्षिक | T4: =IF('Master Sheet'!$D$11="Hindi","वार्षिक","Yearly Exam") -> वार्षिक | U4: =IF('Master Sheet'!$D$11="Hindi","विषय कोड","Subject Code") -> विषय कोड | V4: =IF('Master Sheet'!$D$11="Hindi","सामयिक परख","Seasonal Exam") -> सामयिक परख | Y4: =IF('Master Sheet'!$D$11="Hindi","अर्द्धवार्षिक","Half Yearly") -> अर्द्धवार्षिक | AA4: =IF('Master Sheet'!$D$11="Hindi","वार्षिक","Yearly Exam") -> वार्षिक | AC4: =IF('Master Sheet'!$D$11="Hindi","विषय कोड","Subject Code") -> विषय कोड | AD4: =IF('Master Sheet'!$D$11="Hindi","सामयिक परख","Seasonal Exam") -> सामयिक परख | AG4: =IF('Master Sheet'!$D$11="Hindi","अर्द्धवार्षिक","Half Yearly") -> अर्द्धवार्षिक | AI4: =IF('Master Sheet'!$D$11="Hindi","वार्षिक","Yearly Exam") -> वार्षिक | AK4: =IF('Master Sheet'!$D$11="Hindi","विषय कोड","Subject Code") -> विषय कोड | AL4: =IF('Master Sheet'!$D$11="Hindi","सामयिक परख","Seasonal Exam") -> सामयिक परख | AO4: =IF('Master Sheet'!$D$11="Hindi","अर्द्धवार्षिक","Half Yearly") -> अर्द्धवार्षिक | AQ4: =IF('Master Sheet'!$D$11="Hindi","वार्षिक","Yearly Exam") -> वार्षिक | AS4: =IF('Master Sheet'!$D$11="Hindi","विषय कोड","Subject Code") -> विषय कोड | AT4: =IF('Master Sheet'!$D$11="Hindi","सामयिक परख","Seasonal Exam") -> सामयिक परख | AW4: =IF('Master Sheet'!$D$11="Hindi","अर्द्धवार्षिक","Half Yearly") -> अर्द्धवार्षिक | AY4: =IF('Master Sheet'!$D$11="Hindi","वार्षिक","Yearly Exam") -> वार्षिक | BB4: =IF('Master Sheet'!$D$11="Hindi","अनिवार्य प्रवृति","Compulsory Tendency") -> अनिवार्य प्रवृति | BC4: =IF('Master Sheet'!$D$11="Hindi","वैकल्पिक प्रवृति","Alternative Tendency") -> वैकल्पिक प्रवृति | BD4: =IF('Master Sheet'!$D$11="Hindi","वार्षिक परीक्षा","Yearly Exam") -> वार्षिक परीक्षा | BE4: =IF('Master Sheet'!$D$11="Hindi","प्रथम परख ","First Test") -> प्रथम परख | BF4: =IF('Master Sheet'!$D$11="Hindi","द्वितीय परख","Second Test") -> द्वितीय परख | BG4: =IF('Master Sheet'!$D$11="Hindi","तृतीय परख","Third Test") -> तृतीय परख | BN4: =IF('Master Sheet'!L4="","",'Master Sheet'!L4) -> ACCOUNTANCY
F5: विद्यार्थी का नाम | G5: पिता का नाम | H5: माता का नाम | K5: =IF('Master Sheet'!$D$11="Hindi","प्रथम परख ","First Test") -> प्रथम परख | L5: =IF('Master Sheet'!$D$11="Hindi","द्वितीय परख","Second Test") -> द्वितीय परख | M5: =IF('Master Sheet'!$D$11="Hindi","तृतीय परख","Third Test") -> तृतीय परख | P5: =IF('Master Sheet'!$D$11="Hindi","प्रथम परख ","First Test") -> प्रथम परख | Q5: =IF('Master Sheet'!$D$11="Hindi","द्वितीय परख","Second Test") -> द्वितीय परख | R5: =IF('Master Sheet'!$D$11="Hindi","तृतीय परख","Third Test") -> तृतीय परख | V5: =IF('Master Sheet'!$D$11="Hindi","प्रथम परख ","First Test") -> प्रथम परख | W5: =IF('Master Sheet'!$D$11="Hindi","द्वितीय परख","Second Test") -> द्वितीय परख | X5: =IF('Master Sheet'!$D$11="Hindi","तृतीय परख","Third Test") -> तृतीय परख | Y5: =IF('Master Sheet'!$D$11="Hindi","सैद्धांतिक","Theoretical") -> सैद्धांतिक | Z5: =IF('Master Sheet'!$D$11="Hindi","प्रायोगिक","Practical") -> प्रायोगिक | AA5: =IF('Master Sheet'!$D$11="Hindi","सैद्धांतिक","Theoretical") -> सैद्धांतिक | AB5: =IF('Master Sheet'!$D$11="Hindi","प्रायोगिक","Practical") -> प्रायोगिक | AD5: =IF('Master Sheet'!$D$11="Hindi","प्रथम परख ","First Test") -> प्रथम परख | AE5: =IF('Master Sheet'!$D$11="Hindi","द्वितीय परख","Second Test") -> द्वितीय परख | AF5: =IF('Master Sheet'!$D$11="Hindi","तृतीय परख","Third Test") -> तृतीय परख | AG5: =IF('Master Sheet'!$D$11="Hindi","सैद्धांतिक","Theoretical") -> सैद्धांतिक | AH5: =IF('Master Sheet'!$D$11="Hindi","प्रायोगिक","Practical") -> प्रायोगिक | AI5: =IF('Master Sheet'!$D$11="Hindi","सैद्धांतिक","Theoretical") -> सैद्धांतिक | AJ5: =IF('Master Sheet'!$D$11="Hindi","प्रायोगिक","Practical") -> प्रायोगिक | AL5: =IF('Master Sheet'!$D$11="Hindi","प्रथम परख ","First Test") -> प्रथम परख | AM5: =IF('Master Sheet'!$D$11="Hindi","द्वितीय परख","Second Test") -> द्वितीय परख | AN5: =IF('Master Sheet'!$D$11="Hindi","तृतीय परख","Third Test") -> तृतीय परख | AO5: =IF('Master Sheet'!$D$11="Hindi","सैद्धांतिक","Theoretical") -> सैद्धांतिक | AP5: =IF('Master Sheet'!$D$11="Hindi","प्रायोगिक","Practical") -> प्रायोगिक | AQ5: =IF('Master Sheet'!$D$11="Hindi","सैद्धांतिक","Theoretical") -> सैद्धांतिक | AR5: =IF('Master Sheet'!$D$11="Hindi","प्रायोगिक","Practical") -> प्रायोगिक | AT5: =IF('Master Sheet'!$D$11="Hindi","प्रथम परख ","First Test") -> प्रथम परख | AU5: =IF('Master Sheet'!$D$11="Hindi","द्वितीय परख","Second Test") -> द्वितीय परख | AV5: =IF('Master Sheet'!$D$11="Hindi","तृतीय परख","Third Test") -> तृतीय परख | AW5: =IF('Master Sheet'!$D$11="Hindi","सैद्धांतिक","Theoretical") -> सैद्धांतिक | AX5: =IF('Master Sheet'!$D$11="Hindi","प्रायोगिक","Practical") -> प्रायोगिक | AY5: =IF('Master Sheet'!$D$11="Hindi","सैद्धांतिक","Theoretical") -> सैद्धांतिक | AZ5: =IF('Master Sheet'!$D$11="Hindi","पोर्टफोलियो","Portfolio") -> पोर्टफोलियो | BA5: =IF('Master Sheet'!$D$11="Hindi","प्रायोगिक","Practical") -> प्रायोगिक | BN5: =IF('Master Sheet'!L5="","",'Master Sheet'!L5) -> BUSINESS STUDIES
F6: Name of student | G6: Father's Name | H6: Mother's Name | K6: 10 | L6: 10 | M6: 10 | N6: 70 | O6: 100 | P6: 10 | Q6: 10 | R6: 10 | S6: 70 | T6: 100 | V6: 10 | W6: 10 | X6: 10 | Y6: 50 | Z6: 20 | AA6: 70 | AB6: 30 | AD6: 10 | AE6: 10 | AF6: 10 | AG6: 50 | AH6: 20 | AI6: 70 | AJ6: 30 | AL6: 10 | AM6: 10 | AN6: 10 | AO6: 50 | AP6: 20 | AQ6: 70 | AR6: 30 | AT6: 10 | AU6: 10 | AV6: 10 | AW6: 50 | AX6: 20 | AY6: 30 | AZ6: 20 | BA6: 50 | BB6: 30 | BC6: 30 | BD6: 40 | BE6: 10 | BF6: 10 | BG6: 10 | BH6: 70 | BI6: 100 | BN6: =IF('Master Sheet'!L6="","",'Master Sheet'!L6) -> ECONOMICS
Y7: 70 | AA7: 100 | AG7: 70 | AI7: 100 | AO7: 70 | AQ7: 100 | AW7: 70 | AY7: 100 | BN7: =IF('Master Sheet'!L7="","",'Master Sheet'!L7) -> ENGLISH LITERATURE
A8: =IF('Student DATA Entry'!A4="","",'Student DATA Entry'!A4) -> 1 | B8: =IF('Student DATA Entry'!B4="","",'Student DATA Entry'!B4) -> 1101 | C8: =IF('Student DATA Entry'!D4="","",'Student DATA Entry'!D4) -> A | D8: =IF('Student DATA Entry'!E4="","",'Student DATA Entry'!E4) -> 230 | E8: =IF('Student DATA Entry'!I4="","",'Student DATA Entry'!I4) -> 2003-01-01 | F8: =IF('Student DATA Entry'!F4="","",UPPER('Student DATA Entry'!F4)) -> A | G8: =IF('Student DATA Entry'!G4="","",UPPER('Student DATA Entry'!G4)) -> X | H8: =IF('Student DATA Entry'!H4="","",UPPER('Student DATA Entry'!H4)) -> M | I8: =IF('Student DATA Entry'!K4="","",UPPER('Student DATA Entry'!K4)) -> GEN | J8: =IF('Student DATA Entry'!J4="","",UPPER('Student DATA Entry'!J4)) -> M | K8: 8 | L8: 8 | M8: 9 | N8: 46 | O8: 70 | P8: 8 | Q8: 5 | R8: 8 | S8: 48 | T8: 74 | U8: A | V8: 8 | W8: 9 | X8: 10 | Y8: 45 | AA8: 57 | AC8: A | AD8: 5 | AE8: 9 | AF8: 8 | AG8: 55 | AI8: 81 | AK8: A | AL8: 5 | AM8: 6 | AN8: 8 | AO8: 40 | AP8: 10 | AQ8: 56 | AR8: 11 | BB8: 25 | BC8: 20 | BD8: 38 | BE8: 9 | BF8: 9 | BG8: 9 | BH8: 45 | BI8: 98 | BN8: =IF('Master Sheet'!L8="","",'Master Sheet'!L8) -> ENVIRONMENTAL STUDIES
A9: =IF('Student DATA Entry'!A5="","",'Student DATA Entry'!A5) -> 2 | B9: =IF('Student DATA Entry'!B5="","",'Student DATA Entry'!B5) -> 1102 | C9: =IF('Student DATA Entry'!D5="","",'Student DATA Entry'!D5) -> A | D9: =IF('Student DATA Entry'!E5="","",'Student DATA Entry'!E5) -> 231 | E9: =IF('Student DATA Entry'!I5="","",'Student DATA Entry'!I5) -> 2004-04-13 | F9: =IF('Student DATA Entry'!F5="","",UPPER('Student DATA Entry'!F5)) -> B | G9: =IF('Student DATA Entry'!G5="","",UPPER('Student DATA Entry'!G5)) -> Y | H9: =IF('Student DATA Entry'!H5="","",UPPER('Student DATA Entry'!H5)) -> N | I9: =IF('Student DATA Entry'!K5="","",UPPER('Student DATA Entry'!K5)) -> OBC | J9: =IF('Student DATA Entry'!J5="","",UPPER('Student DATA Entry'!J5)) -> M | K9: 8 | L9: 9 | M9: 7 | N9: 46 | O9: 45 | P9: 9 | Q9: 5 | R9: 7 | S9: 41 | T9: 71 | U9: B | V9: 9 | W9: 10 | X9: 8 | Y9: 34 | Z9: 8 | AA9: 53 | AB9: 10 | AC9: B | AD9: 8 | AE9: 10 | AF9: 9 | AG9: 45 | AH9: 16 | AI9: 42 | AJ9: 25 | AK9: B | AL9: 4 | AM9: 4 | AN9: 9 | AO9: 10 | AP9: 20 | AQ9: 45 | AR9: 15 | AS9: A | AT9: 9 | AU9: 9 | AV9: 9 | AW9: 50 | AY9: 70 | BB9: 26 | BC9: 25 | BD9: 36 | BE9: 8 | BF9: 8 | BG9: 8 | BH9: 50 | BI9: 80 | BN9: =IF('Master Sheet'!L9="","",'Master Sheet'!L9) -> FARSI LITERATURE
A10: =IF('Student DATA Entry'!A6="","",'Student DATA Entry'!A6) -> 3 | B10: =IF('Student DATA Entry'!B6="","",'Student DATA Entry'!B6) -> 1103 | C10: =IF('Student DATA Entry'!D6="","",'Student DATA Entry'!D6) -> A | D10: =IF('Student DATA Entry'!E6="","",'Student DATA Entry'!E6) -> 555 | E10: =IF('Student DATA Entry'!I6="","",'Student DATA Entry'!I6) -> 2005-03-03 | F10: =IF('Student DATA Entry'!F6="","",UPPER('Student DATA Entry'!F6)) -> C | G10: =IF('Student DATA Entry'!G6="","",UPPER('Student DATA Entry'!G6)) -> Z | H10: =IF('Student DATA Entry'!H6="","",UPPER('Student DATA Entry'!H6)) -> O | I10: =IF('Student DATA Entry'!K6="","",UPPER('Student DATA Entry'!K6)) -> SC | J10: =IF('Student DATA Entry'!J6="","",UPPER('Student DATA Entry'!J6)) -> F | K10: 9 | L10: 9 | M10: 8 | N10: 41 | O10: 65 | P10: 9 | Q10: 6 | R10: 9 | S10: 42 | T10: 70 | U10: A | V10: 9 | W10: 9 | X10: 9 | Y10: 40 | AA10: 45 | AC10: B | AD10: 9 | AE10: 10 | AF10: 8 | AG10: 30 | AH10: 11 | AI10: 54 | AJ10: 24 | AK10: A | AL10: 6 | AM10: 7 | AN10: 8 | AO10: 31 | AP10: 11 | AQ10: 40 | AR10: 12 | BB10: 26 | BC10: 29 | BD10: 32 | BE10: 8 | BF10: 8 | BG10: 8 | BH10: 50 | BI10: 80 | BN10: =IF('Master Sheet'!L10="","",'Master Sheet'!L10) -> GUJRATI LITERATURE
A11: =IF('Student DATA Entry'!A7="","",'Student DATA Entry'!A7) -> 4 | B11: =IF('Student DATA Entry'!B7="","",'Student DATA Entry'!B7) -> 1104 | C11: =IF('Student DATA Entry'!D7="","",'Student DATA Entry'!D7) -> A | D11: =IF('Student DATA Entry'!E7="","",'Student DATA Entry'!E7) -> 444 | E11: =IF('Student DATA Entry'!I7="","",'Student DATA Entry'!I7) -> 2006-06-06 | F11: =IF('Student DATA Entry'!F7="","",UPPER('Student DATA Entry'!F7)) -> D | G11: =IF('Student DATA Entry'!G7="","",UPPER('Student DATA Entry'!G7)) -> W | H11: =IF('Student DATA Entry'!H7="","",UPPER('Student DATA Entry'!H7)) -> P | I11: =IF('Student DATA Entry'!K7="","",UPPER('Student DATA Entry'!K7)) -> ST | J11: =IF('Student DATA Entry'!J7="","",UPPER('Student DATA Entry'!J7)) -> M | K11: 5 | L11: 7 | M11: 8 | N11: 32 | O11: 54 | P11: 3 | Q11: 3 | R11: 9 | S11: 48 | T11: 73 | U11: B | V11: 8 | W11: 9 | X11: 7 | Y11: 28 | Z11: 10 | AA11: 47 | AB11: 19 | AC11: A | AD11: 5 | AE11: 5 | AF11: 7 | AG11: 32 | AI11: 56 | AK11: A | AL11: 3 | AM11: 7 | AN11: 9 | AO11: 45 | AP11: 15 | AQ11: 65 | AR11: 28 | AS11: B | AY11: 25 | AZ11: 18 | BA11: 45 | BB11: 25 | BC11: 25 | BD11: 31 | BE11: 8 | BF11: 8 | BG11: 8 | BH11: 50 | BI11: 80 | BN11: =IF('Master Sheet'!L11="","",'Master Sheet'!L11) -> HINDI LITERATURE
A12: =IF('Student DATA Entry'!A8="","",'Student DATA Entry'!A8) -> 5 | B12: =IF('Student DATA Entry'!B8="","",'Student DATA Entry'!B8) -> 1105 | C12: =IF('Student DATA Entry'!D8="","",'Student DATA Entry'!D8) -> A | D12: =IF('Student DATA Entry'!E8="","",'Student DATA Entry'!E8) -> 333 | E12: =IF('Student DATA Entry'!I8="","",'Student DATA Entry'!I8) -> 2007-07-07 | F12: =IF('Student DATA Entry'!F8="","",UPPER('Student DATA Entry'!F8)) -> E | G12: =IF('Student DATA Entry'!G8="","",UPPER('Student DATA Entry'!G8)) -> V | H12: =IF('Student DATA Entry'!H8="","",UPPER('Student DATA Entry'!H8)) -> Q | I12: =IF('Student DATA Entry'!K8="","",UPPER('Student DATA Entry'!K8)) -> SBC | J12: =IF('Student DATA Entry'!J8="","",UPPER('Student DATA Entry'!J8)) -> F | K12: 7 | L12: 9 | M12: 8 | N12: 36 | O12: 63 | P12: 9 | Q12: 5 | R12: 9 | S12: 47 | T12: 63 | U12: B | V12: 7 | W12: 9 | X12: 7 | Y12: 22 | Z12: 9 | AA12: 56 | AB12: 18 | AC12: B | AD12: 7 | AE12: 9 | AF12: 4 | AG12: 30 | AH12: 12 | AI12: 58 | AJ12: 16 | AK12: A | AL12: 8 | AM12: 8 | AN12: 8 | AO12: 44 | AP12: 16 | AQ12: 60 | AR12: 22 | AS12: B | AY12: 27 | AZ12: 18 | BA12: 46 | BB12: 26 | BC12: 27 | BD12: 30 | BE12: 8 | BF12: 8 | BG12: 8 | BH12: 50 | BI12: 80 | BN12: =IF('Master Sheet'!L12="","",'Master Sheet'!L12) -> HISTORY
A13: =IF('Student DATA Entry'!A9="","",'Student DATA Entry'!A9) -> 6 | B13: =IF('Student DATA Entry'!B9="","",'Student DATA Entry'!B9) -> 1106 | C13: =IF('Student DATA Entry'!D9="","",'Student DATA Entry'!D9) -> A | D13: =IF('Student DATA Entry'!E9="","",'Student DATA Entry'!E9) -> 666 | E13: =IF('Student DATA Entry'!I9="","",'Student DATA Entry'!I9) -> 2008-08-08 | F13: =IF('Student DATA Entry'!F9="","",UPPER('Student DATA Entry'!F9)) -> F | G13: =IF('Student DATA Entry'!G9="","",UPPER('Student DATA Entry'!G9)) -> U | H13: =IF('Student DATA Entry'!H9="","",UPPER('Student DATA Entry'!H9)) -> R | I13: =IF('Student DATA Entry'!K9="","",UPPER('Student DATA Entry'!K9)) -> OBC | J13: =IF('Student DATA Entry'!J9="","",UPPER('Student DATA Entry'!J9)) -> M | K13: 10 | L13: 9 | M13: 8 | N13: 42 | O13: 45 | P13: 10 | Q13: 9 | R13: 9 | S13: 46 | T13: 65 | U13: A | V13: 10 | W13: 10 | X13: 7 | Y13: 20 | AA13: 25 | AC13: C | AD13: 10 | AE13: 10 | AF13: 5 | AG13: 41 | AI13: 60 | AK13: A | AL13: 5 | AM13: 5 | AN13: 5 | AO13: 25 | AP13: 15 | AQ13: 35 | AR13: 20 | AS13: B | AY13: 25 | AZ13: 15 | BA13: 40 | BB13: 26 | BC13: 27 | BD13: 32 | BE13: 8 | BF13: 8 | BG13: 8 | BH13: 52 | BI13: 72 | BN13: =IF('Master Sheet'!L13="","",'Master Sheet'!L13) -> MATHEMATICS
A14: =IF('Student DATA Entry'!A10="","",'Student DATA Entry'!A10) -> 7 | B14: =IF('Student DATA Entry'!B10="","",'Student DATA Entry'!B10) -> 1107 | C14: =IF('Student DATA Entry'!D10="","",'Student DATA Entry'!D10) -> A | D14: =IF('Student DATA Entry'!E10="","",'Student DATA Entry'!E10) -> 222 | E14: =IF('Student DATA Entry'!I10="","",'Student DATA Entry'!I10) -> 2009-09-09 | F14: =IF('Student DATA Entry'!F10="","",UPPER('Student DATA Entry'!F10)) -> G | G14: =IF('Student DATA Entry'!G10="","",UPPER('Student DATA Entry'!G10)) -> T | H14: =IF('Student DATA Entry'!H10="","",UPPER('Student DATA Entry'!H10)) -> S | I14: =IF('Student DATA Entry'!K10="","",UPPER('Student DATA Entry'!K10)) -> GEN | J14: =IF('Student DATA Entry'!J10="","",UPPER('Student DATA Entry'!J10)) -> M | K14: 7 | L14: 9 | M14: 8 | N14: 43 | O14: 43 | P14: 10 | Q14: 6 | R14: 9 | S14: 41 | T14: 64 | U14: A | V14: 7 | W14: 4 | X14: 6 | Y14: 14 | AA14: 30 | AC14: A | AD14: 8 | AE14: 10 | AF14: 8 | AG14: 45 | AI14: 54 | AK14: B | AL14: 4 | AM14: 4 | AN14: 9 | AO14: 32 | BB14: 26 | BC14: 27 | BD14: 32 | BE14: 8 | BF14: 8 | BG14: 8 | BH14: 52 | BI14: 73 | BN14: =IF('Master Sheet'!L14="","",'Master Sheet'!L14) -> PHILOSOPHY
A15: =IF('Student DATA Entry'!A11="","",'Student DATA Entry'!A11) -> 8 | B15: =IF('Student DATA Entry'!B11="","",'Student DATA Entry'!B11) -> 1108 | C15: =IF('Student DATA Entry'!D11="","",'Student DATA Entry'!D11) -> A | D15: =IF('Student DATA Entry'!E11="","",'Student DATA Entry'!E11) -> 123 | E15: =IF('Student DATA Entry'!I11="","",'Student DATA Entry'!I11) -> 2008-11-11 | F15: =IF('Student DATA Entry'!F11="","",UPPER('Student DATA Entry'!F11)) -> O | G15: =IF('Student DATA Entry'!G11="","",UPPER('Student DATA Entry'!G11)) -> R | H15: =IF('Student DATA Entry'!H11="","",UPPER('Student DATA Entry'!H11)) -> I | I15: =IF('Student DATA Entry'!K11="","",UPPER('Student DATA Entry'!K11)) -> OBC | J15: =IF('Student DATA Entry'!J11="","",UPPER('Student DATA Entry'!J11)) -> M | K15: 10 | L15: 10 | M15: 8 | N15: 46 | O15: 25 | P15: 8 | Q15: 5 | R15: 9 | S15: 42 | T15: 61 | U15: A | V15: 10 | W15: 5 | X15: 7 | Y15: 17 | AA15: 27 | AC15: A | AD15: 10 | AE15: 10 | AF15: 7 | AG15: 32 | AI15: 65 | AK15: B | AL15: 3 | AM15: 3 | AN15: 7 | AO15: 10 | BB15: 26 | BC15: 27 | BD15: 32 | BE15: 8 | BF15: 8 | BG15: 8 | BH15: 52 | BI15: 65 | BN15: =IF('Master Sheet'!L15="","",'Master Sheet'!L15) -> PHYSICAL EDUCATION
A16: =IF('Student DATA Entry'!A12="","",'Student DATA Entry'!A12) -> 9 | B16: =IF('Student DATA Entry'!B12="","",'Student DATA Entry'!B12) -> 1109 | C16: =IF('Student DATA Entry'!D12="","",'Student DATA Entry'!D12) -> A | D16: =IF('Student DATA Entry'!E12="","",'Student DATA Entry'!E12) -> 345 | E16: =IF('Student DATA Entry'!I12="","",'Student DATA Entry'!I12) -> 2011-09-09 | F16: =IF('Student DATA Entry'!F12="","",UPPER('Student DATA Entry'!F12)) -> P | G16: =IF('Student DATA Entry'!G12="","",UPPER('Student DATA Entry'!G12)) -> P | H16: =IF('Student DATA Entry'!H12="","",UPPER('Student DATA Entry'!H12)) -> N | I16: =IF('Student DATA Entry'!K12="","",UPPER('Student DATA Entry'!K12)) -> SC | J16: =IF('Student DATA Entry'!J12="","",UPPER('Student DATA Entry'!J12)) -> F | K16: 9 | L16: 9 | M16: 8 | N16: 37 | O16: 35 | P16: 8 | Q16: 4 | R16: 9 | S16: 38 | T16: 45 | U16: A | V16: 7 | W16: 9 | X16: 7 | Y16: 10 | AA16: 10 | AC16: A | AD16: 5 | AE16: 2 | AG16: 37 | AI16: 69 | AK16: B | AL16: 3 | AM16: 3 | AN16: 7 | AO16: 47 | BB16: 26 | BC16: 27 | BD16: 32 | BE16: 8 | BF16: 8 | BG16: 8 | BH16: 52 | BI16: 69 | BN16: =IF('Master Sheet'!L16="","",'Master Sheet'!L16) -> POLITICAL SCIENCE
A17: =IF('Student DATA Entry'!A13="","",'Student DATA Entry'!A13) -> 10 | B17: =IF('Student DATA Entry'!B13="","",'Student DATA Entry'!B13) -> 1110 | C17: =IF('Student DATA Entry'!D13="","",'Student DATA Entry'!D13) -> A | D17: =IF('Student DATA Entry'!E13="","",'Student DATA Entry'!E13) -> 678 | E17: =IF('Student DATA Entry'!I13="","",'Student DATA Entry'!I13) -> 2006-05-04 | F17: =IF('Student DATA Entry'!F13="","",UPPER('Student DATA Entry'!F13)) -> S | G17: =IF('Student DATA Entry'!G13="","",UPPER('Student DATA Entry'!G13)) -> M | H17: =IF('Student DATA Entry'!H13="","",UPPER('Student DATA Entry'!H13)) -> B | I17: =IF('Student DATA Entry'!K13="","",UPPER('Student DATA Entry'!K13)) -> MIN | J17: =IF('Student DATA Entry'!J13="","",UPPER('Student DATA Entry'!J13)) -> M | K17: 7 | L17: 10 | M17: 8 | N17: 44 | O17: 30 | P17: 8 | Q17: 4 | R17: 9 | S17: 35 | T17: 46 | U17: A | V17: na | W17: 7 | X17: 7 | Y17: 15 | AA17: 36 | AC17: A | AD17: 9 | AE17: 7 | AG17: 35 | AI17: 35 | AK17: C | AL17: 3 | AM17: 5 | AN17: 7 | AO17: 45 | BB17: 26 | BC17: 27 | BD17: 32 | BE17: 8 | BF17: 8 | BG17: 8 | BH17: 52 | BI17: 68 | BN17: =IF('Master Sheet'!L17="","",'Master Sheet'!L17) -> PRAKRIT LITERATURE
A18: =IF('Student DATA Entry'!A14="","",'Student DATA Entry'!A14) -> 11 | B18: =IF('Student DATA Entry'!B14="","",'Student DATA Entry'!B14) -> 1111 | C18: =IF('Student DATA Entry'!D14="","",'Student DATA Entry'!D14) -> A | D18: =IF('Student DATA Entry'!E14="","",'Student DATA Entry'!E14) -> 654 | E18: =IF('Student DATA Entry'!I14="","",'Student DATA Entry'!I14) -> 2008-07-06 | F18: =IF('Student DATA Entry'!F14="","",UPPER('Student DATA Entry'!F14)) -> M | G18: =IF('Student DATA Entry'!G14="","",UPPER('Student DATA Entry'!G14)) -> N | H18: =IF('Student DATA Entry'!H14="","",UPPER('Student DATA Entry'!H14)) -> A | I18: =IF('Student DATA Entry'!K14="","",UPPER('Student DATA Entry'!K14)) -> SBC | J18: =IF('Student DATA Entry'!J14="","",UPPER('Student DATA Entry'!J14)) -> M | K18: na | L18: na | M18: 8 | N18: 30 | O18: 32 | P18: 5 | Q18: 4 | R18: 9 | S18: 34 | T18: 46 | U18: A | V18: ab | W18: 9 | X18: 7 | Y18: 35 | AA18: 38 | AC18: A | AD18: 8 | AE18: 6 | AG18: 43 | AI18: 36 | AK18: A | AL18: 3 | AM18: 6 | AN18: 7 | AO18: 19 | AP18: 10 | AQ18: 47 | AR18: 15 | BB18: 26 | BC18: 27 | BD18: 32 | BE18: 8 | BF18: 8 | BG18: 8 | BH18: 52 | BI18: 68 | BN18: =IF('Master Sheet'!L18="","",'Master Sheet'!L18) -> PUBLIC ADMINISTRATION
A19: =IF('Student DATA Entry'!A15="","",'Student DATA Entry'!A15) -> 12 | B19: =IF('Student DATA Entry'!B15="","",'Student DATA Entry'!B15) ->  | C19: =IF('Student DATA Entry'!D15="","",'Student DATA Entry'!D15) ->  | D19: =IF('Student DATA Entry'!E15="","",'Student DATA Entry'!E15) ->  | E19: =IF('Student DATA Entry'!I15="","",'Student DATA Entry'!I15) ->  | F19: =IF('Student DATA Entry'!F15="","",UPPER('Student DATA Entry'!F15)) ->  | G19: =IF('Student DATA Entry'!G15="","",UPPER('Student DATA Entry'!G15)) ->  | H19: =IF('Student DATA Entry'!H15="","",UPPER('Student DATA Entry'!H15)) ->  | I19: =IF('Student DATA Entry'!K15="","",UPPER('Student DATA Entry'!K15)) ->  | J19: =IF('Student DATA Entry'!J15="","",UPPER('Student DATA Entry'!J15)) ->  | K19: na | L19: 8 | M19: 8 | N19: 43 | O19: 46 | P19: 7 | Q19: 5 | R19: 9 | S19: 36 | T19: 48 | U19: A | V19: na | W19: 8 | X19: 7 | Y19: 25 | AA19: 39 | AC19: A | AD19: 7 | AE19: 10 | AG19: 46 | AI19: 37 | AK19: A | AL19: 4 | AM19: 5 | AN19: 8 | AO19: 33 | AP19: 10 | AQ19: 53 | AR19: 18 | BB19: 26 | BC19: 27 | BD19: 32 | BE19: 8 | BF19: 8 | BG19: 8 | BH19: 50 | BI19: 68 | BN19: =IF('Master Sheet'!L19="","",'Master Sheet'!L19) -> PUNJABI LITERATURE
A20: =IF('Student DATA Entry'!A16="","",'Student DATA Entry'!A16) -> 13 | B20: =IF('Student DATA Entry'!B16="","",'Student DATA Entry'!B16) ->  | C20: =IF('Student DATA Entry'!D16="","",'Student DATA Entry'!D16) ->  | D20: =IF('Student DATA Entry'!E16="","",'Student DATA Entry'!E16) ->  | E20: =IF('Student DATA Entry'!I16="","",'Student DATA Entry'!I16) ->  | F20: =IF('Student DATA Entry'!F16="","",UPPER('Student DATA Entry'!F16)) ->  | G20: =IF('Student DATA Entry'!G16="","",UPPER('Student DATA Entry'!G16)) ->  | H20: =IF('Student DATA Entry'!H16="","",UPPER('Student DATA Entry'!H16)) ->  | I20: =IF('Student DATA Entry'!K16="","",UPPER('Student DATA Entry'!K16)) ->  | J20: =IF('Student DATA Entry'!J16="","",UPPER('Student DATA Entry'!J16)) ->  | K20: ab | L20: ml | M20: 8 | N20: 25 | O20: 70 | P20: 7 | Q20: 5 | R20: 9 | S20: 38 | T20: 47 | U20: A | V20: 9 | W20: 8 | X20: 7 | Y20: 47 | AA20: 78 | AC20: A | AD20: 20 | AE20: 20 | AG20: 45 | AI20: 78 | AK20: A | AL20: 20 | AM20: 20 | AN20: 8 | AO20: 32 | AP20: 12 | AQ20: 50 | AR20: 19 | BB20: 24 | BC20: 25 | BD20: 32 | BE20: 8 | BF20: 8 | BG20: 8 | BH20: 50 | BI20: 68 | BN20: =IF('Master Sheet'!L20="","",'Master Sheet'!L20) -> RAJASTHANI LITERATURE
A21: =IF('Student DATA Entry'!A17="","",'Student DATA Entry'!A17) -> 14 | B21: =IF('Student DATA Entry'!B17="","",'Student DATA Entry'!B17) ->  | C21: =IF('Student DATA Entry'!D17="","",'Student DATA Entry'!D17) ->  | D21: =IF('Student DATA Entry'!E17="","",'Student DATA Entry'!E17) ->  | E21: =IF('Student DATA Entry'!I17="","",'Student DATA Entry'!I17) ->  | F21: =IF('Student DATA Entry'!F17="","",UPPER('Student DATA Entry'!F17)) ->  | G21: =IF('Student DATA Entry'!G17="","",UPPER('Student DATA Entry'!G17)) ->  | H21: =IF('Student DATA Entry'!H17="","",UPPER('Student DATA Entry'!H17)) ->  | I21: =IF('Student DATA Entry'!K17="","",UPPER('Student DATA Entry'!K17)) ->  | J21: =IF('Student DATA Entry'!J17="","",UPPER('Student DATA Entry'!J17)) ->  | K21: ml | L21: ml | M21: 8 | N21: 30 | O21: 60 | P21: 8 | Q21: 5 | R21: 9 | S21: AB | T21: 56 | U21: A | V21: 8 | W21: 8 | X21: 7 | Y21: 32 | AA21: 41 | AC21: A | AD21: 6 | AE21: 8 | AG21: 44 | AI21: 39 | AK21: A | AL21: 4 | AM21: 4 | AN21: 8 | AO21: 30 | AP21: 13 | AQ21: 56 | AR21: 18 | BB21: 24 | BC21: 25 | BD21: 32 | BE21: 8 | BF21: 8 | BG21: 8 | BH21: 50 | BI21: 68 | BN21: =IF('Master Sheet'!L21="","",'Master Sheet'!L21) -> SANSKRIT LITERATURE
A22: =IF('Student DATA Entry'!A18="","",'Student DATA Entry'!A18) -> 15 | B22: =IF('Student DATA Entry'!B18="","",'Student DATA Entry'!B18) ->  | C22: =IF('Student DATA Entry'!D18="","",'Student DATA Entry'!D18) ->  | D22: =IF('Student DATA Entry'!E18="","",'Student DATA Entry'!E18) ->  | E22: =IF('Student DATA Entry'!I18="","",'Student DATA Entry'!I18) ->  | F22: =IF('Student DATA Entry'!F18="","",UPPER('Student DATA Entry'!F18)) ->  | G22: =IF('Student DATA Entry'!G18="","",UPPER('Student DATA Entry'!G18)) ->  | H22: =IF('Student DATA Entry'!H18="","",UPPER('Student DATA Entry'!H18)) ->  | I22: =IF('Student DATA Entry'!K18="","",UPPER('Student DATA Entry'!K18)) ->  | J22: =IF('Student DATA Entry'!J18="","",UPPER('Student DATA Entry'!J18)) ->  | K22: 20 | L22: 20 | M22: 8 | N22: 25 | O22: 50 | P22: 9 | Q22: 9 | R22: 9 | S22: 20 | T22: 54 | U22: A | V22: 10 | W22: 7 | X22: 7 | Y22: 65 | AA22: 42 | AC22: A | AD22: 10 | AE22: 10 | AG22: 37 | AI22: 54 | AK22: A | AL22: 9 | AM22: 9 | AN22: 8 | AO22: 28 | AP22: 14 | AQ22: 35 | AR22: 30 | BB22: 24 | BC22: 25 | BD22: 32 | BE22: 8 | BF22: 8 | BG22: 8 | BH22: 50 | BI22: 68 | BN22: =IF('Master Sheet'!L22="","",'Master Sheet'!L22) -> SINDHI LITERATURE
A23: =IF('Student DATA Entry'!A19="","",'Student DATA Entry'!A19) -> 16 | B23: =IF('Student DATA Entry'!B19="","",'Student DATA Entry'!B19) ->  | C23: =IF('Student DATA Entry'!D19="","",'Student DATA Entry'!D19) ->  | D23: =IF('Student DATA Entry'!E19="","",'Student DATA Entry'!E19) ->  | E23: =IF('Student DATA Entry'!I19="","",'Student DATA Entry'!I19) ->  | F23: =IF('Student DATA Entry'!F19="","",UPPER('Student DATA Entry'!F19)) ->  | G23: =IF('Student DATA Entry'!G19="","",UPPER('Student DATA Entry'!G19)) ->  | H23: =IF('Student DATA Entry'!H19="","",UPPER('Student DATA Entry'!H19)) ->  | I23: =IF('Student DATA Entry'!K19="","",UPPER('Student DATA Entry'!K19)) ->  | J23: =IF('Student DATA Entry'!J19="","",UPPER('Student DATA Entry'!J19)) ->  | K23: 10 | L23: 9 | M23: 8 | N23: 26 | O23: 54 | P23: 8 | Q23: 10 | R23: 9 | S23: 15 | T23: 65 | U23: B | V23: 7 | W23: 8 | X23: 7 | Y23: 30 | Z23: 10 | AA23: 25 | AB23: 29 | AC23: A | AD23: 11 | AE23: 12 | AG23: 45 | AI23: 45 | AK23: A | AL23: 10 | AM23: 8 | AN23: 9 | AO23: 31 | AP23: 12 | AQ23: 40 | AR23: 25 | BB23: 24 | BC23: 25 | BD23: 32 | BE23: 8 | BF23: 8 | BG23: 8 | BH23: 50 | BI23: 68 | BN23: =IF('Master Sheet'!L23="","",'Master Sheet'!L23) -> SOCIOLOGY
A24: =IF('Student DATA Entry'!A20="","",'Student DATA Entry'!A20) -> 17 | B24: =IF('Student DATA Entry'!B20="","",'Student DATA Entry'!B20) ->  | C24: =IF('Student DATA Entry'!D20="","",'Student DATA Entry'!D20) ->  | D24: =IF('Student DATA Entry'!E20="","",'Student DATA Entry'!E20) ->  | E24: =IF('Student DATA Entry'!I20="","",'Student DATA Entry'!I20) ->  | F24: =IF('Student DATA Entry'!F20="","",UPPER('Student DATA Entry'!F20)) ->  | G24: =IF('Student DATA Entry'!G20="","",UPPER('Student DATA Entry'!G20)) ->  | H24: =IF('Student DATA Entry'!H20="","",UPPER('Student DATA Entry'!H20)) ->  | I24: =IF('Student DATA Entry'!K20="","",UPPER('Student DATA Entry'!K20)) ->  | J24: =IF('Student DATA Entry'!J20="","",UPPER('Student DATA Entry'!J20)) ->  | K24: 10 | L24: 8 | M24: 8 | N24: 24 | O24: 52 | P24: 7 | Q24: 10 | R24: 9 | S24: 14 | T24: 64 | U24: B | V24: 6 | W24: 9 | X24: 7 | Y24: 22 | Z24: 10 | AA24: 26 | AB24: 27 | AC24: A | AD24: 12 | AE24: 13 | AG24: 41 | AI24: 46 | AK24: A | AL24: 11 | AM24: 9 | AN24: 9 | AO24: 30 | AP24: 10 | AQ24: 41 | AR24: 25 | BB24: 24 | BC24: 25 | BD24: 32 | BE24: 8 | BF24: 8 | BG24: 8 | BH24: 50 | BI24: 68 | BN24: =IF('Master Sheet'!L24="","",'Master Sheet'!L24) -> URDU LITERATURE
A25: =IF('Student DATA Entry'!A21="","",'Student DATA Entry'!A21) -> 18 | B25: =IF('Student DATA Entry'!B21="","",'Student DATA Entry'!B21) ->  | C25: =IF('Student DATA Entry'!D21="","",'Student DATA Entry'!D21) ->  | D25: =IF('Student DATA Entry'!E21="","",'Student DATA Entry'!E21) ->  | E25: =IF('Student DATA Entry'!I21="","",'Student DATA Entry'!I21) ->  | F25: =IF('Student DATA Entry'!F21="","",UPPER('Student DATA Entry'!F21)) ->  | G25: =IF('Student DATA Entry'!G21="","",UPPER('Student DATA Entry'!G21)) ->  | H25: =IF('Student DATA Entry'!H21="","",UPPER('Student DATA Entry'!H21)) ->  | I25: =IF('Student DATA Entry'!K21="","",UPPER('Student DATA Entry'!K21)) ->  | J25: =IF('Student DATA Entry'!J21="","",UPPER('Student DATA Entry'!J21)) ->  | K25: 10 | L25: 9 | M25: 8 | N25: 26 | O25: 54 | P25: 8 | Q25: 10 | R25: 9 | S25: 18 | T25: 61 | U25: B | V25: 5 | W25: 4 | X25: 7 | Y25: 22 | Z25: 10 | AA25: 28 | AB25: 28 | AC25: A | AD25: 13 | AE25: 14 | AG25: 42 | AI25: 48 | AK25: A | AL25: 12 | AM25: 5 | AN25: 9 | AO25: 25 | AP25: 12 | AQ25: 45 | AR25: 26 | BB25: 24 | BC25: 25 | BD25: 32 | BE25: 8 | BF25: 8 | BG25: 8 | BH25: 50 | BI25: 68 | BN25: =IF('Master Sheet'!L25="","",'Master Sheet'!L25) -> Optional Subject List
A26: =IF('Student DATA Entry'!A22="","",'Student DATA Entry'!A22) -> 19 | B26: =IF('Student DATA Entry'!B22="","",'Student DATA Entry'!B22) ->  | C26: =IF('Student DATA Entry'!D22="","",'Student DATA Entry'!D22) ->  | D26: =IF('Student DATA Entry'!E22="","",'Student DATA Entry'!E22) ->  | E26: =IF('Student DATA Entry'!I22="","",'Student DATA Entry'!I22) ->  | F26: =IF('Student DATA Entry'!F22="","",UPPER('Student DATA Entry'!F22)) ->  | G26: =IF('Student DATA Entry'!G22="","",UPPER('Student DATA Entry'!G22)) ->  | H26: =IF('Student DATA Entry'!H22="","",UPPER('Student DATA Entry'!H22)) ->  | I26: =IF('Student DATA Entry'!K22="","",UPPER('Student DATA Entry'!K22)) ->  | J26: =IF('Student DATA Entry'!J22="","",UPPER('Student DATA Entry'!J22)) ->  | K26: 4 | L26: 4 | M26: 8 | N26: 24 | O26: 24 | P26: 7 | Q26: 10 | R26: 9 | S26: 25 | T26: 61 | U26: B | V26: 9 | W26: 6 | X26: 7 | Y26: 12 | Z26: 12 | AA26: 12 | AB26: 12 | AC26: A | AD26: 3 | AE26: 4 | AG26: 20 | AI26: 22 | AK26: A | AL26: 14 | AM26: 10 | AO26: 26 | AP26: 10 | AQ26: 35 | AR26: 24 | BB26: 24 | BC26: 25 | BD26: 32 | BE26: 7 | BF26: 7 | BG26: 7 | BH26: 41 | BI26: 68 | BN26: =IF('Master Sheet'!L26="","",'Master Sheet'!L26) -> Practical_2_Optional_Subject_List
A27: =IF('Student DATA Entry'!A23="","",'Student DATA Entry'!A23) -> 20 | B27: =IF('Student DATA Entry'!B23="","",'Student DATA Entry'!B23) ->  | C27: =IF('Student DATA Entry'!D23="","",'Student DATA Entry'!D23) ->  | D27: =IF('Student DATA Entry'!E23="","",'Student DATA Entry'!E23) ->  | E27: =IF('Student DATA Entry'!I23="","",'Student DATA Entry'!I23) ->  | F27: =IF('Student DATA Entry'!F23="","",UPPER('Student DATA Entry'!F23)) ->  | G27: =IF('Student DATA Entry'!G23="","",UPPER('Student DATA Entry'!G23)) ->  | H27: =IF('Student DATA Entry'!H23="","",UPPER('Student DATA Entry'!H23)) ->  | I27: =IF('Student DATA Entry'!K23="","",UPPER('Student DATA Entry'!K23)) ->  | J27: =IF('Student DATA Entry'!J23="","",UPPER('Student DATA Entry'!J23)) ->  | K27: 15 | L27: 9 | M27: 8 | N27: 28 | O27: 52 | P27: 8 | Q27: 10 | R27: 9 | S27: 24 | T27: 62 | U27: A | V27: 8 | W27: 5 | X27: 7 | Y27: 40 | AA27: 45 | AC27: B | AD27: 15 | AE27: 10 | AG27: 40 | AI27: 50 | AK27: A | AL27: 15 | AM27: 10 | AO27: 24 | AP27: 12 | AQ27: 50 | AR27: 28 | BB27: 24 | BC27: 25 | BD27: 32 | BE27: 7 | BF27: 7 | BG27: 7 | BH27: 41 | BI27: 68 | BN27: =IF('Master Sheet'!L27="","",'Master Sheet'!L27) -> DANCE KATTHAK
A28: =IF('Student DATA Entry'!A24="","",'Student DATA Entry'!A24) -> 21 | B28: =IF('Student DATA Entry'!B24="","",'Student DATA Entry'!B24) ->  | C28: =IF('Student DATA Entry'!D24="","",'Student DATA Entry'!D24) ->  | D28: =IF('Student DATA Entry'!E24="","",'Student DATA Entry'!E24) ->  | E28: =IF('Student DATA Entry'!I24="","",'Student DATA Entry'!I24) ->  | F28: =IF('Student DATA Entry'!F24="","",UPPER('Student DATA Entry'!F24)) ->  | G28: =IF('Student DATA Entry'!G24="","",UPPER('Student DATA Entry'!G24)) ->  | H28: =IF('Student DATA Entry'!H24="","",UPPER('Student DATA Entry'!H24)) ->  | I28: =IF('Student DATA Entry'!K24="","",UPPER('Student DATA Entry'!K24)) ->  | J28: =IF('Student DATA Entry'!J24="","",UPPER('Student DATA Entry'!J24)) ->  | K28: 12 | L28: 8 | M28: 8 | N28: 29 | O28: 51 | P28: 9 | Q28: 10 | R28: 9 | S28: 28 | T28: 65 | U28: A | V28: 7 | W28: 6 | X28: 7 | Y28: 41 | AA28: 48 | AC28: B | AD28: 12 | AE28: 12 | AG28: 45 | AI28: 52 | AK28: A | AL28: 17 | AM28: 10 | AO28: 28 | AP28: 10 | AQ28: 42 | AR28: 26 | BB28: 24 | BC28: 25 | BD28: 32 | BE28: 7 | BF28: 7 | BG28: 7 | BH28: 41 | BI28: 68 | BN28: =IF('Master Sheet'!L28="","",'Master Sheet'!L28) -> DRAWING
A29: =IF('Student DATA Entry'!A25="","",'Student DATA Entry'!A25) -> 22 | B29: =IF('Student DATA Entry'!B25="","",'Student DATA Entry'!B25) ->  | C29: =IF('Student DATA Entry'!D25="","",'Student DATA Entry'!D25) ->  | D29: =IF('Student DATA Entry'!E25="","",'Student DATA Entry'!E25) ->  | E29: =IF('Student DATA Entry'!I25="","",'Student DATA Entry'!I25) ->  | F29: =IF('Student DATA Entry'!F25="","",UPPER('Student DATA Entry'!F25)) ->  | G29: =IF('Student DATA Entry'!G25="","",UPPER('Student DATA Entry'!G25)) ->  | H29: =IF('Student DATA Entry'!H25="","",UPPER('Student DATA Entry'!H25)) ->  | I29: =IF('Student DATA Entry'!K25="","",UPPER('Student DATA Entry'!K25)) ->  | J29: =IF('Student DATA Entry'!J25="","",UPPER('Student DATA Entry'!J25)) ->  | K29: 13 | L29: 7 | M29: 8 | N29: 27 | O29: 54 | P29: 8 | Q29: 10 | R29: 9 | S29: 29 | T29: 68 | U29: A | V29: 9 | W29: 8 | X29: 7 | Y29: 40 | AA29: 47 | AC29: B | AD29: 14 | AE29: 10 | AG29: 48 | AI29: 52 | AK29: A | AL29: 10 | AM29: 12 | AO29: 29 | AP29: 8 | AQ29: 45 | AR29: 24 | BB29: 20 | BC29: 30 | BD29: 32 | BE29: 7 | BF29: 7 | BG29: 7 | BH29: 41 | BI29: 68 | BN29: =IF('Master Sheet'!L29="","",'Master Sheet'!L29) -> MUSIC INSTR. DILRUBA
A30: =IF('Student DATA Entry'!A26="","",'Student DATA Entry'!A26) -> 23 | B30: =IF('Student DATA Entry'!B26="","",'Student DATA Entry'!B26) ->  | C30: =IF('Student DATA Entry'!D26="","",'Student DATA Entry'!D26) ->  | D30: =IF('Student DATA Entry'!E26="","",'Student DATA Entry'!E26) ->  | E30: =IF('Student DATA Entry'!I26="","",'Student DATA Entry'!I26) ->  | F30: =IF('Student DATA Entry'!F26="","",UPPER('Student DATA Entry'!F26)) ->  | G30: =IF('Student DATA Entry'!G26="","",UPPER('Student DATA Entry'!G26)) ->  | H30: =IF('Student DATA Entry'!H26="","",UPPER('Student DATA Entry'!H26)) ->  | I30: =IF('Student DATA Entry'!K26="","",UPPER('Student DATA Entry'!K26)) ->  | J30: =IF('Student DATA Entry'!J26="","",UPPER('Student DATA Entry'!J26)) ->  | K30: 14 | L30: 4 | M30: 8 | N30: 28 | O30: 52 | P30: 7 | Q30: 10 | R30: 9 | S30: 27 | T30: 69 | U30: A | V30: 8 | W30: 8 | X30: 7 | Y30: 40 | AA30: 48 | AC30: B | AD30: 15 | AE30: 10 | AG30: 40 | AI30: 54 | AK30: A | AL30: 12 | AM30: 14 | AO30: 24 | AP30: 9 | AQ30: 46 | AR30: 19 | BB30: 20 | BC30: 30 | BD30: 32 | BE30: 7 | BF30: 7 | BG30: 7 | BH30: 41 | BI30: 68 | BN30: =IF('Master Sheet'!L30="","",'Master Sheet'!L30) -> MUSIC INSTR. FLUTE
A31: =IF('Student DATA Entry'!A27="","",'Student DATA Entry'!A27) -> 24 | B31: =IF('Student DATA Entry'!B27="","",'Student DATA Entry'!B27) ->  | C31: =IF('Student DATA Entry'!D27="","",'Student DATA Entry'!D27) ->  | D31: =IF('Student DATA Entry'!E27="","",'Student DATA Entry'!E27) ->  | E31: =IF('Student DATA Entry'!I27="","",'Student DATA Entry'!I27) ->  | F31: =IF('Student DATA Entry'!F27="","",UPPER('Student DATA Entry'!F27)) ->  | G31: =IF('Student DATA Entry'!G27="","",UPPER('Student DATA Entry'!G27)) ->  | H31: =IF('Student DATA Entry'!H27="","",UPPER('Student DATA Entry'!H27)) ->  | I31: =IF('Student DATA Entry'!K27="","",UPPER('Student DATA Entry'!K27)) ->  | J31: =IF('Student DATA Entry'!J27="","",UPPER('Student DATA Entry'!J27)) ->  | K31: 15 | L31: 5 | M31: 8 | N31: 29 | O31: 52 | P31: 4 | Q31: 10 | R31: 9 | S31: 36 | T31: 67 | U31: A | V31: 5 | W31: 8 | X31: 7 | Y31: 36 | AA31: 47 | AC31: B | AD31: 16 | AE31: 12 | AG31: 41 | AI31: 56 | AK31: A | AL31: 15 | AM31: 15 | AO31: 28 | AP31: 14 | AQ31: 39 | AR31: 28 | BB31: 20 | BC31: 30 | BD31: 32 | BE31: 7 | BF31: 7 | BG31: 7 | BH31: 41 | BI31: 68 | BN31: =IF('Master Sheet'!L31="","",'Master Sheet'!L31) -> MUSIC INSTR. FLUTE
A32: =IF('Student DATA Entry'!A28="","",'Student DATA Entry'!A28) -> 25 | B32: =IF('Student DATA Entry'!B28="","",'Student DATA Entry'!B28) ->  | C32: =IF('Student DATA Entry'!D28="","",'Student DATA Entry'!D28) ->  | D32: =IF('Student DATA Entry'!E28="","",'Student DATA Entry'!E28) ->  | E32: =IF('Student DATA Entry'!I28="","",'Student DATA Entry'!I28) ->  | F32: =IF('Student DATA Entry'!F28="","",UPPER('Student DATA Entry'!F28)) ->  | G32: =IF('Student DATA Entry'!G28="","",UPPER('Student DATA Entry'!G28)) ->  | H32: =IF('Student DATA Entry'!H28="","",UPPER('Student DATA Entry'!H28)) ->  | I32: =IF('Student DATA Entry'!K28="","",UPPER('Student DATA Entry'!K28)) ->  | J32: =IF('Student DATA Entry'!J28="","",UPPER('Student DATA Entry'!J28)) ->  | K32: 16 | L32: 6 | M32: 8 | N32: 28 | O32: 51 | P32: 5 | Q32: 10 | R32: 9 | S32: 35 | T32: 64 | U32: A | V32: 4 | W32: 7 | X32: 7 | Y32: 35 | AA32: 49 | AC32: B | AD32: 14 | AE32: 13 | AG32: 45 | AI32: 51 | AK32: A | AL32: 14 | AM32: 14 | AO32: 29 | AP32: 10 | AQ32: 35 | AR32: 24 | BB32: 20 | BC32: 30 | BD32: 32 | BE32: 7 | BF32: 7 | BG32: 7 | BH32: 41 | BI32: 68 | BN32: =IF('Master Sheet'!L32="","",'Master Sheet'!L32) -> MUSIC INSTR. GUITAR
A33: =IF('Student DATA Entry'!A29="","",'Student DATA Entry'!A29) -> 26 | B33: =IF('Student DATA Entry'!B29="","",'Student DATA Entry'!B29) ->  | C33: =IF('Student DATA Entry'!D29="","",'Student DATA Entry'!D29) ->  | D33: =IF('Student DATA Entry'!E29="","",'Student DATA Entry'!E29) ->  | E33: =IF('Student DATA Entry'!I29="","",'Student DATA Entry'!I29) ->  | F33: =IF('Student DATA Entry'!F29="","",UPPER('Student DATA Entry'!F29)) ->  | G33: =IF('Student DATA Entry'!G29="","",UPPER('Student DATA Entry'!G29)) ->  | H33: =IF('Student DATA Entry'!H29="","",UPPER('Student DATA Entry'!H29)) ->  | I33: =IF('Student DATA Entry'!K29="","",UPPER('Student DATA Entry'!K29)) ->  | J33: =IF('Student DATA Entry'!J29="","",UPPER('Student DATA Entry'!J29)) ->  | K33: 13 | L33: 9 | M33: 8 | N33: 27 | O33: 50 | P33: 8 | Q33: 10 | R33: 9 | S33: 32 | T33: 61 | U33: A | V33: 8 | W33: 8 | X33: 7 | Y33: 35 | AA33: 52 | AC33: B | AD33: 15 | AE33: 14 | AG33: 40 | AI33: 50 | AK33: B | AL33: 16 | AM33: 15 | BB33: 20 | BC33: 30 | BD33: 32 | BE33: 7 | BF33: 7 | BG33: 7 | BH33: 41 | BI33: 68 | BN33: =IF('Master Sheet'!L33="","",'Master Sheet'!L33) -> MUSIC INSTR. PKHAAVAJ
A34: =IF('Student DATA Entry'!A30="","",'Student DATA Entry'!A30) -> 27 | B34: =IF('Student DATA Entry'!B30="","",'Student DATA Entry'!B30) ->  | C34: =IF('Student DATA Entry'!D30="","",'Student DATA Entry'!D30) ->  | D34: =IF('Student DATA Entry'!E30="","",'Student DATA Entry'!E30) ->  | E34: =IF('Student DATA Entry'!I30="","",'Student DATA Entry'!I30) ->  | F34: =IF('Student DATA Entry'!F30="","",UPPER('Student DATA Entry'!F30)) ->  | G34: =IF('Student DATA Entry'!G30="","",UPPER('Student DATA Entry'!G30)) ->  | H34: =IF('Student DATA Entry'!H30="","",UPPER('Student DATA Entry'!H30)) ->  | I34: =IF('Student DATA Entry'!K30="","",UPPER('Student DATA Entry'!K30)) ->  | J34: =IF('Student DATA Entry'!J30="","",UPPER('Student DATA Entry'!J30)) ->  | K34: 15 | L34: 8 | M34: 8 | N34: 28 | O34: 50 | P34: 9 | Q34: 10 | R34: 9 | S34: 31 | T34: 69 | U34: A | V34: 7 | W34: 9 | X34: 7 | Y34: 39 | AA34: 58 | AC34: B | AD34: 16 | AE34: 15 | AG34: 41 | AI34: 47 | AK34: B | AL34: 14 | AM34: 14 | BB34: 20 | BC34: 30 | BD34: 32 | BE34: 7 | BF34: 7 | BG34: 7 | BH34: 41 | BI34: 68 | BN34: =IF('Master Sheet'!L34="","",'Master Sheet'!L34) -> MUSIC INSTR. SAROD
A35: =IF('Student DATA Entry'!A31="","",'Student DATA Entry'!A31) -> 28 | B35: =IF('Student DATA Entry'!B31="","",'Student DATA Entry'!B31) ->  | C35: =IF('Student DATA Entry'!D31="","",'Student DATA Entry'!D31) ->  | D35: =IF('Student DATA Entry'!E31="","",'Student DATA Entry'!E31) ->  | E35: =IF('Student DATA Entry'!I31="","",'Student DATA Entry'!I31) ->  | F35: =IF('Student DATA Entry'!F31="","",UPPER('Student DATA Entry'!F31)) ->  | G35: =IF('Student DATA Entry'!G31="","",UPPER('Student DATA Entry'!G31)) ->  | H35: =IF('Student DATA Entry'!H31="","",UPPER('Student DATA Entry'!H31)) ->  | I35: =IF('Student DATA Entry'!K31="","",UPPER('Student DATA Entry'!K31)) ->  | J35: =IF('Student DATA Entry'!J31="","",UPPER('Student DATA Entry'!J31)) ->  | K35: 14 | L35: 7 | M35: 8 | N35: 29 | O35: 50 | P35: 8 | Q35: 10 | R35: 9 | S35: 25 | T35: 68 | U35: B | V35: 10 | W35: 6 | X35: 7 | Y35: 25 | Z35: 14 | AA35: 41 | AB35: 26 | AC35: B | AD35: 14 | AE35: 12 | AG35: 42 | AI35: 48 | AK35: A | AL35: 16 | AM35: 10 | BB35: 20 | BC35: 30 | BD35: 32 | BE35: 7 | BF35: 7 | BG35: 7 | BH35: 41 | BI35: 68 | BN35: =IF('Master Sheet'!L35="","",'Master Sheet'!L35) -> MUSIC INSTR. SITARA
A36: =IF('Student DATA Entry'!A32="","",'Student DATA Entry'!A32) -> 29 | B36: =IF('Student DATA Entry'!B32="","",'Student DATA Entry'!B32) ->  | C36: =IF('Student DATA Entry'!D32="","",'Student DATA Entry'!D32) ->  | D36: =IF('Student DATA Entry'!E32="","",'Student DATA Entry'!E32) ->  | E36: =IF('Student DATA Entry'!I32="","",'Student DATA Entry'!I32) ->  | F36: =IF('Student DATA Entry'!F32="","",UPPER('Student DATA Entry'!F32)) ->  | G36: =IF('Student DATA Entry'!G32="","",UPPER('Student DATA Entry'!G32)) ->  | H36: =IF('Student DATA Entry'!H32="","",UPPER('Student DATA Entry'!H32)) ->  | I36: =IF('Student DATA Entry'!K32="","",UPPER('Student DATA Entry'!K32)) ->  | J36: =IF('Student DATA Entry'!J32="","",UPPER('Student DATA Entry'!J32)) ->  | K36: 15 | L36: 2 | M36: 8 | N36: 21 | O36: 52 | P36: 9 | Q36: 10 | R36: 9 | S36: 26 | T36: 63 | U36: B | V36: 10 | W36: 5 | X36: 7 | Y36: 24 | Z36: 12 | AA36: 45 | AB36: 25 | AC36: B | AD36: 15 | AE36: 14 | AG36: 40 | AI36: 49 | AK36: B | AL36: 15 | AM36: 12 | BB36: 20 | BC36: 30 | BD36: 32 | BE36: 7 | BF36: 7 | BG36: 7 | BH36: 41 | BI36: 68 | BN36: =IF('Master Sheet'!L36="","",'Master Sheet'!L36) -> MUSIC INSTR. TABLA
A37: =IF('Student DATA Entry'!A33="","",'Student DATA Entry'!A33) -> 30 | B37: =IF('Student DATA Entry'!B33="","",'Student DATA Entry'!B33) ->  | C37: =IF('Student DATA Entry'!D33="","",'Student DATA Entry'!D33) ->  | D37: =IF('Student DATA Entry'!E33="","",'Student DATA Entry'!E33) ->  | E37: =IF('Student DATA Entry'!I33="","",'Student DATA Entry'!I33) ->  | F37: =IF('Student DATA Entry'!F33="","",UPPER('Student DATA Entry'!F33)) ->  | G37: =IF('Student DATA Entry'!G33="","",UPPER('Student DATA Entry'!G33)) ->  | H37: =IF('Student DATA Entry'!H33="","",UPPER('Student DATA Entry'!H33)) ->  | I37: =IF('Student DATA Entry'!K33="","",UPPER('Student DATA Entry'!K33)) ->  | J37: =IF('Student DATA Entry'!J33="","",UPPER('Student DATA Entry'!J33)) ->  | K37: 14 | L37: 5 | M37: 8 | N37: 25 | O37: 58 | P37: 8 | Q37: 10 | R37: 9 | S37: 28 | T37: 65 | U37: B | V37: 10 | W37: 10 | X37: 7 | Y37: 29 | Z37: 10 | AA37: 40 | AB37: 25 | AC37: B | AD37: 14 | AE37: 15 | AG37: 41 | AI37: 50 | AK37: B | AL37: 14 | AM37: 13 | BB37: 20 | BC37: 30 | BD37: 32 | BE37: 7 | BF37: 7 | BG37: 7 | BH37: 41 | BI37: 70 | BN37: =IF('Master Sheet'!L37="","",'Master Sheet'!L37) -> MUSIC VOCAL
A38: =IF('Student DATA Entry'!A34="","",'Student DATA Entry'!A34) -> 31 | B38: =IF('Student DATA Entry'!B34="","",'Student DATA Entry'!B34) ->  | C38: =IF('Student DATA Entry'!D34="","",'Student DATA Entry'!D34) ->  | D38: =IF('Student DATA Entry'!E34="","",'Student DATA Entry'!E34) ->  | E38: =IF('Student DATA Entry'!I34="","",'Student DATA Entry'!I34) ->  | F38: =IF('Student DATA Entry'!F34="","",UPPER('Student DATA Entry'!F34)) ->  | G38: =IF('Student DATA Entry'!G34="","",UPPER('Student DATA Entry'!G34)) ->  | H38: =IF('Student DATA Entry'!H34="","",UPPER('Student DATA Entry'!H34)) ->  | I38: =IF('Student DATA Entry'!K34="","",UPPER('Student DATA Entry'!K34)) ->  | J38: =IF('Student DATA Entry'!J34="","",UPPER('Student DATA Entry'!J34)) ->  | BE38: 7 | BF38: 7 | BG38: 7 | BH38: 41 | BI38: 70 | BN38: =IF('Master Sheet'!L38="","",'Master Sheet'!L38) -> 
A39: =IF('Student DATA Entry'!A35="","",'Student DATA Entry'!A35) -> 32 | B39: =IF('Student DATA Entry'!B35="","",'Student DATA Entry'!B35) ->  | C39: =IF('Student DATA Entry'!D35="","",'Student DATA Entry'!D35) ->  | D39: =IF('Student DATA Entry'!E35="","",'Student DATA Entry'!E35) ->  | E39: =IF('Student DATA Entry'!I35="","",'Student DATA Entry'!I35) ->  | F39: =IF('Student DATA Entry'!F35="","",UPPER('Student DATA Entry'!F35)) ->  | G39: =IF('Student DATA Entry'!G35="","",UPPER('Student DATA Entry'!G35)) ->  | H39: =IF('Student DATA Entry'!H35="","",UPPER('Student DATA Entry'!H35)) ->  | I39: =IF('Student DATA Entry'!K35="","",UPPER('Student DATA Entry'!K35)) ->  | J39: =IF('Student DATA Entry'!J35="","",UPPER('Student DATA Entry'!J35)) ->  | BN39: =IF('Master Sheet'!#REF!="","",'Master Sheet'!#REF!) -> 
A40: =IF('Student DATA Entry'!A36="","",'Student DATA Entry'!A36) -> 33 | B40: =IF('Student DATA Entry'!B36="","",'Student DATA Entry'!B36) ->  | C40: =IF('Student DATA Entry'!D36="","",'Student DATA Entry'!D36) ->  | D40: =IF('Student DATA Entry'!E36="","",'Student DATA Entry'!E36) ->  | E40: =IF('Student DATA Entry'!I36="","",'Student DATA Entry'!I36) ->  | F40: =IF('Student DATA Entry'!F36="","",UPPER('Student DATA Entry'!F36)) ->  | G40: =IF('Student DATA Entry'!G36="","",UPPER('Student DATA Entry'!G36)) ->  | H40: =IF('Student DATA Entry'!H36="","",UPPER('Student DATA Entry'!H36)) ->  | I40: =IF('Student DATA Entry'!K36="","",UPPER('Student DATA Entry'!K36)) ->  | J40: =IF('Student DATA Entry'!J36="","",UPPER('Student DATA Entry'!J36)) ->  | BN40: =IF('Master Sheet'!#REF!="","",'Master Sheet'!#REF!) -> 
A41: =IF('Student DATA Entry'!A37="","",'Student DATA Entry'!A37) -> 34 | B41: =IF('Student DATA Entry'!B37="","",'Student DATA Entry'!B37) ->  | C41: =IF('Student DATA Entry'!D37="","",'Student DATA Entry'!D37) ->  | D41: =IF('Student DATA Entry'!E37="","",'Student DATA Entry'!E37) ->  | E41: =IF('Student DATA Entry'!I37="","",'Student DATA Entry'!I37) ->  | F41: =IF('Student DATA Entry'!F37="","",UPPER('Student DATA Entry'!F37)) ->  | G41: =IF('Student DATA Entry'!G37="","",UPPER('Student DATA Entry'!G37)) ->  | H41: =IF('Student DATA Entry'!H37="","",UPPER('Student DATA Entry'!H37)) ->  | I41: =IF('Student DATA Entry'!K37="","",UPPER('Student DATA Entry'!K37)) ->  | J41: =IF('Student DATA Entry'!J37="","",UPPER('Student DATA Entry'!J37)) ->  | BN41: =IF('Master Sheet'!#REF!="","",'Master Sheet'!#REF!) -> 
A42: =IF('Student DATA Entry'!A38="","",'Student DATA Entry'!A38) -> 35 | B42: =IF('Student DATA Entry'!B38="","",'Student DATA Entry'!B38) ->  | C42: =IF('Student DATA Entry'!D38="","",'Student DATA Entry'!D38) ->  | D42: =IF('Student DATA Entry'!E38="","",'Student DATA Entry'!E38) ->  | E42: =IF('Student DATA Entry'!I38="","",'Student DATA Entry'!I38) ->  | F42: =IF('Student DATA Entry'!F38="","",UPPER('Student DATA Entry'!F38)) ->  | G42: =IF('Student DATA Entry'!G38="","",UPPER('Student DATA Entry'!G38)) ->  | H42: =IF('Student DATA Entry'!H38="","",UPPER('Student DATA Entry'!H38)) ->  | I42: =IF('Student DATA Entry'!K38="","",UPPER('Student DATA Entry'!K38)) ->  | J42: =IF('Student DATA Entry'!J38="","",UPPER('Student DATA Entry'!J38)) ->  | BN42: =IF('Master Sheet'!#REF!="","",'Master Sheet'!#REF!) -> 
A43: =IF('Student DATA Entry'!A39="","",'Student DATA Entry'!A39) -> 36 | B43: =IF('Student DATA Entry'!B39="","",'Student DATA Entry'!B39) ->  | C43: =IF('Student DATA Entry'!D39="","",'Student DATA Entry'!D39) ->  | D43: =IF('Student DATA Entry'!E39="","",'Student DATA Entry'!E39) ->  | E43: =IF('Student DATA Entry'!I39="","",'Student DATA Entry'!I39) ->  | F43: =IF('Student DATA Entry'!F39="","",UPPER('Student DATA Entry'!F39)) ->  | G43: =IF('Student DATA Entry'!G39="","",UPPER('Student DATA Entry'!G39)) ->  | H43: =IF('Student DATA Entry'!H39="","",UPPER('Student DATA Entry'!H39)) ->  | I43: =IF('Student DATA Entry'!K39="","",UPPER('Student DATA Entry'!K39)) ->  | J43: =IF('Student DATA Entry'!J39="","",UPPER('Student DATA Entry'!J39)) ->  | BN43: =IF('Master Sheet'!#REF!="","",'Master Sheet'!#REF!) -> 
A44: =IF('Student DATA Entry'!A40="","",'Student DATA Entry'!A40) -> 37 | B44: =IF('Student DATA Entry'!B40="","",'Student DATA Entry'!B40) ->  | C44: =IF('Student DATA Entry'!D40="","",'Student DATA Entry'!D40) ->  | D44: =IF('Student DATA Entry'!E40="","",'Student DATA Entry'!E40) ->  | E44: =IF('Student DATA Entry'!I40="","",'Student DATA Entry'!I40) ->  | F44: =IF('Student DATA Entry'!F40="","",UPPER('Student DATA Entry'!F40)) ->  | G44: =IF('Student DATA Entry'!G40="","",UPPER('Student DATA Entry'!G40)) ->  | H44: =IF('Student DATA Entry'!H40="","",UPPER('Student DATA Entry'!H40)) ->  | I44: =IF('Student DATA Entry'!K40="","",UPPER('Student DATA Entry'!K40)) ->  | J44: =IF('Student DATA Entry'!J40="","",UPPER('Student DATA Entry'!J40)) ->  | BN44: =IF('Master Sheet'!#REF!="","",'Master Sheet'!#REF!) -> 
A45: =IF('Student DATA Entry'!A41="","",'Student DATA Entry'!A41) -> 38 | B45: =IF('Student DATA Entry'!B41="","",'Student DATA Entry'!B41) ->  | C45: =IF('Student DATA Entry'!D41="","",'Student DATA Entry'!D41) ->  | D45: =IF('Student DATA Entry'!E41="","",'Student DATA Entry'!E41) ->  | E45: =IF('Student DATA Entry'!I41="","",'Student DATA Entry'!I41) ->  | F45: =IF('Student DATA Entry'!F41="","",UPPER('Student DATA Entry'!F41)) ->  | G45: =IF('Student DATA Entry'!G41="","",UPPER('Student DATA Entry'!G41)) ->  | H45: =IF('Student DATA Entry'!H41="","",UPPER('Student DATA Entry'!H41)) ->  | I45: =IF('Student DATA Entry'!K41="","",UPPER('Student DATA Entry'!K41)) ->  | J45: =IF('Student DATA Entry'!J41="","",UPPER('Student DATA Entry'!J41)) ->  | BN45: =IF('Master Sheet'!#REF!="","",'Master Sheet'!#REF!) -> 
A46: =IF('Student DATA Entry'!A42="","",'Student DATA Entry'!A42) -> 39 | B46: =IF('Student DATA Entry'!B42="","",'Student DATA Entry'!B42) ->  | C46: =IF('Student DATA Entry'!D42="","",'Student DATA Entry'!D42) ->  | D46: =IF('Student DATA Entry'!E42="","",'Student DATA Entry'!E42) ->  | E46: =IF('Student DATA Entry'!I42="","",'Student DATA Entry'!I42) ->  | F46: =IF('Student DATA Entry'!F42="","",UPPER('Student DATA Entry'!F42)) ->  | G46: =IF('Student DATA Entry'!G42="","",UPPER('Student DATA Entry'!G42)) ->  | H46: =IF('Student DATA Entry'!H42="","",UPPER('Student DATA Entry'!H42)) ->  | I46: =IF('Student DATA Entry'!K42="","",UPPER('Student DATA Entry'!K42)) ->  | J46: =IF('Student DATA Entry'!J42="","",UPPER('Student DATA Entry'!J42)) ->  | BN46: =IF('Master Sheet'!#REF!="","",'Master Sheet'!#REF!) -> 
A47: =IF('Student DATA Entry'!A43="","",'Student DATA Entry'!A43) -> 40 | B47: =IF('Student DATA Entry'!B43="","",'Student DATA Entry'!B43) ->  | C47: =IF('Student DATA Entry'!D43="","",'Student DATA Entry'!D43) ->  | D47: =IF('Student DATA Entry'!E43="","",'Student DATA Entry'!E43) ->  | E47: =IF('Student DATA Entry'!I43="","",'Student DATA Entry'!I43) ->  | F47: =IF('Student DATA Entry'!F43="","",UPPER('Student DATA Entry'!F43)) ->  | G47: =IF('Student DATA Entry'!G43="","",UPPER('Student DATA Entry'!G43)) ->  | H47: =IF('Student DATA Entry'!H43="","",UPPER('Student DATA Entry'!H43)) ->  | I47: =IF('Student DATA Entry'!K43="","",UPPER('Student DATA Entry'!K43)) ->  | J47: =IF('Student DATA Entry'!J43="","",UPPER('Student DATA Entry'!J43)) -> 
A48: =IF('Student DATA Entry'!A44="","",'Student DATA Entry'!A44) -> 41 | B48: =IF('Student DATA Entry'!B44="","",'Student DATA Entry'!B44) ->  | C48: =IF('Student DATA Entry'!D44="","",'Student DATA Entry'!D44) ->  | D48: =IF('Student DATA Entry'!E44="","",'Student DATA Entry'!E44) ->  | E48: =IF('Student DATA Entry'!I44="","",'Student DATA Entry'!I44) ->  | F48: =IF('Student DATA Entry'!F44="","",UPPER('Student DATA Entry'!F44)) ->  | G48: =IF('Student DATA Entry'!G44="","",UPPER('Student DATA Entry'!G44)) ->  | H48: =IF('Student DATA Entry'!H44="","",UPPER('Student DATA Entry'!H44)) ->  | I48: =IF('Student DATA Entry'!K44="","",UPPER('Student DATA Entry'!K44)) ->  | J48: =IF('Student DATA Entry'!J44="","",UPPER('Student DATA Entry'!J44)) -> 
A49: =IF('Student DATA Entry'!A45="","",'Student DATA Entry'!A45) -> 42 | B49: =IF('Student DATA Entry'!B45="","",'Student DATA Entry'!B45) ->  | C49: =IF('Student DATA Entry'!D45="","",'Student DATA Entry'!D45) ->  | D49: =IF('Student DATA Entry'!E45="","",'Student DATA Entry'!E45) ->  | E49: =IF('Student DATA Entry'!I45="","",'Student DATA Entry'!I45) ->  | F49: =IF('Student DATA Entry'!F45="","",UPPER('Student DATA Entry'!F45)) ->  | G49: =IF('Student DATA Entry'!G45="","",UPPER('Student DATA Entry'!G45)) ->  | H49: =IF('Student DATA Entry'!H45="","",UPPER('Student DATA Entry'!H45)) ->  | I49: =IF('Student DATA Entry'!K45="","",UPPER('Student DATA Entry'!K45)) ->  | J49: =IF('Student DATA Entry'!J45="","",UPPER('Student DATA Entry'!J45)) -> 
A50: =IF('Student DATA Entry'!A46="","",'Student DATA Entry'!A46) -> 43 | B50: =IF('Student DATA Entry'!B46="","",'Student DATA Entry'!B46) ->  | C50: =IF('Student DATA Entry'!D46="","",'Student DATA Entry'!D46) ->  | D50: =IF('Student DATA Entry'!E46="","",'Student DATA Entry'!E46) ->  | E50: =IF('Student DATA Entry'!I46="","",'Student DATA Entry'!I46) ->  | F50: =IF('Student DATA Entry'!F46="","",UPPER('Student DATA Entry'!F46)) ->  | G50: =IF('Student DATA Entry'!G46="","",UPPER('Student DATA Entry'!G46)) ->  | H50: =IF('Student DATA Entry'!H46="","",UPPER('Student DATA Entry'!H46)) ->  | I50: =IF('Student DATA Entry'!K46="","",UPPER('Student DATA Entry'!K46)) ->  | J50: =IF('Student DATA Entry'!J46="","",UPPER('Student DATA Entry'!J46)) -> 
A51: =IF('Student DATA Entry'!A47="","",'Student DATA Entry'!A47) -> 44 | B51: =IF('Student DATA Entry'!B47="","",'Student DATA Entry'!B47) ->  | C51: =IF('Student DATA Entry'!D47="","",'Student DATA Entry'!D47) ->  | D51: =IF('Student DATA Entry'!E47="","",'Student DATA Entry'!E47) ->  | E51: =IF('Student DATA Entry'!I47="","",'Student DATA Entry'!I47) ->  | F51: =IF('Student DATA Entry'!F47="","",UPPER('Student DATA Entry'!F47)) ->  | G51: =IF('Student DATA Entry'!G47="","",UPPER('Student DATA Entry'!G47)) ->  | H51: =IF('Student DATA Entry'!H47="","",UPPER('Student DATA Entry'!H47)) ->  | I51: =IF('Student DATA Entry'!K47="","",UPPER('Student DATA Entry'!K47)) ->  | J51: =IF('Student DATA Entry'!J47="","",UPPER('Student DATA Entry'!J47)) -> 
A52: =IF('Student DATA Entry'!A48="","",'Student DATA Entry'!A48) -> 45 | B52: =IF('Student DATA Entry'!B48="","",'Student DATA Entry'!B48) ->  | C52: =IF('Student DATA Entry'!D48="","",'Student DATA Entry'!D48) ->  | D52: =IF('Student DATA Entry'!E48="","",'Student DATA Entry'!E48) ->  | E52: =IF('Student DATA Entry'!I48="","",'Student DATA Entry'!I48) ->  | F52: =IF('Student DATA Entry'!F48="","",UPPER('Student DATA Entry'!F48)) ->  | G52: =IF('Student DATA Entry'!G48="","",UPPER('Student DATA Entry'!G48)) ->  | H52: =IF('Student DATA Entry'!H48="","",UPPER('Student DATA Entry'!H48)) ->  | I52: =IF('Student DATA Entry'!K48="","",UPPER('Student DATA Entry'!K48)) ->  | J52: =IF('Student DATA Entry'!J48="","",UPPER('Student DATA Entry'!J48)) -> 
A53: =IF('Student DATA Entry'!A49="","",'Student DATA Entry'!A49) -> 46 | B53: =IF('Student DATA Entry'!B49="","",'Student DATA Entry'!B49) ->  | C53: =IF('Student DATA Entry'!D49="","",'Student DATA Entry'!D49) ->  | D53: =IF('Student DATA Entry'!E49="","",'Student DATA Entry'!E49) ->  | E53: =IF('Student DATA Entry'!I49="","",'Student DATA Entry'!I49) ->  | F53: =IF('Student DATA Entry'!F49="","",UPPER('Student DATA Entry'!F49)) ->  | G53: =IF('Student DATA Entry'!G49="","",UPPER('Student DATA Entry'!G49)) ->  | H53: =IF('Student DATA Entry'!H49="","",UPPER('Student DATA Entry'!H49)) ->  | I53: =IF('Student DATA Entry'!K49="","",UPPER('Student DATA Entry'!K49)) ->  | J53: =IF('Student DATA Entry'!J49="","",UPPER('Student DATA Entry'!J49)) -> 
A54: =IF('Student DATA Entry'!A50="","",'Student DATA Entry'!A50) -> 47 | B54: =IF('Student DATA Entry'!B50="","",'Student DATA Entry'!B50) ->  | C54: =IF('Student DATA Entry'!D50="","",'Student DATA Entry'!D50) ->  | D54: =IF('Student DATA Entry'!E50="","",'Student DATA Entry'!E50) ->  | E54: =IF('Student DATA Entry'!I50="","",'Student DATA Entry'!I50) ->  | F54: =IF('Student DATA Entry'!F50="","",UPPER('Student DATA Entry'!F50)) ->  | G54: =IF('Student DATA Entry'!G50="","",UPPER('Student DATA Entry'!G50)) ->  | H54: =IF('Student DATA Entry'!H50="","",UPPER('Student DATA Entry'!H50)) ->  | I54: =IF('Student DATA Entry'!K50="","",UPPER('Student DATA Entry'!K50)) ->  | J54: =IF('Student DATA Entry'!J50="","",UPPER('Student DATA Entry'!J50)) -> 
A55: =IF('Student DATA Entry'!A51="","",'Student DATA Entry'!A51) -> 48 | B55: =IF('Student DATA Entry'!B51="","",'Student DATA Entry'!B51) ->  | C55: =IF('Student DATA Entry'!D51="","",'Student DATA Entry'!D51) ->  | D55: =IF('Student DATA Entry'!E51="","",'Student DATA Entry'!E51) ->  | E55: =IF('Student DATA Entry'!I51="","",'Student DATA Entry'!I51) ->  | F55: =IF('Student DATA Entry'!F51="","",UPPER('Student DATA Entry'!F51)) ->  | G55: =IF('Student DATA Entry'!G51="","",UPPER('Student DATA Entry'!G51)) ->  | H55: =IF('Student DATA Entry'!H51="","",UPPER('Student DATA Entry'!H51)) ->  | I55: =IF('Student DATA Entry'!K51="","",UPPER('Student DATA Entry'!K51)) ->  | J55: =IF('Student DATA Entry'!J51="","",UPPER('Student DATA Entry'!J51)) -> 
A56: =IF('Student DATA Entry'!A52="","",'Student DATA Entry'!A52) -> 49 | B56: =IF('Student DATA Entry'!B52="","",'Student DATA Entry'!B52) ->  | C56: =IF('Student DATA Entry'!D52="","",'Student DATA Entry'!D52) ->  | D56: =IF('Student DATA Entry'!E52="","",'Student DATA Entry'!E52) ->  | E56: =IF('Student DATA Entry'!I52="","",'Student DATA Entry'!I52) ->  | F56: =IF('Student DATA Entry'!F52="","",UPPER('Student DATA Entry'!F52)) ->  | G56: =IF('Student DATA Entry'!G52="","",UPPER('Student DATA Entry'!G52)) ->  | H56: =IF('Student DATA Entry'!H52="","",UPPER('Student DATA Entry'!H52)) ->  | I56: =IF('Student DATA Entry'!K52="","",UPPER('Student DATA Entry'!K52)) ->  | J56: =IF('Student DATA Entry'!J52="","",UPPER('Student DATA Entry'!J52)) -> 
A57: =IF('Student DATA Entry'!A53="","",'Student DATA Entry'!A53) -> 50 | B57: =IF('Student DATA Entry'!B53="","",'Student DATA Entry'!B53) ->  | C57: =IF('Student DATA Entry'!D53="","",'Student DATA Entry'!D53) ->  | D57: =IF('Student DATA Entry'!E53="","",'Student DATA Entry'!E53) ->  | E57: =IF('Student DATA Entry'!I53="","",'Student DATA Entry'!I53) ->  | F57: =IF('Student DATA Entry'!F53="","",UPPER('Student DATA Entry'!F53)) ->  | G57: =IF('Student DATA Entry'!G53="","",UPPER('Student DATA Entry'!G53)) ->  | H57: =IF('Student DATA Entry'!H53="","",UPPER('Student DATA Entry'!H53)) ->  | I57: =IF('Student DATA Entry'!K53="","",UPPER('Student DATA Entry'!K53)) ->  | J57: =IF('Student DATA Entry'!J53="","",UPPER('Student DATA Entry'!J53)) -> 
A58: =IF('Student DATA Entry'!A54="","",'Student DATA Entry'!A54) -> 51 | B58: =IF('Student DATA Entry'!B54="","",'Student DATA Entry'!B54) ->  | C58: =IF('Student DATA Entry'!D54="","",'Student DATA Entry'!D54) ->  | D58: =IF('Student DATA Entry'!E54="","",'Student DATA Entry'!E54) ->  | E58: =IF('Student DATA Entry'!I54="","",'Student DATA Entry'!I54) ->  | F58: =IF('Student DATA Entry'!F54="","",UPPER('Student DATA Entry'!F54)) ->  | G58: =IF('Student DATA Entry'!G54="","",UPPER('Student DATA Entry'!G54)) ->  | H58: =IF('Student DATA Entry'!H54="","",UPPER('Student DATA Entry'!H54)) ->  | I58: =IF('Student DATA Entry'!K54="","",UPPER('Student DATA Entry'!K54)) ->  | J58: =IF('Student DATA Entry'!J54="","",UPPER('Student DATA Entry'!J54)) -> 
A59: =IF('Student DATA Entry'!A55="","",'Student DATA Entry'!A55) -> 52 | B59: =IF('Student DATA Entry'!B55="","",'Student DATA Entry'!B55) ->  | C59: =IF('Student DATA Entry'!D55="","",'Student DATA Entry'!D55) ->  | D59: =IF('Student DATA Entry'!E55="","",'Student DATA Entry'!E55) ->  | E59: =IF('Student DATA Entry'!I55="","",'Student DATA Entry'!I55) ->  | F59: =IF('Student DATA Entry'!F55="","",UPPER('Student DATA Entry'!F55)) ->  | G59: =IF('Student DATA Entry'!G55="","",UPPER('Student DATA Entry'!G55)) ->  | H59: =IF('Student DATA Entry'!H55="","",UPPER('Student DATA Entry'!H55)) ->  | I59: =IF('Student DATA Entry'!K55="","",UPPER('Student DATA Entry'!K55)) ->  | J59: =IF('Student DATA Entry'!J55="","",UPPER('Student DATA Entry'!J55)) -> 
A60: =IF('Student DATA Entry'!A56="","",'Student DATA Entry'!A56) -> 53 | B60: =IF('Student DATA Entry'!B56="","",'Student DATA Entry'!B56) ->  | C60: =IF('Student DATA Entry'!D56="","",'Student DATA Entry'!D56) ->  | D60: =IF('Student DATA Entry'!E56="","",'Student DATA Entry'!E56) ->  | E60: =IF('Student DATA Entry'!I56="","",'Student DATA Entry'!I56) ->  | F60: =IF('Student DATA Entry'!F56="","",UPPER('Student DATA Entry'!F56)) ->  | G60: =IF('Student DATA Entry'!G56="","",UPPER('Student DATA Entry'!G56)) ->  | H60: =IF('Student DATA Entry'!H56="","",UPPER('Student DATA Entry'!H56)) ->  | I60: =IF('Student DATA Entry'!K56="","",UPPER('Student DATA Entry'!K56)) ->  | J60: =IF('Student DATA Entry'!J56="","",UPPER('Student DATA Entry'!J56)) -> 
A61: =IF('Student DATA Entry'!A57="","",'Student DATA Entry'!A57) -> 54 | B61: =IF('Student DATA Entry'!B57="","",'Student DATA Entry'!B57) ->  | C61: =IF('Student DATA Entry'!D57="","",'Student DATA Entry'!D57) ->  | D61: =IF('Student DATA Entry'!E57="","",'Student DATA Entry'!E57) ->  | E61: =IF('Student DATA Entry'!I57="","",'Student DATA Entry'!I57) ->  | F61: =IF('Student DATA Entry'!F57="","",UPPER('Student DATA Entry'!F57)) ->  | G61: =IF('Student DATA Entry'!G57="","",UPPER('Student DATA Entry'!G57)) ->  | H61: =IF('Student DATA Entry'!H57="","",UPPER('Student DATA Entry'!H57)) ->  | I61: =IF('Student DATA Entry'!K57="","",UPPER('Student DATA Entry'!K57)) ->  | J61: =IF('Student DATA Entry'!J57="","",UPPER('Student DATA Entry'!J57)) -> 
A62: =IF('Student DATA Entry'!A58="","",'Student DATA Entry'!A58) -> 55 | B62: =IF('Student DATA Entry'!B58="","",'Student DATA Entry'!B58) ->  | C62: =IF('Student DATA Entry'!D58="","",'Student DATA Entry'!D58) ->  | D62: =IF('Student DATA Entry'!E58="","",'Student DATA Entry'!E58) ->  | E62: =IF('Student DATA Entry'!I58="","",'Student DATA Entry'!I58) ->  | F62: =IF('Student DATA Entry'!F58="","",UPPER('Student DATA Entry'!F58)) ->  | G62: =IF('Student DATA Entry'!G58="","",UPPER('Student DATA Entry'!G58)) ->  | H62: =IF('Student DATA Entry'!H58="","",UPPER('Student DATA Entry'!H58)) ->  | I62: =IF('Student DATA Entry'!K58="","",UPPER('Student DATA Entry'!K58)) ->  | J62: =IF('Student DATA Entry'!J58="","",UPPER('Student DATA Entry'!J58)) -> 
A63: =IF('Student DATA Entry'!A59="","",'Student DATA Entry'!A59) -> 56 | B63: =IF('Student DATA Entry'!B59="","",'Student DATA Entry'!B59) ->  | C63: =IF('Student DATA Entry'!D59="","",'Student DATA Entry'!D59) ->  | D63: =IF('Student DATA Entry'!E59="","",'Student DATA Entry'!E59) ->  | E63: =IF('Student DATA Entry'!I59="","",'Student DATA Entry'!I59) ->  | F63: =IF('Student DATA Entry'!F59="","",UPPER('Student DATA Entry'!F59)) ->  | G63: =IF('Student DATA Entry'!G59="","",UPPER('Student DATA Entry'!G59)) ->  | H63: =IF('Student DATA Entry'!H59="","",UPPER('Student DATA Entry'!H59)) ->  | I63: =IF('Student DATA Entry'!K59="","",UPPER('Student DATA Entry'!K59)) ->  | J63: =IF('Student DATA Entry'!J59="","",UPPER('Student DATA Entry'!J59)) -> 
A64: =IF('Student DATA Entry'!A60="","",'Student DATA Entry'!A60) -> 57 | B64: =IF('Student DATA Entry'!B60="","",'Student DATA Entry'!B60) ->  | C64: =IF('Student DATA Entry'!D60="","",'Student DATA Entry'!D60) ->  | D64: =IF('Student DATA Entry'!E60="","",'Student DATA Entry'!E60) ->  | E64: =IF('Student DATA Entry'!I60="","",'Student DATA Entry'!I60) ->  | F64: =IF('Student DATA Entry'!F60="","",UPPER('Student DATA Entry'!F60)) ->  | G64: =IF('Student DATA Entry'!G60="","",UPPER('Student DATA Entry'!G60)) ->  | H64: =IF('Student DATA Entry'!H60="","",UPPER('Student DATA Entry'!H60)) ->  | I64: =IF('Student DATA Entry'!K60="","",UPPER('Student DATA Entry'!K60)) ->  | J64: =IF('Student DATA Entry'!J60="","",UPPER('Student DATA Entry'!J60)) -> 
A65: =IF('Student DATA Entry'!A61="","",'Student DATA Entry'!A61) -> 58 | B65: =IF('Student DATA Entry'!B61="","",'Student DATA Entry'!B61) ->  | C65: =IF('Student DATA Entry'!D61="","",'Student DATA Entry'!D61) ->  | D65: =IF('Student DATA Entry'!E61="","",'Student DATA Entry'!E61) ->  | E65: =IF('Student DATA Entry'!I61="","",'Student DATA Entry'!I61) ->  | F65: =IF('Student DATA Entry'!F61="","",UPPER('Student DATA Entry'!F61)) ->  | G65: =IF('Student DATA Entry'!G61="","",UPPER('Student DATA Entry'!G61)) ->  | H65: =IF('Student DATA Entry'!H61="","",UPPER('Student DATA Entry'!H61)) ->  | I65: =IF('Student DATA Entry'!K61="","",UPPER('Student DATA Entry'!K61)) ->  | J65: =IF('Student DATA Entry'!J61="","",UPPER('Student DATA Entry'!J61)) -> 
A66: =IF('Student DATA Entry'!A62="","",'Student DATA Entry'!A62) -> 59 | B66: =IF('Student DATA Entry'!B62="","",'Student DATA Entry'!B62) ->  | C66: =IF('Student DATA Entry'!D62="","",'Student DATA Entry'!D62) ->  | D66: =IF('Student DATA Entry'!E62="","",'Student DATA Entry'!E62) ->  | E66: =IF('Student DATA Entry'!I62="","",'Student DATA Entry'!I62) ->  | F66: =IF('Student DATA Entry'!F62="","",UPPER('Student DATA Entry'!F62)) ->  | G66: =IF('Student DATA Entry'!G62="","",UPPER('Student DATA Entry'!G62)) ->  | H66: =IF('Student DATA Entry'!H62="","",UPPER('Student DATA Entry'!H62)) ->  | I66: =IF('Student DATA Entry'!K62="","",UPPER('Student DATA Entry'!K62)) ->  | J66: =IF('Student DATA Entry'!J62="","",UPPER('Student DATA Entry'!J62)) -> 
A67: =IF('Student DATA Entry'!A63="","",'Student DATA Entry'!A63) -> 60 | B67: =IF('Student DATA Entry'!B63="","",'Student DATA Entry'!B63) ->  | C67: =IF('Student DATA Entry'!D63="","",'Student DATA Entry'!D63) ->  | D67: =IF('Student DATA Entry'!E63="","",'Student DATA Entry'!E63) ->  | E67: =IF('Student DATA Entry'!I63="","",'Student DATA Entry'!I63) ->  | F67: =IF('Student DATA Entry'!F63="","",UPPER('Student DATA Entry'!F63)) ->  | G67: =IF('Student DATA Entry'!G63="","",UPPER('Student DATA Entry'!G63)) ->  | H67: =IF('Student DATA Entry'!H63="","",UPPER('Student DATA Entry'!H63)) ->  | I67: =IF('Student DATA Entry'!K63="","",UPPER('Student DATA Entry'!K63)) ->  | J67: =IF('Student DATA Entry'!J63="","",UPPER('Student DATA Entry'!J63)) -> 
A68: =IF('Student DATA Entry'!A64="","",'Student DATA Entry'!A64) -> 61 | B68: =IF('Student DATA Entry'!B64="","",'Student DATA Entry'!B64) ->  | C68: =IF('Student DATA Entry'!D64="","",'Student DATA Entry'!D64) ->  | D68: =IF('Student DATA Entry'!E64="","",'Student DATA Entry'!E64) ->  | E68: =IF('Student DATA Entry'!I64="","",'Student DATA Entry'!I64) ->  | F68: =IF('Student DATA Entry'!F64="","",UPPER('Student DATA Entry'!F64)) ->  | G68: =IF('Student DATA Entry'!G64="","",UPPER('Student DATA Entry'!G64)) ->  | H68: =IF('Student DATA Entry'!H64="","",UPPER('Student DATA Entry'!H64)) ->  | I68: =IF('Student DATA Entry'!K64="","",UPPER('Student DATA Entry'!K64)) ->  | J68: =IF('Student DATA Entry'!J64="","",UPPER('Student DATA Entry'!J64)) -> 
A69: =IF('Student DATA Entry'!A65="","",'Student DATA Entry'!A65) -> 62 | B69: =IF('Student DATA Entry'!B65="","",'Student DATA Entry'!B65) ->  | C69: =IF('Student DATA Entry'!D65="","",'Student DATA Entry'!D65) ->  | D69: =IF('Student DATA Entry'!E65="","",'Student DATA Entry'!E65) ->  | E69: =IF('Student DATA Entry'!I65="","",'Student DATA Entry'!I65) ->  | F69: =IF('Student DATA Entry'!F65="","",UPPER('Student DATA Entry'!F65)) ->  | G69: =IF('Student DATA Entry'!G65="","",UPPER('Student DATA Entry'!G65)) ->  | H69: =IF('Student DATA Entry'!H65="","",UPPER('Student DATA Entry'!H65)) ->  | I69: =IF('Student DATA Entry'!K65="","",UPPER('Student DATA Entry'!K65)) ->  | J69: =IF('Student DATA Entry'!J65="","",UPPER('Student DATA Entry'!J65)) -> 
A70: =IF('Student DATA Entry'!A66="","",'Student DATA Entry'!A66) -> 63 | B70: =IF('Student DATA Entry'!B66="","",'Student DATA Entry'!B66) ->  | C70: =IF('Student DATA Entry'!D66="","",'Student DATA Entry'!D66) ->  | D70: =IF('Student DATA Entry'!E66="","",'Student DATA Entry'!E66) ->  | E70: =IF('Student DATA Entry'!I66="","",'Student DATA Entry'!I66) ->  | F70: =IF('Student DATA Entry'!F66="","",UPPER('Student DATA Entry'!F66)) ->  | G70: =IF('Student DATA Entry'!G66="","",UPPER('Student DATA Entry'!G66)) ->  | H70: =IF('Student DATA Entry'!H66="","",UPPER('Student DATA Entry'!H66)) ->  | I70: =IF('Student DATA Entry'!K66="","",UPPER('Student DATA Entry'!K66)) ->  | J70: =IF('Student DATA Entry'!J66="","",UPPER('Student DATA Entry'!J66)) -> 
A71: =IF('Student DATA Entry'!A67="","",'Student DATA Entry'!A67) -> 64 | B71: =IF('Student DATA Entry'!B67="","",'Student DATA Entry'!B67) ->  | C71: =IF('Student DATA Entry'!D67="","",'Student DATA Entry'!D67) ->  | D71: =IF('Student DATA Entry'!E67="","",'Student DATA Entry'!E67) ->  | E71: =IF('Student DATA Entry'!I67="","",'Student DATA Entry'!I67) ->  | F71: =IF('Student DATA Entry'!F67="","",UPPER('Student DATA Entry'!F67)) ->  | G71: =IF('Student DATA Entry'!G67="","",UPPER('Student DATA Entry'!G67)) ->  | H71: =IF('Student DATA Entry'!H67="","",UPPER('Student DATA Entry'!H67)) ->  | I71: =IF('Student DATA Entry'!K67="","",UPPER('Student DATA Entry'!K67)) ->  | J71: =IF('Student DATA Entry'!J67="","",UPPER('Student DATA Entry'!J67)) -> 
A72: =IF('Student DATA Entry'!A68="","",'Student DATA Entry'!A68) -> 65 | B72: =IF('Student DATA Entry'!B68="","",'Student DATA Entry'!B68) ->  | C72: =IF('Student DATA Entry'!D68="","",'Student DATA Entry'!D68) ->  | D72: =IF('Student DATA Entry'!E68="","",'Student DATA Entry'!E68) ->  | E72: =IF('Student DATA Entry'!I68="","",'Student DATA Entry'!I68) ->  | F72: =IF('Student DATA Entry'!F68="","",UPPER('Student DATA Entry'!F68)) ->  | G72: =IF('Student DATA Entry'!G68="","",UPPER('Student DATA Entry'!G68)) ->  | H72: =IF('Student DATA Entry'!H68="","",UPPER('Student DATA Entry'!H68)) ->  | I72: =IF('Student DATA Entry'!K68="","",UPPER('Student DATA Entry'!K68)) ->  | J72: =IF('Student DATA Entry'!J68="","",UPPER('Student DATA Entry'!J68)) -> 
A73: =IF('Student DATA Entry'!A69="","",'Student DATA Entry'!A69) -> 66 | B73: =IF('Student DATA Entry'!B69="","",'Student DATA Entry'!B69) ->  | C73: =IF('Student DATA Entry'!D69="","",'Student DATA Entry'!D69) ->  | D73: =IF('Student DATA Entry'!E69="","",'Student DATA Entry'!E69) ->  | E73: =IF('Student DATA Entry'!I69="","",'Student DATA Entry'!I69) ->  | F73: =IF('Student DATA Entry'!F69="","",UPPER('Student DATA Entry'!F69)) ->  | G73: =IF('Student DATA Entry'!G69="","",UPPER('Student DATA Entry'!G69)) ->  | H73: =IF('Student DATA Entry'!H69="","",UPPER('Student DATA Entry'!H69)) ->  | I73: =IF('Student DATA Entry'!K69="","",UPPER('Student DATA Entry'!K69)) ->  | J73: =IF('Student DATA Entry'!J69="","",UPPER('Student DATA Entry'!J69)) -> 
A74: =IF('Student DATA Entry'!A70="","",'Student DATA Entry'!A70) -> 67 | B74: =IF('Student DATA Entry'!B70="","",'Student DATA Entry'!B70) ->  | C74: =IF('Student DATA Entry'!D70="","",'Student DATA Entry'!D70) ->  | D74: =IF('Student DATA Entry'!E70="","",'Student DATA Entry'!E70) ->  | E74: =IF('Student DATA Entry'!I70="","",'Student DATA Entry'!I70) ->  | F74: =IF('Student DATA Entry'!F70="","",UPPER('Student DATA Entry'!F70)) ->  | G74: =IF('Student DATA Entry'!G70="","",UPPER('Student DATA Entry'!G70)) ->  | H74: =IF('Student DATA Entry'!H70="","",UPPER('Student DATA Entry'!H70)) ->  | I74: =IF('Student DATA Entry'!K70="","",UPPER('Student DATA Entry'!K70)) ->  | J74: =IF('Student DATA Entry'!J70="","",UPPER('Student DATA Entry'!J70)) -> 
A75: =IF('Student DATA Entry'!A71="","",'Student DATA Entry'!A71) -> 68 | B75: =IF('Student DATA Entry'!B71="","",'Student DATA Entry'!B71) ->  | C75: =IF('Student DATA Entry'!D71="","",'Student DATA Entry'!D71) ->  | D75: =IF('Student DATA Entry'!E71="","",'Student DATA Entry'!E71) ->  | E75: =IF('Student DATA Entry'!I71="","",'Student DATA Entry'!I71) ->  | F75: =IF('Student DATA Entry'!F71="","",UPPER('Student DATA Entry'!F71)) ->  | G75: =IF('Student DATA Entry'!G71="","",UPPER('Student DATA Entry'!G71)) ->  | H75: =IF('Student DATA Entry'!H71="","",UPPER('Student DATA Entry'!H71)) ->  | I75: =IF('Student DATA Entry'!K71="","",UPPER('Student DATA Entry'!K71)) ->  | J75: =IF('Student DATA Entry'!J71="","",UPPER('Student DATA Entry'!J71)) -> 
A76: =IF('Student DATA Entry'!A72="","",'Student DATA Entry'!A72) -> 69 | B76: =IF('Student DATA Entry'!B72="","",'Student DATA Entry'!B72) ->  | C76: =IF('Student DATA Entry'!D72="","",'Student DATA Entry'!D72) ->  | D76: =IF('Student DATA Entry'!E72="","",'Student DATA Entry'!E72) ->  | E76: =IF('Student DATA Entry'!I72="","",'Student DATA Entry'!I72) ->  | F76: =IF('Student DATA Entry'!F72="","",UPPER('Student DATA Entry'!F72)) ->  | G76: =IF('Student DATA Entry'!G72="","",UPPER('Student DATA Entry'!G72)) ->  | H76: =IF('Student DATA Entry'!H72="","",UPPER('Student DATA Entry'!H72)) ->  | I76: =IF('Student DATA Entry'!K72="","",UPPER('Student DATA Entry'!K72)) ->  | J76: =IF('Student DATA Entry'!J72="","",UPPER('Student DATA Entry'!J72)) -> 
A77: =IF('Student DATA Entry'!A73="","",'Student DATA Entry'!A73) -> 70 | B77: =IF('Student DATA Entry'!B73="","",'Student DATA Entry'!B73) ->  | C77: =IF('Student DATA Entry'!D73="","",'Student DATA Entry'!D73) ->  | D77: =IF('Student DATA Entry'!E73="","",'Student DATA Entry'!E73) ->  | E77: =IF('Student DATA Entry'!I73="","",'Student DATA Entry'!I73) ->  | F77: =IF('Student DATA Entry'!F73="","",UPPER('Student DATA Entry'!F73)) ->  | G77: =IF('Student DATA Entry'!G73="","",UPPER('Student DATA Entry'!G73)) ->  | H77: =IF('Student DATA Entry'!H73="","",UPPER('Student DATA Entry'!H73)) ->  | I77: =IF('Student DATA Entry'!K73="","",UPPER('Student DATA Entry'!K73)) ->  | J77: =IF('Student DATA Entry'!J73="","",UPPER('Student DATA Entry'!J73)) -> 
A78: =IF('Student DATA Entry'!A74="","",'Student DATA Entry'!A74) -> 71 | B78: =IF('Student DATA Entry'!B74="","",'Student DATA Entry'!B74) ->  | C78: =IF('Student DATA Entry'!D74="","",'Student DATA Entry'!D74) ->  | D78: =IF('Student DATA Entry'!E74="","",'Student DATA Entry'!E74) ->  | E78: =IF('Student DATA Entry'!I74="","",'Student DATA Entry'!I74) ->  | F78: =IF('Student DATA Entry'!F74="","",UPPER('Student DATA Entry'!F74)) ->  | G78: =IF('Student DATA Entry'!G74="","",UPPER('Student DATA Entry'!G74)) ->  | H78: =IF('Student DATA Entry'!H74="","",UPPER('Student DATA Entry'!H74)) ->  | I78: =IF('Student DATA Entry'!K74="","",UPPER('Student DATA Entry'!K74)) ->  | J78: =IF('Student DATA Entry'!J74="","",UPPER('Student DATA Entry'!J74)) -> 
A79: =IF('Student DATA Entry'!A75="","",'Student DATA Entry'!A75) -> 72 | B79: =IF('Student DATA Entry'!B75="","",'Student DATA Entry'!B75) ->  | C79: =IF('Student DATA Entry'!D75="","",'Student DATA Entry'!D75) ->  | D79: =IF('Student DATA Entry'!E75="","",'Student DATA Entry'!E75) ->  | E79: =IF('Student DATA Entry'!I75="","",'Student DATA Entry'!I75) ->  | F79: =IF('Student DATA Entry'!F75="","",UPPER('Student DATA Entry'!F75)) ->  | G79: =IF('Student DATA Entry'!G75="","",UPPER('Student DATA Entry'!G75)) ->  | H79: =IF('Student DATA Entry'!H75="","",UPPER('Student DATA Entry'!H75)) ->  | I79: =IF('Student DATA Entry'!K75="","",UPPER('Student DATA Entry'!K75)) ->  | J79: =IF('Student DATA Entry'!J75="","",UPPER('Student DATA Entry'!J75)) -> 
A80: =IF('Student DATA Entry'!A76="","",'Student DATA Entry'!A76) -> 73 | B80: =IF('Student DATA Entry'!B76="","",'Student DATA Entry'!B76) ->  | C80: =IF('Student DATA Entry'!D76="","",'Student DATA Entry'!D76) ->  | D80: =IF('Student DATA Entry'!E76="","",'Student DATA Entry'!E76) ->  | E80: =IF('Student DATA Entry'!I76="","",'Student DATA Entry'!I76) ->  | F80: =IF('Student DATA Entry'!F76="","",UPPER('Student DATA Entry'!F76)) ->  | G80: =IF('Student DATA Entry'!G76="","",UPPER('Student DATA Entry'!G76)) ->  | H80: =IF('Student DATA Entry'!H76="","",UPPER('Student DATA Entry'!H76)) ->  | I80: =IF('Student DATA Entry'!K76="","",UPPER('Student DATA Entry'!K76)) ->  | J80: =IF('Student DATA Entry'!J76="","",UPPER('Student DATA Entry'!J76)) -> 
A81: =IF('Student DATA Entry'!A77="","",'Student DATA Entry'!A77) -> 74 | B81: =IF('Student DATA Entry'!B77="","",'Student DATA Entry'!B77) ->  | C81: =IF('Student DATA Entry'!D77="","",'Student DATA Entry'!D77) ->  | D81: =IF('Student DATA Entry'!E77="","",'Student DATA Entry'!E77) ->  | E81: =IF('Student DATA Entry'!I77="","",'Student DATA Entry'!I77) ->  | F81: =IF('Student DATA Entry'!F77="","",UPPER('Student DATA Entry'!F77)) ->  | G81: =IF('Student DATA Entry'!G77="","",UPPER('Student DATA Entry'!G77)) ->  | H81: =IF('Student DATA Entry'!H77="","",UPPER('Student DATA Entry'!H77)) ->  | I81: =IF('Student DATA Entry'!K77="","",UPPER('Student DATA Entry'!K77)) ->  | J81: =IF('Student DATA Entry'!J77="","",UPPER('Student DATA Entry'!J77)) -> 
A82: =IF('Student DATA Entry'!A78="","",'Student DATA Entry'!A78) -> 75 | B82: =IF('Student DATA Entry'!B78="","",'Student DATA Entry'!B78) ->  | C82: =IF('Student DATA Entry'!D78="","",'Student DATA Entry'!D78) ->  | D82: =IF('Student DATA Entry'!E78="","",'Student DATA Entry'!E78) ->  | E82: =IF('Student DATA Entry'!I78="","",'Student DATA Entry'!I78) ->  | F82: =IF('Student DATA Entry'!F78="","",UPPER('Student DATA Entry'!F78)) ->  | G82: =IF('Student DATA Entry'!G78="","",UPPER('Student DATA Entry'!G78)) ->  | H82: =IF('Student DATA Entry'!H78="","",UPPER('Student DATA Entry'!H78)) ->  | I82: =IF('Student DATA Entry'!K78="","",UPPER('Student DATA Entry'!K78)) ->  | J82: =IF('Student DATA Entry'!J78="","",UPPER('Student DATA Entry'!J78)) -> 
A83: =IF('Student DATA Entry'!A79="","",'Student DATA Entry'!A79) -> 76 | B83: =IF('Student DATA Entry'!B79="","",'Student DATA Entry'!B79) ->  | C83: =IF('Student DATA Entry'!D79="","",'Student DATA Entry'!D79) ->  | D83: =IF('Student DATA Entry'!E79="","",'Student DATA Entry'!E79) ->  | E83: =IF('Student DATA Entry'!I79="","",'Student DATA Entry'!I79) ->  | F83: =IF('Student DATA Entry'!F79="","",UPPER('Student DATA Entry'!F79)) ->  | G83: =IF('Student DATA Entry'!G79="","",UPPER('Student DATA Entry'!G79)) ->  | H83: =IF('Student DATA Entry'!H79="","",UPPER('Student DATA Entry'!H79)) ->  | I83: =IF('Student DATA Entry'!K79="","",UPPER('Student DATA Entry'!K79)) ->  | J83: =IF('Student DATA Entry'!J79="","",UPPER('Student DATA Entry'!J79)) -> 
A84: =IF('Student DATA Entry'!A80="","",'Student DATA Entry'!A80) -> 77 | B84: =IF('Student DATA Entry'!B80="","",'Student DATA Entry'!B80) ->  | C84: =IF('Student DATA Entry'!D80="","",'Student DATA Entry'!D80) ->  | D84: =IF('Student DATA Entry'!E80="","",'Student DATA Entry'!E80) ->  | E84: =IF('Student DATA Entry'!I80="","",'Student DATA Entry'!I80) ->  | F84: =IF('Student DATA Entry'!F80="","",UPPER('Student DATA Entry'!F80)) ->  | G84: =IF('Student DATA Entry'!G80="","",UPPER('Student DATA Entry'!G80)) ->  | H84: =IF('Student DATA Entry'!H80="","",UPPER('Student DATA Entry'!H80)) ->  | I84: =IF('Student DATA Entry'!K80="","",UPPER('Student DATA Entry'!K80)) ->  | J84: =IF('Student DATA Entry'!J80="","",UPPER('Student DATA Entry'!J80)) -> 
A85: =IF('Student DATA Entry'!A81="","",'Student DATA Entry'!A81) -> 78 | B85: =IF('Student DATA Entry'!B81="","",'Student DATA Entry'!B81) ->  | C85: =IF('Student DATA Entry'!D81="","",'Student DATA Entry'!D81) ->  | D85: =IF('Student DATA Entry'!E81="","",'Student DATA Entry'!E81) ->  | E85: =IF('Student DATA Entry'!I81="","",'Student DATA Entry'!I81) ->  | F85: =IF('Student DATA Entry'!F81="","",UPPER('Student DATA Entry'!F81)) ->  | G85: =IF('Student DATA Entry'!G81="","",UPPER('Student DATA Entry'!G81)) ->  | H85: =IF('Student DATA Entry'!H81="","",UPPER('Student DATA Entry'!H81)) ->  | I85: =IF('Student DATA Entry'!K81="","",UPPER('Student DATA Entry'!K81)) ->  | J85: =IF('Student DATA Entry'!J81="","",UPPER('Student DATA Entry'!J81)) -> 
A86: =IF('Student DATA Entry'!A82="","",'Student DATA Entry'!A82) -> 79 | B86: =IF('Student DATA Entry'!B82="","",'Student DATA Entry'!B82) ->  | C86: =IF('Student DATA Entry'!D82="","",'Student DATA Entry'!D82) ->  | D86: =IF('Student DATA Entry'!E82="","",'Student DATA Entry'!E82) ->  | E86: =IF('Student DATA Entry'!I82="","",'Student DATA Entry'!I82) ->  | F86: =IF('Student DATA Entry'!F82="","",UPPER('Student DATA Entry'!F82)) ->  | G86: =IF('Student DATA Entry'!G82="","",UPPER('Student DATA Entry'!G82)) ->  | H86: =IF('Student DATA Entry'!H82="","",UPPER('Student DATA Entry'!H82)) ->  | I86: =IF('Student DATA Entry'!K82="","",UPPER('Student DATA Entry'!K82)) ->  | J86: =IF('Student DATA Entry'!J82="","",UPPER('Student DATA Entry'!J82)) -> 
A87: =IF('Student DATA Entry'!A83="","",'Student DATA Entry'!A83) -> 80 | B87: =IF('Student DATA Entry'!B83="","",'Student DATA Entry'!B83) ->  | C87: =IF('Student DATA Entry'!D83="","",'Student DATA Entry'!D83) ->  | D87: =IF('Student DATA Entry'!E83="","",'Student DATA Entry'!E83) ->  | E87: =IF('Student DATA Entry'!I83="","",'Student DATA Entry'!I83) ->  | F87: =IF('Student DATA Entry'!F83="","",UPPER('Student DATA Entry'!F83)) ->  | G87: =IF('Student DATA Entry'!G83="","",UPPER('Student DATA Entry'!G83)) ->  | H87: =IF('Student DATA Entry'!H83="","",UPPER('Student DATA Entry'!H83)) ->  | I87: =IF('Student DATA Entry'!K83="","",UPPER('Student DATA Entry'!K83)) ->  | J87: =IF('Student DATA Entry'!J83="","",UPPER('Student DATA Entry'!J83)) -> 
A88: =IF('Student DATA Entry'!A84="","",'Student DATA Entry'!A84) -> 81 | B88: =IF('Student DATA Entry'!B84="","",'Student DATA Entry'!B84) ->  | C88: =IF('Student DATA Entry'!D84="","",'Student DATA Entry'!D84) ->  | D88: =IF('Student DATA Entry'!E84="","",'Student DATA Entry'!E84) ->  | E88: =IF('Student DATA Entry'!I84="","",'Student DATA Entry'!I84) ->  | F88: =IF('Student DATA Entry'!F84="","",UPPER('Student DATA Entry'!F84)) ->  | G88: =IF('Student DATA Entry'!G84="","",UPPER('Student DATA Entry'!G84)) ->  | H88: =IF('Student DATA Entry'!H84="","",UPPER('Student DATA Entry'!H84)) ->  | I88: =IF('Student DATA Entry'!K84="","",UPPER('Student DATA Entry'!K84)) ->  | J88: =IF('Student DATA Entry'!J84="","",UPPER('Student DATA Entry'!J84)) -> 
A89: =IF('Student DATA Entry'!A85="","",'Student DATA Entry'!A85) -> 82 | B89: =IF('Student DATA Entry'!B85="","",'Student DATA Entry'!B85) ->  | C89: =IF('Student DATA Entry'!D85="","",'Student DATA Entry'!D85) ->  | D89: =IF('Student DATA Entry'!E85="","",'Student DATA Entry'!E85) ->  | E89: =IF('Student DATA Entry'!I85="","",'Student DATA Entry'!I85) ->  | F89: =IF('Student DATA Entry'!F85="","",UPPER('Student DATA Entry'!F85)) ->  | G89: =IF('Student DATA Entry'!G85="","",UPPER('Student DATA Entry'!G85)) ->  | H89: =IF('Student DATA Entry'!H85="","",UPPER('Student DATA Entry'!H85)) ->  | I89: =IF('Student DATA Entry'!K85="","",UPPER('Student DATA Entry'!K85)) ->  | J89: =IF('Student DATA Entry'!J85="","",UPPER('Student DATA Entry'!J85)) -> 
A90: =IF('Student DATA Entry'!A86="","",'Student DATA Entry'!A86) -> 83 | B90: =IF('Student DATA Entry'!B86="","",'Student DATA Entry'!B86) ->  | C90: =IF('Student DATA Entry'!D86="","",'Student DATA Entry'!D86) ->  | D90: =IF('Student DATA Entry'!E86="","",'Student DATA Entry'!E86) ->  | E90: =IF('Student DATA Entry'!I86="","",'Student DATA Entry'!I86) ->  | F90: =IF('Student DATA Entry'!F86="","",UPPER('Student DATA Entry'!F86)) ->  | G90: =IF('Student DATA Entry'!G86="","",UPPER('Student DATA Entry'!G86)) ->  | H90: =IF('Student DATA Entry'!H86="","",UPPER('Student DATA Entry'!H86)) ->  | I90: =IF('Student DATA Entry'!K86="","",UPPER('Student DATA Entry'!K86)) ->  | J90: =IF('Student DATA Entry'!J86="","",UPPER('Student DATA Entry'!J86)) -> 
A91: =IF('Student DATA Entry'!A87="","",'Student DATA Entry'!A87) -> 84 | B91: =IF('Student DATA Entry'!B87="","",'Student DATA Entry'!B87) ->  | C91: =IF('Student DATA Entry'!D87="","",'Student DATA Entry'!D87) ->  | D91: =IF('Student DATA Entry'!E87="","",'Student DATA Entry'!E87) ->  | E91: =IF('Student DATA Entry'!I87="","",'Student DATA Entry'!I87) ->  | F91: =IF('Student DATA Entry'!F87="","",UPPER('Student DATA Entry'!F87)) ->  | G91: =IF('Student DATA Entry'!G87="","",UPPER('Student DATA Entry'!G87)) ->  | H91: =IF('Student DATA Entry'!H87="","",UPPER('Student DATA Entry'!H87)) ->  | I91: =IF('Student DATA Entry'!K87="","",UPPER('Student DATA Entry'!K87)) ->  | J91: =IF('Student DATA Entry'!J87="","",UPPER('Student DATA Entry'!J87)) -> 
A92: =IF('Student DATA Entry'!A88="","",'Student DATA Entry'!A88) -> 85 | B92: =IF('Student DATA Entry'!B88="","",'Student DATA Entry'!B88) ->  | C92: =IF('Student DATA Entry'!D88="","",'Student DATA Entry'!D88) ->  | D92: =IF('Student DATA Entry'!E88="","",'Student DATA Entry'!E88) ->  | E92: =IF('Student DATA Entry'!I88="","",'Student DATA Entry'!I88) ->  | F92: =IF('Student DATA Entry'!F88="","",UPPER('Student DATA Entry'!F88)) ->  | G92: =IF('Student DATA Entry'!G88="","",UPPER('Student DATA Entry'!G88)) ->  | H92: =IF('Student DATA Entry'!H88="","",UPPER('Student DATA Entry'!H88)) ->  | I92: =IF('Student DATA Entry'!K88="","",UPPER('Student DATA Entry'!K88)) ->  | J92: =IF('Student DATA Entry'!J88="","",UPPER('Student DATA Entry'!J88)) -> 
A93: =IF('Student DATA Entry'!A89="","",'Student DATA Entry'!A89) -> 86 | B93: =IF('Student DATA Entry'!B89="","",'Student DATA Entry'!B89) ->  | C93: =IF('Student DATA Entry'!D89="","",'Student DATA Entry'!D89) ->  | D93: =IF('Student DATA Entry'!E89="","",'Student DATA Entry'!E89) ->  | E93: =IF('Student DATA Entry'!I89="","",'Student DATA Entry'!I89) ->  | F93: =IF('Student DATA Entry'!F89="","",UPPER('Student DATA Entry'!F89)) ->  | G93: =IF('Student DATA Entry'!G89="","",UPPER('Student DATA Entry'!G89)) ->  | H93: =IF('Student DATA Entry'!H89="","",UPPER('Student DATA Entry'!H89)) ->  | I93: =IF('Student DATA Entry'!K89="","",UPPER('Student DATA Entry'!K89)) ->  | J93: =IF('Student DATA Entry'!J89="","",UPPER('Student DATA Entry'!J89)) -> 
A94: =IF('Student DATA Entry'!A90="","",'Student DATA Entry'!A90) -> 87 | B94: =IF('Student DATA Entry'!B90="","",'Student DATA Entry'!B90) ->  | C94: =IF('Student DATA Entry'!D90="","",'Student DATA Entry'!D90) ->  | D94: =IF('Student DATA Entry'!E90="","",'Student DATA Entry'!E90) ->  | E94: =IF('Student DATA Entry'!I90="","",'Student DATA Entry'!I90) ->  | F94: =IF('Student DATA Entry'!F90="","",UPPER('Student DATA Entry'!F90)) ->  | G94: =IF('Student DATA Entry'!G90="","",UPPER('Student DATA Entry'!G90)) ->  | H94: =IF('Student DATA Entry'!H90="","",UPPER('Student DATA Entry'!H90)) ->  | I94: =IF('Student DATA Entry'!K90="","",UPPER('Student DATA Entry'!K90)) ->  | J94: =IF('Student DATA Entry'!J90="","",UPPER('Student DATA Entry'!J90)) -> 
A95: =IF('Student DATA Entry'!A91="","",'Student DATA Entry'!A91) -> 88 | B95: =IF('Student DATA Entry'!B91="","",'Student DATA Entry'!B91) ->  | C95: =IF('Student DATA Entry'!D91="","",'Student DATA Entry'!D91) ->  | D95: =IF('Student DATA Entry'!E91="","",'Student DATA Entry'!E91) ->  | E95: =IF('Student DATA Entry'!I91="","",'Student DATA Entry'!I91) ->  | F95: =IF('Student DATA Entry'!F91="","",UPPER('Student DATA Entry'!F91)) ->  | G95: =IF('Student DATA Entry'!G91="","",UPPER('Student DATA Entry'!G91)) ->  | H95: =IF('Student DATA Entry'!H91="","",UPPER('Student DATA Entry'!H91)) ->  | I95: =IF('Student DATA Entry'!K91="","",UPPER('Student DATA Entry'!K91)) ->  | J95: =IF('Student DATA Entry'!J91="","",UPPER('Student DATA Entry'!J91)) -> 
A96: =IF('Student DATA Entry'!A92="","",'Student DATA Entry'!A92) -> 89 | B96: =IF('Student DATA Entry'!B92="","",'Student DATA Entry'!B92) ->  | C96: =IF('Student DATA Entry'!D92="","",'Student DATA Entry'!D92) ->  | D96: =IF('Student DATA Entry'!E92="","",'Student DATA Entry'!E92) ->  | E96: =IF('Student DATA Entry'!I92="","",'Student DATA Entry'!I92) ->  | F96: =IF('Student DATA Entry'!F92="","",UPPER('Student DATA Entry'!F92)) ->  | G96: =IF('Student DATA Entry'!G92="","",UPPER('Student DATA Entry'!G92)) ->  | H96: =IF('Student DATA Entry'!H92="","",UPPER('Student DATA Entry'!H92)) ->  | I96: =IF('Student DATA Entry'!K92="","",UPPER('Student DATA Entry'!K92)) ->  | J96: =IF('Student DATA Entry'!J92="","",UPPER('Student DATA Entry'!J92)) -> 
A97: =IF('Student DATA Entry'!A93="","",'Student DATA Entry'!A93) -> 90 | B97: =IF('Student DATA Entry'!B93="","",'Student DATA Entry'!B93) ->  | C97: =IF('Student DATA Entry'!D93="","",'Student DATA Entry'!D93) ->  | D97: =IF('Student DATA Entry'!E93="","",'Student DATA Entry'!E93) ->  | E97: =IF('Student DATA Entry'!I93="","",'Student DATA Entry'!I93) ->  | F97: =IF('Student DATA Entry'!F93="","",UPPER('Student DATA Entry'!F93)) ->  | G97: =IF('Student DATA Entry'!G93="","",UPPER('Student DATA Entry'!G93)) ->  | H97: =IF('Student DATA Entry'!H93="","",UPPER('Student DATA Entry'!H93)) ->  | I97: =IF('Student DATA Entry'!K93="","",UPPER('Student DATA Entry'!K93)) ->  | J97: =IF('Student DATA Entry'!J93="","",UPPER('Student DATA Entry'!J93)) -> 
A98: =IF('Student DATA Entry'!A94="","",'Student DATA Entry'!A94) -> 91 | B98: =IF('Student DATA Entry'!B94="","",'Student DATA Entry'!B94) ->  | C98: =IF('Student DATA Entry'!D94="","",'Student DATA Entry'!D94) ->  | D98: =IF('Student DATA Entry'!E94="","",'Student DATA Entry'!E94) ->  | E98: =IF('Student DATA Entry'!I94="","",'Student DATA Entry'!I94) ->  | F98: =IF('Student DATA Entry'!F94="","",UPPER('Student DATA Entry'!F94)) ->  | G98: =IF('Student DATA Entry'!G94="","",UPPER('Student DATA Entry'!G94)) ->  | H98: =IF('Student DATA Entry'!H94="","",UPPER('Student DATA Entry'!H94)) ->  | I98: =IF('Student DATA Entry'!K94="","",UPPER('Student DATA Entry'!K94)) ->  | J98: =IF('Student DATA Entry'!J94="","",UPPER('Student DATA Entry'!J94)) -> 
A99: =IF('Student DATA Entry'!A95="","",'Student DATA Entry'!A95) -> 92 | B99: =IF('Student DATA Entry'!B95="","",'Student DATA Entry'!B95) ->  | C99: =IF('Student DATA Entry'!D95="","",'Student DATA Entry'!D95) ->  | D99: =IF('Student DATA Entry'!E95="","",'Student DATA Entry'!E95) ->  | E99: =IF('Student DATA Entry'!I95="","",'Student DATA Entry'!I95) ->  | F99: =IF('Student DATA Entry'!F95="","",UPPER('Student DATA Entry'!F95)) ->  | G99: =IF('Student DATA Entry'!G95="","",UPPER('Student DATA Entry'!G95)) ->  | H99: =IF('Student DATA Entry'!H95="","",UPPER('Student DATA Entry'!H95)) ->  | I99: =IF('Student DATA Entry'!K95="","",UPPER('Student DATA Entry'!K95)) ->  | J99: =IF('Student DATA Entry'!J95="","",UPPER('Student DATA Entry'!J95)) -> 
A100: =IF('Student DATA Entry'!A96="","",'Student DATA Entry'!A96) -> 93 | B100: =IF('Student DATA Entry'!B96="","",'Student DATA Entry'!B96) ->  | C100: =IF('Student DATA Entry'!D96="","",'Student DATA Entry'!D96) ->  | D100: =IF('Student DATA Entry'!E96="","",'Student DATA Entry'!E96) ->  | E100: =IF('Student DATA Entry'!I96="","",'Student DATA Entry'!I96) ->  | F100: =IF('Student DATA Entry'!F96="","",UPPER('Student DATA Entry'!F96)) ->  | G100: =IF('Student DATA Entry'!G96="","",UPPER('Student DATA Entry'!G96)) ->  | H100: =IF('Student DATA Entry'!H96="","",UPPER('Student DATA Entry'!H96)) ->  | I100: =IF('Student DATA Entry'!K96="","",UPPER('Student DATA Entry'!K96)) ->  | J100: =IF('Student DATA Entry'!J96="","",UPPER('Student DATA Entry'!J96)) -> 
A101: =IF('Student DATA Entry'!A97="","",'Student DATA Entry'!A97) -> 94 | B101: =IF('Student DATA Entry'!B97="","",'Student DATA Entry'!B97) ->  | C101: =IF('Student DATA Entry'!D97="","",'Student DATA Entry'!D97) ->  | D101: =IF('Student DATA Entry'!E97="","",'Student DATA Entry'!E97) ->  | E101: =IF('Student DATA Entry'!I97="","",'Student DATA Entry'!I97) ->  | F101: =IF('Student DATA Entry'!F97="","",UPPER('Student DATA Entry'!F97)) ->  | G101: =IF('Student DATA Entry'!G97="","",UPPER('Student DATA Entry'!G97)) ->  | H101: =IF('Student DATA Entry'!H97="","",UPPER('Student DATA Entry'!H97)) ->  | I101: =IF('Student DATA Entry'!K97="","",UPPER('Student DATA Entry'!K97)) ->  | J101: =IF('Student DATA Entry'!J97="","",UPPER('Student DATA Entry'!J97)) -> 
A102: =IF('Student DATA Entry'!A98="","",'Student DATA Entry'!A98) -> 95 | B102: =IF('Student DATA Entry'!B98="","",'Student DATA Entry'!B98) ->  | C102: =IF('Student DATA Entry'!D98="","",'Student DATA Entry'!D98) ->  | D102: =IF('Student DATA Entry'!E98="","",'Student DATA Entry'!E98) ->  | E102: =IF('Student DATA Entry'!I98="","",'Student DATA Entry'!I98) ->  | F102: =IF('Student DATA Entry'!F98="","",UPPER('Student DATA Entry'!F98)) ->  | G102: =IF('Student DATA Entry'!G98="","",UPPER('Student DATA Entry'!G98)) ->  | H102: =IF('Student DATA Entry'!H98="","",UPPER('Student DATA Entry'!H98)) ->  | I102: =IF('Student DATA Entry'!K98="","",UPPER('Student DATA Entry'!K98)) ->  | J102: =IF('Student DATA Entry'!J98="","",UPPER('Student DATA Entry'!J98)) -> 
A103: =IF('Student DATA Entry'!A99="","",'Student DATA Entry'!A99) -> 96 | B103: =IF('Student DATA Entry'!B99="","",'Student DATA Entry'!B99) ->  | C103: =IF('Student DATA Entry'!D99="","",'Student DATA Entry'!D99) ->  | D103: =IF('Student DATA Entry'!E99="","",'Student DATA Entry'!E99) ->  | E103: =IF('Student DATA Entry'!I99="","",'Student DATA Entry'!I99) ->  | F103: =IF('Student DATA Entry'!F99="","",UPPER('Student DATA Entry'!F99)) ->  | G103: =IF('Student DATA Entry'!G99="","",UPPER('Student DATA Entry'!G99)) ->  | H103: =IF('Student DATA Entry'!H99="","",UPPER('Student DATA Entry'!H99)) ->  | I103: =IF('Student DATA Entry'!K99="","",UPPER('Student DATA Entry'!K99)) ->  | J103: =IF('Student DATA Entry'!J99="","",UPPER('Student DATA Entry'!J99)) -> 
A104: =IF('Student DATA Entry'!A100="","",'Student DATA Entry'!A100) -> 97 | B104: =IF('Student DATA Entry'!B100="","",'Student DATA Entry'!B100) ->  | C104: =IF('Student DATA Entry'!D100="","",'Student DATA Entry'!D100) ->  | D104: =IF('Student DATA Entry'!E100="","",'Student DATA Entry'!E100) ->  | E104: =IF('Student DATA Entry'!I100="","",'Student DATA Entry'!I100) ->  | F104: =IF('Student DATA Entry'!F100="","",UPPER('Student DATA Entry'!F100)) ->  | G104: =IF('Student DATA Entry'!G100="","",UPPER('Student DATA Entry'!G100)) ->  | H104: =IF('Student DATA Entry'!H100="","",UPPER('Student DATA Entry'!H100)) ->  | I104: =IF('Student DATA Entry'!K100="","",UPPER('Student DATA Entry'!K100)) ->  | J104: =IF('Student DATA Entry'!J100="","",UPPER('Student DATA Entry'!J100)) -> 
A105: =IF('Student DATA Entry'!A101="","",'Student DATA Entry'!A101) -> 98 | B105: =IF('Student DATA Entry'!B101="","",'Student DATA Entry'!B101) ->  | C105: =IF('Student DATA Entry'!D101="","",'Student DATA Entry'!D101) ->  | D105: =IF('Student DATA Entry'!E101="","",'Student DATA Entry'!E101) ->  | E105: =IF('Student DATA Entry'!I101="","",'Student DATA Entry'!I101) ->  | F105: =IF('Student DATA Entry'!F101="","",UPPER('Student DATA Entry'!F101)) ->  | G105: =IF('Student DATA Entry'!G101="","",UPPER('Student DATA Entry'!G101)) ->  | H105: =IF('Student DATA Entry'!H101="","",UPPER('Student DATA Entry'!H101)) ->  | I105: =IF('Student DATA Entry'!K101="","",UPPER('Student DATA Entry'!K101)) ->  | J105: =IF('Student DATA Entry'!J101="","",UPPER('Student DATA Entry'!J101)) -> 
A106: =IF('Student DATA Entry'!A102="","",'Student DATA Entry'!A102) -> 99 | B106: =IF('Student DATA Entry'!B102="","",'Student DATA Entry'!B102) ->  | C106: =IF('Student DATA Entry'!D102="","",'Student DATA Entry'!D102) ->  | D106: =IF('Student DATA Entry'!E102="","",'Student DATA Entry'!E102) ->  | E106: =IF('Student DATA Entry'!I102="","",'Student DATA Entry'!I102) ->  | F106: =IF('Student DATA Entry'!F102="","",UPPER('Student DATA Entry'!F102)) ->  | G106: =IF('Student DATA Entry'!G102="","",UPPER('Student DATA Entry'!G102)) ->  | H106: =IF('Student DATA Entry'!H102="","",UPPER('Student DATA Entry'!H102)) ->  | I106: =IF('Student DATA Entry'!K102="","",UPPER('Student DATA Entry'!K102)) ->  | J106: =IF('Student DATA Entry'!J102="","",UPPER('Student DATA Entry'!J102)) -> 
A107: =IF('Student DATA Entry'!A103="","",'Student DATA Entry'!A103) -> 100 | B107: =IF('Student DATA Entry'!B103="","",'Student DATA Entry'!B103) ->  | C107: =IF('Student DATA Entry'!D103="","",'Student DATA Entry'!D103) ->  | D107: =IF('Student DATA Entry'!E103="","",'Student DATA Entry'!E103) ->  | E107: =IF('Student DATA Entry'!I103="","",'Student DATA Entry'!I103) ->  | F107: =IF('Student DATA Entry'!F103="","",UPPER('Student DATA Entry'!F103)) ->  | G107: =IF('Student DATA Entry'!G103="","",UPPER('Student DATA Entry'!G103)) ->  | H107: =IF('Student DATA Entry'!H103="","",UPPER('Student DATA Entry'!H103)) ->  | I107: =IF('Student DATA Entry'!K103="","",UPPER('Student DATA Entry'!K103)) ->  | J107: =IF('Student DATA Entry'!J103="","",UPPER('Student DATA Entry'!J103)) -> 
A108: =IF('Student DATA Entry'!A104="","",'Student DATA Entry'!A104) -> 101 | B108: =IF('Student DATA Entry'!B104="","",'Student DATA Entry'!B104) ->  | C108: =IF('Student DATA Entry'!D104="","",'Student DATA Entry'!D104) ->  | D108: =IF('Student DATA Entry'!E104="","",'Student DATA Entry'!E104) ->  | E108: =IF('Student DATA Entry'!I104="","",'Student DATA Entry'!I104) ->  | F108: =IF('Student DATA Entry'!F104="","",UPPER('Student DATA Entry'!F104)) ->  | G108: =IF('Student DATA Entry'!G104="","",UPPER('Student DATA Entry'!G104)) ->  | H108: =IF('Student DATA Entry'!H104="","",UPPER('Student DATA Entry'!H104)) ->  | I108: =IF('Student DATA Entry'!K104="","",UPPER('Student DATA Entry'!K104)) ->  | J108: =IF('Student DATA Entry'!J104="","",UPPER('Student DATA Entry'!J104)) -> 
A109: =IF('Student DATA Entry'!A105="","",'Student DATA Entry'!A105) -> 102 | B109: =IF('Student DATA Entry'!B105="","",'Student DATA Entry'!B105) ->  | C109: =IF('Student DATA Entry'!D105="","",'Student DATA Entry'!D105) ->  | D109: =IF('Student DATA Entry'!E105="","",'Student DATA Entry'!E105) ->  | E109: =IF('Student DATA Entry'!I105="","",'Student DATA Entry'!I105) ->  | F109: =IF('Student DATA Entry'!F105="","",UPPER('Student DATA Entry'!F105)) ->  | G109: =IF('Student DATA Entry'!G105="","",UPPER('Student DATA Entry'!G105)) ->  | H109: =IF('Student DATA Entry'!H105="","",UPPER('Student DATA Entry'!H105)) ->  | I109: =IF('Student DATA Entry'!K105="","",UPPER('Student DATA Entry'!K105)) ->  | J109: =IF('Student DATA Entry'!J105="","",UPPER('Student DATA Entry'!J105)) -> 
A110: =IF('Student DATA Entry'!A106="","",'Student DATA Entry'!A106) -> 103 | B110: =IF('Student DATA Entry'!B106="","",'Student DATA Entry'!B106) ->  | C110: =IF('Student DATA Entry'!D106="","",'Student DATA Entry'!D106) ->  | D110: =IF('Student DATA Entry'!E106="","",'Student DATA Entry'!E106) ->  | E110: =IF('Student DATA Entry'!I106="","",'Student DATA Entry'!I106) ->  | F110: =IF('Student DATA Entry'!F106="","",UPPER('Student DATA Entry'!F106)) ->  | G110: =IF('Student DATA Entry'!G106="","",UPPER('Student DATA Entry'!G106)) ->  | H110: =IF('Student DATA Entry'!H106="","",UPPER('Student DATA Entry'!H106)) ->  | I110: =IF('Student DATA Entry'!K106="","",UPPER('Student DATA Entry'!K106)) ->  | J110: =IF('Student DATA Entry'!J106="","",UPPER('Student DATA Entry'!J106)) -> 
A111: =IF('Student DATA Entry'!A107="","",'Student DATA Entry'!A107) -> 104 | B111: =IF('Student DATA Entry'!B107="","",'Student DATA Entry'!B107) ->  | C111: =IF('Student DATA Entry'!D107="","",'Student DATA Entry'!D107) ->  | D111: =IF('Student DATA Entry'!E107="","",'Student DATA Entry'!E107) ->  | E111: =IF('Student DATA Entry'!I107="","",'Student DATA Entry'!I107) ->  | F111: =IF('Student DATA Entry'!F107="","",UPPER('Student DATA Entry'!F107)) ->  | G111: =IF('Student DATA Entry'!G107="","",UPPER('Student DATA Entry'!G107)) ->  | H111: =IF('Student DATA Entry'!H107="","",UPPER('Student DATA Entry'!H107)) ->  | I111: =IF('Student DATA Entry'!K107="","",UPPER('Student DATA Entry'!K107)) ->  | J111: =IF('Student DATA Entry'!J107="","",UPPER('Student DATA Entry'!J107)) -> 
A112: =IF('Student DATA Entry'!A108="","",'Student DATA Entry'!A108) -> 105 | B112: =IF('Student DATA Entry'!B108="","",'Student DATA Entry'!B108) ->  | C112: =IF('Student DATA Entry'!D108="","",'Student DATA Entry'!D108) ->  | D112: =IF('Student DATA Entry'!E108="","",'Student DATA Entry'!E108) ->  | E112: =IF('Student DATA Entry'!I108="","",'Student DATA Entry'!I108) ->  | F112: =IF('Student DATA Entry'!F108="","",UPPER('Student DATA Entry'!F108)) ->  | G112: =IF('Student DATA Entry'!G108="","",UPPER('Student DATA Entry'!G108)) ->  | H112: =IF('Student DATA Entry'!H108="","",UPPER('Student DATA Entry'!H108)) ->  | I112: =IF('Student DATA Entry'!K108="","",UPPER('Student DATA Entry'!K108)) ->  | J112: =IF('Student DATA Entry'!J108="","",UPPER('Student DATA Entry'!J108)) -> 
A113: =IF('Student DATA Entry'!A109="","",'Student DATA Entry'!A109) -> 106 | B113: =IF('Student DATA Entry'!B109="","",'Student DATA Entry'!B109) ->  | C113: =IF('Student DATA Entry'!D109="","",'Student DATA Entry'!D109) ->  | D113: =IF('Student DATA Entry'!E109="","",'Student DATA Entry'!E109) ->  | E113: =IF('Student DATA Entry'!I109="","",'Student DATA Entry'!I109) ->  | F113: =IF('Student DATA Entry'!F109="","",UPPER('Student DATA Entry'!F109)) ->  | G113: =IF('Student DATA Entry'!G109="","",UPPER('Student DATA Entry'!G109)) ->  | H113: =IF('Student DATA Entry'!H109="","",UPPER('Student DATA Entry'!H109)) ->  | I113: =IF('Student DATA Entry'!K109="","",UPPER('Student DATA Entry'!K109)) ->  | J113: =IF('Student DATA Entry'!J109="","",UPPER('Student DATA Entry'!J109)) -> 
A114: =IF('Student DATA Entry'!A110="","",'Student DATA Entry'!A110) -> 107 | B114: =IF('Student DATA Entry'!B110="","",'Student DATA Entry'!B110) ->  | C114: =IF('Student DATA Entry'!D110="","",'Student DATA Entry'!D110) ->  | D114: =IF('Student DATA Entry'!E110="","",'Student DATA Entry'!E110) ->  | E114: =IF('Student DATA Entry'!I110="","",'Student DATA Entry'!I110) ->  | F114: =IF('Student DATA Entry'!F110="","",UPPER('Student DATA Entry'!F110)) ->  | G114: =IF('Student DATA Entry'!G110="","",UPPER('Student DATA Entry'!G110)) ->  | H114: =IF('Student DATA Entry'!H110="","",UPPER('Student DATA Entry'!H110)) ->  | I114: =IF('Student DATA Entry'!K110="","",UPPER('Student DATA Entry'!K110)) ->  | J114: =IF('Student DATA Entry'!J110="","",UPPER('Student DATA Entry'!J110)) -> 
A115: =IF('Student DATA Entry'!A111="","",'Student DATA Entry'!A111) -> 108 | B115: =IF('Student DATA Entry'!B111="","",'Student DATA Entry'!B111) ->  | C115: =IF('Student DATA Entry'!D111="","",'Student DATA Entry'!D111) ->  | D115: =IF('Student DATA Entry'!E111="","",'Student DATA Entry'!E111) ->  | E115: =IF('Student DATA Entry'!I111="","",'Student DATA Entry'!I111) ->  | F115: =IF('Student DATA Entry'!F111="","",UPPER('Student DATA Entry'!F111)) ->  | G115: =IF('Student DATA Entry'!G111="","",UPPER('Student DATA Entry'!G111)) ->  | H115: =IF('Student DATA Entry'!H111="","",UPPER('Student DATA Entry'!H111)) ->  | I115: =IF('Student DATA Entry'!K111="","",UPPER('Student DATA Entry'!K111)) ->  | J115: =IF('Student DATA Entry'!J111="","",UPPER('Student DATA Entry'!J111)) -> 
A116: =IF('Student DATA Entry'!A112="","",'Student DATA Entry'!A112) -> 109 | B116: =IF('Student DATA Entry'!B112="","",'Student DATA Entry'!B112) ->  | C116: =IF('Student DATA Entry'!D112="","",'Student DATA Entry'!D112) ->  | D116: =IF('Student DATA Entry'!E112="","",'Student DATA Entry'!E112) ->  | E116: =IF('Student DATA Entry'!I112="","",'Student DATA Entry'!I112) ->  | F116: =IF('Student DATA Entry'!F112="","",UPPER('Student DATA Entry'!F112)) ->  | G116: =IF('Student DATA Entry'!G112="","",UPPER('Student DATA Entry'!G112)) ->  | H116: =IF('Student DATA Entry'!H112="","",UPPER('Student DATA Entry'!H112)) ->  | I116: =IF('Student DATA Entry'!K112="","",UPPER('Student DATA Entry'!K112)) ->  | J116: =IF('Student DATA Entry'!J112="","",UPPER('Student DATA Entry'!J112)) -> 
A117: =IF('Student DATA Entry'!A113="","",'Student DATA Entry'!A113) -> 110 | B117: =IF('Student DATA Entry'!B113="","",'Student DATA Entry'!B113) ->  | C117: =IF('Student DATA Entry'!D113="","",'Student DATA Entry'!D113) ->  | D117: =IF('Student DATA Entry'!E113="","",'Student DATA Entry'!E113) ->  | E117: =IF('Student DATA Entry'!I113="","",'Student DATA Entry'!I113) ->  | F117: =IF('Student DATA Entry'!F113="","",UPPER('Student DATA Entry'!F113)) ->  | G117: =IF('Student DATA Entry'!G113="","",UPPER('Student DATA Entry'!G113)) ->  | H117: =IF('Student DATA Entry'!H113="","",UPPER('Student DATA Entry'!H113)) ->  | I117: =IF('Student DATA Entry'!K113="","",UPPER('Student DATA Entry'!K113)) ->  | J117: =IF('Student DATA Entry'!J113="","",UPPER('Student DATA Entry'!J113)) -> 
A118: =IF('Student DATA Entry'!A114="","",'Student DATA Entry'!A114) -> 111 | B118: =IF('Student DATA Entry'!B114="","",'Student DATA Entry'!B114) ->  | C118: =IF('Student DATA Entry'!D114="","",'Student DATA Entry'!D114) ->  | D118: =IF('Student DATA Entry'!E114="","",'Student DATA Entry'!E114) ->  | E118: =IF('Student DATA Entry'!I114="","",'Student DATA Entry'!I114) ->  | F118: =IF('Student DATA Entry'!F114="","",UPPER('Student DATA Entry'!F114)) ->  | G118: =IF('Student DATA Entry'!G114="","",UPPER('Student DATA Entry'!G114)) ->  | H118: =IF('Student DATA Entry'!H114="","",UPPER('Student DATA Entry'!H114)) ->  | I118: =IF('Student DATA Entry'!K114="","",UPPER('Student DATA Entry'!K114)) ->  | J118: =IF('Student DATA Entry'!J114="","",UPPER('Student DATA Entry'!J114)) -> 
A119: =IF('Student DATA Entry'!A115="","",'Student DATA Entry'!A115) -> 112 | B119: =IF('Student DATA Entry'!B115="","",'Student DATA Entry'!B115) ->  | C119: =IF('Student DATA Entry'!D115="","",'Student DATA Entry'!D115) ->  | D119: =IF('Student DATA Entry'!E115="","",'Student DATA Entry'!E115) ->  | E119: =IF('Student DATA Entry'!I115="","",'Student DATA Entry'!I115) ->  | F119: =IF('Student DATA Entry'!F115="","",UPPER('Student DATA Entry'!F115)) ->  | G119: =IF('Student DATA Entry'!G115="","",UPPER('Student DATA Entry'!G115)) ->  | H119: =IF('Student DATA Entry'!H115="","",UPPER('Student DATA Entry'!H115)) ->  | I119: =IF('Student DATA Entry'!K115="","",UPPER('Student DATA Entry'!K115)) ->  | J119: =IF('Student DATA Entry'!J115="","",UPPER('Student DATA Entry'!J115)) -> 
A120: =IF('Student DATA Entry'!A116="","",'Student DATA Entry'!A116) -> 113 | B120: =IF('Student DATA Entry'!B116="","",'Student DATA Entry'!B116) ->  | C120: =IF('Student DATA Entry'!D116="","",'Student DATA Entry'!D116) ->  | D120: =IF('Student DATA Entry'!E116="","",'Student DATA Entry'!E116) ->  | E120: =IF('Student DATA Entry'!I116="","",'Student DATA Entry'!I116) ->  | F120: =IF('Student DATA Entry'!F116="","",UPPER('Student DATA Entry'!F116)) ->  | G120: =IF('Student DATA Entry'!G116="","",UPPER('Student DATA Entry'!G116)) ->  | H120: =IF('Student DATA Entry'!H116="","",UPPER('Student DATA Entry'!H116)) ->  | I120: =IF('Student DATA Entry'!K116="","",UPPER('Student DATA Entry'!K116)) ->  | J120: =IF('Student DATA Entry'!J116="","",UPPER('Student DATA Entry'!J116)) -> 
A121: =IF('Student DATA Entry'!A117="","",'Student DATA Entry'!A117) -> 114 | B121: =IF('Student DATA Entry'!B117="","",'Student DATA Entry'!B117) ->  | C121: =IF('Student DATA Entry'!D117="","",'Student DATA Entry'!D117) ->  | D121: =IF('Student DATA Entry'!E117="","",'Student DATA Entry'!E117) ->  | E121: =IF('Student DATA Entry'!I117="","",'Student DATA Entry'!I117) ->  | F121: =IF('Student DATA Entry'!F117="","",UPPER('Student DATA Entry'!F117)) ->  | G121: =IF('Student DATA Entry'!G117="","",UPPER('Student DATA Entry'!G117)) ->  | H121: =IF('Student DATA Entry'!H117="","",UPPER('Student DATA Entry'!H117)) ->  | I121: =IF('Student DATA Entry'!K117="","",UPPER('Student DATA Entry'!K117)) ->  | J121: =IF('Student DATA Entry'!J117="","",UPPER('Student DATA Entry'!J117)) -> 
A122: =IF('Student DATA Entry'!A118="","",'Student DATA Entry'!A118) -> 115 | B122: =IF('Student DATA Entry'!B118="","",'Student DATA Entry'!B118) ->  | C122: =IF('Student DATA Entry'!D118="","",'Student DATA Entry'!D118) ->  | D122: =IF('Student DATA Entry'!E118="","",'Student DATA Entry'!E118) ->  | E122: =IF('Student DATA Entry'!I118="","",'Student DATA Entry'!I118) ->  | F122: =IF('Student DATA Entry'!F118="","",UPPER('Student DATA Entry'!F118)) ->  | G122: =IF('Student DATA Entry'!G118="","",UPPER('Student DATA Entry'!G118)) ->  | H122: =IF('Student DATA Entry'!H118="","",UPPER('Student DATA Entry'!H118)) ->  | I122: =IF('Student DATA Entry'!K118="","",UPPER('Student DATA Entry'!K118)) ->  | J122: =IF('Student DATA Entry'!J118="","",UPPER('Student DATA Entry'!J118)) -> 
A123: =IF('Student DATA Entry'!A119="","",'Student DATA Entry'!A119) -> 116 | B123: =IF('Student DATA Entry'!B119="","",'Student DATA Entry'!B119) ->  | C123: =IF('Student DATA Entry'!D119="","",'Student DATA Entry'!D119) ->  | D123: =IF('Student DATA Entry'!E119="","",'Student DATA Entry'!E119) ->  | E123: =IF('Student DATA Entry'!I119="","",'Student DATA Entry'!I119) ->  | F123: =IF('Student DATA Entry'!F119="","",UPPER('Student DATA Entry'!F119)) ->  | G123: =IF('Student DATA Entry'!G119="","",UPPER('Student DATA Entry'!G119)) ->  | H123: =IF('Student DATA Entry'!H119="","",UPPER('Student DATA Entry'!H119)) ->  | I123: =IF('Student DATA Entry'!K119="","",UPPER('Student DATA Entry'!K119)) ->  | J123: =IF('Student DATA Entry'!J119="","",UPPER('Student DATA Entry'!J119)) -> 
A124: =IF('Student DATA Entry'!A120="","",'Student DATA Entry'!A120) -> 117 | B124: =IF('Student DATA Entry'!B120="","",'Student DATA Entry'!B120) ->  | C124: =IF('Student DATA Entry'!D120="","",'Student DATA Entry'!D120) ->  | D124: =IF('Student DATA Entry'!E120="","",'Student DATA Entry'!E120) ->  | E124: =IF('Student DATA Entry'!I120="","",'Student DATA Entry'!I120) ->  | F124: =IF('Student DATA Entry'!F120="","",UPPER('Student DATA Entry'!F120)) ->  | G124: =IF('Student DATA Entry'!G120="","",UPPER('Student DATA Entry'!G120)) ->  | H124: =IF('Student DATA Entry'!H120="","",UPPER('Student DATA Entry'!H120)) ->  | I124: =IF('Student DATA Entry'!K120="","",UPPER('Student DATA Entry'!K120)) ->  | J124: =IF('Student DATA Entry'!J120="","",UPPER('Student DATA Entry'!J120)) -> 
A125: =IF('Student DATA Entry'!A121="","",'Student DATA Entry'!A121) -> 118 | B125: =IF('Student DATA Entry'!B121="","",'Student DATA Entry'!B121) ->  | C125: =IF('Student DATA Entry'!D121="","",'Student DATA Entry'!D121) ->  | D125: =IF('Student DATA Entry'!E121="","",'Student DATA Entry'!E121) ->  | E125: =IF('Student DATA Entry'!I121="","",'Student DATA Entry'!I121) ->  | F125: =IF('Student DATA Entry'!F121="","",UPPER('Student DATA Entry'!F121)) ->  | G125: =IF('Student DATA Entry'!G121="","",UPPER('Student DATA Entry'!G121)) ->  | H125: =IF('Student DATA Entry'!H121="","",UPPER('Student DATA Entry'!H121)) ->  | I125: =IF('Student DATA Entry'!K121="","",UPPER('Student DATA Entry'!K121)) ->  | J125: =IF('Student DATA Entry'!J121="","",UPPER('Student DATA Entry'!J121)) -> 
A126: =IF('Student DATA Entry'!A122="","",'Student DATA Entry'!A122) -> 119 | B126: =IF('Student DATA Entry'!B122="","",'Student DATA Entry'!B122) ->  | C126: =IF('Student DATA Entry'!D122="","",'Student DATA Entry'!D122) ->  | D126: =IF('Student DATA Entry'!E122="","",'Student DATA Entry'!E122) ->  | E126: =IF('Student DATA Entry'!I122="","",'Student DATA Entry'!I122) ->  | F126: =IF('Student DATA Entry'!F122="","",UPPER('Student DATA Entry'!F122)) ->  | G126: =IF('Student DATA Entry'!G122="","",UPPER('Student DATA Entry'!G122)) ->  | H126: =IF('Student DATA Entry'!H122="","",UPPER('Student DATA Entry'!H122)) ->  | I126: =IF('Student DATA Entry'!K122="","",UPPER('Student DATA Entry'!K122)) ->  | J126: =IF('Student DATA Entry'!J122="","",UPPER('Student DATA Entry'!J122)) -> 
A127: =IF('Student DATA Entry'!A123="","",'Student DATA Entry'!A123) -> 120 | B127: =IF('Student DATA Entry'!B123="","",'Student DATA Entry'!B123) ->  | C127: =IF('Student DATA Entry'!D123="","",'Student DATA Entry'!D123) ->  | D127: =IF('Student DATA Entry'!E123="","",'Student DATA Entry'!E123) ->  | E127: =IF('Student DATA Entry'!I123="","",'Student DATA Entry'!I123) ->  | F127: =IF('Student DATA Entry'!F123="","",UPPER('Student DATA Entry'!F123)) ->  | G127: =IF('Student DATA Entry'!G123="","",UPPER('Student DATA Entry'!G123)) ->  | H127: =IF('Student DATA Entry'!H123="","",UPPER('Student DATA Entry'!H123)) ->  | I127: =IF('Student DATA Entry'!K123="","",UPPER('Student DATA Entry'!K123)) ->  | J127: =IF('Student DATA Entry'!J123="","",UPPER('Student DATA Entry'!J123)) -> 
A128: =IF('Student DATA Entry'!A124="","",'Student DATA Entry'!A124) -> 121 | B128: =IF('Student DATA Entry'!B124="","",'Student DATA Entry'!B124) ->  | C128: =IF('Student DATA Entry'!D124="","",'Student DATA Entry'!D124) ->  | D128: =IF('Student DATA Entry'!E124="","",'Student DATA Entry'!E124) ->  | E128: =IF('Student DATA Entry'!I124="","",'Student DATA Entry'!I124) ->  | F128: =IF('Student DATA Entry'!F124="","",UPPER('Student DATA Entry'!F124)) ->  | G128: =IF('Student DATA Entry'!G124="","",UPPER('Student DATA Entry'!G124)) ->  | H128: =IF('Student DATA Entry'!H124="","",UPPER('Student DATA Entry'!H124)) ->  | I128: =IF('Student DATA Entry'!K124="","",UPPER('Student DATA Entry'!K124)) ->  | J128: =IF('Student DATA Entry'!J124="","",UPPER('Student DATA Entry'!J124)) -> 
A129: =IF('Student DATA Entry'!A125="","",'Student DATA Entry'!A125) -> 122 | B129: =IF('Student DATA Entry'!B125="","",'Student DATA Entry'!B125) ->  | C129: =IF('Student DATA Entry'!D125="","",'Student DATA Entry'!D125) ->  | D129: =IF('Student DATA Entry'!E125="","",'Student DATA Entry'!E125) ->  | E129: =IF('Student DATA Entry'!I125="","",'Student DATA Entry'!I125) ->  | F129: =IF('Student DATA Entry'!F125="","",UPPER('Student DATA Entry'!F125)) ->  | G129: =IF('Student DATA Entry'!G125="","",UPPER('Student DATA Entry'!G125)) ->  | H129: =IF('Student DATA Entry'!H125="","",UPPER('Student DATA Entry'!H125)) ->  | I129: =IF('Student DATA Entry'!K125="","",UPPER('Student DATA Entry'!K125)) ->  | J129: =IF('Student DATA Entry'!J125="","",UPPER('Student DATA Entry'!J125)) -> 
A130: =IF('Student DATA Entry'!A126="","",'Student DATA Entry'!A126) -> 123 | B130: =IF('Student DATA Entry'!B126="","",'Student DATA Entry'!B126) ->  | C130: =IF('Student DATA Entry'!D126="","",'Student DATA Entry'!D126) ->  | D130: =IF('Student DATA Entry'!E126="","",'Student DATA Entry'!E126) ->  | E130: =IF('Student DATA Entry'!I126="","",'Student DATA Entry'!I126) ->  | F130: =IF('Student DATA Entry'!F126="","",UPPER('Student DATA Entry'!F126)) ->  | G130: =IF('Student DATA Entry'!G126="","",UPPER('Student DATA Entry'!G126)) ->  | H130: =IF('Student DATA Entry'!H126="","",UPPER('Student DATA Entry'!H126)) ->  | I130: =IF('Student DATA Entry'!K126="","",UPPER('Student DATA Entry'!K126)) ->  | J130: =IF('Student DATA Entry'!J126="","",UPPER('Student DATA Entry'!J126)) -> 
A131: =IF('Student DATA Entry'!A127="","",'Student DATA Entry'!A127) -> 124 | B131: =IF('Student DATA Entry'!B127="","",'Student DATA Entry'!B127) ->  | C131: =IF('Student DATA Entry'!D127="","",'Student DATA Entry'!D127) ->  | D131: =IF('Student DATA Entry'!E127="","",'Student DATA Entry'!E127) ->  | E131: =IF('Student DATA Entry'!I127="","",'Student DATA Entry'!I127) ->  | F131: =IF('Student DATA Entry'!F127="","",UPPER('Student DATA Entry'!F127)) ->  | G131: =IF('Student DATA Entry'!G127="","",UPPER('Student DATA Entry'!G127)) ->  | H131: =IF('Student DATA Entry'!H127="","",UPPER('Student DATA Entry'!H127)) ->  | I131: =IF('Student DATA Entry'!K127="","",UPPER('Student DATA Entry'!K127)) ->  | J131: =IF('Student DATA Entry'!J127="","",UPPER('Student DATA Entry'!J127)) -> 
A132: =IF('Student DATA Entry'!A128="","",'Student DATA Entry'!A128) -> 125 | B132: =IF('Student DATA Entry'!B128="","",'Student DATA Entry'!B128) ->  | C132: =IF('Student DATA Entry'!D128="","",'Student DATA Entry'!D128) ->  | D132: =IF('Student DATA Entry'!E128="","",'Student DATA Entry'!E128) ->  | E132: =IF('Student DATA Entry'!I128="","",'Student DATA Entry'!I128) ->  | F132: =IF('Student DATA Entry'!F128="","",UPPER('Student DATA Entry'!F128)) ->  | G132: =IF('Student DATA Entry'!G128="","",UPPER('Student DATA Entry'!G128)) ->  | H132: =IF('Student DATA Entry'!H128="","",UPPER('Student DATA Entry'!H128)) ->  | I132: =IF('Student DATA Entry'!K128="","",UPPER('Student DATA Entry'!K128)) ->  | J132: =IF('Student DATA Entry'!J128="","",UPPER('Student DATA Entry'!J128)) -> 
A133: =IF('Student DATA Entry'!A129="","",'Student DATA Entry'!A129) -> 126 | B133: =IF('Student DATA Entry'!B129="","",'Student DATA Entry'!B129) ->  | C133: =IF('Student DATA Entry'!D129="","",'Student DATA Entry'!D129) ->  | D133: =IF('Student DATA Entry'!E129="","",'Student DATA Entry'!E129) ->  | E133: =IF('Student DATA Entry'!I129="","",'Student DATA Entry'!I129) ->  | F133: =IF('Student DATA Entry'!F129="","",UPPER('Student DATA Entry'!F129)) ->  | G133: =IF('Student DATA Entry'!G129="","",UPPER('Student DATA Entry'!G129)) ->  | H133: =IF('Student DATA Entry'!H129="","",UPPER('Student DATA Entry'!H129)) ->  | I133: =IF('Student DATA Entry'!K129="","",UPPER('Student DATA Entry'!K129)) ->  | J133: =IF('Student DATA Entry'!J129="","",UPPER('Student DATA Entry'!J129)) -> 
A134: =IF('Student DATA Entry'!A130="","",'Student DATA Entry'!A130) -> 127 | B134: =IF('Student DATA Entry'!B130="","",'Student DATA Entry'!B130) ->  | C134: =IF('Student DATA Entry'!D130="","",'Student DATA Entry'!D130) ->  | D134: =IF('Student DATA Entry'!E130="","",'Student DATA Entry'!E130) ->  | E134: =IF('Student DATA Entry'!I130="","",'Student DATA Entry'!I130) ->  | F134: =IF('Student DATA Entry'!F130="","",UPPER('Student DATA Entry'!F130)) ->  | G134: =IF('Student DATA Entry'!G130="","",UPPER('Student DATA Entry'!G130)) ->  | H134: =IF('Student DATA Entry'!H130="","",UPPER('Student DATA Entry'!H130)) ->  | I134: =IF('Student DATA Entry'!K130="","",UPPER('Student DATA Entry'!K130)) ->  | J134: =IF('Student DATA Entry'!J130="","",UPPER('Student DATA Entry'!J130)) -> 
A135: =IF('Student DATA Entry'!A131="","",'Student DATA Entry'!A131) -> 128 | B135: =IF('Student DATA Entry'!B131="","",'Student DATA Entry'!B131) ->  | C135: =IF('Student DATA Entry'!D131="","",'Student DATA Entry'!D131) ->  | D135: =IF('Student DATA Entry'!E131="","",'Student DATA Entry'!E131) ->  | E135: =IF('Student DATA Entry'!I131="","",'Student DATA Entry'!I131) ->  | F135: =IF('Student DATA Entry'!F131="","",UPPER('Student DATA Entry'!F131)) ->  | G135: =IF('Student DATA Entry'!G131="","",UPPER('Student DATA Entry'!G131)) ->  | H135: =IF('Student DATA Entry'!H131="","",UPPER('Student DATA Entry'!H131)) ->  | I135: =IF('Student DATA Entry'!K131="","",UPPER('Student DATA Entry'!K131)) ->  | J135: =IF('Student DATA Entry'!J131="","",UPPER('Student DATA Entry'!J131)) -> 
A136: =IF('Student DATA Entry'!A132="","",'Student DATA Entry'!A132) -> 129 | B136: =IF('Student DATA Entry'!B132="","",'Student DATA Entry'!B132) ->  | C136: =IF('Student DATA Entry'!D132="","",'Student DATA Entry'!D132) ->  | D136: =IF('Student DATA Entry'!E132="","",'Student DATA Entry'!E132) ->  | E136: =IF('Student DATA Entry'!I132="","",'Student DATA Entry'!I132) ->  | F136: =IF('Student DATA Entry'!F132="","",UPPER('Student DATA Entry'!F132)) ->  | G136: =IF('Student DATA Entry'!G132="","",UPPER('Student DATA Entry'!G132)) ->  | H136: =IF('Student DATA Entry'!H132="","",UPPER('Student DATA Entry'!H132)) ->  | I136: =IF('Student DATA Entry'!K132="","",UPPER('Student DATA Entry'!K132)) ->  | J136: =IF('Student DATA Entry'!J132="","",UPPER('Student DATA Entry'!J132)) -> 
A137: =IF('Student DATA Entry'!A133="","",'Student DATA Entry'!A133) -> 130 | B137: =IF('Student DATA Entry'!B133="","",'Student DATA Entry'!B133) ->  | C137: =IF('Student DATA Entry'!D133="","",'Student DATA Entry'!D133) ->  | D137: =IF('Student DATA Entry'!E133="","",'Student DATA Entry'!E133) ->  | E137: =IF('Student DATA Entry'!I133="","",'Student DATA Entry'!I133) ->  | F137: =IF('Student DATA Entry'!F133="","",UPPER('Student DATA Entry'!F133)) ->  | G137: =IF('Student DATA Entry'!G133="","",UPPER('Student DATA Entry'!G133)) ->  | H137: =IF('Student DATA Entry'!H133="","",UPPER('Student DATA Entry'!H133)) ->  | I137: =IF('Student DATA Entry'!K133="","",UPPER('Student DATA Entry'!K133)) ->  | J137: =IF('Student DATA Entry'!J133="","",UPPER('Student DATA Entry'!J133)) -> 
A138: =IF('Student DATA Entry'!A134="","",'Student DATA Entry'!A134) -> 131 | B138: =IF('Student DATA Entry'!B134="","",'Student DATA Entry'!B134) ->  | C138: =IF('Student DATA Entry'!D134="","",'Student DATA Entry'!D134) ->  | D138: =IF('Student DATA Entry'!E134="","",'Student DATA Entry'!E134) ->  | E138: =IF('Student DATA Entry'!I134="","",'Student DATA Entry'!I134) ->  | F138: =IF('Student DATA Entry'!F134="","",UPPER('Student DATA Entry'!F134)) ->  | G138: =IF('Student DATA Entry'!G134="","",UPPER('Student DATA Entry'!G134)) ->  | H138: =IF('Student DATA Entry'!H134="","",UPPER('Student DATA Entry'!H134)) ->  | I138: =IF('Student DATA Entry'!K134="","",UPPER('Student DATA Entry'!K134)) ->  | J138: =IF('Student DATA Entry'!J134="","",UPPER('Student DATA Entry'!J134)) -> 
A139: =IF('Student DATA Entry'!A135="","",'Student DATA Entry'!A135) -> 132 | B139: =IF('Student DATA Entry'!B135="","",'Student DATA Entry'!B135) ->  | C139: =IF('Student DATA Entry'!D135="","",'Student DATA Entry'!D135) ->  | D139: =IF('Student DATA Entry'!E135="","",'Student DATA Entry'!E135) ->  | E139: =IF('Student DATA Entry'!I135="","",'Student DATA Entry'!I135) ->  | F139: =IF('Student DATA Entry'!F135="","",UPPER('Student DATA Entry'!F135)) ->  | G139: =IF('Student DATA Entry'!G135="","",UPPER('Student DATA Entry'!G135)) ->  | H139: =IF('Student DATA Entry'!H135="","",UPPER('Student DATA Entry'!H135)) ->  | I139: =IF('Student DATA Entry'!K135="","",UPPER('Student DATA Entry'!K135)) ->  | J139: =IF('Student DATA Entry'!J135="","",UPPER('Student DATA Entry'!J135)) -> 
A140: =IF('Student DATA Entry'!A136="","",'Student DATA Entry'!A136) -> 133 | B140: =IF('Student DATA Entry'!B136="","",'Student DATA Entry'!B136) ->  | C140: =IF('Student DATA Entry'!D136="","",'Student DATA Entry'!D136) ->  | D140: =IF('Student DATA Entry'!E136="","",'Student DATA Entry'!E136) ->  | E140: =IF('Student DATA Entry'!I136="","",'Student DATA Entry'!I136) ->  | F140: =IF('Student DATA Entry'!F136="","",UPPER('Student DATA Entry'!F136)) ->  | G140: =IF('Student DATA Entry'!G136="","",UPPER('Student DATA Entry'!G136)) ->  | H140: =IF('Student DATA Entry'!H136="","",UPPER('Student DATA Entry'!H136)) ->  | I140: =IF('Student DATA Entry'!K136="","",UPPER('Student DATA Entry'!K136)) ->  | J140: =IF('Student DATA Entry'!J136="","",UPPER('Student DATA Entry'!J136)) -> 
A141: =IF('Student DATA Entry'!A137="","",'Student DATA Entry'!A137) -> 134 | B141: =IF('Student DATA Entry'!B137="","",'Student DATA Entry'!B137) ->  | C141: =IF('Student DATA Entry'!D137="","",'Student DATA Entry'!D137) ->  | D141: =IF('Student DATA Entry'!E137="","",'Student DATA Entry'!E137) ->  | E141: =IF('Student DATA Entry'!I137="","",'Student DATA Entry'!I137) ->  | F141: =IF('Student DATA Entry'!F137="","",UPPER('Student DATA Entry'!F137)) ->  | G141: =IF('Student DATA Entry'!G137="","",UPPER('Student DATA Entry'!G137)) ->  | H141: =IF('Student DATA Entry'!H137="","",UPPER('Student DATA Entry'!H137)) ->  | I141: =IF('Student DATA Entry'!K137="","",UPPER('Student DATA Entry'!K137)) ->  | J141: =IF('Student DATA Entry'!J137="","",UPPER('Student DATA Entry'!J137)) -> 
A142: =IF('Student DATA Entry'!A138="","",'Student DATA Entry'!A138) -> 135 | B142: =IF('Student DATA Entry'!B138="","",'Student DATA Entry'!B138) ->  | C142: =IF('Student DATA Entry'!D138="","",'Student DATA Entry'!D138) ->  | D142: =IF('Student DATA Entry'!E138="","",'Student DATA Entry'!E138) ->  | E142: =IF('Student DATA Entry'!I138="","",'Student DATA Entry'!I138) ->  | F142: =IF('Student DATA Entry'!F138="","",UPPER('Student DATA Entry'!F138)) ->  | G142: =IF('Student DATA Entry'!G138="","",UPPER('Student DATA Entry'!G138)) ->  | H142: =IF('Student DATA Entry'!H138="","",UPPER('Student DATA Entry'!H138)) ->  | I142: =IF('Student DATA Entry'!K138="","",UPPER('Student DATA Entry'!K138)) ->  | J142: =IF('Student DATA Entry'!J138="","",UPPER('Student DATA Entry'!J138)) -> 
A143: =IF('Student DATA Entry'!A139="","",'Student DATA Entry'!A139) -> 136 | B143: =IF('Student DATA Entry'!B139="","",'Student DATA Entry'!B139) ->  | C143: =IF('Student DATA Entry'!D139="","",'Student DATA Entry'!D139) ->  | D143: =IF('Student DATA Entry'!E139="","",'Student DATA Entry'!E139) ->  | E143: =IF('Student DATA Entry'!I139="","",'Student DATA Entry'!I139) ->  | F143: =IF('Student DATA Entry'!F139="","",UPPER('Student DATA Entry'!F139)) ->  | G143: =IF('Student DATA Entry'!G139="","",UPPER('Student DATA Entry'!G139)) ->  | H143: =IF('Student DATA Entry'!H139="","",UPPER('Student DATA Entry'!H139)) ->  | I143: =IF('Student DATA Entry'!K139="","",UPPER('Student DATA Entry'!K139)) ->  | J143: =IF('Student DATA Entry'!J139="","",UPPER('Student DATA Entry'!J139)) -> 
A144: =IF('Student DATA Entry'!A140="","",'Student DATA Entry'!A140) -> 137 | B144: =IF('Student DATA Entry'!B140="","",'Student DATA Entry'!B140) ->  | C144: =IF('Student DATA Entry'!D140="","",'Student DATA Entry'!D140) ->  | D144: =IF('Student DATA Entry'!E140="","",'Student DATA Entry'!E140) ->  | E144: =IF('Student DATA Entry'!I140="","",'Student DATA Entry'!I140) ->  | F144: =IF('Student DATA Entry'!F140="","",UPPER('Student DATA Entry'!F140)) ->  | G144: =IF('Student DATA Entry'!G140="","",UPPER('Student DATA Entry'!G140)) ->  | H144: =IF('Student DATA Entry'!H140="","",UPPER('Student DATA Entry'!H140)) ->  | I144: =IF('Student DATA Entry'!K140="","",UPPER('Student DATA Entry'!K140)) ->  | J144: =IF('Student DATA Entry'!J140="","",UPPER('Student DATA Entry'!J140)) -> 
A145: =IF('Student DATA Entry'!A141="","",'Student DATA Entry'!A141) -> 138 | B145: =IF('Student DATA Entry'!B141="","",'Student DATA Entry'!B141) ->  | C145: =IF('Student DATA Entry'!D141="","",'Student DATA Entry'!D141) ->  | D145: =IF('Student DATA Entry'!E141="","",'Student DATA Entry'!E141) ->  | E145: =IF('Student DATA Entry'!I141="","",'Student DATA Entry'!I141) ->  | F145: =IF('Student DATA Entry'!F141="","",UPPER('Student DATA Entry'!F141)) ->  | G145: =IF('Student DATA Entry'!G141="","",UPPER('Student DATA Entry'!G141)) ->  | H145: =IF('Student DATA Entry'!H141="","",UPPER('Student DATA Entry'!H141)) ->  | I145: =IF('Student DATA Entry'!K141="","",UPPER('Student DATA Entry'!K141)) ->  | J145: =IF('Student DATA Entry'!J141="","",UPPER('Student DATA Entry'!J141)) -> 
A146: =IF('Student DATA Entry'!A142="","",'Student DATA Entry'!A142) -> 139 | B146: =IF('Student DATA Entry'!B142="","",'Student DATA Entry'!B142) ->  | C146: =IF('Student DATA Entry'!D142="","",'Student DATA Entry'!D142) ->  | D146: =IF('Student DATA Entry'!E142="","",'Student DATA Entry'!E142) ->  | E146: =IF('Student DATA Entry'!I142="","",'Student DATA Entry'!I142) ->  | F146: =IF('Student DATA Entry'!F142="","",UPPER('Student DATA Entry'!F142)) ->  | G146: =IF('Student DATA Entry'!G142="","",UPPER('Student DATA Entry'!G142)) ->  | H146: =IF('Student DATA Entry'!H142="","",UPPER('Student DATA Entry'!H142)) ->  | I146: =IF('Student DATA Entry'!K142="","",UPPER('Student DATA Entry'!K142)) ->  | J146: =IF('Student DATA Entry'!J142="","",UPPER('Student DATA Entry'!J142)) -> 
A147: =IF('Student DATA Entry'!A143="","",'Student DATA Entry'!A143) -> 140 | B147: =IF('Student DATA Entry'!B143="","",'Student DATA Entry'!B143) ->  | C147: =IF('Student DATA Entry'!D143="","",'Student DATA Entry'!D143) ->  | D147: =IF('Student DATA Entry'!E143="","",'Student DATA Entry'!E143) ->  | E147: =IF('Student DATA Entry'!I143="","",'Student DATA Entry'!I143) ->  | F147: =IF('Student DATA Entry'!F143="","",UPPER('Student DATA Entry'!F143)) ->  | G147: =IF('Student DATA Entry'!G143="","",UPPER('Student DATA Entry'!G143)) ->  | H147: =IF('Student DATA Entry'!H143="","",UPPER('Student DATA Entry'!H143)) ->  | I147: =IF('Student DATA Entry'!K143="","",UPPER('Student DATA Entry'!K143)) ->  | J147: =IF('Student DATA Entry'!J143="","",UPPER('Student DATA Entry'!J143)) -> 
A148: =IF('Student DATA Entry'!A144="","",'Student DATA Entry'!A144) -> 141 | B148: =IF('Student DATA Entry'!B144="","",'Student DATA Entry'!B144) ->  | C148: =IF('Student DATA Entry'!D144="","",'Student DATA Entry'!D144) ->  | D148: =IF('Student DATA Entry'!E144="","",'Student DATA Entry'!E144) ->  | E148: =IF('Student DATA Entry'!I144="","",'Student DATA Entry'!I144) ->  | F148: =IF('Student DATA Entry'!F144="","",UPPER('Student DATA Entry'!F144)) ->  | G148: =IF('Student DATA Entry'!G144="","",UPPER('Student DATA Entry'!G144)) ->  | H148: =IF('Student DATA Entry'!H144="","",UPPER('Student DATA Entry'!H144)) ->  | I148: =IF('Student DATA Entry'!K144="","",UPPER('Student DATA Entry'!K144)) ->  | J148: =IF('Student DATA Entry'!J144="","",UPPER('Student DATA Entry'!J144)) -> 
A149: =IF('Student DATA Entry'!A145="","",'Student DATA Entry'!A145) -> 142 | B149: =IF('Student DATA Entry'!B145="","",'Student DATA Entry'!B145) ->  | C149: =IF('Student DATA Entry'!D145="","",'Student DATA Entry'!D145) ->  | D149: =IF('Student DATA Entry'!E145="","",'Student DATA Entry'!E145) ->  | E149: =IF('Student DATA Entry'!I145="","",'Student DATA Entry'!I145) ->  | F149: =IF('Student DATA Entry'!F145="","",UPPER('Student DATA Entry'!F145)) ->  | G149: =IF('Student DATA Entry'!G145="","",UPPER('Student DATA Entry'!G145)) ->  | H149: =IF('Student DATA Entry'!H145="","",UPPER('Student DATA Entry'!H145)) ->  | I149: =IF('Student DATA Entry'!K145="","",UPPER('Student DATA Entry'!K145)) ->  | J149: =IF('Student DATA Entry'!J145="","",UPPER('Student DATA Entry'!J145)) -> 
A150: =IF('Student DATA Entry'!A146="","",'Student DATA Entry'!A146) -> 143 | B150: =IF('Student DATA Entry'!B146="","",'Student DATA Entry'!B146) ->  | C150: =IF('Student DATA Entry'!D146="","",'Student DATA Entry'!D146) ->  | D150: =IF('Student DATA Entry'!E146="","",'Student DATA Entry'!E146) ->  | E150: =IF('Student DATA Entry'!I146="","",'Student DATA Entry'!I146) ->  | F150: =IF('Student DATA Entry'!F146="","",UPPER('Student DATA Entry'!F146)) ->  | G150: =IF('Student DATA Entry'!G146="","",UPPER('Student DATA Entry'!G146)) ->  | H150: =IF('Student DATA Entry'!H146="","",UPPER('Student DATA Entry'!H146)) ->  | I150: =IF('Student DATA Entry'!K146="","",UPPER('Student DATA Entry'!K146)) ->  | J150: =IF('Student DATA Entry'!J146="","",UPPER('Student DATA Entry'!J146)) -> 
A151: =IF('Student DATA Entry'!A147="","",'Student DATA Entry'!A147) -> 144 | B151: =IF('Student DATA Entry'!B147="","",'Student DATA Entry'!B147) ->  | C151: =IF('Student DATA Entry'!D147="","",'Student DATA Entry'!D147) ->  | D151: =IF('Student DATA Entry'!E147="","",'Student DATA Entry'!E147) ->  | E151: =IF('Student DATA Entry'!I147="","",'Student DATA Entry'!I147) ->  | F151: =IF('Student DATA Entry'!F147="","",UPPER('Student DATA Entry'!F147)) ->  | G151: =IF('Student DATA Entry'!G147="","",UPPER('Student DATA Entry'!G147)) ->  | H151: =IF('Student DATA Entry'!H147="","",UPPER('Student DATA Entry'!H147)) ->  | I151: =IF('Student DATA Entry'!K147="","",UPPER('Student DATA Entry'!K147)) ->  | J151: =IF('Student DATA Entry'!J147="","",UPPER('Student DATA Entry'!J147)) -> 
A152: =IF('Student DATA Entry'!A148="","",'Student DATA Entry'!A148) -> 145 | B152: =IF('Student DATA Entry'!B148="","",'Student DATA Entry'!B148) ->  | C152: =IF('Student DATA Entry'!D148="","",'Student DATA Entry'!D148) ->  | D152: =IF('Student DATA Entry'!E148="","",'Student DATA Entry'!E148) ->  | E152: =IF('Student DATA Entry'!I148="","",'Student DATA Entry'!I148) ->  | F152: =IF('Student DATA Entry'!F148="","",UPPER('Student DATA Entry'!F148)) ->  | G152: =IF('Student DATA Entry'!G148="","",UPPER('Student DATA Entry'!G148)) ->  | H152: =IF('Student DATA Entry'!H148="","",UPPER('Student DATA Entry'!H148)) ->  | I152: =IF('Student DATA Entry'!K148="","",UPPER('Student DATA Entry'!K148)) ->  | J152: =IF('Student DATA Entry'!J148="","",UPPER('Student DATA Entry'!J148)) -> 
A153: =IF('Student DATA Entry'!A149="","",'Student DATA Entry'!A149) -> 146 | B153: =IF('Student DATA Entry'!B149="","",'Student DATA Entry'!B149) ->  | C153: =IF('Student DATA Entry'!D149="","",'Student DATA Entry'!D149) ->  | D153: =IF('Student DATA Entry'!E149="","",'Student DATA Entry'!E149) ->  | E153: =IF('Student DATA Entry'!I149="","",'Student DATA Entry'!I149) ->  | F153: =IF('Student DATA Entry'!F149="","",UPPER('Student DATA Entry'!F149)) ->  | G153: =IF('Student DATA Entry'!G149="","",UPPER('Student DATA Entry'!G149)) ->  | H153: =IF('Student DATA Entry'!H149="","",UPPER('Student DATA Entry'!H149)) ->  | I153: =IF('Student DATA Entry'!K149="","",UPPER('Student DATA Entry'!K149)) ->  | J153: =IF('Student DATA Entry'!J149="","",UPPER('Student DATA Entry'!J149)) -> 
A154: =IF('Student DATA Entry'!A150="","",'Student DATA Entry'!A150) -> 147 | B154: =IF('Student DATA Entry'!B150="","",'Student DATA Entry'!B150) ->  | C154: =IF('Student DATA Entry'!D150="","",'Student DATA Entry'!D150) ->  | D154: =IF('Student DATA Entry'!E150="","",'Student DATA Entry'!E150) ->  | E154: =IF('Student DATA Entry'!I150="","",'Student DATA Entry'!I150) ->  | F154: =IF('Student DATA Entry'!F150="","",UPPER('Student DATA Entry'!F150)) ->  | G154: =IF('Student DATA Entry'!G150="","",UPPER('Student DATA Entry'!G150)) ->  | H154: =IF('Student DATA Entry'!H150="","",UPPER('Student DATA Entry'!H150)) ->  | I154: =IF('Student DATA Entry'!K150="","",UPPER('Student DATA Entry'!K150)) ->  | J154: =IF('Student DATA Entry'!J150="","",UPPER('Student DATA Entry'!J150)) -> 
A155: =IF('Student DATA Entry'!A151="","",'Student DATA Entry'!A151) -> 148 | B155: =IF('Student DATA Entry'!B151="","",'Student DATA Entry'!B151) ->  | C155: =IF('Student DATA Entry'!D151="","",'Student DATA Entry'!D151) ->  | D155: =IF('Student DATA Entry'!E151="","",'Student DATA Entry'!E151) ->  | E155: =IF('Student DATA Entry'!I151="","",'Student DATA Entry'!I151) ->  | F155: =IF('Student DATA Entry'!F151="","",UPPER('Student DATA Entry'!F151)) ->  | G155: =IF('Student DATA Entry'!G151="","",UPPER('Student DATA Entry'!G151)) ->  | H155: =IF('Student DATA Entry'!H151="","",UPPER('Student DATA Entry'!H151)) ->  | I155: =IF('Student DATA Entry'!K151="","",UPPER('Student DATA Entry'!K151)) ->  | J155: =IF('Student DATA Entry'!J151="","",UPPER('Student DATA Entry'!J151)) -> 
A156: =IF('Student DATA Entry'!A152="","",'Student DATA Entry'!A152) -> 149 | B156: =IF('Student DATA Entry'!B152="","",'Student DATA Entry'!B152) ->  | C156: =IF('Student DATA Entry'!D152="","",'Student DATA Entry'!D152) ->  | D156: =IF('Student DATA Entry'!E152="","",'Student DATA Entry'!E152) ->  | E156: =IF('Student DATA Entry'!I152="","",'Student DATA Entry'!I152) ->  | F156: =IF('Student DATA Entry'!F152="","",UPPER('Student DATA Entry'!F152)) ->  | G156: =IF('Student DATA Entry'!G152="","",UPPER('Student DATA Entry'!G152)) ->  | H156: =IF('Student DATA Entry'!H152="","",UPPER('Student DATA Entry'!H152)) ->  | I156: =IF('Student DATA Entry'!K152="","",UPPER('Student DATA Entry'!K152)) ->  | J156: =IF('Student DATA Entry'!J152="","",UPPER('Student DATA Entry'!J152)) -> 
A157: =IF('Student DATA Entry'!A153="","",'Student DATA Entry'!A153) -> 150 | B157: =IF('Student DATA Entry'!B153="","",'Student DATA Entry'!B153) ->  | C157: =IF('Student DATA Entry'!D153="","",'Student DATA Entry'!D153) ->  | D157: =IF('Student DATA Entry'!E153="","",'Student DATA Entry'!E153) ->  | E157: =IF('Student DATA Entry'!I153="","",'Student DATA Entry'!I153) ->  | F157: =IF('Student DATA Entry'!F153="","",UPPER('Student DATA Entry'!F153)) ->  | G157: =IF('Student DATA Entry'!G153="","",UPPER('Student DATA Entry'!G153)) ->  | H157: =IF('Student DATA Entry'!H153="","",UPPER('Student DATA Entry'!H153)) ->  | I157: =IF('Student DATA Entry'!K153="","",UPPER('Student DATA Entry'!K153)) ->  | J157: =IF('Student DATA Entry'!J153="","",UPPER('Student DATA Entry'!J153)) -> 
A158: =IF('Student DATA Entry'!A154="","",'Student DATA Entry'!A154) -> 151 | B158: =IF('Student DATA Entry'!B154="","",'Student DATA Entry'!B154) ->  | C158: =IF('Student DATA Entry'!D154="","",'Student DATA Entry'!D154) ->  | D158: =IF('Student DATA Entry'!E154="","",'Student DATA Entry'!E154) ->  | E158: =IF('Student DATA Entry'!I154="","",'Student DATA Entry'!I154) ->  | F158: =IF('Student DATA Entry'!F154="","",UPPER('Student DATA Entry'!F154)) ->  | G158: =IF('Student DATA Entry'!G154="","",UPPER('Student DATA Entry'!G154)) ->  | H158: =IF('Student DATA Entry'!H154="","",UPPER('Student DATA Entry'!H154)) ->  | I158: =IF('Student DATA Entry'!K154="","",UPPER('Student DATA Entry'!K154)) ->  | J158: =IF('Student DATA Entry'!J154="","",UPPER('Student DATA Entry'!J154)) -> 
A159: =IF('Student DATA Entry'!A155="","",'Student DATA Entry'!A155) -> 152 | B159: =IF('Student DATA Entry'!B155="","",'Student DATA Entry'!B155) ->  | C159: =IF('Student DATA Entry'!D155="","",'Student DATA Entry'!D155) ->  | D159: =IF('Student DATA Entry'!E155="","",'Student DATA Entry'!E155) ->  | E159: =IF('Student DATA Entry'!I155="","",'Student DATA Entry'!I155) ->  | F159: =IF('Student DATA Entry'!F155="","",UPPER('Student DATA Entry'!F155)) ->  | G159: =IF('Student DATA Entry'!G155="","",UPPER('Student DATA Entry'!G155)) ->  | H159: =IF('Student DATA Entry'!H155="","",UPPER('Student DATA Entry'!H155)) ->  | I159: =IF('Student DATA Entry'!K155="","",UPPER('Student DATA Entry'!K155)) ->  | J159: =IF('Student DATA Entry'!J155="","",UPPER('Student DATA Entry'!J155)) -> 
A160: =IF('Student DATA Entry'!A156="","",'Student DATA Entry'!A156) -> 153 | B160: =IF('Student DATA Entry'!B156="","",'Student DATA Entry'!B156) ->  | C160: =IF('Student DATA Entry'!D156="","",'Student DATA Entry'!D156) ->  | D160: =IF('Student DATA Entry'!E156="","",'Student DATA Entry'!E156) ->  | E160: =IF('Student DATA Entry'!I156="","",'Student DATA Entry'!I156) ->  | F160: =IF('Student DATA Entry'!F156="","",UPPER('Student DATA Entry'!F156)) ->  | G160: =IF('Student DATA Entry'!G156="","",UPPER('Student DATA Entry'!G156)) ->  | H160: =IF('Student DATA Entry'!H156="","",UPPER('Student DATA Entry'!H156)) ->  | I160: =IF('Student DATA Entry'!K156="","",UPPER('Student DATA Entry'!K156)) ->  | J160: =IF('Student DATA Entry'!J156="","",UPPER('Student DATA Entry'!J156)) -> 
A161: =IF('Student DATA Entry'!A157="","",'Student DATA Entry'!A157) -> 154 | B161: =IF('Student DATA Entry'!B157="","",'Student DATA Entry'!B157) ->  | C161: =IF('Student DATA Entry'!D157="","",'Student DATA Entry'!D157) ->  | D161: =IF('Student DATA Entry'!E157="","",'Student DATA Entry'!E157) ->  | E161: =IF('Student DATA Entry'!I157="","",'Student DATA Entry'!I157) ->  | F161: =IF('Student DATA Entry'!F157="","",UPPER('Student DATA Entry'!F157)) ->  | G161: =IF('Student DATA Entry'!G157="","",UPPER('Student DATA Entry'!G157)) ->  | H161: =IF('Student DATA Entry'!H157="","",UPPER('Student DATA Entry'!H157)) ->  | I161: =IF('Student DATA Entry'!K157="","",UPPER('Student DATA Entry'!K157)) ->  | J161: =IF('Student DATA Entry'!J157="","",UPPER('Student DATA Entry'!J157)) -> 
A162: =IF('Student DATA Entry'!A158="","",'Student DATA Entry'!A158) -> 155 | B162: =IF('Student DATA Entry'!B158="","",'Student DATA Entry'!B158) ->  | C162: =IF('Student DATA Entry'!D158="","",'Student DATA Entry'!D158) ->  | D162: =IF('Student DATA Entry'!E158="","",'Student DATA Entry'!E158) ->  | E162: =IF('Student DATA Entry'!I158="","",'Student DATA Entry'!I158) ->  | F162: =IF('Student DATA Entry'!F158="","",UPPER('Student DATA Entry'!F158)) ->  | G162: =IF('Student DATA Entry'!G158="","",UPPER('Student DATA Entry'!G158)) ->  | H162: =IF('Student DATA Entry'!H158="","",UPPER('Student DATA Entry'!H158)) ->  | I162: =IF('Student DATA Entry'!K158="","",UPPER('Student DATA Entry'!K158)) ->  | J162: =IF('Student DATA Entry'!J158="","",UPPER('Student DATA Entry'!J158)) -> 
A163: =IF('Student DATA Entry'!A159="","",'Student DATA Entry'!A159) -> 156 | B163: =IF('Student DATA Entry'!B159="","",'Student DATA Entry'!B159) ->  | C163: =IF('Student DATA Entry'!D159="","",'Student DATA Entry'!D159) ->  | D163: =IF('Student DATA Entry'!E159="","",'Student DATA Entry'!E159) ->  | E163: =IF('Student DATA Entry'!I159="","",'Student DATA Entry'!I159) ->  | F163: =IF('Student DATA Entry'!F159="","",UPPER('Student DATA Entry'!F159)) ->  | G163: =IF('Student DATA Entry'!G159="","",UPPER('Student DATA Entry'!G159)) ->  | H163: =IF('Student DATA Entry'!H159="","",UPPER('Student DATA Entry'!H159)) ->  | I163: =IF('Student DATA Entry'!K159="","",UPPER('Student DATA Entry'!K159)) ->  | J163: =IF('Student DATA Entry'!J159="","",UPPER('Student DATA Entry'!J159)) -> 
A164: =IF('Student DATA Entry'!A160="","",'Student DATA Entry'!A160) -> 157 | B164: =IF('Student DATA Entry'!B160="","",'Student DATA Entry'!B160) ->  | C164: =IF('Student DATA Entry'!D160="","",'Student DATA Entry'!D160) ->  | D164: =IF('Student DATA Entry'!E160="","",'Student DATA Entry'!E160) ->  | E164: =IF('Student DATA Entry'!I160="","",'Student DATA Entry'!I160) ->  | F164: =IF('Student DATA Entry'!F160="","",UPPER('Student DATA Entry'!F160)) ->  | G164: =IF('Student DATA Entry'!G160="","",UPPER('Student DATA Entry'!G160)) ->  | H164: =IF('Student DATA Entry'!H160="","",UPPER('Student DATA Entry'!H160)) ->  | I164: =IF('Student DATA Entry'!K160="","",UPPER('Student DATA Entry'!K160)) ->  | J164: =IF('Student DATA Entry'!J160="","",UPPER('Student DATA Entry'!J160)) -> 
A165: =IF('Student DATA Entry'!A161="","",'Student DATA Entry'!A161) -> 158 | B165: =IF('Student DATA Entry'!B161="","",'Student DATA Entry'!B161) ->  | C165: =IF('Student DATA Entry'!D161="","",'Student DATA Entry'!D161) ->  | D165: =IF('Student DATA Entry'!E161="","",'Student DATA Entry'!E161) ->  | E165: =IF('Student DATA Entry'!I161="","",'Student DATA Entry'!I161) ->  | F165: =IF('Student DATA Entry'!F161="","",UPPER('Student DATA Entry'!F161)) ->  | G165: =IF('Student DATA Entry'!G161="","",UPPER('Student DATA Entry'!G161)) ->  | H165: =IF('Student DATA Entry'!H161="","",UPPER('Student DATA Entry'!H161)) ->  | I165: =IF('Student DATA Entry'!K161="","",UPPER('Student DATA Entry'!K161)) ->  | J165: =IF('Student DATA Entry'!J161="","",UPPER('Student DATA Entry'!J161)) -> 
A166: =IF('Student DATA Entry'!A162="","",'Student DATA Entry'!A162) -> 159 | B166: =IF('Student DATA Entry'!B162="","",'Student DATA Entry'!B162) ->  | C166: =IF('Student DATA Entry'!D162="","",'Student DATA Entry'!D162) ->  | D166: =IF('Student DATA Entry'!E162="","",'Student DATA Entry'!E162) ->  | E166: =IF('Student DATA Entry'!I162="","",'Student DATA Entry'!I162) ->  | F166: =IF('Student DATA Entry'!F162="","",UPPER('Student DATA Entry'!F162)) ->  | G166: =IF('Student DATA Entry'!G162="","",UPPER('Student DATA Entry'!G162)) ->  | H166: =IF('Student DATA Entry'!H162="","",UPPER('Student DATA Entry'!H162)) ->  | I166: =IF('Student DATA Entry'!K162="","",UPPER('Student DATA Entry'!K162)) ->  | J166: =IF('Student DATA Entry'!J162="","",UPPER('Student DATA Entry'!J162)) -> 
A167: =IF('Student DATA Entry'!A163="","",'Student DATA Entry'!A163) -> 160 | B167: =IF('Student DATA Entry'!B163="","",'Student DATA Entry'!B163) ->  | C167: =IF('Student DATA Entry'!D163="","",'Student DATA Entry'!D163) ->  | D167: =IF('Student DATA Entry'!E163="","",'Student DATA Entry'!E163) ->  | E167: =IF('Student DATA Entry'!I163="","",'Student DATA Entry'!I163) ->  | F167: =IF('Student DATA Entry'!F163="","",UPPER('Student DATA Entry'!F163)) ->  | G167: =IF('Student DATA Entry'!G163="","",UPPER('Student DATA Entry'!G163)) ->  | H167: =IF('Student DATA Entry'!H163="","",UPPER('Student DATA Entry'!H163)) ->  | I167: =IF('Student DATA Entry'!K163="","",UPPER('Student DATA Entry'!K163)) ->  | J167: =IF('Student DATA Entry'!J163="","",UPPER('Student DATA Entry'!J163)) -> 
A168: =IF('Student DATA Entry'!A164="","",'Student DATA Entry'!A164) -> 161 | B168: =IF('Student DATA Entry'!B164="","",'Student DATA Entry'!B164) ->  | C168: =IF('Student DATA Entry'!D164="","",'Student DATA Entry'!D164) ->  | D168: =IF('Student DATA Entry'!E164="","",'Student DATA Entry'!E164) ->  | E168: =IF('Student DATA Entry'!I164="","",'Student DATA Entry'!I164) ->  | F168: =IF('Student DATA Entry'!F164="","",UPPER('Student DATA Entry'!F164)) ->  | G168: =IF('Student DATA Entry'!G164="","",UPPER('Student DATA Entry'!G164)) ->  | H168: =IF('Student DATA Entry'!H164="","",UPPER('Student DATA Entry'!H164)) ->  | I168: =IF('Student DATA Entry'!K164="","",UPPER('Student DATA Entry'!K164)) ->  | J168: =IF('Student DATA Entry'!J164="","",UPPER('Student DATA Entry'!J164)) -> 
A169: =IF('Student DATA Entry'!A165="","",'Student DATA Entry'!A165) -> 162 | B169: =IF('Student DATA Entry'!B165="","",'Student DATA Entry'!B165) ->  | C169: =IF('Student DATA Entry'!D165="","",'Student DATA Entry'!D165) ->  | D169: =IF('Student DATA Entry'!E165="","",'Student DATA Entry'!E165) ->  | E169: =IF('Student DATA Entry'!I165="","",'Student DATA Entry'!I165) ->  | F169: =IF('Student DATA Entry'!F165="","",UPPER('Student DATA Entry'!F165)) ->  | G169: =IF('Student DATA Entry'!G165="","",UPPER('Student DATA Entry'!G165)) ->  | H169: =IF('Student DATA Entry'!H165="","",UPPER('Student DATA Entry'!H165)) ->  | I169: =IF('Student DATA Entry'!K165="","",UPPER('Student DATA Entry'!K165)) ->  | J169: =IF('Student DATA Entry'!J165="","",UPPER('Student DATA Entry'!J165)) -> 
A170: =IF('Student DATA Entry'!A166="","",'Student DATA Entry'!A166) -> 163 | B170: =IF('Student DATA Entry'!B166="","",'Student DATA Entry'!B166) ->  | C170: =IF('Student DATA Entry'!D166="","",'Student DATA Entry'!D166) ->  | D170: =IF('Student DATA Entry'!E166="","",'Student DATA Entry'!E166) ->  | E170: =IF('Student DATA Entry'!I166="","",'Student DATA Entry'!I166) ->  | F170: =IF('Student DATA Entry'!F166="","",UPPER('Student DATA Entry'!F166)) ->  | G170: =IF('Student DATA Entry'!G166="","",UPPER('Student DATA Entry'!G166)) ->  | H170: =IF('Student DATA Entry'!H166="","",UPPER('Student DATA Entry'!H166)) ->  | I170: =IF('Student DATA Entry'!K166="","",UPPER('Student DATA Entry'!K166)) ->  | J170: =IF('Student DATA Entry'!J166="","",UPPER('Student DATA Entry'!J166)) -> 
A171: =IF('Student DATA Entry'!A167="","",'Student DATA Entry'!A167) -> 164 | B171: =IF('Student DATA Entry'!B167="","",'Student DATA Entry'!B167) ->  | C171: =IF('Student DATA Entry'!D167="","",'Student DATA Entry'!D167) ->  | D171: =IF('Student DATA Entry'!E167="","",'Student DATA Entry'!E167) ->  | E171: =IF('Student DATA Entry'!I167="","",'Student DATA Entry'!I167) ->  | F171: =IF('Student DATA Entry'!F167="","",UPPER('Student DATA Entry'!F167)) ->  | G171: =IF('Student DATA Entry'!G167="","",UPPER('Student DATA Entry'!G167)) ->  | H171: =IF('Student DATA Entry'!H167="","",UPPER('Student DATA Entry'!H167)) ->  | I171: =IF('Student DATA Entry'!K167="","",UPPER('Student DATA Entry'!K167)) ->  | J171: =IF('Student DATA Entry'!J167="","",UPPER('Student DATA Entry'!J167)) -> 
A172: =IF('Student DATA Entry'!A168="","",'Student DATA Entry'!A168) -> 165 | B172: =IF('Student DATA Entry'!B168="","",'Student DATA Entry'!B168) ->  | C172: =IF('Student DATA Entry'!D168="","",'Student DATA Entry'!D168) ->  | D172: =IF('Student DATA Entry'!E168="","",'Student DATA Entry'!E168) ->  | E172: =IF('Student DATA Entry'!I168="","",'Student DATA Entry'!I168) ->  | F172: =IF('Student DATA Entry'!F168="","",UPPER('Student DATA Entry'!F168)) ->  | G172: =IF('Student DATA Entry'!G168="","",UPPER('Student DATA Entry'!G168)) ->  | H172: =IF('Student DATA Entry'!H168="","",UPPER('Student DATA Entry'!H168)) ->  | I172: =IF('Student DATA Entry'!K168="","",UPPER('Student DATA Entry'!K168)) ->  | J172: =IF('Student DATA Entry'!J168="","",UPPER('Student DATA Entry'!J168)) -> 
A173: =IF('Student DATA Entry'!A169="","",'Student DATA Entry'!A169) -> 166 | B173: =IF('Student DATA Entry'!B169="","",'Student DATA Entry'!B169) ->  | C173: =IF('Student DATA Entry'!D169="","",'Student DATA Entry'!D169) ->  | D173: =IF('Student DATA Entry'!E169="","",'Student DATA Entry'!E169) ->  | E173: =IF('Student DATA Entry'!I169="","",'Student DATA Entry'!I169) ->  | F173: =IF('Student DATA Entry'!F169="","",UPPER('Student DATA Entry'!F169)) ->  | G173: =IF('Student DATA Entry'!G169="","",UPPER('Student DATA Entry'!G169)) ->  | H173: =IF('Student DATA Entry'!H169="","",UPPER('Student DATA Entry'!H169)) ->  | I173: =IF('Student DATA Entry'!K169="","",UPPER('Student DATA Entry'!K169)) ->  | J173: =IF('Student DATA Entry'!J169="","",UPPER('Student DATA Entry'!J169)) -> 
A174: =IF('Student DATA Entry'!A170="","",'Student DATA Entry'!A170) -> 167 | B174: =IF('Student DATA Entry'!B170="","",'Student DATA Entry'!B170) ->  | C174: =IF('Student DATA Entry'!D170="","",'Student DATA Entry'!D170) ->  | D174: =IF('Student DATA Entry'!E170="","",'Student DATA Entry'!E170) ->  | E174: =IF('Student DATA Entry'!I170="","",'Student DATA Entry'!I170) ->  | F174: =IF('Student DATA Entry'!F170="","",UPPER('Student DATA Entry'!F170)) ->  | G174: =IF('Student DATA Entry'!G170="","",UPPER('Student DATA Entry'!G170)) ->  | H174: =IF('Student DATA Entry'!H170="","",UPPER('Student DATA Entry'!H170)) ->  | I174: =IF('Student DATA Entry'!K170="","",UPPER('Student DATA Entry'!K170)) ->  | J174: =IF('Student DATA Entry'!J170="","",UPPER('Student DATA Entry'!J170)) -> 
A175: =IF('Student DATA Entry'!A171="","",'Student DATA Entry'!A171) -> 168 | B175: =IF('Student DATA Entry'!B171="","",'Student DATA Entry'!B171) ->  | C175: =IF('Student DATA Entry'!D171="","",'Student DATA Entry'!D171) ->  | D175: =IF('Student DATA Entry'!E171="","",'Student DATA Entry'!E171) ->  | E175: =IF('Student DATA Entry'!I171="","",'Student DATA Entry'!I171) ->  | F175: =IF('Student DATA Entry'!F171="","",UPPER('Student DATA Entry'!F171)) ->  | G175: =IF('Student DATA Entry'!G171="","",UPPER('Student DATA Entry'!G171)) ->  | H175: =IF('Student DATA Entry'!H171="","",UPPER('Student DATA Entry'!H171)) ->  | I175: =IF('Student DATA Entry'!K171="","",UPPER('Student DATA Entry'!K171)) ->  | J175: =IF('Student DATA Entry'!J171="","",UPPER('Student DATA Entry'!J171)) -> 
A176: =IF('Student DATA Entry'!A172="","",'Student DATA Entry'!A172) -> 169 | B176: =IF('Student DATA Entry'!B172="","",'Student DATA Entry'!B172) ->  | C176: =IF('Student DATA Entry'!D172="","",'Student DATA Entry'!D172) ->  | D176: =IF('Student DATA Entry'!E172="","",'Student DATA Entry'!E172) ->  | E176: =IF('Student DATA Entry'!I172="","",'Student DATA Entry'!I172) ->  | F176: =IF('Student DATA Entry'!F172="","",UPPER('Student DATA Entry'!F172)) ->  | G176: =IF('Student DATA Entry'!G172="","",UPPER('Student DATA Entry'!G172)) ->  | H176: =IF('Student DATA Entry'!H172="","",UPPER('Student DATA Entry'!H172)) ->  | I176: =IF('Student DATA Entry'!K172="","",UPPER('Student DATA Entry'!K172)) ->  | J176: =IF('Student DATA Entry'!J172="","",UPPER('Student DATA Entry'!J172)) -> 
A177: =IF('Student DATA Entry'!A173="","",'Student DATA Entry'!A173) -> 170 | B177: =IF('Student DATA Entry'!B173="","",'Student DATA Entry'!B173) ->  | C177: =IF('Student DATA Entry'!D173="","",'Student DATA Entry'!D173) ->  | D177: =IF('Student DATA Entry'!E173="","",'Student DATA Entry'!E173) ->  | E177: =IF('Student DATA Entry'!I173="","",'Student DATA Entry'!I173) ->  | F177: =IF('Student DATA Entry'!F173="","",UPPER('Student DATA Entry'!F173)) ->  | G177: =IF('Student DATA Entry'!G173="","",UPPER('Student DATA Entry'!G173)) ->  | H177: =IF('Student DATA Entry'!H173="","",UPPER('Student DATA Entry'!H173)) ->  | I177: =IF('Student DATA Entry'!K173="","",UPPER('Student DATA Entry'!K173)) ->  | J177: =IF('Student DATA Entry'!J173="","",UPPER('Student DATA Entry'!J173)) -> 
A178: =IF('Student DATA Entry'!A174="","",'Student DATA Entry'!A174) -> 171 | B178: =IF('Student DATA Entry'!B174="","",'Student DATA Entry'!B174) ->  | C178: =IF('Student DATA Entry'!D174="","",'Student DATA Entry'!D174) ->  | D178: =IF('Student DATA Entry'!E174="","",'Student DATA Entry'!E174) ->  | E178: =IF('Student DATA Entry'!I174="","",'Student DATA Entry'!I174) ->  | F178: =IF('Student DATA Entry'!F174="","",UPPER('Student DATA Entry'!F174)) ->  | G178: =IF('Student DATA Entry'!G174="","",UPPER('Student DATA Entry'!G174)) ->  | H178: =IF('Student DATA Entry'!H174="","",UPPER('Student DATA Entry'!H174)) ->  | I178: =IF('Student DATA Entry'!K174="","",UPPER('Student DATA Entry'!K174)) ->  | J178: =IF('Student DATA Entry'!J174="","",UPPER('Student DATA Entry'!J174)) -> 
A179: =IF('Student DATA Entry'!A175="","",'Student DATA Entry'!A175) -> 172 | B179: =IF('Student DATA Entry'!B175="","",'Student DATA Entry'!B175) ->  | C179: =IF('Student DATA Entry'!D175="","",'Student DATA Entry'!D175) ->  | D179: =IF('Student DATA Entry'!E175="","",'Student DATA Entry'!E175) ->  | E179: =IF('Student DATA Entry'!I175="","",'Student DATA Entry'!I175) ->  | F179: =IF('Student DATA Entry'!F175="","",UPPER('Student DATA Entry'!F175)) ->  | G179: =IF('Student DATA Entry'!G175="","",UPPER('Student DATA Entry'!G175)) ->  | H179: =IF('Student DATA Entry'!H175="","",UPPER('Student DATA Entry'!H175)) ->  | I179: =IF('Student DATA Entry'!K175="","",UPPER('Student DATA Entry'!K175)) ->  | J179: =IF('Student DATA Entry'!J175="","",UPPER('Student DATA Entry'!J175)) -> 
A180: =IF('Student DATA Entry'!A176="","",'Student DATA Entry'!A176) -> 173 | B180: =IF('Student DATA Entry'!B176="","",'Student DATA Entry'!B176) ->  | C180: =IF('Student DATA Entry'!D176="","",'Student DATA Entry'!D176) ->  | D180: =IF('Student DATA Entry'!E176="","",'Student DATA Entry'!E176) ->  | E180: =IF('Student DATA Entry'!I176="","",'Student DATA Entry'!I176) ->  | F180: =IF('Student DATA Entry'!F176="","",UPPER('Student DATA Entry'!F176)) ->  | G180: =IF('Student DATA Entry'!G176="","",UPPER('Student DATA Entry'!G176)) ->  | H180: =IF('Student DATA Entry'!H176="","",UPPER('Student DATA Entry'!H176)) ->  | I180: =IF('Student DATA Entry'!K176="","",UPPER('Student DATA Entry'!K176)) ->  | J180: =IF('Student DATA Entry'!J176="","",UPPER('Student DATA Entry'!J176)) -> 
A181: =IF('Student DATA Entry'!A177="","",'Student DATA Entry'!A177) -> 174 | B181: =IF('Student DATA Entry'!B177="","",'Student DATA Entry'!B177) ->  | C181: =IF('Student DATA Entry'!D177="","",'Student DATA Entry'!D177) ->  | D181: =IF('Student DATA Entry'!E177="","",'Student DATA Entry'!E177) ->  | E181: =IF('Student DATA Entry'!I177="","",'Student DATA Entry'!I177) ->  | F181: =IF('Student DATA Entry'!F177="","",UPPER('Student DATA Entry'!F177)) ->  | G181: =IF('Student DATA Entry'!G177="","",UPPER('Student DATA Entry'!G177)) ->  | H181: =IF('Student DATA Entry'!H177="","",UPPER('Student DATA Entry'!H177)) ->  | I181: =IF('Student DATA Entry'!K177="","",UPPER('Student DATA Entry'!K177)) ->  | J181: =IF('Student DATA Entry'!J177="","",UPPER('Student DATA Entry'!J177)) -> 
A182: =IF('Student DATA Entry'!A178="","",'Student DATA Entry'!A178) -> 175 | B182: =IF('Student DATA Entry'!B178="","",'Student DATA Entry'!B178) ->  | C182: =IF('Student DATA Entry'!D178="","",'Student DATA Entry'!D178) ->  | D182: =IF('Student DATA Entry'!E178="","",'Student DATA Entry'!E178) ->  | E182: =IF('Student DATA Entry'!I178="","",'Student DATA Entry'!I178) ->  | F182: =IF('Student DATA Entry'!F178="","",UPPER('Student DATA Entry'!F178)) ->  | G182: =IF('Student DATA Entry'!G178="","",UPPER('Student DATA Entry'!G178)) ->  | H182: =IF('Student DATA Entry'!H178="","",UPPER('Student DATA Entry'!H178)) ->  | I182: =IF('Student DATA Entry'!K178="","",UPPER('Student DATA Entry'!K178)) ->  | J182: =IF('Student DATA Entry'!J178="","",UPPER('Student DATA Entry'!J178)) -> 
A183: =IF('Student DATA Entry'!A179="","",'Student DATA Entry'!A179) -> 176 | B183: =IF('Student DATA Entry'!B179="","",'Student DATA Entry'!B179) ->  | C183: =IF('Student DATA Entry'!D179="","",'Student DATA Entry'!D179) ->  | D183: =IF('Student DATA Entry'!E179="","",'Student DATA Entry'!E179) ->  | E183: =IF('Student DATA Entry'!I179="","",'Student DATA Entry'!I179) ->  | F183: =IF('Student DATA Entry'!F179="","",UPPER('Student DATA Entry'!F179)) ->  | G183: =IF('Student DATA Entry'!G179="","",UPPER('Student DATA Entry'!G179)) ->  | H183: =IF('Student DATA Entry'!H179="","",UPPER('Student DATA Entry'!H179)) ->  | I183: =IF('Student DATA Entry'!K179="","",UPPER('Student DATA Entry'!K179)) ->  | J183: =IF('Student DATA Entry'!J179="","",UPPER('Student DATA Entry'!J179)) -> 
A184: =IF('Student DATA Entry'!A180="","",'Student DATA Entry'!A180) -> 177 | B184: =IF('Student DATA Entry'!B180="","",'Student DATA Entry'!B180) ->  | C184: =IF('Student DATA Entry'!D180="","",'Student DATA Entry'!D180) ->  | D184: =IF('Student DATA Entry'!E180="","",'Student DATA Entry'!E180) ->  | E184: =IF('Student DATA Entry'!I180="","",'Student DATA Entry'!I180) ->  | F184: =IF('Student DATA Entry'!F180="","",UPPER('Student DATA Entry'!F180)) ->  | G184: =IF('Student DATA Entry'!G180="","",UPPER('Student DATA Entry'!G180)) ->  | H184: =IF('Student DATA Entry'!H180="","",UPPER('Student DATA Entry'!H180)) ->  | I184: =IF('Student DATA Entry'!K180="","",UPPER('Student DATA Entry'!K180)) ->  | J184: =IF('Student DATA Entry'!J180="","",UPPER('Student DATA Entry'!J180)) -> 
A185: =IF('Student DATA Entry'!A181="","",'Student DATA Entry'!A181) -> 178 | B185: =IF('Student DATA Entry'!B181="","",'Student DATA Entry'!B181) ->  | C185: =IF('Student DATA Entry'!D181="","",'Student DATA Entry'!D181) ->  | D185: =IF('Student DATA Entry'!E181="","",'Student DATA Entry'!E181) ->  | E185: =IF('Student DATA Entry'!I181="","",'Student DATA Entry'!I181) ->  | F185: =IF('Student DATA Entry'!F181="","",UPPER('Student DATA Entry'!F181)) ->  | G185: =IF('Student DATA Entry'!G181="","",UPPER('Student DATA Entry'!G181)) ->  | H185: =IF('Student DATA Entry'!H181="","",UPPER('Student DATA Entry'!H181)) ->  | I185: =IF('Student DATA Entry'!K181="","",UPPER('Student DATA Entry'!K181)) ->  | J185: =IF('Student DATA Entry'!J181="","",UPPER('Student DATA Entry'!J181)) -> 
A186: =IF('Student DATA Entry'!A182="","",'Student DATA Entry'!A182) -> 179 | B186: =IF('Student DATA Entry'!B182="","",'Student DATA Entry'!B182) ->  | C186: =IF('Student DATA Entry'!D182="","",'Student DATA Entry'!D182) ->  | D186: =IF('Student DATA Entry'!E182="","",'Student DATA Entry'!E182) ->  | E186: =IF('Student DATA Entry'!I182="","",'Student DATA Entry'!I182) ->  | F186: =IF('Student DATA Entry'!F182="","",UPPER('Student DATA Entry'!F182)) ->  | G186: =IF('Student DATA Entry'!G182="","",UPPER('Student DATA Entry'!G182)) ->  | H186: =IF('Student DATA Entry'!H182="","",UPPER('Student DATA Entry'!H182)) ->  | I186: =IF('Student DATA Entry'!K182="","",UPPER('Student DATA Entry'!K182)) ->  | J186: =IF('Student DATA Entry'!J182="","",UPPER('Student DATA Entry'!J182)) -> 
A187: =IF('Student DATA Entry'!A183="","",'Student DATA Entry'!A183) -> 180 | B187: =IF('Student DATA Entry'!B183="","",'Student DATA Entry'!B183) ->  | C187: =IF('Student DATA Entry'!D183="","",'Student DATA Entry'!D183) ->  | D187: =IF('Student DATA Entry'!E183="","",'Student DATA Entry'!E183) ->  | E187: =IF('Student DATA Entry'!I183="","",'Student DATA Entry'!I183) ->  | F187: =IF('Student DATA Entry'!F183="","",UPPER('Student DATA Entry'!F183)) ->  | G187: =IF('Student DATA Entry'!G183="","",UPPER('Student DATA Entry'!G183)) ->  | H187: =IF('Student DATA Entry'!H183="","",UPPER('Student DATA Entry'!H183)) ->  | I187: =IF('Student DATA Entry'!K183="","",UPPER('Student DATA Entry'!K183)) ->  | J187: =IF('Student DATA Entry'!J183="","",UPPER('Student DATA Entry'!J183)) -> 
A188: =IF('Student DATA Entry'!A184="","",'Student DATA Entry'!A184) -> 181 | B188: =IF('Student DATA Entry'!B184="","",'Student DATA Entry'!B184) ->  | C188: =IF('Student DATA Entry'!D184="","",'Student DATA Entry'!D184) ->  | D188: =IF('Student DATA Entry'!E184="","",'Student DATA Entry'!E184) ->  | E188: =IF('Student DATA Entry'!I184="","",'Student DATA Entry'!I184) ->  | F188: =IF('Student DATA Entry'!F184="","",UPPER('Student DATA Entry'!F184)) ->  | G188: =IF('Student DATA Entry'!G184="","",UPPER('Student DATA Entry'!G184)) ->  | H188: =IF('Student DATA Entry'!H184="","",UPPER('Student DATA Entry'!H184)) ->  | I188: =IF('Student DATA Entry'!K184="","",UPPER('Student DATA Entry'!K184)) ->  | J188: =IF('Student DATA Entry'!J184="","",UPPER('Student DATA Entry'!J184)) -> 
A189: =IF('Student DATA Entry'!A185="","",'Student DATA Entry'!A185) -> 182 | B189: =IF('Student DATA Entry'!B185="","",'Student DATA Entry'!B185) ->  | C189: =IF('Student DATA Entry'!D185="","",'Student DATA Entry'!D185) ->  | D189: =IF('Student DATA Entry'!E185="","",'Student DATA Entry'!E185) ->  | E189: =IF('Student DATA Entry'!I185="","",'Student DATA Entry'!I185) ->  | F189: =IF('Student DATA Entry'!F185="","",UPPER('Student DATA Entry'!F185)) ->  | G189: =IF('Student DATA Entry'!G185="","",UPPER('Student DATA Entry'!G185)) ->  | H189: =IF('Student DATA Entry'!H185="","",UPPER('Student DATA Entry'!H185)) ->  | I189: =IF('Student DATA Entry'!K185="","",UPPER('Student DATA Entry'!K185)) ->  | J189: =IF('Student DATA Entry'!J185="","",UPPER('Student DATA Entry'!J185)) -> 
A190: =IF('Student DATA Entry'!A186="","",'Student DATA Entry'!A186) -> 183 | B190: =IF('Student DATA Entry'!B186="","",'Student DATA Entry'!B186) ->  | C190: =IF('Student DATA Entry'!D186="","",'Student DATA Entry'!D186) ->  | D190: =IF('Student DATA Entry'!E186="","",'Student DATA Entry'!E186) ->  | E190: =IF('Student DATA Entry'!I186="","",'Student DATA Entry'!I186) ->  | F190: =IF('Student DATA Entry'!F186="","",UPPER('Student DATA Entry'!F186)) ->  | G190: =IF('Student DATA Entry'!G186="","",UPPER('Student DATA Entry'!G186)) ->  | H190: =IF('Student DATA Entry'!H186="","",UPPER('Student DATA Entry'!H186)) ->  | I190: =IF('Student DATA Entry'!K186="","",UPPER('Student DATA Entry'!K186)) ->  | J190: =IF('Student DATA Entry'!J186="","",UPPER('Student DATA Entry'!J186)) -> 
A191: =IF('Student DATA Entry'!A187="","",'Student DATA Entry'!A187) -> 184 | B191: =IF('Student DATA Entry'!B187="","",'Student DATA Entry'!B187) ->  | C191: =IF('Student DATA Entry'!D187="","",'Student DATA Entry'!D187) ->  | D191: =IF('Student DATA Entry'!E187="","",'Student DATA Entry'!E187) ->  | E191: =IF('Student DATA Entry'!I187="","",'Student DATA Entry'!I187) ->  | F191: =IF('Student DATA Entry'!F187="","",UPPER('Student DATA Entry'!F187)) ->  | G191: =IF('Student DATA Entry'!G187="","",UPPER('Student DATA Entry'!G187)) ->  | H191: =IF('Student DATA Entry'!H187="","",UPPER('Student DATA Entry'!H187)) ->  | I191: =IF('Student DATA Entry'!K187="","",UPPER('Student DATA Entry'!K187)) ->  | J191: =IF('Student DATA Entry'!J187="","",UPPER('Student DATA Entry'!J187)) -> 
A192: =IF('Student DATA Entry'!A188="","",'Student DATA Entry'!A188) -> 185 | B192: =IF('Student DATA Entry'!B188="","",'Student DATA Entry'!B188) ->  | C192: =IF('Student DATA Entry'!D188="","",'Student DATA Entry'!D188) ->  | D192: =IF('Student DATA Entry'!E188="","",'Student DATA Entry'!E188) ->  | E192: =IF('Student DATA Entry'!I188="","",'Student DATA Entry'!I188) ->  | F192: =IF('Student DATA Entry'!F188="","",UPPER('Student DATA Entry'!F188)) ->  | G192: =IF('Student DATA Entry'!G188="","",UPPER('Student DATA Entry'!G188)) ->  | H192: =IF('Student DATA Entry'!H188="","",UPPER('Student DATA Entry'!H188)) ->  | I192: =IF('Student DATA Entry'!K188="","",UPPER('Student DATA Entry'!K188)) ->  | J192: =IF('Student DATA Entry'!J188="","",UPPER('Student DATA Entry'!J188)) -> 
A193: =IF('Student DATA Entry'!A189="","",'Student DATA Entry'!A189) -> 186 | B193: =IF('Student DATA Entry'!B189="","",'Student DATA Entry'!B189) ->  | C193: =IF('Student DATA Entry'!D189="","",'Student DATA Entry'!D189) ->  | D193: =IF('Student DATA Entry'!E189="","",'Student DATA Entry'!E189) ->  | E193: =IF('Student DATA Entry'!I189="","",'Student DATA Entry'!I189) ->  | F193: =IF('Student DATA Entry'!F189="","",UPPER('Student DATA Entry'!F189)) ->  | G193: =IF('Student DATA Entry'!G189="","",UPPER('Student DATA Entry'!G189)) ->  | H193: =IF('Student DATA Entry'!H189="","",UPPER('Student DATA Entry'!H189)) ->  | I193: =IF('Student DATA Entry'!K189="","",UPPER('Student DATA Entry'!K189)) ->  | J193: =IF('Student DATA Entry'!J189="","",UPPER('Student DATA Entry'!J189)) -> 
A194: =IF('Student DATA Entry'!A190="","",'Student DATA Entry'!A190) -> 187 | B194: =IF('Student DATA Entry'!B190="","",'Student DATA Entry'!B190) ->  | C194: =IF('Student DATA Entry'!D190="","",'Student DATA Entry'!D190) ->  | D194: =IF('Student DATA Entry'!E190="","",'Student DATA Entry'!E190) ->  | E194: =IF('Student DATA Entry'!I190="","",'Student DATA Entry'!I190) ->  | F194: =IF('Student DATA Entry'!F190="","",UPPER('Student DATA Entry'!F190)) ->  | G194: =IF('Student DATA Entry'!G190="","",UPPER('Student DATA Entry'!G190)) ->  | H194: =IF('Student DATA Entry'!H190="","",UPPER('Student DATA Entry'!H190)) ->  | I194: =IF('Student DATA Entry'!K190="","",UPPER('Student DATA Entry'!K190)) ->  | J194: =IF('Student DATA Entry'!J190="","",UPPER('Student DATA Entry'!J190)) -> 
A195: =IF('Student DATA Entry'!A191="","",'Student DATA Entry'!A191) -> 188 | B195: =IF('Student DATA Entry'!B191="","",'Student DATA Entry'!B191) ->  | C195: =IF('Student DATA Entry'!D191="","",'Student DATA Entry'!D191) ->  | D195: =IF('Student DATA Entry'!E191="","",'Student DATA Entry'!E191) ->  | E195: =IF('Student DATA Entry'!I191="","",'Student DATA Entry'!I191) ->  | F195: =IF('Student DATA Entry'!F191="","",UPPER('Student DATA Entry'!F191)) ->  | G195: =IF('Student DATA Entry'!G191="","",UPPER('Student DATA Entry'!G191)) ->  | H195: =IF('Student DATA Entry'!H191="","",UPPER('Student DATA Entry'!H191)) ->  | I195: =IF('Student DATA Entry'!K191="","",UPPER('Student DATA Entry'!K191)) ->  | J195: =IF('Student DATA Entry'!J191="","",UPPER('Student DATA Entry'!J191)) -> 
A196: =IF('Student DATA Entry'!A192="","",'Student DATA Entry'!A192) -> 189 | B196: =IF('Student DATA Entry'!B192="","",'Student DATA Entry'!B192) ->  | C196: =IF('Student DATA Entry'!D192="","",'Student DATA Entry'!D192) ->  | D196: =IF('Student DATA Entry'!E192="","",'Student DATA Entry'!E192) ->  | E196: =IF('Student DATA Entry'!I192="","",'Student DATA Entry'!I192) ->  | F196: =IF('Student DATA Entry'!F192="","",UPPER('Student DATA Entry'!F192)) ->  | G196: =IF('Student DATA Entry'!G192="","",UPPER('Student DATA Entry'!G192)) ->  | H196: =IF('Student DATA Entry'!H192="","",UPPER('Student DATA Entry'!H192)) ->  | I196: =IF('Student DATA Entry'!K192="","",UPPER('Student DATA Entry'!K192)) ->  | J196: =IF('Student DATA Entry'!J192="","",UPPER('Student DATA Entry'!J192)) -> 
A197: =IF('Student DATA Entry'!A193="","",'Student DATA Entry'!A193) -> 190 | B197: =IF('Student DATA Entry'!B193="","",'Student DATA Entry'!B193) ->  | C197: =IF('Student DATA Entry'!D193="","",'Student DATA Entry'!D193) ->  | D197: =IF('Student DATA Entry'!E193="","",'Student DATA Entry'!E193) ->  | E197: =IF('Student DATA Entry'!I193="","",'Student DATA Entry'!I193) ->  | F197: =IF('Student DATA Entry'!F193="","",UPPER('Student DATA Entry'!F193)) ->  | G197: =IF('Student DATA Entry'!G193="","",UPPER('Student DATA Entry'!G193)) ->  | H197: =IF('Student DATA Entry'!H193="","",UPPER('Student DATA Entry'!H193)) ->  | I197: =IF('Student DATA Entry'!K193="","",UPPER('Student DATA Entry'!K193)) ->  | J197: =IF('Student DATA Entry'!J193="","",UPPER('Student DATA Entry'!J193)) -> 
A198: =IF('Student DATA Entry'!A194="","",'Student DATA Entry'!A194) -> 191 | B198: =IF('Student DATA Entry'!B194="","",'Student DATA Entry'!B194) ->  | C198: =IF('Student DATA Entry'!D194="","",'Student DATA Entry'!D194) ->  | D198: =IF('Student DATA Entry'!E194="","",'Student DATA Entry'!E194) ->  | E198: =IF('Student DATA Entry'!I194="","",'Student DATA Entry'!I194) ->  | F198: =IF('Student DATA Entry'!F194="","",UPPER('Student DATA Entry'!F194)) ->  | G198: =IF('Student DATA Entry'!G194="","",UPPER('Student DATA Entry'!G194)) ->  | H198: =IF('Student DATA Entry'!H194="","",UPPER('Student DATA Entry'!H194)) ->  | I198: =IF('Student DATA Entry'!K194="","",UPPER('Student DATA Entry'!K194)) ->  | J198: =IF('Student DATA Entry'!J194="","",UPPER('Student DATA Entry'!J194)) -> 
A199: =IF('Student DATA Entry'!A195="","",'Student DATA Entry'!A195) -> 192 | B199: =IF('Student DATA Entry'!B195="","",'Student DATA Entry'!B195) ->  | C199: =IF('Student DATA Entry'!D195="","",'Student DATA Entry'!D195) ->  | D199: =IF('Student DATA Entry'!E195="","",'Student DATA Entry'!E195) ->  | E199: =IF('Student DATA Entry'!I195="","",'Student DATA Entry'!I195) ->  | F199: =IF('Student DATA Entry'!F195="","",UPPER('Student DATA Entry'!F195)) ->  | G199: =IF('Student DATA Entry'!G195="","",UPPER('Student DATA Entry'!G195)) ->  | H199: =IF('Student DATA Entry'!H195="","",UPPER('Student DATA Entry'!H195)) ->  | I199: =IF('Student DATA Entry'!K195="","",UPPER('Student DATA Entry'!K195)) ->  | J199: =IF('Student DATA Entry'!J195="","",UPPER('Student DATA Entry'!J195)) -> 
A200: =IF('Student DATA Entry'!A196="","",'Student DATA Entry'!A196) -> 193 | B200: =IF('Student DATA Entry'!B196="","",'Student DATA Entry'!B196) ->  | C200: =IF('Student DATA Entry'!D196="","",'Student DATA Entry'!D196) ->  | D200: =IF('Student DATA Entry'!E196="","",'Student DATA Entry'!E196) ->  | E200: =IF('Student DATA Entry'!I196="","",'Student DATA Entry'!I196) ->  | F200: =IF('Student DATA Entry'!F196="","",UPPER('Student DATA Entry'!F196)) ->  | G200: =IF('Student DATA Entry'!G196="","",UPPER('Student DATA Entry'!G196)) ->  | H200: =IF('Student DATA Entry'!H196="","",UPPER('Student DATA Entry'!H196)) ->  | I200: =IF('Student DATA Entry'!K196="","",UPPER('Student DATA Entry'!K196)) ->  | J200: =IF('Student DATA Entry'!J196="","",UPPER('Student DATA Entry'!J196)) -> 
... 9 more rows

Sheet Statement of Marks
A2: =IF('Master Sheet'!D11="Hindi",CONCATENATE("विद्यालय का नाम :-"," ",'Master Sheet'!D8),CONCATENATE("School Name :-"," ",'Master Sheet'!D7)) -> विद्यालय का नाम :- महात्मा गाँधी राजकीय विद्यालय (अंग्रेजी माध्यम) बर, पाली | X2: =IF('Master Sheet'!$D$11="Hindi","परीक्षाफल पत्रक ","Exam Result Sheet") -> परीक्षाफल पत्रक | AL2: ='Marks Entry'!U1 -> Optional Subject - 01 | BI2: ='Marks Entry'!AC1 -> Optional Subject - 02 | CF2: ='Marks Entry'!AK1 -> Optional Subject - 03 | DD2: ='Marks Entry'!AS1 -> Additional Sub. / Vocational Subject | EC2: =IF('Master Sheet'!D11="Hindi","अनिवार्य विषय","Compulsory Subject") -> अनिवार्य विषय | FG2: ='Student DATA Entry'!L2 -> Total Attendance | FJ2: =IF('Master Sheet'!D11="Hindi","विषयवार परिणाम","Subject-wise Result") -> विषयवार परिणाम | GT2: =IF('Master Sheet'!D11="Hindi","विशेष विवरण","Specifications") -> विशेष विवरण | GY2: =IF('Master Sheet'!D11="Hindi","मुख्य परीक्षा परिणाम ","Main Exam Result") -> मुख्य परीक्षा परिणाम | HE2: =IF('Master Sheet'!D11="Hindi","पूरक परीक्षा उतीर्ण होने के पश्चात् अंतिम परिणाम","Final Result after Passing the Supplementary Exam") -> पूरक परीक्षा उतीर्ण होने के पश्चात् अंतिम परिणाम
A3: =IF('Master Sheet'!$D$11="Hindi","कक्षा :-","Class :-") -> कक्षा :- | D3: ='Marks Entry'!H2 -> 11 | E3: =CONCATENATE('Marks Entry'!G3," ",'Marks Entry'!H3) -> संकाय :- Arts | G3: =CONCATENATE('Marks Entry'!G1," ",'Marks Entry'!H1) -> सत्र :- 2023-2024 | J3: =IF('Marks Entry'!K1="","",'Marks Entry'!K1) -> Com. Hindi | X3: =IF('Marks Entry'!P1="","",'Marks Entry'!P1) -> Com. English | AL3: =IF('Marks Entry'!U2="","",'Marks Entry'!U2) -> POLITICAL SCIENCE | AR3: =IF('Marks Entry'!Y2="","",'Marks Entry'!Y2) -> BIOLOGY | AW3: =IF('Marks Entry'!AA2="","",'Marks Entry'!AA2) ->  | BC3: =IF('Marks Entry'!AA2="","",'Marks Entry'!AA2) ->  | BI3: =IF('Marks Entry'!AC2="","",'Marks Entry'!AC2) -> HISTORY | BO3: =IF('Marks Entry'!AG2="","",'Marks Entry'!AG2) -> ACCOUNTANCY | BT3: =IF('Marks Entry'!AI2="","",'Marks Entry'!AI2) -> ECONOMICS | CF3: =IF('Marks Entry'!AK2="","",'Marks Entry'!AK2) -> GEOGRAPHY | CL3: =IF('Marks Entry'!AO2="","",'Marks Entry'!AO2) -> HOME SCIENCE | CQ3: =IF('Marks Entry'!AQ2="","",'Marks Entry'!AQ2) -> TYPING | CW3: =IF('Marks Entry'!AQ2="","",'Marks Entry'!AQ2) -> TYPING | DD3: =IF('Marks Entry'!AS2="","",IF(AND('Master Sheet'!$D$19="YES",'Marks Entry'!$BA$1=1),'Marks Entry'!AS2,"")) ->  | DK3: =IF('Marks Entry'!AW2="","",IF(AND('Master Sheet'!$D$19="YES",'Marks Entry'!$BA$1=1),'Marks Entry'!AW2,"")) ->  | DP3: =IF('Marks Entry'!AY2="","",IF(AND('Master Sheet'!$D$19="YES",'Marks Entry'!$BA$1=1),'Marks Entry'!AY2,"")) ->  | DV3: =IF('Marks Entry'!BT2="","",'Marks Entry'!BT2) ->  | EL3: fo"k; okj ifj.kke | ER3: vuqRrkh.kZ ;ksX; fo"k; | ES3: iwjd ;ksX; fo"k; | ET3: 1 d`ikad ;ksX; fo"k; | EU3: 2 d`ikad ;ksX; fo"k; | EV3: iqu% ijh{kk ;ksX; fo"k; | EW3: vfrfjDr fo"k; | EY3: ='Marks Entry'!BE1 -> आजादी के बाद का स्वर्णिम भारत
A4: ='Marks Entry'!A4 -> क्रमांक | B4: ='Marks Entry'!B4 -> नामांक Roll No. | C4: ='Marks Entry'!D4 -> प्रवेशांक SR. No. | D4: ='Marks Entry'!E4 -> जन्मतिथि Date of Birth | E4: =CONCATENATE('Marks Entry'!F5," ",'Marks Entry'!F6) -> विद्यार्थी का नाम Name of student | F4: =CONCATENATE('Marks Entry'!G5," ",'Marks Entry'!G6) -> पिता का नाम Father's Name | G4: =CONCATENATE('Marks Entry'!H5," ",'Marks Entry'!H6) -> माता का नाम Mother's Name | H4: ='Marks Entry'!I3 -> जाति वर्ग (Category) | I4: ='Marks Entry'!J3 -> लिंग (Gender) | J4: ='Marks Entry'!K4 -> सामयिक परख | N4: ='Marks Entry'!N4 -> अर्द्धवार्षिक | O4: =IF('Master Sheet'!$D$11="Hindi","अर्द्ध वा. तक योग","Total Till H.Y.") -> अर्द्ध वा. तक योग | P4: ='Marks Entry'!O4 -> वार्षिक | Q4: =IF('Master Sheet'!$D$11="Hindi","विषय कुल योग ","Subject Total") -> विषय कुल योग | R4: EXEMPTION | S4: EXEMPTION | T4: fo"k; iw.kkZad lS- | U4: 2T+E OR 2E+T | V4: fo"k; ifj.kke | W4: fo"k; Js.kh | X4: ='Marks Entry'!P4 -> सामयिक परख | AB4: ='Marks Entry'!S4 -> अर्द्धवार्षिक | AC4: =IF('Master Sheet'!$D$11="Hindi","अर्द्ध वा. तक योग","Total Till H.Y.") -> अर्द्ध वा. तक योग | AD4: ='Marks Entry'!T4 -> वार्षिक | AE4: =IF('Master Sheet'!$D$11="Hindi","विषय कुल योग ","Subject Total") -> विषय कुल योग | AF4: EXEMPTION | AG4: EXEMPTION | AH4: fo"k; iw.kkZad lS- | AI4: 2T+E OR 2E+T | AJ4: fo"k; ifj.kke | AK4: fo"k; Js.kh | AL4: =IF('Marks Entry'!U4="","",'Marks Entry'!U4) -> विषय कोड | AM4: =IF('Marks Entry'!V4="","",'Marks Entry'!V4) -> सामयिक परख | AQ4: =IF('Marks Entry'!Y4="","",'Marks Entry'!Y4) -> अर्द्धवार्षिक | AT4: =IF('Master Sheet'!$D$11="Hindi","अर्द्ध वा. तक योग","Total Till H.Y.") -> अर्द्ध वा. तक योग | AU4: =IF('Marks Entry'!AA4="","",'Marks Entry'!AA4) -> वार्षिक | AX4: =IF('Master Sheet'!$D$11="Hindi","सैद्धांतिक योग","Theoretical Sub Total") -> सैद्धांतिक योग | AY4: =IF('Master Sheet'!$D$11="Hindi","प्रायोगिक योग","Practical Sub. Total") -> प्रायोगिक योग | AZ4: =IF('Master Sheet'!$D$11="Hindi","विषय कुल योग ","Subject Total") -> विषय कुल योग | BA4: EXEMPTION | BB4: EXEMPTION | BC4: fo"k; okf"kZd lS- | BD4: fo"k; iw.kkZad izk- | BE4: fo"k; iw.kkZad lS- | BF4: 2T+E OR 2E+T | BG4: fo"k; ifj.kke | BH4: fo"k; Js.kh | BI4: =IF('Marks Entry'!AC4="","",'Marks Entry'!AC4) -> विषय कोड | BJ4: =IF('Marks Entry'!AD4="","",'Marks Entry'!AD4) -> सामयिक परख | BN4: =IF('Marks Entry'!AG4="","",'Marks Entry'!AG4) -> अर्द्धवार्षिक | BQ4: =IF('Master Sheet'!$D$11="Hindi","अर्द्ध वा. तक योग","Total Till H.Y.") -> अर्द्ध वा. तक योग | BR4: =IF('Marks Entry'!AI4="","",'Marks Entry'!AI4) -> वार्षिक | BU4: =IF('Master Sheet'!$D$11="Hindi","सैद्धांतिक योग","Theoretical Sub Total") -> सैद्धांतिक योग | BV4: =IF('Master Sheet'!$D$11="Hindi","प्रायोगिक योग","Practical Sub. Total") -> प्रायोगिक योग | BW4: =IF('Master Sheet'!$D$11="Hindi","विषय कुल योग ","Subject Total") -> विषय कुल योग | BX4: EXEMPTION | BY4: EXEMPTION | BZ4: fo"k; okf"kZd lS- | CA4: fo"k; iw.kkZad izk- | CB4: fo"k; iw.kkZad lS- | CC4: 2T+E OR 2E+T | CD4: fo"k; ifj.kke | CE4: fo"k; Js.kh | CF4: =IF('Marks Entry'!AK4="","",'Marks Entry'!AK4) -> विषय कोड | CG4: =IF('Marks Entry'!AL4="","",'Marks Entry'!AL4) -> सामयिक परख | CK4: =IF('Marks Entry'!AO4="","",'Marks Entry'!AO4) -> अर्द्धवार्षिक | CN4: =IF('Master Sheet'!$D$11="Hindi","अर्द्ध वा. तक योग","Total Till H.Y.") -> अर्द्ध वा. तक योग | CO4: =IF('Marks Entry'!AQ4="","",'Marks Entry'!AQ4) -> वार्षिक | CR4: =IF('Master Sheet'!$D$11="Hindi","सैद्धांतिक योग","Theoretical Sub Total") -> सैद्धांतिक योग | CS4: =IF('Master Sheet'!$D$11="Hindi","प्रायोगिक योग","Practical Sub. Total") -> प्रायोगिक योग | CT4: =IF('Master Sheet'!$D$11="Hindi","विषय कुल योग ","Subject Total") -> विषय कुल योग | CU4: EXEMPTION | CV4: EXEMPTION | CW4: fo"k; okf"kZd lS- | CX4: fo"k; iw.kkZad izk- | CY4: fo"k; iw.kkZad lS- | CZ4: 2T+E OR 2E+T | DA4: fo"k; ifj.kke | DB4: fo"k; Js.kh | DC4: TOTAL EXEMPTION | DD4: =IF('Marks Entry'!AS4="","",'Marks Entry'!AS4) -> विषय कोड | DE4: =IF('Marks Entry'!AT4="","",'Marks Entry'!AT4) -> सामयिक परख | DI4: =IF('Marks Entry'!AW4="","",'Marks Entry'!AW4) -> अर्द्धवार्षिक | DL4: =IF('Master Sheet'!$D$11="Hindi","अर्द्ध वा. तक योग","Total Till H.Y.") -> अर्द्ध वा. तक योग | DM4: =IF('Marks Entry'!AY4="","",'Marks Entry'!AY4) -> वार्षिक | DQ4: =IF('Master Sheet'!$D$11="Hindi","सैद्धांतिक योग","Theoretical Sub Total") -> सैद्धांतिक योग | DR4: =IF('Master Sheet'!$D$11="Hindi","पोर्टफोलियो योग","Portfolio Total") -> पोर्टफोलियो योग | DS4: =IF('Master Sheet'!$D$11="Hindi","प्रायोगिक योग","Practical Sub. Total") -> प्रायोगिक योग | DT4: =IF('Master Sheet'!$D$11="Hindi","विषय कुल योग ","Subject Total") -> विषय कुल योग | DU4: EXEMPTION | DV4: EXEMPTION | DW4: fo"k; okf"kZd lS- | DX4: fo"k; iw.kkZad izk- | DY4: fo"k; iw.kkZad lS- | DZ4: 2T+E OR 2E+T | EA4: fo"k; ifj.kke | EB4: fo"k; Js.kh | EC4: ='Marks Entry'!BB2 -> जीवन कौशल | EG4: EXEMPTION | EH4: EXEMPTION | EI4: fo"k; iw.kkZad lS- | EJ4: 2T+E OR 2E+T | EK4: fo"k; xszM | EX4: mRrh.kZ@ lkuqxzg mRrh.kZ@ vuqRrh.kZ@ iwjd@ vuqifLFkr | EY4: =IF('Marks Entry'!BE3="","",'Marks Entry'!BE3) -> सामयिक परख | FC4: =IF('Marks Entry'!BH3="","",'Marks Entry'!BH3) -> अर्द्धवार्षिक | FD4: =IF('Marks Entry'!BI3="","",'Marks Entry'!BI3) -> वार्षिक | FE4: =IF('Master Sheet'!$D$11="Hindi","विषय कुल योग ","Subject Total") -> विषय कुल योग | FF4: =IF('Master Sheet'!$D$11="Hindi","विषय ग्रेड","Sub. Grade") -> विषय ग्रेड | FG4: =IF('Master Sheet'!D11="Hindi","कुल कार्य दिवस","Total Working Days") -> कुल कार्य दिवस | FH4: =IF('Master Sheet'!D11="Hindi","कुल उपस्थिति","Student's Attendance") -> कुल उपस्थिति | FI4: =IF('Master Sheet'!D11="Hindi","उपस्थिति प्रतिशत","Attendance Percentage") -> उपस्थिति प्रतिशत | FJ4: =J3 -> Com. Hindi | FM4: =X3 -> Com. English | FQ4: =AL2 -> Optional Subject - 01 | FX4: =BI2 -> Optional Subject - 02 | GE4: =CF2 -> Optional Subject - 03 | GL4: =DD2 -> Additional Sub. / Vocational Subject | GR4: =EC4 -> जीवन कौशल | GS4: =EY3 -> आजादी के बाद का स्वर्णिम भारत | GT4: =IF('Master Sheet'!D11="Hindi","अनुतीर्ण विषय","Failed Subject") -> अनुतीर्ण विषय | GU4: =IF('Master Sheet'!D11="Hindi","पूरक विषय","Supplementary Subject") -> पूरक विषय | GV4: =IF('Master Sheet'!D11="Hindi","सानुग्रह उतीर्ण विषय","Subject Of Grace") -> सानुग्रह उतीर्ण विषय | GW4: =IF('Master Sheet'!D11="Hindi","पुनः परीक्षा के विषय","Subject of Re-Exam") -> पुनः परीक्षा के विषय | GX4: =IF('Master Sheet'!D11="Hindi","विशेष योग्यता प्राप्त विषय","Subjects Of Dictation Marks") -> विशेष योग्यता प्राप्त विषय | GY4: =IF('Master Sheet'!D11="Hindi","परिणाम :- उतीर्ण/ सा.उतीर्ण/ पूरक/ पुनः परीक्षा/ अनुतीर्ण","Result :- PASS/ BY GRACE PASS/ SUPPLEMENTARY/ RE-EXAM/ FAIL") -> परिणाम :- उतीर्ण/ सा.उतीर्ण/ पूरक/ पुनः परीक्षा/ अनुतीर्ण | GZ4: =IF('Master Sheet'!D11="Hindi","सर्व योग प्राप्तांक","Grand Total") -> सर्व योग प्राप्तांक | HA4: izfr'kr | HB4: =IF('Master Sheet'!D11="Hindi","श्रेणी","Division") -> श्रेणी | HC4: =IF('Master Sheet'!D11="Hindi","प्रतिशत","Percentage") -> प्रतिशत | HD4: =IF('Master Sheet'!D11="Hindi","कक्षा में स्थान","Position in the Class") -> कक्षा में स्थान | HE4: =IF('Master Sheet'!D11="Hindi","पूरक परीक्षा का परिणाम","Result of Supplementary Exam") -> पूरक परीक्षा का परिणाम | HF4: =IF('Master Sheet'!D11="Hindi","पूरक परीक्षा उतीर्ण के बाद प्रतिशत","Percentage after Passing the Supplementary Exam") -> पूरक परीक्षा उतीर्ण के बाद प्रतिशत | HG4: =IF('Master Sheet'!D11="Hindi","श्रेणी","Division") -> श्रेणी | HH4: =IF('Master Sheet'!D11="Hindi","पूरक परीक्षा उतीर्ण के पश्चात् परिणाम","Final Result after Passing the Supplementary Exam") -> पूरक परीक्षा उतीर्ण के पश्चात् परिणाम | HI4: =IF('Master Sheet'!D11="Hindi","विशेष विवरण","Specifications") -> विशेष विवरण | HY4: iwjd@ iqu% ijh{kk iw.kkZad | IE4: iwjd@iqu% ijh{kk izkIrkad | IK4: fo"k; ifj.kke | IT4: dqy vad | IY4: ;ksx | IZ4: izfr'kr | JA4: iw.kkZd
J5: ='Marks Entry'!K5 -> प्रथम परख | K5: ='Marks Entry'!L5 -> द्वितीय परख | L5: ='Marks Entry'!M5 -> तृतीय परख | M5: =IF('Master Sheet'!$D$11="Hindi","सा. परख योग","Test Total") -> सा. परख योग | X5: ='Marks Entry'!P5 -> प्रथम परख | Y5: ='Marks Entry'!Q5 -> द्वितीय परख | Z5: ='Marks Entry'!R5 -> तृतीय परख | AA5: =IF('Master Sheet'!$D$11="Hindi","सा. परख योग","Test Total") -> सा. परख योग | AM5: =IF('Marks Entry'!V5="","",'Marks Entry'!V5) -> प्रथम परख | AN5: =IF('Marks Entry'!W5="","",'Marks Entry'!W5) -> द्वितीय परख | AO5: =IF('Marks Entry'!X5="","",'Marks Entry'!X5) -> तृतीय परख | AP5: =IF('Master Sheet'!$D$11="Hindi","सा. परख योग","Test Total") -> सा. परख योग | AQ5: =IF('Marks Entry'!Y5="","",'Marks Entry'!Y5) -> सैद्धांतिक | AR5: =IF('Marks Entry'!Z5="","",'Marks Entry'!Z5) -> प्रायोगिक | AS5: =IF('Master Sheet'!$D$11="Hindi","अर्द्ध वा. योग","Total H.Y.") -> अर्द्ध वा. योग | AU5: =IF('Marks Entry'!AA5="","",'Marks Entry'!AA5) -> सैद्धांतिक | AV5: =IF('Marks Entry'!AB5="","",'Marks Entry'!AB5) -> प्रायोगिक | AW5: =IF('Master Sheet'!$D$11="Hindi","वार्षिक योग","Total Yearly") -> वार्षिक योग | BJ5: =IF('Marks Entry'!AD5="","",'Marks Entry'!AD5) -> प्रथम परख | BK5: =IF('Marks Entry'!AE5="","",'Marks Entry'!AE5) -> द्वितीय परख | BL5: =IF('Marks Entry'!AF5="","",'Marks Entry'!AF5) -> तृतीय परख | BM5: =IF('Master Sheet'!$D$11="Hindi","सा. परख योग","Test Total") -> सा. परख योग | BN5: =IF('Marks Entry'!AG5="","",'Marks Entry'!AG5) -> सैद्धांतिक | BO5: =IF('Marks Entry'!AH5="","",'Marks Entry'!AH5) -> प्रायोगिक | BP5: =IF('Master Sheet'!$D$11="Hindi","अर्द्ध वा. योग","Total H.Y.") -> अर्द्ध वा. योग | BR5: =IF('Marks Entry'!AI5="","",'Marks Entry'!AI5) -> सैद्धांतिक | BS5: =IF('Marks Entry'!AJ5="","",'Marks Entry'!AJ5) -> प्रायोगिक | BT5: =IF('Master Sheet'!$D$11="Hindi","वार्षिक योग","Total Yearly") -> वार्षिक योग | CG5: =IF('Marks Entry'!AL5="","",'Marks Entry'!AL5) -> प्रथम परख | CH5: =IF('Marks Entry'!AM5="","",'Marks Entry'!AM5) -> द्वितीय परख | CI5: =IF('Marks Entry'!AN5="","",'Marks Entry'!AN5) -> तृतीय परख | CJ5: =IF('Master Sheet'!$D$11="Hindi","सा. परख योग","Test Total") -> सा. परख योग | CK5: =IF('Marks Entry'!AO5="","",'Marks Entry'!AO5) -> सैद्धांतिक | CL5: =IF('Marks Entry'!AP5="","",'Marks Entry'!AP5) -> प्रायोगिक | CM5: =IF('Master Sheet'!$D$11="Hindi","अर्द्ध वा. योग","Total H.Y.") -> अर्द्ध वा. योग | CO5: =IF('Marks Entry'!AQ5="","",'Marks Entry'!AQ5) -> सैद्धांतिक | CP5: =IF('Marks Entry'!AR5="","",'Marks Entry'!AR5) -> प्रायोगिक | CQ5: =IF('Master Sheet'!$D$11="Hindi","वार्षिक योग","Total Yearly") -> वार्षिक योग | DE5: =IF('Marks Entry'!AT5="","",'Marks Entry'!AT5) -> प्रथम परख | DF5: =IF('Marks Entry'!AU5="","",'Marks Entry'!AU5) -> द्वितीय परख | DG5: =IF('Marks Entry'!AV5="","",'Marks Entry'!AV5) -> तृतीय परख | DH5: =IF('Master Sheet'!$D$11="Hindi","सा. परख योग","Test Total") -> सा. परख योग | DI5: =IF('Marks Entry'!AW5="","",'Marks Entry'!AW5) -> सैद्धांतिक | DJ5: =IF('Marks Entry'!AX5="","",'Marks Entry'!AX5) -> प्रायोगिक | DK5: =IF('Master Sheet'!$D$11="Hindi","अर्द्ध वा. योग","Total H.Y.") -> अर्द्ध वा. योग | DM5: =IF('Marks Entry'!AY5="","",'Marks Entry'!AY5) -> सैद्धांतिक | DN5: =IF('Marks Entry'!AZ5="","",'Marks Entry'!AZ5) -> पोर्टफोलियो | DO5: =IF('Marks Entry'!BA5="","",'Marks Entry'!BA5) -> प्रायोगिक | DP5: =IF('Master Sheet'!$D$11="Hindi","वार्षिक योग","Total Yearly") -> वार्षिक योग | EC5: ='Marks Entry'!BB4 -> अनिवार्य प्रवृति | ED5: ='Marks Entry'!BC4 -> वैकल्पिक प्रवृति | EE5: ='Marks Entry'!BD4 -> वार्षिक परीक्षा | EF5: =IF('Master Sheet'!$D$11="Hindi","विषय कुल योग ","Subject Total") -> विषय कुल योग | EY5: =IF('Marks Entry'!BE4="","",'Marks Entry'!BE4) -> प्रथम परख | EZ5: =IF('Marks Entry'!BF4="","",'Marks Entry'!BF4) -> द्वितीय परख | FA5: =IF('Marks Entry'!BG4="","",'Marks Entry'!BG4) -> तृतीय परख | FB5: =IF('Master Sheet'!$D$11="Hindi","सा. परख योग","Test Total") -> सा. परख योग | FJ5: =IF('Marks Entry'!K1="Com. Hindi","Com. Hindi","") -> Com. Hindi | FL5: Grace Marks | FM5: =IF('Marks Entry'!P1="Com. English","Com. English","") -> Com. English | FO5: Grace Marks | FP5: =AL2 -> Optional Subject - 01 | FQ5: =AL3 -> POLITICAL SCIENCE | FR5: =AR3 -> BIOLOGY | FS5: =AW3 ->  | FV5: Grace Marks | FW5: =BI2 -> Optional Subject - 02 | FX5: =BI3 -> HISTORY | FY5: =BO3 -> ACCOUNTANCY | FZ5: =BT3 -> ECONOMICS | GC5: Grace Marks | GD5: =CF2 -> Optional Subject - 03 | GE5: =CF3 -> GEOGRAPHY | GF5: =CL3 -> HOME SCIENCE | GG5: =CQ3 -> TYPING | GJ5: Grace Marks | GK5: =DD2 -> Additional Sub. / Vocational Subject | GL5: =DD3 ->  | GM5: =DK3 ->  | GN5: =DP3 ->  | GQ5: Grace Marks
J6: =IF('Marks Entry'!K6="","",'Marks Entry'!K6) -> 10 | K6: =IF('Marks Entry'!L6="","",'Marks Entry'!L6) -> 10 | L6: =IF('Marks Entry'!M6="","",'Marks Entry'!M6) -> 10 | M6: =IF(AND(J6="",K6="",L6=""),"",SUM(J6:L6)) -> 30 | N6: =IF('Marks Entry'!N6="","",'Marks Entry'!N6) -> 70 | O6: =IF(AND(N6="",M6=""),"",SUM(M6,N6)) -> 100 | P6: =IF('Marks Entry'!O6="","",'Marks Entry'!O6) -> 100 | Q6: =IF(AND(O6="",P6=""),"",SUM(O6,P6)) -> 200 | X6: =IF('Marks Entry'!P6="","",'Marks Entry'!P6) -> 10 | Y6: =IF('Marks Entry'!Q6="","",'Marks Entry'!Q6) -> 10 | Z6: =IF('Marks Entry'!R6="","",'Marks Entry'!R6) -> 10 | AA6: =IF(AND(X6="",Y6="",Z6=""),"",SUM(X6:Z6)) -> 30 | AB6: =IF('Marks Entry'!S6="","",'Marks Entry'!S6) -> 70 | AC6: =IF(AND(AB6="",AA6=""),"",SUM(AA6,AB6)) -> 100 | AD6: =IF('Marks Entry'!T6="","",'Marks Entry'!T6) -> 100 | AE6: =IF(AND(AC6="",AD6=""),"",SUM(AC6,AD6)) -> 200 | AL6: =IF('Marks Entry'!U6="","",'Marks Entry'!U6) ->  | AM6: =IF('Marks Entry'!V6="","",'Marks Entry'!V6) -> 10 | AN6: =IF('Marks Entry'!W6="","",'Marks Entry'!W6) -> 10 | AO6: =IF('Marks Entry'!X6="","",'Marks Entry'!X6) -> 10 | AP6: =IF(AND(AM6="",AN6="",AO6=""),"",SUM(AM6:AO6)) -> 30 | AQ6: =IF('Marks Entry'!Y6="","",'Marks Entry'!Y6) -> 50 | AR6: =IF('Marks Entry'!Z6="","",'Marks Entry'!Z6) -> 20 | AS6: =SUM(AQ6,AR6) -> 70 | AT6: =SUM(AP6)+MAX(AS6,AS7) -> 100 | AU6: =IF('Marks Entry'!AA6="","",'Marks Entry'!AA6) -> 70 | AV6: =IF('Marks Entry'!AB6="","",'Marks Entry'!AB6) -> 30 | AW6: =SUM(AU6,AV6) -> 100 | AX6: =SUM(AP6,AQ6,AU6) -> 150 | AY6: =SUM(AR6,AV6) -> 50 | AZ6: =MAX(SUM(AX6,AY6),SUM(AX7,AY7)) -> 200 | BA6: =COUNTIF(AM6:AO6,"NA")*10 -> 0 | BB6: =IF(AND(AQ6="",AU6=""),(COUNTIF(AM6:AO6,"ML")*10+(COUNTIF(AQ6,"ML"))*AQ$6+(COUNTIF(AU6,"ML"))*AU$6),(COUNTIF(AM6:AO6,"ML")*10+(COUNTIF(AQ6,"ML"))*AQ$6+(COUNTIF(AU6,"ML"))*AU$6)) -> 0 | BC6: =IF(OR($B6="NSO",$B6=0,AX6=""),"",IF(AND(AR6="",AV6=""),AU$7,AU$6)) ->  | BD6: =IF(OR($B6="NSO",$B6=0,AY6=""),"",IF(AND(AR6="",AV6=""),"",AY$6-(COUNTIF(AR6,"ML")*AR$6)-(COUNTIF(AV6,"ML")*AV$6))) ->  | BE6: =IF(OR($B6="NSO",$B6=0,$B6=""),"",IF(AND(AR6="",AV6=""),AX$7-BA6-BB6,AX$6-BA6-BB6)) ->  | BJ6: =IF('Marks Entry'!AD6="","",'Marks Entry'!AD6) -> 10 | BK6: =IF('Marks Entry'!AE6="","",'Marks Entry'!AE6) -> 10 | BL6: =IF('Marks Entry'!AF6="","",'Marks Entry'!AF6) -> 10 | BM6: =IF(AND(BJ6="",BK6="",BL6=""),"",SUM(BJ6:BL6)) -> 30 | BN6: =IF('Marks Entry'!AG6="","",'Marks Entry'!AG6) -> 50 | BO6: =IF('Marks Entry'!AH6="","",'Marks Entry'!AH6) -> 20 | BP6: =SUM(BN6,BO6) -> 70 | BQ6: =SUM(BM6)+MAX(BP6,BP7) -> 100 | BR6: =IF('Marks Entry'!AI6="","",'Marks Entry'!AI6) -> 70 | BS6: =IF('Marks Entry'!AJ6="","",'Marks Entry'!AJ6) -> 30 | BT6: =SUM(BR6,BS6) -> 100 | BU6: =SUM(BM6,BN6,BR6) -> 150 | BV6: =SUM(BO6,BS6) -> 50 | BW6: =MAX(SUM(BU6,BV6),SUM(BU7,BV7)) -> 200 | BX6: =COUNTIF(BJ6:BL6,"NA")*10 -> 0 | BY6: =IF(AND(BN6="",BR6=""),(COUNTIF(BJ6:BL6,"ML")*10+(COUNTIF(BN6,"ML"))*BN$6+(COUNTIF(BR6,"ML"))*BR$6),(COUNTIF(BJ6:BL6,"ML")*10+(COUNTIF(BN6,"ML"))*BN$6+(COUNTIF(BR6,"ML"))*BR$6)) -> 0 | BZ6: =IF(OR($B6="NSO",$B6=0,BU6=""),"",IF(AND(BO6="",BS6=""),BR$7,BR$6)) ->  | CB6: =IF(OR($B6="NSO",$B6=0,$B6=""),"",IF(AND(BO6="",BS6=""),BU$7-BX6-BY6,BU$6-BX6-BY6)) ->  | CC6: =IF(AND(OR(BJ6="ab",BK6="ml"),OR(BM6="ab",BM6="ml")),"AB",IF(AND(OR(BJ6="ab",BJ6="ml"),OR(BK6="ab",BK6="ml"),OR(BP6="ab",BP6="ml")),"AB",IF(AND(OR(BN6="ab",BN6="ml"),OR(BK6="ab",BK6="ml"),OR(BJ6="ab",BJ6="ml")),"AB",IF(AND(OR(BP6="ab",BP6="ml"),OR(BJ6="ab",BJ6="ml"),OR(BK6="ab",BK6="ml")),"AB","")))) ->  | CD6: =IF(OR($B6="NSO",$B6=0,BT6=""),"",IF(OR(BS6="AB",BT6="AB",CC6="AB"),"AB",IF(BT6="ML","RE",IF(BT6="MLP","REP",IF(BS6<36%*BS$6,"FP",IF(AND(BU6>=36%*CB6,BR6>=20%*BZ6,#REF!>=SUM(CA6)*36%),"P",IF(AND(BU6>=34%*CB6,BY6=0,BR6>=20%*BZ6,#REF!>=SUM(CA6)*36%),"G2",IF(AND(BU6>=31%*CB6,BY6=0,BR6>=20%*BZ6,#REF!>=SUM(CA6)*36%),"G1",IF(AND(BU6>=25%*CB6,#REF!>=SUM(CA6)*36%),"S","F"))))))))) ->  | CE6: =IF(OR(CD6="REP",CD6="RE",CD6=0,CD6="",CD6="F",CD6="AB"),CD6,IF(AND(BW6>=75%*(200-BX6-BY6),CD6="P"),"D",IF(AND(BW6>=60%*(200-BX6-BY6),CD6="P"),"I",IF(AND(BW6>=48%*(200-BX6-BY6),CD6="P"),"II",IF(AND(BW6>=36%*(200-BX6-BY6),CD6="P"),"III",CD6))))) ->  | CG6: =IF('Marks Entry'!AL6="","",'Marks Entry'!AL6) -> 10 | CH6: =IF('Marks Entry'!AM6="","",'Marks Entry'!AM6) -> 10 | CI6: =IF('Marks Entry'!AN6="","",'Marks Entry'!AN6) -> 10 | CJ6: =IF(AND(CG6="",CH6="",CI6=""),"",SUM(CG6:CI6)) -> 30 | CK6: =IF('Marks Entry'!AO6="","",'Marks Entry'!AO6) -> 50 | CL6: =IF('Marks Entry'!AP6="","",'Marks Entry'!AP6) -> 20 | CM6: =SUM(CK6,CL6) -> 70 | CN6: =SUM(CJ6)+MAX(CM6,CM7) -> 100 | CO6: =IF('Marks Entry'!AQ6="","",'Marks Entry'!AQ6) -> 70 | CP6: =IF('Marks Entry'!AR6="","",'Marks Entry'!AR6) -> 30 | CQ6: =SUM(CO6,CP6) -> 100 | CR6: =SUM(CJ6,CK6,CO6) -> 150 | CS6: =SUM(CL6,CP6) -> 50 | CT6: =MAX(SUM(CR6,CS6),SUM(CR7,CS7)) -> 200 | CU6: =COUNTIF(CG6:CI6,"NA")*10 -> 0 | CV6: =IF(AND(CK6="",CO6=""),(COUNTIF(CG6:CI6,"ML")*10+(COUNTIF(CK6,"ML"))*CK$6+(COUNTIF(CO6,"ML"))*CO$6),(COUNTIF(CG6:CI6,"ML")*10+(COUNTIF(CK6,"ML"))*CK$6+(COUNTIF(CO6,"ML"))*CO$6)) -> 0 | CY6: =IF(OR($B6="NSO",$B6=0,$B6=""),"",IF(AND(CL6="",CP6=""),CR$7-CU6-CV6,CR$6-CU6-CV6)) ->  | CZ6: =IF(AND(OR(CG6="ab",CH6="ml"),OR(CJ6="ab",CJ6="ml")),"AB",IF(AND(OR(CG6="ab",CG6="ml"),OR(CH6="ab",CH6="ml"),OR(CM6="ab",CM6="ml")),"AB",IF(AND(OR(CK6="ab",CK6="ml"),OR(CH6="ab",CH6="ml"),OR(CG6="ab",CG6="ml")),"AB",IF(AND(OR(CM6="ab",CM6="ml"),OR(CG6="ab",CG6="ml"),OR(CH6="ab",CH6="ml")),"AB","")))) ->  | DA6: =IF(OR($B6="NSO",$B6=0,CQ6=""),"",IF(OR(CP6="AB",CQ6="AB",CZ6="AB"),"AB",IF(CQ6="ML","RE",IF(CQ6="MLP","REP",IF(CP6<36%*CP$6,"FP",IF(AND(CR6>=36%*CY6,CO6>=20%*CW6,#REF!>=SUM(CX6)*36%),"P",IF(AND(CR6>=34%*CY6,CV6=0,CO6>=20%*CW6,#REF!>=SUM(CX6)*36%),"G2",IF(AND(CR6>=31%*CY6,CV6=0,CO6>=20%*CW6,#REF!>=SUM(CX6)*36%),"G1",IF(AND(CR6>=25%*CY6,#REF!>=SUM(CX6)*36%),"S","F"))))))))) ->  | DB6: =IF(OR(DA6="REP",DA6="RE",DA6=0,DA6="",DA6="F",DA6="AB"),DA6,IF(AND(CT6>=75%*(200-CU6-CV6),DA6="P"),"D",IF(AND(CT6>=60%*(200-CU6-CV6),DA6="P"),"I",IF(AND(CT6>=48%*(200-CU6-CV6),DA6="P"),"II",IF(AND(CT6>=36%*(200-CU6-CV6),DA6="P"),"III",DA6))))) ->  | DE6: =IF('Marks Entry'!AT6="","",IF(OR('Master Sheet'!$D$19="YES",'Marks Entry'!$BA$1=1),'Marks Entry'!AT6,"")) -> 10 | DF6: =IF('Marks Entry'!AU6="","",IF(OR('Master Sheet'!$D$19="YES",'Marks Entry'!$BA$1=1),'Marks Entry'!AU6,"")) -> 10 | DG6: =IF('Marks Entry'!AV6="","",IF(OR('Master Sheet'!$D$19="YES",'Marks Entry'!$BA$1=1),'Marks Entry'!AV6,"")) -> 10 | DH6: =IF(AND(DE6="",DF6="",DG6=""),"",SUM(DE6:DG6)) -> 30 | DI6: =IF('Marks Entry'!AW6="","",IF(OR('Master Sheet'!$D$19="YES",'Marks Entry'!$BA$1=1),'Marks Entry'!AW6,"")) -> 50 | DJ6: =IF('Marks Entry'!AX6="","",IF(OR('Master Sheet'!$D$19="YES",'Marks Entry'!$BA$1=1),'Marks Entry'!AX6,"")) -> 20 | DK6: =IF(AND(DI6="",DJ6=""),"",SUM(DI6,DJ6)) -> 70 | DL6: =SUM(DH6)+MAX(DK6,DK7) -> 100 | DM6: =IF('Marks Entry'!AY6="","",IF(OR('Master Sheet'!$D$19="YES",'Marks Entry'!$BA$1=1),'Marks Entry'!AY6,"")) -> 30 | DN6: =IF('Marks Entry'!AZ6="","",IF(OR('Master Sheet'!$D$19="YES",'Marks Entry'!$BA$1=1),'Marks Entry'!AZ6,"")) -> 20 | DO6: =IF('Marks Entry'!BA6="","",IF(OR('Master Sheet'!$D$19="YES",'Marks Entry'!$BA$1=1),'Marks Entry'!BA6,"")) -> 50 | DP6: =SUM(DM6,DO6,DN6) -> 100 | DQ6: =IF(AND(DH6="",DI6="",DM6=""),"",SUM(DH6,DI6,DM6)) -> 110 | DR6: =IF(DN6="","",SUM(DN6)) -> 20 | DS6: =IF(AND(DJ6="",DO6=""),"",SUM(DJ6,DO6)) -> 70 | DT6: =MAX(SUM(DQ6,DR6,DS6),SUM(DQ7),SUM(DQ7,DR7)) -> 200 | EC6: =IF('Marks Entry'!BB6="","",'Marks Entry'!BB6) -> 30 | ED6: =IF('Marks Entry'!BC6="","",'Marks Entry'!BC6) -> 30 | EE6: =IF('Marks Entry'!BD6="","",'Marks Entry'!BD6) -> 40 | EF6: =IF(AND(EC6="",ED6="",EE6=""),"",SUM(EC6:EE7)) -> 100 | EL6: H | EM6: E | EN6: O.S. - 1 | EO6: O.S. - 2 | EP6: O.S. - 3 | EQ6: O.S. - 4 | ER6: F | ES6: S | ET6: G1 | EU6: G2 | EV6: RE | EW6: RE/F | EY6: =IF('Marks Entry'!BE6="","",'Marks Entry'!BE6) -> 10 | EZ6: =IF('Marks Entry'!BF6="","",'Marks Entry'!BF6) -> 10 | FA6: =IF('Marks Entry'!BG6="","",'Marks Entry'!BG6) -> 10 | FB6: =IF(AND(EY6="",EZ6="",FA6=""),"",SUM(EY6:FA7)) -> 30 | FC6: =IF('Marks Entry'!BH6="","",'Marks Entry'!BH6) -> 70 | FD6: =IF('Marks Entry'!BI6="","",'Marks Entry'!BI6) -> 100 | FE6: =SUM(EY6,EZ6,FA6,FC6,FD6) -> 200 | GZ6: =IF(AND('Master Sheet'!$D$19="YES",'Marks Entry'!$BA$1=1),SUM(Q6,AE6,AZ6,BW6,DT6),SUM(Q6,AE6,AZ6,BW6,CT6)) -> 1000 | HA6: =GZ6*100/(GZ6-DC6) -> 100 | HY6: fgUnh | HZ6: vaxzsth | IA6: =AL2 -> Optional Subject - 01 | IB6: =BI2 -> Optional Subject - 02 | IC6: =CF2 -> Optional Subject - 03 | ID6: Additional | IE6: =HY6 -> fgUnh | IF6: =HZ6 -> vaxzsth | IG6: Optional Subject - 01 | IH6: Optional Subject - 02 | II6: Optional Subject - 03 | IJ6: Additional | IK6: =HY6 -> fgUnh | IL6: =HZ6 -> vaxzsth | IM6: =IG6 -> Optional Subject - 01 | IN6: =IH6 -> Optional Subject - 02 | IO6: =II6 -> Optional Subject - 03 | IP6: Additional | IQ6: iqjd | IS6: fjtYV
AK7: =IF(OR(AJ7="",AJ7=0,AJ7="S",AJ7="RE",AJ7="F",AJ7="AB"),AJ7,IF(AE7>=75%*AH7,"D",IF(AE7>=60%*AH7,"I",IF(AE7>=48%*AH7,"II",IF(AE7>=36%*AH7,"III",AJ7))))) -> 0 | AQ7: =IF('Marks Entry'!Y7="","",'Marks Entry'!Y7) -> 70 | AR7: =IF('Marks Entry'!Z7="","",'Marks Entry'!Z7) ->  | AS7: =SUM(AQ7,AR7) -> 70 | AU7: =IF('Marks Entry'!AA7="","",'Marks Entry'!AA7) -> 100 | AV7: =IF('Marks Entry'!AB7="","",'Marks Entry'!AB7) ->  | AW7: =SUM(AU7,AV7) -> 100 | AX7: =SUM(AP6,AQ7,AU7) -> 200 | AY7: =SUM(AR7,AV7) -> 0 | BA7: =COUNTIF(AM7:AO7,"NA")*10 -> 0 | BB7: =IF(AND(AQ7="",AU7=""),(COUNTIF(AM7:AO7,"ML")*10+(COUNTIF(AQ7,"ML"))*AQ$6+(COUNTIF(AU7,"ML"))*AU$6),(COUNTIF(AM7:AO7,"ML")*10+(COUNTIF(AQ7,"ML"))*AQ$6+(COUNTIF(AU7,"ML"))*AU$6)) -> 0 | BC7: =IF(OR($B7="NSO",$B7=0,AX7=""),"",IF(AND(AR7="",AV7=""),AU$7,AU$6)) ->  | BD7: =IF(OR($B7="NSO",$B7=0,AY7=""),"",IF(AND(AR7="",AV7=""),"",AY$6-(COUNTIF(AR7,"ML")*AR$6)-(COUNTIF(AV7,"ML")*AV$6))) ->  | BE7: =IF(OR($B7="NSO",$B7=0,$B7=""),"",IF(AND(AR7="",AV7=""),AX$7-BA7-BB7,AX$6-BA7-BB7)) ->  | BN7: =IF('Marks Entry'!AG7="","",'Marks Entry'!AG7) -> 70 | BO7: =IF('Marks Entry'!AH7="","",'Marks Entry'!AH7) ->  | BP7: =SUM(BN7,BO7) -> 70 | BR7: =IF('Marks Entry'!AI7="","",'Marks Entry'!AI7) -> 100 | BS7: =IF('Marks Entry'!AJ7="","",'Marks Entry'!AJ7) ->  | BT7: =SUM(BR7,BS7) -> 100 | BU7: =SUM(BM6,BN7,BR7) -> 200 | BV7: =SUM(BO7,BS7) -> 0 | BX7: =COUNTIF(BJ7:BL7,"NA")*10 -> 0 | BY7: =IF(AND(BN7="",BR7=""),(COUNTIF(BJ7:BL7,"ML")*10+(COUNTIF(BN7,"ML"))*BN$6+(COUNTIF(BR7,"ML"))*BR$6),(COUNTIF(BJ7:BL7,"ML")*10+(COUNTIF(BN7,"ML"))*BN$6+(COUNTIF(BR7,"ML"))*BR$6)) -> 0 | BZ7: =IF(OR($B7="NSO",$B7=0,BU7=""),"",IF(AND(BO7="",BS7=""),BR$7,BR$6)) ->  | CB7: =IF(OR($B7="NSO",$B7=0,$B7=""),"",IF(AND(BO7="",BS7=""),BU$7-BX7-BY7,BU$6-BX7-BY7)) ->  | CD7: =IF(OR($B7="NSO",$B7=0,BT7=""),"",IF(OR(BS7="AB",BT7="AB",CC7="AB"),"AB",IF(BT7="ML","RE",IF(BT7="MLP","REP",IF(BS7<36%*BS$6,"FP",IF(AND(BU7>=36%*CB7,BR7>=20%*BZ7,#REF!>=SUM(CA7)*36%),"P",IF(AND(BU7>=34%*CB7,BY7=0,BR7>=20%*BZ7,#REF!>=SUM(CA7)*36%),"G2",IF(AND(BU7>=31%*CB7,BY7=0,BR7>=20%*BZ7,#REF!>=SUM(CA7)*36%),"G1",IF(AND(BU7>=25%*CB7,#REF!>=SUM(CA7)*36%),"S","F"))))))))) ->  | CK7: =IF('Marks Entry'!AO7="","",'Marks Entry'!AO7) -> 70 | CL7: =IF('Marks Entry'!AP7="","",'Marks Entry'!AP7) ->  | CM7: =SUM(CK7,CL7) -> 70 | CO7: =IF('Marks Entry'!AQ7="","",'Marks Entry'!AQ7) -> 100 | CP7: =IF('Marks Entry'!AR7="","",'Marks Entry'!AR7) ->  | CQ7: =SUM(CO7,CP7) -> 100 | CR7: =SUM(CJ6,CK7,CO7) -> 200 | CS7: =SUM(CL7,CP7) -> 0 | CU7: =COUNTIF(CG7:CI7,"NA")*10 -> 0 | CV7: =IF(AND(CK7="",CO7=""),(COUNTIF(CG7:CI7,"ML")*10+(COUNTIF(CK7,"ML"))*CK$6+(COUNTIF(CO7,"ML"))*CO$6),(COUNTIF(CG7:CI7,"ML")*10+(COUNTIF(CK7,"ML"))*CK$6+(COUNTIF(CO7,"ML"))*CO$6)) -> 0 | CY7: =IF(OR($B7="NSO",$B7=0,$B7=""),"",IF(AND(CL7="",CP7=""),CR$7-CU7-CV7,CR$6-CU7-CV7)) ->  | CZ7: =IF(AND(OR(CG7="ab",CH7="ml"),OR(CJ7="ab",CJ7="ml")),"AB",IF(AND(OR(CG7="ab",CG7="ml"),OR(CH7="ab",CH7="ml"),OR(CM7="ab",CM7="ml")),"AB",IF(AND(OR(CK7="ab",CK7="ml"),OR(CH7="ab",CH7="ml"),OR(CG7="ab",CG7="ml")),"AB",IF(AND(OR(CM7="ab",CM7="ml"),OR(CG7="ab",CG7="ml"),OR(CH7="ab",CH7="ml")),"AB","")))) ->  | DA7: =IF(OR($B7="NSO",$B7=0,CQ7=""),"",IF(OR(CP7="AB",CQ7="AB",CZ7="AB"),"AB",IF(CQ7="ML","RE",IF(CQ7="MLP","REP",IF(CP7<36%*CP$6,"FP",IF(AND(CR7>=36%*CY7,CO7>=20%*CW7,#REF!>=SUM(CX7)*36%),"P",IF(AND(CR7>=34%*CY7,CV7=0,CO7>=20%*CW7,#REF!>=SUM(CX7)*36%),"G2",IF(AND(CR7>=31%*CY7,CV7=0,CO7>=20%*CW7,#REF!>=SUM(CX7)*36%),"G1",IF(AND(CR7>=25%*CY7,#REF!>=SUM(CX7)*36%),"S","F"))))))))) ->  | DI7: =IF('Marks Entry'!AW7="","",IF(OR('Master Sheet'!$D$19="YES",'Marks Entry'!$BA$1=1),'Marks Entry'!AW7,"")) -> 70 | DJ7: =IF('Marks Entry'!AX7="",0,IF(OR('Master Sheet'!$D$19="YES",'Marks Entry'!$BA$1=1),'Marks Entry'!AX7,"")) -> 0 | DK7: =IF(AND(DI7="",DJ7=""),"",SUM(DI7,DJ7)) -> 70 | DM7: =IF('Marks Entry'!AY7="","",IF(OR('Master Sheet'!$D$19="YES",'Marks Entry'!$BA$1=1),'Marks Entry'!AY7,"")) -> 100 | DN7: =IF('Marks Entry'!AZ7="",0,IF(OR('Master Sheet'!$D$19="YES",'Marks Entry'!$BA$1=1),'Marks Entry'!AZ7,0)) -> 0 | DO7: =IF('Marks Entry'!BA7="",0,IF(OR('Master Sheet'!$D$19="YES",'Marks Entry'!$BA$1=1),'Marks Entry'!BA7,"")) -> 0 | DP7: =SUM(DM7,DO7,DN7) -> 100 | DQ7: =IF(AND(DH6="",DI7="",DM7=""),"",SUM(DH6,DI7,DM7)) -> 200 | DR7: =IF(DN7="","",SUM(DN7)) -> 0 | DS7: =IF(AND(DJ7="",DO7=""),0,SUM(DJ7,DO7)) -> 0
A8: 1 | B8: =IF('Marks Entry'!B8="","",'Marks Entry'!B8) -> 1101 | C8: =IF('Marks Entry'!D8="","",'Marks Entry'!D8) -> 230 | D8: =IF('Marks Entry'!E8="","",'Marks Entry'!E8) -> 2003-01-01 | E8: =IF('Marks Entry'!F8="","",'Marks Entry'!F8) -> A | F8: =IF('Marks Entry'!G8="","",'Marks Entry'!G8) -> X | G8: =IF('Marks Entry'!H8="","",'Marks Entry'!H8) -> M | H8: =IF('Marks Entry'!I8="","",'Marks Entry'!I8) -> GEN | I8: =IF('Marks Entry'!J8="","",'Marks Entry'!J8) -> M | J8: =IF('Marks Entry'!K8="","",'Marks Entry'!K8) -> 8 | K8: =IF('Marks Entry'!L8="","",'Marks Entry'!L8) -> 8 | L8: =IF('Marks Entry'!M8="","",'Marks Entry'!M8) -> 9 | M8: =IF(AND(J8="",K8="",L8=""),"",IF(AND(J8="AB",K8="AB",L8="AB"),"AB",IF(AND(J8="ML",K8="ML",L8="ML"),"ML",SUM(J8:L8)))) -> 25 | N8: =IF('Marks Entry'!N8="","",'Marks Entry'!N8) -> 46 | O8: =IF(AND(N8="",M8=""),"",IF(AND(N8="AB",M8="AB"),"AB",IF(AND(N8="ML",M8="ML"),"ML",SUM(M8,N8)))) -> 71 | P8: =IF('Marks Entry'!O8="","",'Marks Entry'!O8) -> 70 | Q8: =IF(AND(O8="",P8=""),"",IF(AND(O8="AB",P8="AB"),"AB",IF(AND(O8="ML",P8="ML"),"ML",SUM(O8,P8)))) -> 141 | R8: =COUNTIF(J8:L8,"NA")*10 -> 0 | S8: =(COUNTIF(J8:L8,"ML")*10)+(COUNTIF(N8,"ML")*70)+(COUNTIF(P8,"ML")*100) -> 0 | T8: =IF(OR($B8="NSO",$B8=0),"",IF(AND(J8="",K8="",L8="",N8="",P8=""),"",IF(AND(K8="",J8="",O8="",N8=""),20-R8-S8,IF(AND(K8="",L8="",N8=""),20-R8-S8,IF(AND(N8="",P8=""),40-R8-S8,IF(P8="",100-R8-S8,200-R8-S8)))))) -> 200 | U8: =IF(OR($B8="",$C8="",$E8=""),"",IF(AND(OR(J8="ab",J8="ml",J8=""),OR(K8="ab",K8="ml",K8=""),OR(N8="ab",N8="ml",N8="")),"AB",IF(AND(OR(N8="ab",N8="ml",N8=""),OR(P8="ab",P8="ml",P8=""),OR(L8="ab",L8="ml")),"AB",IF(AND(OR(P8="ab",P8="ml",P8=""),OR(J8="ab",J8="ml",J8=""),OR(K8="ab",K8="ml",K8="")),"AB","")))) ->  | V8: =IF(OR($B8="NSO",$B8="",Q8=""),"",IF(OR(U8="AB",P8="ab"),"AB",IF(P8="ML","RE",IF(AND(Q8>=36%*T8,P8>=20%*$P$6),"P",IF(AND(Q8>=34%*T8,S8=0,P8>=20%*$P$6),"G2",IF(AND(Q8>=31%*T8,S8=0,P8>=20%*$P$6),"G1",IF(Q8>=25%*T8,"S","F"))))))) -> P | W8: =IF(OR(V8="",V8=0,V8="S",V8="RE",V8="F",V8="AB"),V8,IF(Q8>=75%*T8,"D",IF(Q8>=60%*T8,"I",IF(Q8>=48%*T8,"II",IF(Q8>=36%*T8,"III",V8))))) -> I | X8: =IF('Marks Entry'!P8="","",'Marks Entry'!P8) -> 8 | Y8: =IF('Marks Entry'!Q8="","",'Marks Entry'!Q8) -> 5 | Z8: =IF('Marks Entry'!R8="","",'Marks Entry'!R8) -> 8 | AA8: =IF(AND(X8="",Y8="",Z8=""),"",IF(AND(X8="AB",Y8="AB",Z8="AB"),"AB",IF(AND(X8="ML",Y8="ML",Z8="ML"),"ML",SUM(X8:Z8)))) -> 21 | AB8: =IF('Marks Entry'!S8="","",'Marks Entry'!S8) -> 48 | AC8: =IF(AND(AB8="",AA8=""),"",IF(AND(AB8="AB",AA8="AB"),"AB",IF(AND(AB8="ML",AA8="ML"),"ML",SUM(AA8,AB8)))) -> 69 | AD8: =IF('Marks Entry'!T8="","",'Marks Entry'!T8) -> 74 | AE8: =IF(AND(AC8="",AD8=""),"",IF(AND(AC8="AB",AD8="AB"),"AB",IF(AND(AC8="ML",AD8="ML"),"ML",SUM(AC8,AD8)))) -> 143 | AF8: =COUNTIF(X8:Z8,"NA")*10 -> 0 | AG8: =(COUNTIF(X8:Z8,"ML")*10)+(COUNTIF(AB8,"ML")*70)+(COUNTIF(AD8,"ML")*100) -> 0 | AH8: =IF(OR($B8="NSO",$B8=0),"",IF(AND(X8="",Y8="",Z8="",AB8="",AD8=""),"",IF(AND(Y8="",X8="",AC8="",AB8=""),20-AF8-AG8,IF(AND(Y8="",Z8="",AB8=""),20-AF8-AG8,IF(AND(AB8="",AD8=""),40-AF8-AG8,IF(AD8="",100-AF8-AG8,200-AF8-AG8)))))) -> 200 | AI8: =IF(OR($B8="",$C8="",$E8=""),"",IF(AND(OR(X8="ab",X8="ml",X8=""),OR(Y8="ab",Y8="ml",Y8=""),OR(AB8="ab",AB8="ml",AB8="")),"AB",IF(AND(OR(AB8="ab",AB8="ml",AB8=""),OR(AD8="ab",AD8="ml",AD8=""),OR(Z8="ab",Z8="ml")),"AB",IF(AND(OR(AD8="ab",AD8="ml",AD8=""),OR(X8="ab",X8="ml",X8=""),OR(Y8="ab",Y8="ml",Y8="")),"AB","")))) ->  | AJ8: =IF(OR($B8="NSO",$B8="",AE8=""),"",IF(OR(AI8="AB",AD8="ab"),"AB",IF(AD8="ML","RE",IF(AND(AE8>=36%*AH8,AD8>=20%*$P$6),"P",IF(AND(AE8>=34%*AH8,AG8=0,AD8>=20%*$P$6),"G2",IF(AND(AE8>=31%*AH8,AG8=0,AD8>=20%*$P$6),"G1",IF(AE8>=25%*AH8,"S","F"))))))) -> P | AK8: =IF(OR(AJ8="",AJ8=0,AJ8="S",AJ8="RE",AJ8="F",AJ8="AB"),AJ8,IF(AE8>=75%*AH8,"D",IF(AE8>=60%*AH8,"I",IF(AE8>=48%*AH8,"II",IF(AE8>=36%*AH8,"III",AJ8))))) -> I | AL8: =IF('Marks Entry'!U8="","",'Marks Entry'!U8) -> A | AM8: =IF('Marks Entry'!V8="","",'Marks Entry'!V8) -> 8 | AN8: =IF('Marks Entry'!W8="","",'Marks Entry'!W8) -> 9 | AO8: =IF('Marks Entry'!X8="","",'Marks Entry'!X8) -> 10 | AP8: =IF(AND(AM8="",AN8="",AO8=""),"",IF(AND(AM8="AB",AN8="AB",AO8="AB"),"AB",IF(AND(AM8="ML",AN8="ML",AO8="ML"),"ML",SUM(AM8:AO8)))) -> 27 | AQ8: =IF('Marks Entry'!Y8="","",'Marks Entry'!Y8) -> 45 | AR8: =IF('Marks Entry'!Z8="","",'Marks Entry'!Z8) ->  | AS8: =IF(AND(AQ8="",AR8=""),"",IF(AND(AQ8="AB",AR8="AB"),"AB",IF(AND(AQ8="ML",AR8="ML"),"ML",SUM(AQ8:AR8)))) -> 45 | AT8: =IF(AND(AS8="",AP8=""),"",IF(AND(AS8="AB",AP8="AB"),"AB",IF(AND(AS8="ML",AP8="ML"),"ML",SUM(AP8,AS8)))) -> 72 | AU8: =IF('Marks Entry'!AA8="","",'Marks Entry'!AA8) -> 57 | AV8: =IF('Marks Entry'!AB8="","",'Marks Entry'!AB8) ->  | AW8: =IF(AND(AU8="",AV8=""),"",IF(AND(AU8="AB",AV8="AB"),"AB",IF(AND(AU8="ML",AV8="ML"),"ML",SUM(AU8:AV8)))) -> 57 | AX8: =IF(AND(AP8="",AQ8="",AU8=""),"",SUM(AP8,AQ8,AU8)) -> 129 | AY8: =IF(AND(AR8="",AV8=""),"",SUM(AR8,AV8)) ->  | AZ8: =IF(AND(AT8="",AW8=""),"",SUM(AT8,AW8)) -> 129 | BA8: 0 | BB8: 0 | BC8: =IF(OR($B8="NSO",$B8=0,AX8=""),"",IF(AND(AR8="",AV8=""),SUM($AU$7),SUM($AU$6))) -> 100 | BD8: =IF(OR($B8="NSO",$B8=0,AY8=""),"",IF(AND(AR8="",AV8=""),"",AY$6-(COUNTIF(AR8,"ML")*AR$6)-(COUNTIF(AV8,"ML")*AV$6))) ->  | BE8: =IF(OR($B8="NSO",$B8=0),"",IF(AND(AP8="",AQ8="",AU8=""),"",IF(AND(AR8="",AV8=""),SUM(($AX$7)-(BA8+BB8)),SUM(($AX$6)-(BA8+BB8))))) -> 200 | BF8: =IF(AND(OR(AM8="ab",AM8="ml"),OR(AQ8="ab",AQ8="ml"),OR(AN8="ab",AN8="ml")),"AB",IF(AND(OR(AM8="ab",AM8="ml"),OR(AQ8="ab",AQ8="ml"),OR(AU8="ab",AU8="ml")),"AB",IF(AND(OR(AQ8="ab",AQ8="ml"),OR(AO8="ab",AO8="ml"),OR(AN8="ab",AN8="ml")),"AB",IF(AND(OR(AQ8="ab",AQ8="ml"),OR(AU8="ab",AU8="ml"),OR(AN8="ab",AN8="ml")),"AB",IF(AND(OR(AQ8="ab",AQ8="ml"),OR(AU8="ab",AU8="ml")),"AB",""))))) ->  | BG8: =IF(OR($B8="NSO",$B8=0,AU8="",AW8="",AZ8=""),"",IF(OR(AU8="AB",AV8="AB",BF8="AB"),"AB",IF(OR(AU8="ML",AW8="ML"),"RE",IF(AV8="MLP","REP",IF(AV8<33%*$AV$6,"FP",IF(AR8<33%*$AR$6,"FP",IF(AND(AX8>=36%*BE8,SUM(AU8)>=20%*BC8,AY8>=SUM(BD8)*36%),"P",IF(AND(AX8>=34%*BE8,BB8=0,SUM(AU8)>=20%*BC8,AY8>=SUM(BD8)*36%),"G2",IF(AND(AX8>=31%*BE8,BB8=0,SUM(AU8)>=20%*BC8,AY8>=SUM(BD8)*36%),"G1",IF(AND(AX8>=25%*BE8,SUM(AU8)>=20%*BC8),"S","F")))))))))) -> P | BH8: =IF(OR(BG8="REP",BG8="RE",BG8=0,BG8="",BG8="F",BG8="AB"),BG8,IF(AND(AZ8>=75%*($AZ$6-BA8-BB8),BG8="P"),"D",IF(AND(AZ8>=60%*($AZ$6-BA8-BB8),BG8="P"),"I",IF(AND(AZ8>=48%*($AZ$6-BA8-BB8),BG8="P"),"II",IF(AND(AZ8>=36%*($AZ$6-BA8-BB8),BG8="P"),"III",BG8))))) -> I | BI8: =IF('Marks Entry'!AC8="","",'Marks Entry'!AC8) -> A | BJ8: =IF('Marks Entry'!AD8="","",'Marks Entry'!AD8) -> 5 | BK8: =IF('Marks Entry'!AE8="","",'Marks Entry'!AE8) -> 9 | BL8: =IF('Marks Entry'!AF8="","",'Marks Entry'!AF8) -> 8 | BM8: =IF(AND(BJ8="",BK8="",BL8=""),"",IF(AND(BJ8="AB",BK8="AB",BL8="AB"),"AB",IF(AND(BJ8="ML",BK8="ML",BL8="ML"),"ML",SUM(BJ8:BL8)))) -> 22 | BN8: =IF('Marks Entry'!AG8="","",'Marks Entry'!AG8) -> 55 | BO8: =IF('Marks Entry'!AH8="","",'Marks Entry'!AH8) ->  | BP8: =IF(AND(BN8="",BO8=""),"",IF(AND(BN8="AB",BO8="AB"),"AB",IF(AND(BN8="ML",BO8="ML"),"ML",SUM(BN8:BO8)))) -> 55 | BQ8: =IF(AND(BP8="",BM8=""),"",IF(AND(BP8="AB",BM8="AB"),"AB",IF(AND(BP8="ML",BM8="ML"),"ML",SUM(BM8,BP8)))) -> 77 | BR8: =IF('Marks Entry'!AI8="","",'Marks Entry'!AI8) -> 81 | BS8: =IF('Marks Entry'!AJ8="","",'Marks Entry'!AJ8) ->  | BT8: =IF(AND(BR8="",BS8=""),"",IF(AND(BR8="AB",BS8="AB"),"AB",IF(AND(BR8="ML",BS8="ML"),"ML",SUM(BR8:BS8)))) -> 81 | BU8: =IF(AND(BM8="",BN8="",BR8=""),"",SUM(BM8,BN8,BR8)) -> 158 | BV8: =IF(AND(BO8="",BS8=""),"",SUM(BO8,BS8)) ->  | BW8: =IF(AND(BQ8="",BT8=""),"",SUM(BQ8,BT8)) -> 158 | BX8: 0 | BY8: =IF(AND(BN8="",BR8=""),(COUNTIF(BJ8:BL8,"ML")*10+(COUNTIF(BN8,"ML"))*BN$6+(COUNTIF(BR8,"ML"))*BR$6),(COUNTIF(BJ8:BL8,"ML")*10+(COUNTIF(BN8,"ML"))*BN$6+(COUNTIF(BR8,"ML"))*BR$6)) -> 0 | BZ8: =IF(OR($B8="NSO",$B8=0,BU8=""),"",IF(AND(BO8="",BS8=""),SUM($BR$7),SUM($BR$6))) -> 100 | CA8: =IF(OR($B8="NSO",$B8=0,BV8=""),"",IF(AND(BO8="",BS8=""),"",BV$6-(COUNTIF(BO8,"ML")*BO$6)-(COUNTIF(BS8,"ML")*BS$6))) ->  | CB8: =IF(OR($B8="NSO",$B8=0),"",IF(AND(BM8="",BN8="",BR8=""),"",IF(AND(BO8="",BS8=""),SUM(($BU$7)-(BX8+BY8)),SUM(($BU$6)-(BX8+BY8))))) -> 200 | CC8: =IF(AND(OR(BJ8="ab",BJ8="ml"),OR(BN8="ab",BN8="ml"),OR(BK8="ab",BK8="ml")),"AB",IF(AND(OR(BJ8="ab",BJ8="ml"),OR(BN8="ab",BN8="ml"),OR(BR8="ab",BR8="ml")),"AB",IF(AND(OR(BN8="ab",BN8="ml"),OR(BL8="ab",BL8="ml"),OR(BK8="ab",BK8="ml")),"AB",IF(AND(OR(BN8="ab",BN8="ml"),OR(BR8="ab",BR8="ml"),OR(BK8="ab",BK8="ml")),"AB",IF(AND(OR(BN8="ab",BN8="ml"),OR(BR8="ab",BR8="ml")),"AB",""))))) ->  | CD8: =IF(OR($B8="NSO",$B8=0,BR8="",BT8="",BW8=""),"",IF(OR(BR8="AB",BS8="AB",CC8="AB"),"AB",IF(OR(BR8="ML",BT8="ML"),"RE",IF(BS8="MLP","REP",IF(BS8<33%*$BS$6,"FP",IF(BO8<33%*$BO$6,"FP",IF(AND(BU8>=36%*CB8,SUM(BR8)>=20%*BZ8,BV8>=SUM(CA8)*36%),"P",IF(AND(BU8>=34%*CB8,BY8=0,SUM(BR8)>=20%*BZ8,BV8>=SUM(CA8)*36%),"G2",IF(AND(BU8>=31%*CB8,BY8=0,SUM(BR8)>=20%*BZ8,BV8>=SUM(CA8)*36%),"G1",IF(AND(BU8>=25%*CB8,SUM(BR8)>=20%*BZ8),"S","F")))))))))) -> P | CE8: =IF(OR(CD8="REP",CD8="RE",CD8=0,CD8="",CD8="F",CD8="AB"),CD8,IF(AND(BW8>=75%*($BW$6-BX8-BY8),CD8="P"),"D",IF(AND(BW8>=60%*($BW$6-BX8-BY8),CD8="P"),"I",IF(AND(BW8>=48%*($BW$6-BX8-BY8),CD8="P"),"II",IF(AND(BW8>=36%*($BW$6-BX8-BY8),CD8="P"),"III",CD8))))) -> D | CF8: =IF('Marks Entry'!AK8="","",'Marks Entry'!AK8) -> A | CG8: =IF('Marks Entry'!AL8="","",'Marks Entry'!AL8) -> 5 | CH8: =IF('Marks Entry'!AM8="","",'Marks Entry'!AM8) -> 6 | CI8: =IF('Marks Entry'!AN8="","",'Marks Entry'!AN8) -> 8 | CJ8: =IF(AND(CG8="",CH8="",CI8=""),"",IF(AND(CG8="AB",CH8="AB",CI8="AB"),"AB",IF(AND(CG8="ML",CH8="ML",CI8="ML"),"ML",SUM(CG8:CI8)))) -> 19 | CK8: =IF('Marks Entry'!AO8="","",'Marks Entry'!AO8) -> 40 | CL8: =IF('Marks Entry'!AP8="","",'Marks Entry'!AP8) -> 10 | CM8: =IF(AND(CK8="",CL8=""),"",IF(AND(CK8="AB",CL8="AB"),"AB",IF(AND(CK8="ML",CL8="ML"),"ML",SUM(CK8:CL8)))) -> 50 | CN8: =IF(AND(CM8="",CJ8=""),"",IF(AND(CM8="AB",CJ8="AB"),"AB",IF(AND(CM8="ML",CJ8="ML"),"ML",SUM(CJ8,CM8)))) -> 69 | CO8: =IF('Marks Entry'!AQ8="","",'Marks Entry'!AQ8) -> 56 | CP8: =IF('Marks Entry'!AR8="","",'Marks Entry'!AR8) -> 11 | CQ8: =IF(AND(CO8="",CP8=""),"",IF(AND(CO8="AB",CP8="AB"),"AB",IF(AND(CO8="ML",CP8="ML"),"ML",SUM(CO8:CP8)))) -> 67 | CR8: =IF(AND(CJ8="",CK8="",CO8=""),"",SUM(CJ8,CK8,CO8)) -> 115 | CS8: =IF(AND(CL8="",CP8=""),"",SUM(CL8,CP8)) -> 21 | CT8: =IF(AND(CN8="",CQ8=""),"",SUM(CN8,CQ8)) -> 136 | CU8: 0 | CV8: 0 | CW8: =IF(OR($B8="NSO",$B8=0,CR8=""),"",IF(AND(CL8="",CP8=""),SUM($CO$7),SUM($CO$6))) -> 70 | CX8: =IF(OR($B8="NSO",$B8=0,CS8=""),"",IF(AND(CL8="",CP8=""),"",CS$6-(COUNTIF(CL8,"ML")*CL$6)-(COUNTIF(CP8,"ML")*CP$6))) -> 50 | CY8: =IF(OR($B8="NSO",$B8=0),"",IF(AND(CJ8="",CK8="",CO8=""),"",IF(AND(CL8="",CP8=""),SUM((CR$7)-(CU8+CV8)),SUM((CR$6)-(CU8+CV8))))) -> 150 | CZ8: =IF(AND(OR(CG8="ab",CG8="ml"),OR(CK8="ab",CK8="ml"),OR(CH8="ab",CH8="ml")),"AB",IF(AND(OR(CG8="ab",CG8="ml"),OR(CK8="ab",CK8="ml"),OR(CO8="ab",CO8="ml")),"AB",IF(AND(OR(CK8="ab",CK8="ml"),OR(CI8="ab",CI8="ml"),OR(CH8="ab",CH8="ml")),"AB",IF(AND(OR(CK8="ab",CK8="ml"),OR(CO8="ab",CO8="ml"),OR(CH8="ab",CH8="ml")),"AB",IF(AND(OR(CK8="ab",CK8="ml"),OR(CO8="ab",CO8="ml")),"AB",""))))) ->  | DA8: =IF(OR($B8="NSO",$B8=0,CO8="",CQ8="",CT8=""),"",IF(OR(CO8="AB",CP8="AB",CZ8="AB"),"AB",IF(OR(CO8="ML",CQ8="ML"),"RE",IF(CP8="MLP","REP",IF(CP8<33%*$CP$6,"FP",IF(CL8<33%*$CL$6,"FP",IF(AND(CR8>=36%*CY8,SUM(CO8)>=20%*CW8,CS8>=SUM(CX8)*36%),"P",IF(AND(CR8>=34%*CY8,CV8=0,SUM(CO8)>=20%*CW8,CS8>=SUM(CX8)*36%),"G2",IF(AND(CR8>=31%*CY8,CV8=0,SUM(CO8)>=20%*CW8,CS8>=SUM(CX8)*36%),"G1",IF(AND(CR8>=25%*CY8,SUM(CO8)>=20%*CW8),"S","F")))))))))) -> P | DB8: =IF(OR(DA8="REP",DA8="RE",DA8=0,DA8="",DA8="F",DA8="AB"),DA8,IF(AND(CT8>=75%*($CT$6-CU8-CV8),DA8="P"),"D",IF(AND(CT8>=60%*($CT$6-CU8-CV8),DA8="P"),"I",IF(AND(CT8>=48%*($CT$6-CU8-CV8),DA8="P"),"II",IF(AND(CT8>=36%*($CT$6-CU8-CV8),DA8="P"),"III",DA8))))) -> I | DC8: =SUM(R8,S8,AF8,AG8,BA8,BB8,BX8,BY8,CU8,CV8) -> 0 | DD8: =IF('Marks Entry'!AS8="","",IF(OR('Master Sheet'!$D$19="YES",'Marks Entry'!$BA$1=1),'Marks Entry'!AS8,"")) ->  | DE8: =IF('Marks Entry'!AT8="","",IF(OR('Master Sheet'!$D$19="YES",'Marks Entry'!$BA$1=1),'Marks Entry'!AT8,"")) ->  | DF8: =IF('Marks Entry'!AU8="","",IF(OR('Master Sheet'!$D$19="YES",'Marks Entry'!$BA$1=1),'Marks Entry'!AU8,"")) ->  | DG8: =IF('Marks Entry'!AV8="","",IF(OR('Master Sheet'!$D$19="YES",'Marks Entry'!$BA$1=1),'Marks Entry'!AV8,"")) ->  | DH8: =IF(AND(DE8="",DF8="",DG8=""),"",IF(AND(DE8="AB",DF8="AB",DG8="AB"),"AB",IF(AND(DE8="ML",DF8="ML",DG8="ML"),"ML",SUM(DE8:DG8)))) ->  | DI8: =IF('Marks Entry'!AW8="","",IF(OR('Master Sheet'!$D$19="YES",'Marks Entry'!$BA$1=1),'Marks Entry'!AW8,"")) ->  | DJ8: =IF('Marks Entry'!AX8="","",IF(OR('Master Sheet'!$D$19="YES",'Marks Entry'!$BA$1=1),'Marks Entry'!AX8,"")) ->  | DK8: =IF(AND(DI8="",DJ8=""),"",IF(AND(DI8="AB",DJ8="AB"),"AB",IF(AND(DI8="ML",DJ8="ML"),"ML",SUM(DI8:DJ8)))) ->  | DL8: =IF(AND(DK8="",DH8=""),"",IF(AND(DK8="AB",DH8="AB"),"AB",IF(AND(DK8="ML",DH8="ML"),"ML",SUM(DH8,DK8)))) ->  | DM8: =IF('Marks Entry'!AY8="","",IF(OR('Master Sheet'!$D$19="YES",'Marks Entry'!$BA$1=1),'Marks Entry'!AY8,"")) ->  | DN8: =IF('Marks Entry'!AZ8="","",IF(OR('Master Sheet'!$D$19="YES",'Marks Entry'!$BA$1=1),'Marks Entry'!AZ8,"")) ->  | DO8: =IF('Marks Entry'!BA8="","",IF(OR('Master Sheet'!$D$19="YES",'Marks Entry'!$BA$1=1),'Marks Entry'!BA8,"")) ->  | DP8: =IF(AND(DM8="",DN8="",DO8=""),"",IF(AND(DM8="AB",DN8="AB",DO8="AB"),"AB",IF(AND(DM8="ML",DN8="ML",DO8="ML"),"ML",SUM(DM8:DO8)))) ->  | DQ8: =IF(AND(DH8="",DI8="",DM8="",DN8=""),"",SUM(DH8,DI8,DM8)) ->  | DR8: =IF(AND(DN8=""),"",SUM(DN8)) ->  | DS8: =IF(AND(DJ8="",DO8=""),"",SUM(DJ8,DO8)) ->  | DT8: =IF(AND(DL8="",DP8=""),"",SUM(DL8,DP8)) ->  | DU8: =COUNTIF(DE8:DG8,"NA")*10 -> 0 | DV8: =IF(AND(DI8="",DM8=""),(COUNTIF(DE8:DG8,"ML")*10+(COUNTIF(DI8,"ML"))*DI$6+(COUNTIF(DM8,"ML"))*DM$6),(COUNTIF(DE8:DG8,"ML")*10+(COUNTIF(DI8,"ML"))*DI$6+(COUNTIF(DM8,"ML"))*DM$6)) -> 0 | DW8: =IF(OR($B8="NSO",$B8=0,DM8=""),"",IF(AND(DO8=""),SUM($DM$7,DN$7),SUM($DM$6,DN$6))) ->  | DX8: =IF(OR($B8="NSO",$B8=0,DS8=""),"",IF(AND(DJ8="",DO8=""),"",IF('Master Sheet'!$D$19="YES",$DO$6-COUNTIF(DO8,"ML")*DO$6,DS$6-(COUNTIF(DJ8,"ML")*DJ$6)-(COUNTIF(DO8,"ML")*DO$6)))) ->  | DY8: =IF(OR($B8="NSO",$B8=0),"",IF(AND(DH8="",DI8="",DM8=""),"",IF(AND('Master Sheet'!$D$19="YES",'Marks Entry'!$BA$1=1),100,IF(AND(DJ8="",DO8=""),SUM(($DQ$7+$DR$7)-(DU8+DV8)),SUM(($DQ$6+$DR$6)-(DU8+DV8)))))) ->  | DZ8: =IF(AND(OR(DE8="ab",DF8="ml"),OR(DI8="ab",DI8="ml")),"AB",IF(AND(OR(DE8="ab",DE8="ml"),OR(DF8="ab",DF8="ml"),OR(DH8="ab",DH8="ml")),"AB",IF(AND(OR(DI8="ab",DI8="ml"),OR(DF8="ab",DF8="ml"),OR(DG8="ab",DG8="ml")),"AB",IF(AND(OR(DKJ8="ab",DI8="ml"),OR(DM8="ab",DM8="ml"),OR(DN8="ab",DN8="ml")),"AB","")))) ->  | EA8: =IF(OR($B8="NSO",$B8=0,DM8="",DT8="",DQ8=""),"",IF(OR(DM8="AB",DO8="AB",DZ8="AB"),"AB",IF(OR(DM8="ML",DP8="ML"),"RE",IF(DO8="MLP","REP",IF(DO8<33%*$DO$6,"FP",IF(DJ8<33%*$DJ$6,"FP",IF(AND(DT8>=36%*DY8,SUM(DM8)>=20%*DW8,DS8>=SUM(DX8)*36%),"P",IF(AND(DQ8>=34%*DY8,DV8=0,SUM(DM8)>=20%*DW8,DS8>=SUM(DX8)*36%),"G2",IF(AND(DQ8>=31%*DY8,DV8=0,SUM(DM8)>=20%*DW8,DS8>=SUM(DX8)*36%),"G1",IF(AND(DQ8>=25%*DY8,SUM(DM8)>=20%*DW8),"S","F")))))))))) ->  | EB8: =IF(OR(EA8="REP",EA8="RE",EA8=0,EA8="",EA8="F",EA8="AB"),EA8,IF(AND(DT8>=75%*($DT$6-DU8-DV8),EA8="P"),"D",IF(AND(DT8>=60%*($DT$6-DU8-DV8),EA8="P"),"I",IF(AND(DT8>=48%*($DT$6-DU8-DV8),EA8="P"),"II",IF(AND(DT8>=36%*($DT$6-DU8-DV8),EA8="P"),"III",EA8))))) ->  | EC8: =IF('Marks Entry'!BB8="","",'Marks Entry'!BB8) -> 25 | ED8: =IF('Marks Entry'!BC8="","",'Marks Entry'!BC8) -> 20 | EE8: =IF('Marks Entry'!BD8="","",'Marks Entry'!BD8) -> 38 | EF8: =IF(AND(EC8="",ED8="",EE8=""),"",SUM(EC8:EE8)) -> 83 | EG8: =COUNTIF(EC8,"NA")*$EC$6 -> 0 | EH8: =(COUNTIF(EC8,"ML")*$EC$6)+(COUNTIF(ED8,"ML")*$ED$6) -> 0 | EI8: =IF(OR($B8="NSO",$B8=0),"",IF(AND(EC8="",ED8="",EE8=""),"",IF(AND(EC8="",ED8=""),30-EG8-EH8,IF(AND(ED8="",EE8=""),60-EG8-EH8,100-EG8-EH8)))) -> 100 | EJ8: =IF(OR(EE8="ab",EE8="ml"),EE8,"") ->  | EK8: =IF(OR($B8="NSO",$B8=0,EF8=""),"",IF(OR(EJ8="AB",EE8="ab"),"AB",IF(AND(EX8="FAIL",(OR(EF8="ml",EF8<20%*$EF$6,EF8<36%*EI8))),"F",IF(OR(EE8="ML",EE8<20%*$EE$6,EF8<36%*EI8),"RE",IF(EF8>80%*EI8,"A",IF(EF8>60%*EI8,"B",IF(EF8>40%*EI8,"C","D"))))))) -> A | EL8: =W8 -> I | EM8: =AK8 -> I | EN8: =BH8 -> I | EO8: =CE8 -> D | EP8: =DB8 -> I | EQ8: =EB8 ->  | ER8: =COUNTIF(EL8:EP8,"F")+COUNTIF(EL8:EP8,"AB")+COUNTIF(EN8:EP8,"FP") -> 0 | ES8: =COUNTIF(EL8:EP8,"S") -> 0 | ET8: =COUNTIF(EL8:EP8,"G1") -> 0 | EU8: =COUNTIF(EL8:EP8,"G2") -> 0 | EV8: =COUNTIF(EL8:EP8,"RE")+COUNTIF(EL8:EP8,"REP") -> 0 | EW8: =IF(OR(EK8="AB",EK8="F"),"D",IF(OR(EK8="RE"),"D","")) ->  | EX8: =IF(B8="NSO","NSO",IF(OR(B8="",B8=0,P8="",AD8="",AW8="",BT8=""),"",IF(OR(ER8>0,(ES8+ET8+EU8)>2),"FAIL",IF(EV8>0,"RE-EXAM",IF(OR(ES8>0,ET8>1),"SUPPLEMENTARY",IF(AND(ET8>0,EU8>0),"SUPPLEMENTARY",IF((ET8+EU8)>0,"BY GRACE PASS","PASS"))))))) -> PASS | EY8: =IF('Marks Entry'!BE8="","",'Marks Entry'!BE8) -> 9 | EZ8: =IF('Marks Entry'!BF8="","",'Marks Entry'!BF8) -> 9 | FA8: =IF('Marks Entry'!BG8="","",'Marks Entry'!BG8) -> 9 | FB8: =IF(AND(EY8="",EZ8="",FA8=""),"",IF(AND(EY8="AB",EZ8="AB",FA8="AB"),"AB",IF(AND(EY8="ML",EZ8="ML",FA8="ML"),"ML",SUM(EY8:FA8)))) -> 27 | FC8: =IF('Marks Entry'!BH8="","",'Marks Entry'!BH8) -> 45 | FD8: =IF('Marks Entry'!BI8="","",'Marks Entry'!BI8) -> 98 | FE8: =IF(AND(EY8="",EZ8="",FA8="",FC8="",FD8=""),"",SUM(EY8,EZ8,FA8,FC8,FD8)) -> 170 | FF8: =IF(OR($B8="NSO",$B8=0,FE8=""),"",IF(OR(FE8="AB",FD8="ab"),"AB",IF(AND(EX8="FAIL",(OR(FE8<36%*$FE$6))),"F",IF(OR(FD8="ML",FD8<20%*$FD$6,FE8<36%*$FE$6),"RE",IF(FE8>80%*$FE$6,"A",IF(FE8>60%*$FE$6,"B",IF(FE8>40%*$FE$6,"C","D"))))))) -> A | FG8: =IF(AND(E8=""),"",IF('Student DATA Entry'!L4="","",'Student DATA Entry'!L4)) -> 350 | FH8: =IF(AND(E8=""),"",IF('Student DATA Entry'!M4="","",'Student DATA Entry'!M4)) -> 340 | FI8: =IF(OR(FG8=0,FH8=0,FG8="",FH8=""),"",FH8/FG8*100) -> 97.1 | FJ8: =IF(AND(EX8="FAIL",(OR(EL8="G1",EL8="G2",EL8="S",EL8="RE"))),"F",IF(AND(EX8="RE-EXAM",(OR(EL8="G1",EL8="G2",EL8="S"))),"S",IF(AND(EX8="SUPPLEMENTARY",(OR(EL8="G1",EL8="G2"))),"S",IF(AND(EX8="BY GRACE PASS",(OR(EL8="G1",EL8="G2"))),"G",EL8)))) -> I | FK8: =IF(FJ8="G",",+","") ->  | FL8: =IF(FJ8="G",ROUNDUP(36%*T8-Q8,0),"") ->  | FM8: =IF(AND(EX8="FAIL",(OR(EM8="G1",EM8="G2",EM8="S",EM8="RE"))),"F",IF(AND(EX8="RE-EXAM",(OR(EM8="G1",EM8="G2",EM8="S"))),"S",IF(AND(EX8="SUPPLEMENTARY",(OR(EM8="G1",EM8="G2"))),"S",IF(AND(EX8="BY GRACE PASS",(OR(EM8="G1",EM8="G2"))),"G",EM8)))) -> I | FN8: =IF(FM8="G",",+","") ->  | FO8: =IF(FM8="G",ROUNDUP(36%*AH8-AE8,0),"") ->  | FP8: =IF(AND(EX8="FAIL",(OR(EN8="G1",EN8="G2",EN8="S",EN8="RE"))),"F",IF(AND(EX8="RE-EXAM",(OR(EN8="G1",EN8="G2",EN8="S"))),"S",IF(AND(EX8="SUPPLEMENTARY",(OR(EN8="G1",EN8="G2"))),"S",IF(AND(EX8="BY GRACE PASS",(OR(EN8="G1",EN8="G2"))),"G",EN8)))) -> I | FQ8: =IF(AL8="A",FP8,"") -> I | FR8: =IF(AL8="B",FP8,"") ->  | FS8: =IF(AL8="C",FP8,"") ->  | FT8: =IF(AL8="D",FP8,"") ->  | FU8: =IF(FP8="G",",+","") ->  | FV8: =IF(FP8="G",ROUNDUP(36%*BE8-AX8,0),"") ->  | FW8: =IF(AND(EX8="FAIL",(OR(EO8="G1",EO8="G2",EO8="S",EO8="RE",))),"F",IF(AND(EX8="RE-EXAM",(OR(EO8="G1",EO8="G2",EO8="S"))),"S",IF(AND(EX8="SUPPLEMENTARY",(OR(EO8="G1",EO8="G2"))),"S",IF(AND(EX8="BY GRACE PASS",(OR(EO8="G1",EO8="G2"))),"G",EO8)))) -> D | FX8: =IF(BI8="A",FW8,"") -> D | FY8: =IF(BI8="B",FW8,"") ->  | FZ8: =IF(BI8="C",FW8,"") ->  | GA8: =IF(BI8="D",FW8,"") ->  | GB8: =IF(FW8="G",",+","") ->  | GC8: =IF(FW8="G",ROUNDUP(36%*CB8-BU8,0),"") ->  | GD8: =IF(AND(EX8="FAIL",(OR(EP8="G1",EP8="G2",EP8="S",EP8="RE"))),"F",IF(AND(EX8="RE-EXAM",(OR(EP8="G1",EP8="G2",EP8="S"))),"S",IF(AND(EX8="SUPPLEMENTARY",(OR(EP8="G1",EP8="G2"))),"S",IF(AND(EX8="BY GRACE PASS",(OR(EP8="G1",EP8="G2"))),"G",EP8)))) -> I | GE8: =IF(CF8="A",GD8,"") -> I | GF8: =IF(CF8="B",GD8,"") ->  | GG8: =IF(CF8="C",GD8,"") ->  | GH8: =IF(CF8="D",GD8,"") ->  | GI8: =IF(GD8="G",",+","") ->  | GJ8: =IF(GD8="G",ROUNDUP(36%*CY8-CR8,0),"") ->  | GK8: =IF(AND(EX8="FAIL",(OR(EQ8="G1",EQ8="G2",EQ8="S",EQ8="RE"))),"F",IF(AND(EX8="RE-EXAM",(OR(EQ8="G1",EQ8="G2",EQ8="S"))),"S",IF(AND(EX8="SUPPLEMENTARY",(OR(EQ8="G1",EQ8="G2"))),"S",IF(AND(EX8="BY GRACE PASS",(OR(EQ8="G1",EQ8="G2"))),"G",EQ8)))) ->  | GL8: =IF(DD8="A",GK8,"") ->  | GM8: =IF(DD8="B",GK8,"") ->  | GN8: =IF(DD8="C",GK8,"") ->  | GO8: =IF(DD8="D",GK8,"") ->  | GP8: =IF(GK8="G",",+","") ->  | GQ8: =IF(GK8="G",ROUNDUP(36%*DY8-DQ8,0),"") ->  | GR8: =IF(AND(EX8="FAIL",EK8="RE"),"F",EK8) -> A | GS8: =IF(AND(EX8="FAIL",FF8="RE"),"F",FF8) -> A | GT8: =CONCATENATE(IF(FJ8="F",$FJ$5,IF(FJ8="AB",$FJ$5,""))," ",IF(FM8="F",$FM$5,IF(FM8="AB",$FM$5,""))," ",IF(FQ8="F",$FQ$5,IF(FR8="F",$FR$5,IF(FS8="F",$FS$5,IF(FQ8="AB",$FQ$5,IF(FR8="AB",$FR$5,IF(FS8="AB",$FS$5,IF(FQ8="FP",$FQ$5,IF(FR8="FP",$FR$5,IF(FS8="FP",$FS$5,"")))))))))," ",IF(FX8="F",$FX$5,IF(FY8="F",$FY$5,IF(FZ8="F",$FZ$5,IF(FX8="AB",$FX$5,IF(FY8="AB",$FY$5,IF(FZ8="AB",$FZ$5,IF(FX8="FP",$FX$5,IF(FY8="FP",$FY$5,IF(FZ8="FP",$FZ$5,"")))))))))," ",IF(GE8="F",$GE$5,IF(GF8="F",$GF$5,IF(GG8="F",$GG$5,IF(GE8="AB",$GE$5,IF(GF8="AB",$GF$5,IF(GG8="AB",$GG$5,IF(GE8="FP",$GE$5,IF(GF8="FP",$GF$5,IF(GG8="FP",$GG$5,""))))))))),"",IF(GL8="F",$GL$5,IF(GM8="F",$GM$5,IF(GN8="F",$GN$5,IF(GL8="AB",$GL$5,IF(GM8="AB",$GM$5,IF(GN8="AB",$GN$5,IF(GL8="FP",$GL$5,IF(GM8="FP",$GM$5,IF(GN8="FP",$GN$5,"")))))))))) ->  | GU8: =CONCATENATE(IF(FJ8="S",$FJ$5,"")," ",IF(FM8="S",$FM$5,"")," ",IF(FQ8="S",$FQ$5,IF(FR8="S",$FR$5,IF(FS8="S",$FS$5,IF(FT8="S",$FT$5,""))))," ",IF(FX8="S",$FX$5,IF(FY8="S",$FY$5,IF(FZ8="S",$FZ$5,IF(GA8="S",$GA$5,""))))," ",IF(GE8="S",$GE$5,IF(GF8="S",$GF$5,IF(GG8="S",$GG$5,IF(GH8="S",$GH$5,""))))) ->  | GV8: =CONCATENATE(IF(FJ8="G",$FJ$5,"")," ",IF(FM8="G",$FM$5,"")," ",IF(FQ8="G",$FQ$5,IF(FR8="G",$FR$5,IF(FS8="G",$FS$5,"")))," ",IF(FX8="G",$FX$5,IF(FY8="G",$FY$5,IF(FZ8="G",$FZ$5,"")))," ",IF(GE8="G",$GE$5,IF(GF8="G",$GF$5,IF(GG8="G",$GG$5,"")))) ->  | GW8: =CONCATENATE(IF(FJ8="RE",$FJ$5,"")," ",IF(FM8="RE",$FM$5,"")," ",IF(OR(FQ8="RE",FQ8="REP"),$FQ$5,IF(OR(FR8="RE",FR8="REP"),$FR$5,IF(OR(FS8="RE",FS8="REP"),$FS$5,IF(OR(FT8="RE",FT8="REP"),$FT$5,""))))," ",IF(OR(FX8="RE",FX8="REP"),$FX$5,IF(OR(FY8="RE",FY8="REP"),$FY$5,IF(OR(FZ8="RE",FZ8="REP"),$FZ$5,IF(OR(GA8="RE",GA8="REP"),$GA$5,""))))," ",IF(OR(GE8="RE",GE8="REP"),$GE$5,IF(OR(GF8="RE",GF8="REP"),$GF$5,IF(OR(GG8="RE",GG8="REP"),$GG$5,IF(OR(GH8="RE",GH8="REP"),$GH$5,""))))," ",IF(GR8="RE",$GR$4," "),"",IF(GS8="RE",$GS$4," "),"",) ->  | GX8: =CONCATENATE(IF(FJ8="D",$FJ$5,"")," ",IF($FM8="D",$FM$5,"")," ",IF(FQ8="D",$FQ$5,IF(FR8="D",$FR$5,IF(FS8="D",$FS$5,IF(FT8="D",$FT$5,""))))," ",IF(FX8="D",$FX$5,IF(FY8="D",$FY$5,IF(FZ8="D",$FZ$5,IF(GA8="D",$GA$5,""))))," ",IF(GE8="D",$GE$5,IF(GF8="D",$GF$5,IF(GG8="D",$GG$5,IF(GH8="D",$GH$5,""))))," ",IF(GL8="D",$GL$5,IF(GM8="D",$GM$5,IF(GN8="D",$GN$5,IF(GO8="D",$GO$5,""))))) -> HISTORY | GY8: =IF(B8="NSO","NSO",IF(AND(OR(EX8="PASS",EX8="BY GRACE PASS",EX8="RE-EXAM"),EW8="F"),"FAIL",IF(AND(OR(EX8="PASS",EX8="BY GRACE PASS"),EW8="RE"),"RE-EXAM",EX8))) -> PASS | GZ8: =IF(AND(Q8="",AE8="",AZ8="",BW8="",CT8=""),"",IF(AND('Master Sheet'!$D$19="YES",'Marks Entry'!$BA$1=1),SUM(Q8,AE8,AZ8,BW8,DT8),SUM(Q8,AE8,AZ8,BW8,CT8))) -> 707 | HA8: =IF(GZ8="","",IF(AND('Master Sheet'!$D$19="YES",'Marks Entry'!$BA$1=1),GZ8/((900)-DC8)*100,GZ8/((1000)-DC8)*100)) -> 70.70 | HB8: =IF(HA8="","",IF(AND(HA8>=60,(GY8="PASS")),"I",IF(AND(HA8>=60,(GY8="BY GRACE PASS")),"I",IF(AND(HA8>=48,(GY8="PASS")),"II",IF(AND(HA8>=48,(GY8="BY GRACE PASS")),"II",IF(AND(HA8>=36,(GY8="PASS")),"III",IF(AND(HA8>=36,(GY8="BY GRACE PASS")),"III",""))))))) -> I | HC8: =IF(OR(GY8="PASS",GY8="BY GRACE PASS"),HA8,"") -> 70.70 % | HD8: =IF(HC8="","",SUMPRODUCT((HC8<HC$8:HC$207)/COUNTIF(HC$8:HC$207,HC$8:HC$207))) -> 1 | HE8: =IFERROR(IF(OR(GY8="SUPPLEMENTARY",GY8="RE-EXAM"),'Supp. Result Entry'!AS7,""),"") ->  | HF8: =IF(OR(JB8="",IS8=0),"",IF(IZ8="","",IZ8)) ->  | HG8: =IF(AND(JB8=""),"",IF(HE8="","",IF(AND(JB8="FAIL"),"Failed",JB8))) ->  | HH8: =IF(AND(HE8="",HF8="",HG8=""),"",IF(OR(GY8="SUPPLEMENTARY",GY8="RE-EXAM"),'Supp. Result Entry'!AS7,GY8)) ->  | HY8: =IF('Supp. Result Entry'!U7="","",'Supp. Result Entry'!$U$6) ->  | HZ8: =IF('Supp. Result Entry'!X7="","",'Supp. Result Entry'!$X$6) ->  | IA8: =IF('Supp. Result Entry'!AA7="","",'Supp. Result Entry'!$AA$6) ->  | IB8: =IF('Supp. Result Entry'!AD7="","",'Supp. Result Entry'!$AD$6) ->  | IC8: =IF('Supp. Result Entry'!AG7="","",'Supp. Result Entry'!$AG$6) ->  | ID8: =IF('Supp. Result Entry'!AJ7="","",'Supp. Result Entry'!$AJ$6) ->  | IE8: =IF('Supp. Result Entry'!V7="","",'Supp. Result Entry'!V7) ->  | IF8: =IF('Supp. Result Entry'!Y7="","",'Supp. Result Entry'!Y7) ->  | IG8: =IF('Supp. Result Entry'!AB7="","",'Supp. Result Entry'!AB7) ->  | IH8: =IF('Supp. Result Entry'!AE7="","",'Supp. Result Entry'!AE7) ->  | II8: =IF('Supp. Result Entry'!AH7="","",'Supp. Result Entry'!AH7) ->  | IJ8: =IF('Supp. Result Entry'!AK7="","",'Supp. Result Entry'!AK7) ->  | IK8: =IF('Supp. Result Entry'!W7="","",'Supp. Result Entry'!W7) ->  | IL8: =IF('Supp. Result Entry'!Z7="","",'Supp. Result Entry'!Z7) ->  | IM8: =IF('Supp. Result Entry'!AC7="","",'Supp. Result Entry'!AC7) ->  | IN8: =IF('Supp. Result Entry'!AF7="","",'Supp. Result Entry'!AF7) ->  | IO8: =IF('Supp. Result Entry'!AI7="","",'Supp. Result Entry'!AI7) ->  | IP8: =IF('Supp. Result Entry'!AL7="","",'Supp. Result Entry'!AL7) ->  | IQ8: =COUNTIF('Supp. Result Entry'!K7:Q7,"S") -> 0 | IR8: =COUNTIF(FJ8:GR8,"RE")+COUNTIF(FJ8:GR8,"REP") -> 0 | IS8: =COUNTIF(IK8:IP8,"P") -> 0 | IT8: =IF(OR(IQ8=0,IQ8<IS8),"",IF(OR(FJ8="RE",FJ8="REP"),SUM(Q8,IE8),IF(FJ8="S",IE8,Q8))) ->  | IU8: =IF(OR(IQ8=0,IQ8<IS8),"",IF(OR(FM8="RE",FM8="REP"),SUM(AE8,IF8),IF(FM8="S",IF8,AE8))) ->  | IV8: =IF(OR(IQ8=0,IQ8<IS8),"",IF(OR(FP8="RE",FP8="REP"),SUM(AZ8,IG8),IF(FP8="S",IG8,AZ8))) ->  | IW8: =IF(OR(IQ8=0,IQ8<IS8),"",IF(OR(FW8="RE",FW8="REP"),SUM(BW8,IH8),IF(FW8="S",IH8,BW8))) ->  | IX8: =IF(OR(IQ8=0,IQ8<IS8),"",IF(OR(GD8="RE",GD8="REP"),SUM(CT8,II8),IF(GD8="S",II8,CT8))) ->  | IY8: =IF(OR(IQ8=0,IQ8<IS8),"",SUM(IT8:IX8)) ->  | IZ8: =IF(OR(IQ8=0,IQ8<IS8),"",IY8/JA8*100) ->  | JA8: =IF(OR(IQ8=0,IQ8<IS8),"",SUM(($Q$6+$AE$6+$AZ$6+$BW$6+$CT$6))) ->  | JB8: =IF(IZ8="","",IF(IZ8>=60,"I",IF(IZ8>=48,"II",IF(IZ8>=36,"III","")))) -> 
A9: 2 | B9: =IF('Marks Entry'!B9="","",'Marks Entry'!B9) -> 1102 | C9: =IF('Marks Entry'!D9="","",'Marks Entry'!D9) -> 231 | D9: =IF('Marks Entry'!E9="","",'Marks Entry'!E9) -> 2004-04-13 | E9: =IF('Marks Entry'!F9="","",'Marks Entry'!F9) -> B | F9: =IF('Marks Entry'!G9="","",'Marks Entry'!G9) -> Y | G9: =IF('Marks Entry'!H9="","",'Marks Entry'!H9) -> N | H9: =IF('Marks Entry'!I9="","",'Marks Entry'!I9) -> OBC | I9: =IF('Marks Entry'!J9="","",'Marks Entry'!J9) -> M | J9: =IF('Marks Entry'!K9="","",'Marks Entry'!K9) -> 8 | K9: =IF('Marks Entry'!L9="","",'Marks Entry'!L9) -> 9 | L9: =IF('Marks Entry'!M9="","",'Marks Entry'!M9) -> 7 | M9: =IF(AND(J9="",K9="",L9=""),"",IF(AND(J9="AB",K9="AB",L9="AB"),"AB",IF(AND(J9="ML",K9="ML",L9="ML"),"ML",SUM(J9:L9)))) -> 24 | N9: =IF('Marks Entry'!N9="","",'Marks Entry'!N9) -> 46 | O9: =IF(AND(N9="",M9=""),"",IF(AND(N9="AB",M9="AB"),"AB",IF(AND(N9="ML",M9="ML"),"ML",SUM(M9,N9)))) -> 70 | P9: =IF('Marks Entry'!O9="","",'Marks Entry'!O9) -> 45 | Q9: =IF(AND(O9="",P9=""),"",IF(AND(O9="AB",P9="AB"),"AB",IF(AND(O9="ML",P9="ML"),"ML",SUM(O9,P9)))) -> 115 | R9: =COUNTIF(J9:L9,"NA")*10 -> 0 | S9: =(COUNTIF(J9:L9,"ML")*10)+(COUNTIF(N9,"ML")*70)+(COUNTIF(P9,"ML")*100) -> 0 | T9: =IF(OR($B9="NSO",$B9=0),"",IF(AND(J9="",K9="",L9="",N9="",P9=""),"",IF(AND(K9="",J9="",O9="",N9=""),20-R9-S9,IF(AND(K9="",L9="",N9=""),20-R9-S9,IF(AND(N9="",P9=""),40-R9-S9,IF(P9="",100-R9-S9,200-R9-S9)))))) -> 200 | U9: =IF(OR($B9="",$C9="",$E9=""),"",IF(AND(OR(J9="ab",J9="ml",J9=""),OR(K9="ab",K9="ml",K9=""),OR(N9="ab",N9="ml",N9="")),"AB",IF(AND(OR(N9="ab",N9="ml",N9=""),OR(P9="ab",P9="ml",P9=""),OR(L9="ab",L9="ml")),"AB",IF(AND(OR(P9="ab",P9="ml",P9=""),OR(J9="ab",J9="ml",J9=""),OR(K9="ab",K9="ml",K9="")),"AB","")))) ->  | V9: =IF(OR($B9="NSO",$B9="",Q9=""),"",IF(OR(U9="AB",P9="ab"),"AB",IF(P9="ML","RE",IF(AND(Q9>=36%*T9,P9>=20%*$P$6),"P",IF(AND(Q9>=34%*T9,S9=0,P9>=20%*$P$6),"G2",IF(AND(Q9>=31%*T9,S9=0,P9>=20%*$P$6),"G1",IF(Q9>=25%*T9,"S","F"))))))) -> P | W9: =IF(OR(V9="",V9=0,V9="S",V9="RE",V9="F",V9="AB"),V9,IF(Q9>=75%*T9,"D",IF(Q9>=60%*T9,"I",IF(Q9>=48%*T9,"II",IF(Q9>=36%*T9,"III",V9))))) -> II | X9: =IF('Marks Entry'!P9="","",'Marks Entry'!P9) -> 9 | Y9: =IF('Marks Entry'!Q9="","",'Marks Entry'!Q9) -> 5 | Z9: =IF('Marks Entry'!R9="","",'Marks Entry'!R9) -> 7 | AA9: =IF(AND(X9="",Y9="",Z9=""),"",IF(AND(X9="AB",Y9="AB",Z9="AB"),"AB",IF(AND(X9="ML",Y9="ML",Z9="ML"),"ML",SUM(X9:Z9)))) -> 21 | AB9: =IF('Marks Entry'!S9="","",'Marks Entry'!S9) -> 41 | AC9: =IF(AND(AB9="",AA9=""),"",IF(AND(AB9="AB",AA9="AB"),"AB",IF(AND(AB9="ML",AA9="ML"),"ML",SUM(AA9,AB9)))) -> 62 | AD9: =IF('Marks Entry'!T9="","",'Marks Entry'!T9) -> 71 | AE9: =IF(AND(AC9="",AD9=""),"",IF(AND(AC9="AB",AD9="AB"),"AB",IF(AND(AC9="ML",AD9="ML"),"ML",SUM(AC9,AD9)))) -> 133 | AF9: =COUNTIF(X9:Z9,"NA")*10 -> 0 | AG9: =(COUNTIF(X9:Z9,"ML")*10)+(COUNTIF(AB9,"ML")*70)+(COUNTIF(AD9,"ML")*100) -> 0 | AH9: =IF(OR($B9="NSO",$B9=0),"",IF(AND(X9="",Y9="",Z9="",AB9="",AD9=""),"",IF(AND(Y9="",X9="",AC9="",AB9=""),20-AF9-AG9,IF(AND(Y9="",Z9="",AB9=""),20-AF9-AG9,IF(AND(AB9="",AD9=""),40-AF9-AG9,IF(AD9="",100-AF9-AG9,200-AF9-AG9)))))) -> 200 | AI9: =IF(OR($B9="",$C9="",$E9=""),"",IF(AND(OR(X9="ab",X9="ml",X9=""),OR(Y9="ab",Y9="ml",Y9=""),OR(AB9="ab",AB9="ml",AB9="")),"AB",IF(AND(OR(AB9="ab",AB9="ml",AB9=""),OR(AD9="ab",AD9="ml",AD9=""),OR(Z9="ab",Z9="ml")),"AB",IF(AND(OR(AD9="ab",AD9="ml",AD9=""),OR(X9="ab",X9="ml",X9=""),OR(Y9="ab",Y9="ml",Y9="")),"AB","")))) ->  | AJ9: =IF(OR($B9="NSO",$B9="",AE9=""),"",IF(OR(AI9="AB",AD9="ab"),"AB",IF(AD9="ML","RE",IF(AND(AE9>=36%*AH9,AD9>=20%*$P$6),"P",IF(AND(AE9>=34%*AH9,AG9=0,AD9>=20%*$P$6),"G2",IF(AND(AE9>=31%*AH9,AG9=0,AD9>=20%*$P$6),"G1",IF(AE9>=25%*AH9,"S","F"))))))) -> P | AK9: =IF(OR(AJ9="",AJ9=0,AJ9="S",AJ9="RE",AJ9="F",AJ9="AB"),AJ9,IF(AE9>=75%*AH9,"D",IF(AE9>=60%*AH9,"I",IF(AE9>=48%*AH9,"II",IF(AE9>=36%*AH9,"III",AJ9))))) -> I | AL9: =IF('Marks Entry'!U9="","",'Marks Entry'!U9) -> B | AM9: =IF('Marks Entry'!V9="","",'Marks Entry'!V9) -> 9 | AN9: =IF('Marks Entry'!W9="","",'Marks Entry'!W9) -> 10 | AO9: =IF('Marks Entry'!X9="","",'Marks Entry'!X9) -> 8 | AP9: =IF(AND(AM9="",AN9="",AO9=""),"",IF(AND(AM9="AB",AN9="AB",AO9="AB"),"AB",IF(AND(AM9="ML",AN9="ML",AO9="ML"),"ML",SUM(AM9:AO9)))) -> 27 | AQ9: =IF('Marks Entry'!Y9="","",'Marks Entry'!Y9) -> 34 | AR9: =IF('Marks Entry'!Z9="","",'Marks Entry'!Z9) -> 8 | AS9: =IF(AND(AQ9="",AR9=""),"",IF(AND(AQ9="AB",AR9="AB"),"AB",IF(AND(AQ9="ML",AR9="ML"),"ML",SUM(AQ9:AR9)))) -> 42 | AT9: =IF(AND(AS9="",AP9=""),"",IF(AND(AS9="AB",AP9="AB"),"AB",IF(AND(AS9="ML",AP9="ML"),"ML",SUM(AP9,AS9)))) -> 69 | AU9: =IF('Marks Entry'!AA9="","",'Marks Entry'!AA9) -> 53 | AV9: =IF('Marks Entry'!AB9="","",'Marks Entry'!AB9) -> 10 | AW9: =IF(AND(AU9="",AV9=""),"",IF(AND(AU9="AB",AV9="AB"),"AB",IF(AND(AU9="ML",AV9="ML"),"ML",SUM(AU9:AV9)))) -> 63 | AX9: =IF(AND(AP9="",AQ9="",AU9=""),"",SUM(AP9,AQ9,AU9)) -> 114 | AY9: =IF(AND(AR9="",AV9=""),"",SUM(AR9,AV9)) -> 18 | AZ9: =IF(AND(AT9="",AW9=""),"",SUM(AT9,AW9)) -> 132 | BA9: =COUNTIF(AM9:AO9,"NA")*10 -> 0 | BB9: =IF(AND(AQ9="",AU9=""),(COUNTIF(AM9:AO9,"ML")*10+(COUNTIF(AQ9,"ML"))*AQ$6+(COUNTIF(AU9,"ML"))*AU$6),(COUNTIF(AM9:AO9,"ML")*10+(COUNTIF(AQ9,"ML"))*AQ$6+(COUNTIF(AU9,"ML"))*AU$6)) -> 0 | BC9: =IF(OR($B9="NSO",$B9=0,AX9=""),"",IF(AND(AR9="",AV9=""),SUM($AU$7),SUM($AU$6))) -> 70 | BD9: =IF(OR($B9="NSO",$B9=0,AY9=""),"",IF(AND(AR9="",AV9=""),"",AY$6-(COUNTIF(AR9,"ML")*AR$6)-(COUNTIF(AV9,"ML")*AV$6))) -> 50 | BE9: =IF(OR($B9="NSO",$B9=0),"",IF(AND(AP9="",AQ9="",AU9=""),"",IF(AND(AR9="",AV9=""),SUM(($AX$7)-(BA9+BB9)),SUM(($AX$6)-(BA9+BB9))))) -> 150 | BF9: =IF(AND(OR(AM9="ab",AM9="ml"),OR(AQ9="ab",AQ9="ml"),OR(AN9="ab",AN9="ml")),"AB",IF(AND(OR(AM9="ab",AM9="ml"),OR(AQ9="ab",AQ9="ml"),OR(AU9="ab",AU9="ml")),"AB",IF(AND(OR(AQ9="ab",AQ9="ml"),OR(AO9="ab",AO9="ml"),OR(AN9="ab",AN9="ml")),"AB",IF(AND(OR(AQ9="ab",AQ9="ml"),OR(AU9="ab",AU9="ml"),OR(AN9="ab",AN9="ml")),"AB",IF(AND(OR(AQ9="ab",AQ9="ml"),OR(AU9="ab",AU9="ml")),"AB",""))))) ->  | BG9: =IF(OR($B9="NSO",$B9=0,AU9="",AW9="",AZ9=""),"",IF(OR(AU9="AB",AV9="AB",BF9="AB"),"AB",IF(OR(AU9="ML",AW9="ML"),"RE",IF(AV9="MLP","REP",IF(AV9<33%*$AV$6,"FP",IF(AR9<33%*$AR$6,"FP",IF(AND(AX9>=36%*BE9,SUM(AU9)>=20%*BC9,AY9>=SUM(BD9)*36%),"P",IF(AND(AX9>=34%*BE9,BB9=0,SUM(AU9)>=20%*BC9,AY9>=SUM(BD9)*36%),"G2",IF(AND(AX9>=31%*BE9,BB9=0,SUM(AU9)>=20%*BC9,AY9>=SUM(BD9)*36%),"G1",IF(AND(AX9>=25%*BE9,SUM(AU9)>=20%*BC9),"S","F")))))))))) -> P | BH9: =IF(OR(BG9="REP",BG9="RE",BG9=0,BG9="",BG9="F",BG9="AB"),BG9,IF(AND(AZ9>=75%*($AZ$6-BA9-BB9),BG9="P"),"D",IF(AND(AZ9>=60%*($AZ$6-BA9-BB9),BG9="P"),"I",IF(AND(AZ9>=48%*($AZ$6-BA9-BB9),BG9="P"),"II",IF(AND(AZ9>=36%*($AZ$6-BA9-BB9),BG9="P"),"III",BG9))))) -> I | BI9: =IF('Marks Entry'!AC9="","",'Marks Entry'!AC9) -> B | BJ9: =IF('Marks Entry'!AD9="","",'Marks Entry'!AD9) -> 8 | BK9: =IF('Marks Entry'!AE9="","",'Marks Entry'!AE9) -> 10 | BL9: =IF('Marks Entry'!AF9="","",'Marks Entry'!AF9) -> 9 | BM9: =IF(AND(BJ9="",BK9="",BL9=""),"",IF(AND(BJ9="AB",BK9="AB",BL9="AB"),"AB",IF(AND(BJ9="ML",BK9="ML",BL9="ML"),"ML",SUM(BJ9:BL9)))) -> 27 | BN9: =IF('Marks Entry'!AG9="","",'Marks Entry'!AG9) -> 45 | BO9: =IF('Marks Entry'!AH9="","",'Marks Entry'!AH9) -> 16 | BP9: =IF(AND(BN9="",BO9=""),"",IF(AND(BN9="AB",BO9="AB"),"AB",IF(AND(BN9="ML",BO9="ML"),"ML",SUM(BN9:BO9)))) -> 61 | BQ9: =IF(AND(BP9="",BM9=""),"",IF(AND(BP9="AB",BM9="AB"),"AB",IF(AND(BP9="ML",BM9="ML"),"ML",SUM(BM9,BP9)))) -> 88 | BR9: =IF('Marks Entry'!AI9="","",'Marks Entry'!AI9) -> 42 | BS9: =IF('Marks Entry'!AJ9="","",'Marks Entry'!AJ9) -> 25 | BT9: =IF(AND(BR9="",BS9=""),"",IF(AND(BR9="AB",BS9="AB"),"AB",IF(AND(BR9="ML",BS9="ML"),"ML",SUM(BR9:BS9)))) -> 67 | BU9: =IF(AND(BM9="",BN9="",BR9=""),"",SUM(BM9,BN9,BR9)) -> 114 | BV9: =IF(AND(BO9="",BS9=""),"",SUM(BO9,BS9)) -> 41 | BW9: =IF(AND(BQ9="",BT9=""),"",SUM(BQ9,BT9)) -> 155 | BX9: =COUNTIF(BJ9:BL9,"NA")*10 -> 0 | BY9: =IF(AND(BN9="",BR9=""),(COUNTIF(BJ9:BL9,"ML")*10+(COUNTIF(BN9,"ML"))*BN$6+(COUNTIF(BR9,"ML"))*BR$6),(COUNTIF(BJ9:BL9,"ML")*10+(COUNTIF(BN9,"ML"))*BN$6+(COUNTIF(BR9,"ML"))*BR$6)) -> 0 | BZ9: =IF(OR($B9="NSO",$B9=0,BU9=""),"",IF(AND(BO9="",BS9=""),SUM($BR$7),SUM($BR$6))) -> 70 | CA9: =IF(OR($B9="NSO",$B9=0,BV9=""),"",IF(AND(BO9="",BS9=""),"",BV$6-(COUNTIF(BO9,"ML")*BO$6)-(COUNTIF(BS9,"ML")*BS$6))) -> 50 | CB9: =IF(OR($B9="NSO",$B9=0),"",IF(AND(BM9="",BN9="",BR9=""),"",IF(AND(BO9="",BS9=""),SUM(($BU$7)-(BX9+BY9)),SUM(($BU$6)-(BX9+BY9))))) -> 150 | CC9: =IF(AND(OR(BJ9="ab",BJ9="ml"),OR(BN9="ab",BN9="ml"),OR(BK9="ab",BK9="ml")),"AB",IF(AND(OR(BJ9="ab",BJ9="ml"),OR(BN9="ab",BN9="ml"),OR(BR9="ab",BR9="ml")),"AB",IF(AND(OR(BN9="ab",BN9="ml"),OR(BL9="ab",BL9="ml"),OR(BK9="ab",BK9="ml")),"AB",IF(AND(OR(BN9="ab",BN9="ml"),OR(BR9="ab",BR9="ml"),OR(BK9="ab",BK9="ml")),"AB",IF(AND(OR(BN9="ab",BN9="ml"),OR(BR9="ab",BR9="ml")),"AB",""))))) ->  | CD9: =IF(OR($B9="NSO",$B9=0,BR9="",BT9="",BW9=""),"",IF(OR(BR9="AB",BS9="AB",CC9="AB"),"AB",IF(OR(BR9="ML",BT9="ML"),"RE",IF(BS9="MLP","REP",IF(BS9<33%*$AV$6,"FP",IF(BO9<33%*$AR$6,"FP",IF(AND(BU9>=36%*CB9,SUM(BR9)>=20%*BZ9,BV9>=SUM(CA9)*36%),"P",IF(AND(BU9>=34%*CB9,BY9=0,SUM(BR9)>=20%*BZ9,BV9>=SUM(CA9)*36%),"G2",IF(AND(BU9>=31%*CB9,BY9=0,SUM(BR9)>=20%*BZ9,BV9>=SUM(CA9)*36%),"G1",IF(AND(BU9>=25%*CB9,SUM(BR9)>=20%*BZ9),"S","F")))))))))) -> P | CE9: =IF(OR(CD9="REP",CD9="RE",CD9=0,CD9="",CD9="F",CD9="AB"),CD9,IF(AND(BW9>=75%*($BW$6-BX9-BY9),CD9="P"),"D",IF(AND(BW9>=60%*($BW$6-BX9-BY9),CD9="P"),"I",IF(AND(BW9>=48%*($BW$6-BX9-BY9),CD9="P"),"II",IF(AND(BW9>=36%*($BW$6-BX9-BY9),CD9="P"),"III",CD9))))) -> D | CF9: =IF('Marks Entry'!AK9="","",'Marks Entry'!AK9) -> B | CG9: =IF('Marks Entry'!AL9="","",'Marks Entry'!AL9) -> 4 | CH9: =IF('Marks Entry'!AM9="","",'Marks Entry'!AM9) -> 4 | CI9: =IF('Marks Entry'!AN9="","",'Marks Entry'!AN9) -> 9 | CJ9: =IF(AND(CG9="",CH9="",CI9=""),"",IF(AND(CG9="AB",CH9="AB",CI9="AB"),"AB",IF(AND(CG9="ML",CH9="ML",CI9="ML"),"ML",SUM(CG9:CI9)))) -> 17 | CK9: =IF('Marks Entry'!AO9="","",'Marks Entry'!AO9) -> 10 | CL9: =IF('Marks Entry'!AP9="","",'Marks Entry'!AP9) -> 20 | CM9: =IF(AND(CK9="",CL9=""),"",IF(AND(CK9="AB",CL9="AB"),"AB",IF(AND(CK9="ML",CL9="ML"),"ML",SUM(CK9:CL9)))) -> 30 | CN9: =IF(AND(CM9="",CJ9=""),"",IF(AND(CM9="AB",CJ9="AB"),"AB",IF(AND(CM9="ML",CJ9="ML"),"ML",SUM(CJ9,CM9)))) -> 47 | CO9: =IF('Marks Entry'!AQ9="","",'Marks Entry'!AQ9) -> 45 | CP9: =IF('Marks Entry'!AR9="","",'Marks Entry'!AR9) -> 15 | CQ9: =IF(AND(CO9="",CP9=""),"",IF(AND(CO9="AB",CP9="AB"),"AB",IF(AND(CO9="ML",CP9="ML"),"ML",SUM(CO9:CP9)))) -> 60 | CR9: =IF(AND(CJ9="",CK9="",CO9=""),"",SUM(CJ9,CK9,CO9)) -> 72 | CS9: =IF(AND(CL9="",CP9=""),"",SUM(CL9,CP9)) -> 35 | CT9: =IF(AND(CN9="",CQ9=""),"",SUM(CN9,CQ9)) -> 107 | CU9: =COUNTIF(CG9:CI9,"NA")*10 -> 0 | CV9: =IF(AND(CK9="",CO9=""),(COUNTIF(CG9:CI9,"ML")*10+(COUNTIF(CK9,"ML"))*CK$6+(COUNTIF(CO9,"ML"))*CO$6),(COUNTIF(CG9:CI9,"ML")*10+(COUNTIF(CK9,"ML"))*CK$6+(COUNTIF(CO9,"ML"))*CO$6)) -> 0 | CW9: =IF(OR($B9="NSO",$B9=0,CR9=""),"",IF(AND(CL9="",CP9=""),SUM($CO$7),SUM($CO$6))) -> 70 | CX9: =IF(OR($B9="NSO",$B9=0,CS9=""),"",IF(AND(CL9="",CP9=""),"",CS$6-(COUNTIF(CL9,"ML")*CL$6)-(COUNTIF(CP9,"ML")*CP$6))) -> 50 | CY9: =IF(OR($B9="NSO",$B9=0),"",IF(AND(CJ9="",CK9="",CO9=""),"",IF(AND(CL9="",CP9=""),SUM((CR$7)-(CU9+CV9)),SUM((CR$6)-(CU9+CV9))))) -> 150 | CZ9: =IF(AND(OR(CG9="ab",CG9="ml"),OR(CK9="ab",CK9="ml"),OR(CH9="ab",CH9="ml")),"AB",IF(AND(OR(CG9="ab",CG9="ml"),OR(CK9="ab",CK9="ml"),OR(CO9="ab",CO9="ml")),"AB",IF(AND(OR(CK9="ab",CK9="ml"),OR(CI9="ab",CI9="ml"),OR(CH9="ab",CH9="ml")),"AB",IF(AND(OR(CK9="ab",CK9="ml"),OR(CO9="ab",CO9="ml"),OR(CH9="ab",CH9="ml")),"AB",IF(AND(OR(CK9="ab",CK9="ml"),OR(CO9="ab",CO9="ml")),"AB",""))))) ->  | DA9: =IF(OR($B9="NSO",$B9=0,CO9="",CQ9="",CT9=""),"",IF(OR(CO9="AB",CP9="AB",CZ9="AB"),"AB",IF(OR(CO9="ML",CQ9="ML"),"RE",IF(CP9="MLP","REP",IF(CP9<33%*$AV$6,"FP",IF(CL9<33%*$AR$6,"FP",IF(AND(CR9>=36%*CY9,SUM(CO9)>=20%*CW9,CS9>=SUM(CX9)*36%),"P",IF(AND(CR9>=34%*CY9,CV9=0,SUM(CO9)>=20%*CW9,CS9>=SUM(CX9)*36%),"G2",IF(AND(CR9>=31%*CY9,CV9=0,SUM(CO9)>=20%*CW9,CS9>=SUM(CX9)*36%),"G1",IF(AND(CR9>=25%*CY9,SUM(CO9)>=20%*CW9),"S","F")))))))))) -> P | DB9: =IF(OR(DA9="REP",DA9="RE",DA9=0,DA9="",DA9="F",DA9="AB"),DA9,IF(AND(CT9>=75%*($CT$6-CU9-CV9),DA9="P"),"D",IF(AND(CT9>=60%*($CT$6-CU9-CV9),DA9="P"),"I",IF(AND(CT9>=48%*($CT$6-CU9-CV9),DA9="P"),"II",IF(AND(CT9>=36%*($CT$6-CU9-CV9),DA9="P"),"III",DA9))))) -> II | DC9: =SUM(R9,S9,AF9,AG9,BA9,BB9,BX9,BY9,CU9,CV9) -> 0 | DD9: =IF('Marks Entry'!AS9="","",IF(OR('Master Sheet'!$D$19="YES",'Marks Entry'!$BA$1=1),'Marks Entry'!AS9,"")) -> A | DE9: =IF('Marks Entry'!AT9="","",IF(OR('Master Sheet'!$D$19="YES",'Marks Entry'!$BA$1=1),'Marks Entry'!AT9,"")) -> 9 | DF9: =IF('Marks Entry'!AU9="","",IF(OR('Master Sheet'!$D$19="YES",'Marks Entry'!$BA$1=1),'Marks Entry'!AU9,"")) -> 9 | DG9: =IF('Marks Entry'!AV9="","",IF(OR('Master Sheet'!$D$19="YES",'Marks Entry'!$BA$1=1),'Marks Entry'!AV9,"")) -> 9 | DH9: =IF(AND(DE9="",DF9="",DG9=""),"",IF(AND(DE9="AB",DF9="AB",DG9="AB"),"AB",IF(AND(DE9="ML",DF9="ML",DG9="ML"),"ML",SUM(DE9:DG9)))) -> 27 | DI9: =IF('Marks Entry'!AW9="","",IF(OR('Master Sheet'!$D$19="YES",'Marks Entry'!$BA$1=1),'Marks Entry'!AW9,"")) -> 50 | DJ9: =IF('Marks Entry'!AX9="","",IF(OR('Master Sheet'!$D$19="YES",'Marks Entry'!$BA$1=1),'Marks Entry'!AX9,"")) ->  | DK9: =IF(AND(DI9="",DJ9=""),"",IF(AND(DI9="AB",DJ9="AB"),"AB",IF(AND(DI9="ML",DJ9="ML"),"ML",SUM(DI9:DJ9)))) -> 50 | DL9: =IF(AND(DK9="",DH9=""),"",IF(AND(DK9="AB",DH9="AB"),"AB",IF(AND(DK9="ML",DH9="ML"),"ML",SUM(DH9,DK9)))) -> 77 | DM9: =IF('Marks Entry'!AY9="","",IF(OR('Master Sheet'!$D$19="YES",'Marks Entry'!$BA$1=1),'Marks Entry'!AY9,"")) -> 70 | DN9: =IF('Marks Entry'!AZ9="","",IF(OR('Master Sheet'!$D$19="YES",'Marks Entry'!$BA$1=1),'Marks Entry'!AZ9,"")) ->  | DO9: =IF('Marks Entry'!BA9="","",IF(OR('Master Sheet'!$D$19="YES",'Marks Entry'!$BA$1=1),'Marks Entry'!BA9,"")) ->  | DP9: =IF(AND(DM9="",DN9="",DO9=""),"",IF(AND(DM9="AB",DN9="AB",DO9="AB"),"AB",IF(AND(DM9="ML",DN9="ML",DO9="ML"),"ML",SUM(DM9:DO9)))) -> 70 | DQ9: =IF(AND(DH9="",DI9="",DM9="",DN9=""),"",SUM(DH9,DI9,DM9)) -> 147 | DR9: =IF(AND(DN9=""),"",SUM(DN9)) ->  | DS9: =IF(AND(DJ9="",DO9=""),"",SUM(DJ9,DO9)) ->  | DT9: =IF(AND(DL9="",DP9=""),"",SUM(DL9,DP9)) -> 147 | DU9: =COUNTIF(DE9:DG9,"NA")*10 -> 0 | DV9: =IF(AND(DI9="",DM9=""),(COUNTIF(DE9:DG9,"ML")*10+(COUNTIF(DI9,"ML"))*DI$6+(COUNTIF(DM9,"ML"))*DM$6),(COUNTIF(DE9:DG9,"ML")*10+(COUNTIF(DI9,"ML"))*DI$6+(COUNTIF(DM9,"ML"))*DM$6)) -> 0 | DW9: =IF(OR($B9="NSO",$B9=0,DM9=""),"",IF(AND(DO9=""),SUM($DM$7,DN$7),SUM($DM$6,DN$6))) -> 100 | DX9: =IF(OR($B9="NSO",$B9=0,DS9=""),"",IF(AND(DJ9="",DO9=""),"",IF('Master Sheet'!$D$19="YES",$DO$6-COUNTIF(DO9,"ML")*DO$6,DS$6-(COUNTIF(DJ9,"ML")*DJ$6)-(COUNTIF(DO9,"ML")*DO$6)))) ->  | DY9: =IF(OR($B9="NSO",$B9=0),"",IF(AND(DH9="",DI9="",DM9=""),"",IF(AND('Master Sheet'!$D$19="YES",'Marks Entry'!$BA$1=1),100,IF(AND(DJ9="",DO9=""),SUM(($DQ$7+$DR$7)-(DU9+DV9)),SUM(($DQ$6+$DR$6)-(DU9+DV9)))))) -> 200 | DZ9: =IF(AND(OR(DE9="ab",DF9="ml"),OR(DI9="ab",DI9="ml")),"AB",IF(AND(OR(DE9="ab",DE9="ml"),OR(DF9="ab",DF9="ml"),OR(DH9="ab",DH9="ml")),"AB",IF(AND(OR(DI9="ab",DI9="ml"),OR(DF9="ab",DF9="ml"),OR(DG9="ab",DG9="ml")),"AB",IF(AND(OR(DKJ9="ab",DI9="ml"),OR(DM9="ab",DM9="ml"),OR(DN9="ab",DN9="ml")),"AB","")))) ->  | EA9: =IF(OR($B9="NSO",$B9=0,DM9="",DT9="",DQ9=""),"",IF(OR(DM9="AB",DO9="AB",DZ9="AB"),"AB",IF(OR(DM9="ML",DP9="ML"),"RE",IF(DO9="MLP","REP",IF(DO9<33%*$DO$6,"FP",IF(DJ9<33%*$DJ$6,"FP",IF(AND(DT9>=36%*DY9,SUM(DM9)>=20%*DW9,DS9>=SUM(DX9)*36%),"P",IF(AND(DQ9>=34%*DY9,DV9=0,SUM(DM9)>=20%*DW9,DS9>=SUM(DX9)*36%),"G2",IF(AND(DQ9>=31%*DY9,DV9=0,SUM(DM9)>=20%*DW9,DS9>=SUM(DX9)*36%),"G1",IF(AND(DQ9>=25%*DY9,SUM(DM9)>=20%*DW9),"S","F")))))))))) -> P | EB9: =IF(OR(EA9="REP",EA9="RE",EA9=0,EA9="",EA9="F",EA9="AB"),EA9,IF(AND(DT9>=75%*($DT$6-DU9-DV9),EA9="P"),"D",IF(AND(DT9>=60%*($DT$6-DU9-DV9),EA9="P"),"I",IF(AND(DT9>=48%*($DT$6-DU9-DV9),EA9="P"),"II",IF(AND(DT9>=36%*($DT$6-DU9-DV9),EA9="P"),"III",EA9))))) -> I | EC9: =IF('Marks Entry'!BB9="","",'Marks Entry'!BB9) -> 26 | ED9: =IF('Marks Entry'!BC9="","",'Marks Entry'!BC9) -> 25 | EE9: =IF('Marks Entry'!BD9="","",'Marks Entry'!BD9) -> 36 | EF9: =IF(AND(EC9="",ED9="",EE9=""),"",SUM(EC9:EE9)) -> 87 | EG9: =COUNTIF(EC9,"NA")*$EC$6 -> 0 | EH9: =(COUNTIF(EC9,"ML")*$EC$6)+(COUNTIF(ED9,"ML")*$ED$6) -> 0 | EI9: =IF(OR($B9="NSO",$B9=0),"",IF(AND(EC9="",ED9="",EE9=""),"",IF(AND(EC9="",ED9=""),30-EG9-EH9,IF(AND(ED9="",EE9=""),60-EG9-EH9,100-EG9-EH9)))) -> 100 | EJ9: =IF(OR(EE9="ab",EE9="ml"),EE9,"") ->  | EK9: =IF(OR($B9="NSO",$B9=0,EF9=""),"",IF(OR(EJ9="AB",EE9="ab"),"AB",IF(AND(EX9="FAIL",(OR(EF9="ml",EF9<20%*$EF$6,EF9<36%*EI9))),"F",IF(OR(EE9="ML",EE9<20%*$EE$6,EF9<36%*EI9),"RE",IF(EF9>80%*EI9,"A",IF(EF9>60%*EI9,"B",IF(EF9>40%*EI9,"C","D"))))))) -> A | EL9: =W9 -> II | EM9: =AK9 -> I | EN9: =BH9 -> I | EO9: =CE9 -> D | EP9: =DB9 -> II | EQ9: =EB9 -> I | ER9: =COUNTIF(EL9:EP9,"F")+COUNTIF(EL9:EP9,"AB")+COUNTIF(EN9:EP9,"FP") -> 0 | ES9: =COUNTIF(EL9:EP9,"S") -> 0 | ET9: =COUNTIF(EL9:EP9,"G1") -> 0 | EU9: =COUNTIF(EL9:EP9,"G2") -> 0 | EV9: =COUNTIF(EL9:EP9,"RE")+COUNTIF(EL9:EP9,"REP") -> 0 | EW9: =IF(OR(EK9="AB",EK9="F"),"D",IF(OR(EK9="RE"),"D","")) ->  | EX9: =IF(B9="NSO","NSO",IF(OR(B9="",B9=0,P9="",AD9="",AW9="",BT9=""),"",IF(OR(ER9>0,(ES9+ET9+EU9)>2),"FAIL",IF(EV9>0,"RE-EXAM",IF(OR(ES9>0,ET9>1),"SUPPLEMENTARY",IF(AND(ET9>0,EU9>0),"SUPPLEMENTARY",IF((ET9+EU9)>0,"BY GRACE PASS","PASS"))))))) -> PASS | EY9: =IF('Marks Entry'!BE9="","",'Marks Entry'!BE9) -> 8 | EZ9: =IF('Marks Entry'!BF9="","",'Marks Entry'!BF9) -> 8 | FA9: =IF('Marks Entry'!BG9="","",'Marks Entry'!BG9) -> 8 | FB9: =IF(AND(EY9="",EZ9="",FA9=""),"",IF(AND(EY9="AB",EZ9="AB",FA9="AB"),"AB",IF(AND(EY9="ML",EZ9="ML",FA9="ML"),"ML",SUM(EY9:FA9)))) -> 24 | FC9: =IF('Marks Entry'!BH9="","",'Marks Entry'!BH9) -> 50 | FD9: =IF('Marks Entry'!BI9="","",'Marks Entry'!BI9) -> 80 | FE9: =IF(AND(EY9="",EZ9="",FA9="",FC9="",FD9=""),"",SUM(EY9,EZ9,FA9,FC9,FD9)) -> 154 | FF9: =IF(OR($B9="NSO",$B9=0,FE9=""),"",IF(OR(FE9="AB",FD9="ab"),"AB",IF(AND(EX9="FAIL",(OR(FE9<36%*$FE$6))),"F",IF(OR(FD9="ML",FD9<20%*$FD$6,FE9<36%*$FE$6),"RE",IF(FE9>80%*$FE$6,"A",IF(FE9>60%*$FE$6,"B",IF(FE9>40%*$FE$6,"C","D"))))))) -> B | FG9: =IF(AND(E9=""),"",IF('Student DATA Entry'!L5="","",'Student DATA Entry'!L5)) -> 360 | FH9: =IF(AND(E9=""),"",IF('Student DATA Entry'!M5="","",'Student DATA Entry'!M5)) -> 344 | FI9: =IF(OR(FG9=0,FH9=0,FG9="",FH9=""),"",FH9/FG9*100) -> 95.6 | FJ9: =IF(AND(EX9="FAIL",(OR(EL9="G1",EL9="G2",EL9="S",EL9="RE"))),"F",IF(AND(EX9="RE-EXAM",(OR(EL9="G1",EL9="G2",EL9="S"))),"S",IF(AND(EX9="SUPPLEMENTARY",(OR(EL9="G1",EL9="G2"))),"S",IF(AND(EX9="BY GRACE PASS",(OR(EL9="G1",EL9="G2"))),"G",EL9)))) -> II | FK9: =IF(FJ9="G",",+","") ->  | FM9: =IF(AND(EX9="vuqRrh.kZ",(OR(EM9="G1",EM9="G2",EM9="S",EM9="RE"))),"F",IF(AND(EX9="iqu% ijh{kk",(OR(EM9="G1",EM9="G2",EM9="S"))),"S",IF(AND(EX9="iwjd",(OR(EM9="G1",EM9="G2"))),"S",IF(AND(EX9="lk- mRrh.kZ",(OR(EM9="G1",EM9="G2"))),"G",EM9)))) -> I | FN9: =IF(FM9="G",",+","") ->  | FP9: =IF(AND(EX9="FAIL",(OR(EN9="G1",EN9="G2",EN9="S",EN9="RE"))),"F",IF(AND(EX9="RE-EXAM",(OR(EN9="G1",EN9="G2",EN9="S"))),"S",IF(AND(EX9="SUPPLEMENTARY",(OR(EN9="G1",EN9="G2"))),"S",IF(AND(EX9="BY GRACE PASS",(OR(EN9="G1",EN9="G2"))),"G",EN9)))) -> I | FR9: I | FU9: =IF(FP9="G",",+","") ->  | FW9: =IF(AND(EX9="FAIL",(OR(EO9="G1",EO9="G2",EO9="S",EO9="RE",))),"F",IF(AND(EX9="RE-EXAM",(OR(EO9="G1",EO9="G2",EO9="S"))),"S",IF(AND(EX9="SUPPLEMENTARY",(OR(EO9="G1",EO9="G2"))),"S",IF(AND(EX9="BY GRACE PASS",(OR(EO9="G1",EO9="G2"))),"G",EO9)))) -> D | FY9: D | GB9: =IF(FW9="G",",+","") ->  | GD9: =IF(AND(EX9="FAIL",(OR(EP9="G1",EP9="G2",EP9="S",EP9="RE"))),"F",IF(AND(EX9="RE-EXAM",(OR(EP9="G1",EP9="G2",EP9="S"))),"S",IF(AND(EX9="SUPPLEMENTARY",(OR(EP9="G1",EP9="G2"))),"S",IF(AND(EX9="BY GRACE PASS",(OR(EP9="G1",EP9="G2"))),"G",EP9)))) -> II | GF9: II | GI9: =IF(GD9="G",",+","") ->  | GK9: =IF(AND(EX9="FAIL",(OR(EQ9="G1",EQ9="G2",EQ9="S",EQ9="RE"))),"F",IF(AND(EX9="RE-EXAM",(OR(EQ9="G1",EQ9="G2",EQ9="S"))),"S",IF(AND(EX9="SUPPLEMENTARY",(OR(EQ9="G1",EQ9="G2"))),"S",IF(AND(EX9="BY GRACE PASS",(OR(EQ9="G1",EQ9="G2"))),"G",EQ9)))) -> I | GL9: I | GP9: =IF(GK9="G",",+","") ->  | GR9: =IF(AND(EX9="FAIL",EK9="RE"),"F",EK9) -> A | GS9: =IF(AND(EX9="FAIL",FF9="RE"),"F",FF9) -> B | GT9: =CONCATENATE(IF(FJ9="F",$FJ$5,IF(FJ9="AB",$FJ$5,""))," ",IF(FM9="F",$FM$5,IF(FM9="AB",$FM$5,""))," ",IF(FQ9="F",$FQ$5,IF(FR9="F",$FR$5,IF(FS9="F",$FS$5,IF(FQ9="AB",$FQ$5,IF(FR9="AB",$FR$5,IF(FS9="AB",$FS$5,IF(FQ9="FP",$FQ$5,IF(FR9="FP",$FR$5,IF(FS9="FP",$FS$5,"")))))))))," ",IF(FX9="F",$FX$5,IF(FY9="F",$FY$5,IF(FZ9="F",$FZ$5,IF(FX9="AB",$FX$5,IF(FY9="AB",$FY$5,IF(FZ9="AB",$FZ$5,IF(FX9="FP",$FX$5,IF(FY9="FP",$FY$5,IF(FZ9="FP",$FZ$5,"")))))))))," ",IF(GE9="F",$GE$5,IF(GF9="F",$GF$5,IF(GG9="F",$GG$5,IF(GE9="AB",$GE$5,IF(GF9="AB",$GF$5,IF(GG9="AB",$GG$5,IF(GE9="FP",$GE$5,IF(GF9="FP",$GF$5,IF(GG9="FP",$GG$5,""))))))))),"",IF(GL9="F",$GL$5,IF(GM9="F",$GM$5,IF(GN9="F",$GN$5,IF(GL9="AB",$GL$5,IF(GM9="AB",$GM$5,IF(GN9="AB",$GN$5,IF(GL9="FP",$GL$5,IF(GM9="FP",$GM$5,IF(GN9="FP",$GN$5,"")))))))))) ->  | GU9: =CONCATENATE(IF(FJ9="S",$FJ$5,"")," ",IF(FM9="S",$FM$5,"")," ",IF(FQ9="S",$FQ$5,IF(FR9="S",$FR$5,IF(FS9="S",$FS$5,IF(FT9="S",$FT$5,""))))," ",IF(FX9="S",$FX$5,IF(FY9="S",$FY$5,IF(FZ9="S",$FZ$5,IF(GA9="S",$GA$5,""))))," ",IF(GE9="S",$GE$5,IF(GF9="S",$GF$5,IF(GG9="S",$GG$5,IF(GH9="S",$GH$5,""))))) ->  | GV9: =CONCATENATE(IF(FJ9="G",$FJ$5,"")," ",IF(FM9="G",$FM$5,"")," ",IF(FQ9="G",$FQ$5,IF(FR9="G",$FR$5,IF(FS9="G",$FS$5,"")))," ",IF(FX9="G",$FX$5,IF(FY9="G",$FY$5,IF(FZ9="G",$FZ$5,"")))," ",IF(GE9="G",$GE$5,IF(GF9="G",$GF$5,IF(GG9="G",$GG$5,"")))) ->  | GW9: =CONCATENATE(IF(FJ9="RE",$FJ$5,"")," ",IF(FM9="RE",$FM$5,"")," ",IF(OR(FQ9="RE",FQ9="REP"),$FQ$5,IF(OR(FR9="RE",FR9="REP"),$FR$5,IF(OR(FS9="RE",FS9="REP"),$FS$5,IF(OR(FT9="RE",FT9="REP"),$FT$5,""))))," ",IF(OR(FX9="RE",FX9="REP"),$FX$5,IF(OR(FY9="RE",FY9="REP"),$FY$5,IF(OR(FZ9="RE",FZ9="REP"),$FZ$5,IF(OR(GA9="RE",GA9="REP"),$GA$5,""))))," ",IF(OR(GE9="RE",GE9="REP"),$GE$5,IF(OR(GF9="RE",GF9="REP"),$GF$5,IF(OR(GG9="RE",GG9="REP"),$GG$5,IF(OR(GH9="RE",GH9="REP"),$GH$5,""))))," ",IF(GR9="RE",$GR$4," "),"",IF(GS9="RE",$GS$4," "),"",) ->  | GX9: =CONCATENATE(IF(FJ9="D",$FJ$5,"")," ",IF($FM9="D",$FM$5,"")," ",IF(FQ9="D",$FQ$5,IF(FR9="D",$FR$5,IF(FS9="D",$FS$5,IF(FT9="D",$FT$5,""))))," ",IF(FX9="D",$FX$5,IF(FY9="D",$FY$5,IF(FZ9="D",$FZ$5,IF(GA9="D",$GA$5,""))))," ",IF(GE9="D",$GE$5,IF(GF9="D",$GF$5,IF(GG9="D",$GG$5,IF(GH9="D",$GH$5,""))))," ",IF(GL9="D",$GL$5,IF(GM9="D",$GM$5,IF(GN9="D",$GN$5,IF(GO9="D",$GO$5,""))))) -> ACCOUNTANCY | GY9: =IF(B9="NSO","NSO",IF(AND(OR(EX9="PASS",EX9="BY GRACE PASS",EX9="RE-EXAM"),EW9="F"),"FAIL",IF(AND(OR(EX9="PASS",EX9="BY GRACE PASS"),EW9="RE"),"RE-EXAM",EX9))) -> PASS | GZ9: =IF(AND(Q9="",AE9="",AZ9="",BW9="",CT9=""),"",IF(AND('Master Sheet'!$D$19="YES",'Marks Entry'!$BA$1=1),SUM(Q9,AE9,AZ9,BW9,DT9),SUM(Q9,AE9,AZ9,BW9,CT9))) -> 642 | HA9: =IF(GZ9="","",IF(AND('Master Sheet'!$D$19="YES",'Marks Entry'!$BA$1=1),GZ9/((900)-DC9)*100,GZ9/((1000)-DC9)*100)) -> 64.20 | HB9: =IF(HA9="","",IF(AND(HA9>=60,(GY9="PASS")),"I",IF(AND(HA9>=60,(GY9="BY GRACE PASS")),"I",IF(AND(HA9>=48,(GY9="PASS")),"II",IF(AND(HA9>=48,(GY9="BY GRACE PASS")),"II",IF(AND(HA9>=36,(GY9="PASS")),"III",IF(AND(HA9>=36,(GY9="BY GRACE PASS")),"III",""))))))) -> I | HC9: =IF(OR(GY9="PASS",GY9="BY GRACE PASS"),HA9,"") -> 64.20 % | HD9: =IF(HC9="","",SUMPRODUCT((HC9<HC$8:HC$207)/COUNTIF(HC$8:HC$207,HC$8:HC$207))) -> 4 | HE9: =IFERROR(IF(OR(GY9="SUPPLEMENTARY",GY9="RE-EXAM"),'Supp. Result Entry'!AS8,""),"") ->  | HF9: =IF(OR(JB9="",IS9=0),"",IF(IZ9="","",IZ9)) ->  | HG9: =IF(AND(JB9=""),"",IF(HE9="","",IF(AND(JB9="FAIL"),"Failed",JB9))) ->  | HH9: =IF(AND(HE9="",HF9="",HG9=""),"",IF(OR(GY9="SUPPLEMENTARY",GY9="RE-EXAM"),'Supp. Result Entry'!AS8,GY9)) ->  | HY9: =IF('Supp. Result Entry'!U8="","",'Supp. Result Entry'!$U$6) ->  | HZ9: =IF('Supp. Result Entry'!X8="","",'Supp. Result Entry'!$X$6) ->  | IA9: =IF('Supp. Result Entry'!AA8="","",'Supp. Result Entry'!$AA$6) ->  | IB9: =IF('Supp. Result Entry'!AD8="","",'Supp. Result Entry'!$AD$6) ->  | IC9: =IF('Supp. Result Entry'!AG8="","",'Supp. Result Entry'!$AG$6) ->  | ID9: =IF('Supp. Result Entry'!AJ8="","",'Supp. Result Entry'!$AJ$6) ->  | IE9: =IF('Supp. Result Entry'!V8="","",'Supp. Result Entry'!V8) ->  | IF9: =IF('Supp. Result Entry'!Y8="","",'Supp. Result Entry'!Y8) ->  | IG9: =IF('Supp. Result Entry'!AB8="","",'Supp. Result Entry'!AB8) ->  | IH9: =IF('Supp. Result Entry'!AE8="","",'Supp. Result Entry'!AE8) ->  | II9: =IF('Supp. Result Entry'!AH8="","",'Supp. Result Entry'!AH8) ->  | IJ9: =IF('Supp. Result Entry'!AK8="","",'Supp. Result Entry'!AK8) ->  | IK9: =IF('Supp. Result Entry'!W8="","",'Supp. Result Entry'!W8) ->  | IL9: =IF('Supp. Result Entry'!Z8="","",'Supp. Result Entry'!Z8) ->  | IM9: =IF('Supp. Result Entry'!AC8="","",'Supp. Result Entry'!AC8) ->  | IN9: =IF('Supp. Result Entry'!AF8="","",'Supp. Result Entry'!AF8) ->  | IO9: =IF('Supp. Result Entry'!AI8="","",'Supp. Result Entry'!AI8) ->  | IP9: =IF('Supp. Result Entry'!AL8="","",'Supp. Result Entry'!AL8) ->  | IQ9: =COUNTIF('Supp. Result Entry'!K8:Q8,"S") -> 0 | IR9: =COUNTIF(FJ9:GR9,"RE")+COUNTIF(FJ9:GR9,"REP") -> 0 | IS9: =COUNTIF(IK9:IP9,"P") -> 0 | IY9: =IF(OR(IQ9=0,IQ9<IS9),"",SUM(IT9:IX9)) ->  | IZ9: =IF(OR(IQ9=0,IQ9<IS9),"",IY9/JA9*100) ->  | JB9: =IF(IZ9="","",IF(IZ9>=60,"I",IF(IZ9>=48,"II",IF(IZ9>=36,"III","")))) -> 
A10: 3 | B10: =IF('Marks Entry'!B10="","",'Marks Entry'!B10) -> 1103 | C10: =IF('Marks Entry'!D10="","",'Marks Entry'!D10) -> 555 | D10: =IF('Marks Entry'!E10="","",'Marks Entry'!E10) -> 2005-03-03 | E10: =IF('Marks Entry'!F10="","",'Marks Entry'!F10) -> C | F10: =IF('Marks Entry'!G10="","",'Marks Entry'!G10) -> Z | G10: =IF('Marks Entry'!H10="","",'Marks Entry'!H10) -> O | H10: =IF('Marks Entry'!I10="","",'Marks Entry'!I10) -> SC | I10: =IF('Marks Entry'!J10="","",'Marks Entry'!J10) -> F | J10: =IF('Marks Entry'!K10="","",'Marks Entry'!K10) -> 9 | K10: =IF('Marks Entry'!L10="","",'Marks Entry'!L10) -> 9 | L10: =IF('Marks Entry'!M10="","",'Marks Entry'!M10) -> 8 | M10: 26 | N10: =IF('Marks Entry'!N10="","",'Marks Entry'!N10) -> 41 | O10: 67 | P10: =IF('Marks Entry'!O10="","",'Marks Entry'!O10) -> 65 | Q10: 132 | R10: 0 | S10: 0 | T10: 200 | V10: P | W10: I | X10: =IF('Marks Entry'!P10="","",'Marks Entry'!P10) -> 9 | Y10: =IF('Marks Entry'!Q10="","",'Marks Entry'!Q10) -> 6 | Z10: =IF('Marks Entry'!R10="","",'Marks Entry'!R10) -> 9 | AA10: 24 | AB10: =IF('Marks Entry'!S10="","",'Marks Entry'!S10) -> 42 | AC10: 66 | AD10: =IF('Marks Entry'!T10="","",'Marks Entry'!T10) -> 70 | AE10: 136 | AF10: 0 | AG10: 0 | AH10: 200 | AJ10: P | AK10: I | AL10: =IF('Marks Entry'!U10="","",'Marks Entry'!U10) -> A | AM10: =IF('Marks Entry'!V10="","",'Marks Entry'!V10) -> 9 | AN10: =IF('Marks Entry'!W10="","",'Marks Entry'!W10) -> 9 | AO10: =IF('Marks Entry'!X10="","",'Marks Entry'!X10) -> 9 | AP10: 27 | AQ10: =IF('Marks Entry'!Y10="","",'Marks Entry'!Y10) -> 40 | AR10: =IF('Marks Entry'!Z10="","",'Marks Entry'!Z10) ->  | AS10: 40 | AT10: 67 | AU10: =IF('Marks Entry'!AA10="","",'Marks Entry'!AA10) -> 45 | AV10: =IF('Marks Entry'!AB10="","",'Marks Entry'!AB10) ->  | AW10: 45 | AX10: 112 | AZ10: 112 | BA10: 0 | BB10: 0 | BC10: 100 | BE10: 200 | BG10: =IF(OR($B10="NSO",$B10=0,AU10="",AW10="",AZ10=""),"",IF(OR(AU10="AB",AV10="AB",BF10="AB"),"AB",IF(OR(AU10="ML",AW10="ML"),"RE",IF(AV10="MLP","REP",IF(AV10<33%*$AV$6,"FP",IF(AR10<33%*$AR$6,"FP",IF(AND(AX10>=36%*BE10,SUM(AU10)>=20%*BC10,AY10>=SUM(BD10)*36%),"P",IF(AND(AX10>=34%*BE10,BB10=0,SUM(AU10)>=20%*BC10,AY10>=SUM(BD10)*36%),"G2",IF(AND(AX10>=31%*BE10,BB10=0,SUM(AU10)>=20%*BC10,AY10>=SUM(BD10)*36%),"G1",IF(AND(AX10>=25%*BE10,SUM(AU10)>=20%*BC10),"S","F")))))))))) -> P | BH10: II | BI10: =IF('Marks Entry'!AC10="","",'Marks Entry'!AC10) -> B | BJ10: =IF('Marks Entry'!AD10="","",'Marks Entry'!AD10) -> 9 | BK10: =IF('Marks Entry'!AE10="","",'Marks Entry'!AE10) -> 10 | BL10: =IF('Marks Entry'!AF10="","",'Marks Entry'!AF10) -> 8 | BM10: 27 | BN10: =IF('Marks Entry'!AG10="","",'Marks Entry'!AG10) -> 30 | BO10: =IF('Marks Entry'!AH10="","",'Marks Entry'!AH10) -> 11 | BP10: 41 | BQ10: 68 | BR10: =IF('Marks Entry'!AI10="","",'Marks Entry'!AI10) -> 54 | BS10: =IF('Marks Entry'!AJ10="","",'Marks Entry'!AJ10) -> 24 | BT10: 78 | BU10: 111 | BV10: 35 | BW10: 146 | BX10: 0 | BY10: 0 | BZ10: 70 | CA10: 50 | CB10: 150 | CD10: =IF(OR($B10="NSO",$B10=0,BR10="",BT10="",BW10=""),"",IF(OR(BR10="AB",BS10="AB",CC10="AB"),"AB",IF(OR(BR10="ML",BT10="ML"),"RE",IF(BS10="MLP","REP",IF(BS10<33%*$AV$6,"FP",IF(BO10<33%*$AR$6,"FP",IF(AND(BU10>=36%*CB10,SUM(BR10)>=20%*BZ10,BV10>=SUM(CA10)*36%),"P",IF(AND(BU10>=34%*CB10,BY10=0,SUM(BR10)>=20%*BZ10,BV10>=SUM(CA10)*36%),"G2",IF(AND(BU10>=31%*CB10,BY10=0,SUM(BR10)>=20%*BZ10,BV10>=SUM(CA10)*36%),"G1",IF(AND(BU10>=25%*CB10,SUM(BR10)>=20%*BZ10),"S","F")))))))))) -> P | CE10: I | CF10: =IF('Marks Entry'!AK10="","",'Marks Entry'!AK10) -> A | CG10: =IF('Marks Entry'!AL10="","",'Marks Entry'!AL10) -> 6 | CH10: =IF('Marks Entry'!AM10="","",'Marks Entry'!AM10) -> 7 | CI10: =IF('Marks Entry'!AN10="","",'Marks Entry'!AN10) -> 8 | CJ10: 21 | CK10: =IF('Marks Entry'!AO10="","",'Marks Entry'!AO10) -> 31 | CL10: =IF('Marks Entry'!AP10="","",'Marks Entry'!AP10) -> 11 | CM10: 42 | CN10: 63 | CO10: =IF('Marks Entry'!AQ10="","",'Marks Entry'!AQ10) -> 40 | CP10: =IF('Marks Entry'!AR10="","",'Marks Entry'!AR10) -> 12 | CQ10: 52 | CR10: =IF(AND(CJ10="",CK10="",CO10=""),"",SUM(CJ10,CK10,CO10)) -> 92 | CS10: 23 | CT10: 115 | CU10: 0 | CV10: 0 | CW10: 70 | CX10: 50 | CY10: =IF(OR($B10="NSO",$B10=0),"",IF(AND(CJ10="",CK10="",CO10=""),"",IF(AND(CL10="",CP10=""),SUM((CR$7)-(CU10+CV10)),SUM((CR$6)-(CU10+CV10))))) -> 150 | DA10: P | DB10: II | DC10: 0 | DD10: =IF('Marks Entry'!AS10="","",IF(OR('Master Sheet'!$D$19="YES",'Marks Entry'!$BA$1=1),'Marks Entry'!AS10,"")) ->  | DE10: =IF('Marks Entry'!AT10="","",IF(OR('Master Sheet'!$D$19="YES",'Marks Entry'!$BA$1=1),'Marks Entry'!AT10,"")) ->  | DF10: =IF('Marks Entry'!AU10="","",IF(OR('Master Sheet'!$D$19="YES",'Marks Entry'!$BA$1=1),'Marks Entry'!AU10,"")) ->  | DG10: =IF('Marks Entry'!AV10="","",IF(OR('Master Sheet'!$D$19="YES",'Marks Entry'!$BA$1=1),'Marks Entry'!AV10,"")) ->  | DI10: =IF('Marks Entry'!AW10="","",IF(OR('Master Sheet'!$D$19="YES",'Marks Entry'!$BA$1=1),'Marks Entry'!AW10,"")) ->  | DJ10: =IF('Marks Entry'!AX10="","",IF(OR('Master Sheet'!$D$19="YES",'Marks Entry'!$BA$1=1),'Marks Entry'!AX10,"")) ->  | DM10: =IF('Marks Entry'!AY10="","",IF(OR('Master Sheet'!$D$19="YES",'Marks Entry'!$BA$1=1),'Marks Entry'!AY10,"")) ->  | DN10: =IF('Marks Entry'!AZ10="","",IF(OR('Master Sheet'!$D$19="YES",'Marks Entry'!$BA$1=1),'Marks Entry'!AZ10,"")) ->  | DO10: =IF('Marks Entry'!BA10="","",IF(OR('Master Sheet'!$D$19="YES",'Marks Entry'!$BA$1=1),'Marks Entry'!BA10,"")) ->  | DU10: 0 | DV10: 0 | DX10: =IF(OR($B10="NSO",$B10=0,DS10=""),"",IF(AND(DJ10="",DO10=""),"",IF('Master Sheet'!$D$19="YES",$DO$6-COUNTIF(DO10,"ML")*DO$6,DS$6-(COUNTIF(DJ10,"ML")*DJ$6)-(COUNTIF(DO10,"ML")*DO$6)))) ->  | DY10: =IF(OR($B10="NSO",$B10=0),"",IF(AND(DH10="",DI10="",DM10=""),"",IF(AND('Master Sheet'!$D$19="YES",'Marks Entry'!$BA$1=1),100,IF(AND(DJ10="",DO10=""),SUM(($DQ$7+$DR$7)-(DU10+DV10)),SUM(($DQ$6+$DR$6)-(DU10+DV10)))))) ->  | EC10: =IF('Marks Entry'!BB10="","",'Marks Entry'!BB10) -> 26 | ED10: =IF('Marks Entry'!BC10="","",'Marks Entry'!BC10) -> 29 | EE10: =IF('Marks Entry'!BD10="","",'Marks Entry'!BD10) -> 32 | EF10: 87 | EG10: 0 | EH10: 0 | EI10: 100 | EK10: A | EL10: I | EM10: I | EN10: II | EO10: I | EP10: II | ER10: 0 | ES10: 0 | ET10: 0 | EU10: 0 | EV10: 0 | EX10: PASS | EY10: =IF('Marks Entry'!BE10="","",'Marks Entry'!BE10) -> 8 | EZ10: =IF('Marks Entry'!BF10="","",'Marks Entry'!BF10) -> 8 | FA10: =IF('Marks Entry'!BG10="","",'Marks Entry'!BG10) -> 8 | FB10: 24 | FC10: =IF('Marks Entry'!BH10="","",'Marks Entry'!BH10) -> 50 | FD10: =IF('Marks Entry'!BI10="","",'Marks Entry'!BI10) -> 80 | FE10: 154 | FF10: B | FG10: =IF(AND(E10=""),"",IF('Student DATA Entry'!L6="","",'Student DATA Entry'!L6)) -> 370 | FH10: =IF(AND(E10=""),"",IF('Student DATA Entry'!M6="","",'Student DATA Entry'!M6)) -> 346 | FI10: 93.5 | FJ10: I | FM10: I | FP10: II | FQ10: II | FW10: I | FY10: I | GD10: II | GE10: II | GR10: A | GS10: B | GT10: =CONCATENATE(IF(FJ10="F",$FJ$5,IF(FJ10="AB",$FJ$5,""))," ",IF(FM10="F",$FM$5,IF(FM10="AB",$FM$5,""))," ",IF(FQ10="F",$FQ$5,IF(FR10="F",$FR$5,IF(FS10="F",$FS$5,IF(FQ10="AB",$FQ$5,IF(FR10="AB",$FR$5,IF(FS10="AB",$FS$5,IF(FQ10="FP",$FQ$5,IF(FR10="FP",$FR$5,IF(FS10="FP",$FS$5,"")))))))))," ",IF(FX10="F",$FX$5,IF(FY10="F",$FY$5,IF(FZ10="F",$FZ$5,IF(FX10="AB",$FX$5,IF(FY10="AB",$FY$5,IF(FZ10="AB",$FZ$5,IF(FX10="FP",$FX$5,IF(FY10="FP",$FY$5,IF(FZ10="FP",$FZ$5,"")))))))))," ",IF(GE10="F",$GE$5,IF(GF10="F",$GF$5,IF(GG10="F",$GG$5,IF(GE10="AB",$GE$5,IF(GF10="AB",$GF$5,IF(GG10="AB",$GG$5,IF(GE10="FP",$GE$5,IF(GF10="FP",$GF$5,IF(GG10="FP",$GG$5,""))))))))),"",IF(GL10="F",$GL$5,IF(GM10="F",$GM$5,IF(GN10="F",$GN$5,IF(GL10="AB",$GL$5,IF(GM10="AB",$GM$5,IF(GN10="AB",$GN$5,IF(GL10="FP",$GL$5,IF(GM10="FP",$GM$5,IF(GN10="FP",$GN$5,"")))))))))) ->  | GY10: PASS | GZ10: =IF(AND(Q10="",AE10="",AZ10="",BW10="",CT10=""),"",IF(AND('Master Sheet'!$D$19="YES",'Marks Entry'!$BA$1=1),SUM(Q10,AE10,AZ10,BW10,DT10),SUM(Q10,AE10,AZ10,BW10,CT10))) -> 641 | HA10: =IF(GZ10="","",IF(AND('Master Sheet'!$D$19="YES",'Marks Entry'!$BA$1=1),GZ10/((900)-DC10)*100,GZ10/((1000)-DC10)*100)) -> 64.10 | HB10: =IF(HA10="","",IF(AND(HA10>=60,(GY10="PASS")),"I",IF(AND(HA10>=60,(GY10="BY GRACE PASS")),"I",IF(AND(HA10>=48,(GY10="PASS")),"II",IF(AND(HA10>=48,(GY10="BY GRACE PASS")),"II",IF(AND(HA10>=36,(GY10="PASS")),"III",IF(AND(HA10>=36,(GY10="BY GRACE PASS")),"III",""))))))) -> I | HC10: 64.10 % | HD10: 5 | HE10: =IFERROR(IF(OR(GY10="SUPPLEMENTARY",GY10="RE-EXAM"),'Supp. Result Entry'!AS9,""),"") ->  | HH10: =IF(AND(HE10="",HF10="",HG10=""),"",IF(OR(GY10="SUPPLEMENTARY",GY10="RE-EXAM"),'Supp. Result Entry'!AS9,GY10)) ->  | HY10: =IF('Supp. Result Entry'!U9="","",'Supp. Result Entry'!$U$6) ->  | HZ10: =IF('Supp. Result Entry'!X9="","",'Supp. Result Entry'!$X$6) ->  | IA10: =IF('Supp. Result Entry'!AA9="","",'Supp. Result Entry'!$AA$6) ->  | IB10: =IF('Supp. Result Entry'!AD9="","",'Supp. Result Entry'!$AD$6) ->  | IC10: =IF('Supp. Result Entry'!AG9="","",'Supp. Result Entry'!$AG$6) ->  | ID10: =IF('Supp. Result Entry'!AJ9="","",'Supp. Result Entry'!$AJ$6) ->  | IE10: =IF('Supp. Result Entry'!V9="","",'Supp. Result Entry'!V9) ->  | IF10: =IF('Supp. Result Entry'!Y9="","",'Supp. Result Entry'!Y9) ->  | IG10: =IF('Supp. Result Entry'!AB9="","",'Supp. Result Entry'!AB9) ->  | IH10: =IF('Supp. Result Entry'!AE9="","",'Supp. Result Entry'!AE9) ->  | II10: =IF('Supp. Result Entry'!AH9="","",'Supp. Result Entry'!AH9) ->  | IJ10: =IF('Supp. Result Entry'!AK9="","",'Supp. Result Entry'!AK9) ->  | IK10: =IF('Supp. Result Entry'!W9="","",'Supp. Result Entry'!W9) ->  | IL10: =IF('Supp. Result Entry'!Z9="","",'Supp. Result Entry'!Z9) ->  | IM10: =IF('Supp. Result Entry'!AC9="","",'Supp. Result Entry'!AC9) ->  | IN10: =IF('Supp. Result Entry'!AF9="","",'Supp. Result Entry'!AF9) ->  | IO10: =IF('Supp. Result Entry'!AI9="","",'Supp. Result Entry'!AI9) ->  | IP10: =IF('Supp. Result Entry'!AL9="","",'Supp. Result Entry'!AL9) ->  | IQ10: =COUNTIF('Supp. Result Entry'!K9:Q9,"S") -> 0 | IR10: 0 | IS10: 0
A11: 4 | B11: =IF('Marks Entry'!B11="","",'Marks Entry'!B11) -> 1104 | C11: =IF('Marks Entry'!D11="","",'Marks Entry'!D11) -> 444 | D11: =IF('Marks Entry'!E11="","",'Marks Entry'!E11) -> 2006-06-06 | E11: =IF('Marks Entry'!F11="","",'Marks Entry'!F11) -> D | F11: =IF('Marks Entry'!G11="","",'Marks Entry'!G11) -> W | G11: =IF('Marks Entry'!H11="","",'Marks Entry'!H11) -> P | H11: =IF('Marks Entry'!I11="","",'Marks Entry'!I11) -> ST | I11: =IF('Marks Entry'!J11="","",'Marks Entry'!J11) -> M | J11: =IF('Marks Entry'!K11="","",'Marks Entry'!K11) -> 5 | K11: =IF('Marks Entry'!L11="","",'Marks Entry'!L11) -> 7 | L11: =IF('Marks Entry'!M11="","",'Marks Entry'!M11) -> 8 | M11: 20 | N11: =IF('Marks Entry'!N11="","",'Marks Entry'!N11) -> 32 | O11: 52 | P11: =IF('Marks Entry'!O11="","",'Marks Entry'!O11) -> 54 | Q11: 106 | R11: 0 | S11: 0 | T11: 200 | V11: P | W11: II | X11: =IF('Marks Entry'!P11="","",'Marks Entry'!P11) -> 3 | Y11: =IF('Marks Entry'!Q11="","",'Marks Entry'!Q11) -> 3 | Z11: =IF('Marks Entry'!R11="","",'Marks Entry'!R11) -> 9 | AA11: 15 | AB11: =IF('Marks Entry'!S11="","",'Marks Entry'!S11) -> 48 | AC11: 63 | AD11: =IF('Marks Entry'!T11="","",'Marks Entry'!T11) -> 73 | AE11: 136 | AF11: 0 | AG11: 0 | AH11: 200 | AJ11: P | AK11: I | AL11: =IF('Marks Entry'!U11="","",'Marks Entry'!U11) -> B | AM11: =IF('Marks Entry'!V11="","",'Marks Entry'!V11) -> 8 | AN11: =IF('Marks Entry'!W11="","",'Marks Entry'!W11) -> 9 | AO11: =IF('Marks Entry'!X11="","",'Marks Entry'!X11) -> 7 | AP11: 24 | AQ11: =IF('Marks Entry'!Y11="","",'Marks Entry'!Y11) -> 28 | AR11: =IF('Marks Entry'!Z11="","",'Marks Entry'!Z11) -> 10 | AS11: 38 | AT11: 62 | AU11: =IF('Marks Entry'!AA11="","",'Marks Entry'!AA11) -> 47 | AV11: =IF('Marks Entry'!AB11="","",'Marks Entry'!AB11) -> 19 | AW11: 66 | AX11: 99 | AY11: 29 | AZ11: 128 | BA11: 0 | BB11: 0 | BC11: 70 | BD11: 50 | BE11: 150 | BG11: P | BH11: I | BI11: =IF('Marks Entry'!AC11="","",'Marks Entry'!AC11) -> A | BJ11: =IF('Marks Entry'!AD11="","",'Marks Entry'!AD11) -> 5 | BK11: =IF('Marks Entry'!AE11="","",'Marks Entry'!AE11) -> 5 | BL11: =IF('Marks Entry'!AF11="","",'Marks Entry'!AF11) -> 7 | BM11: 17 | BN11: =IF('Marks Entry'!AG11="","",'Marks Entry'!AG11) -> 32 | BO11: =IF('Marks Entry'!AH11="","",'Marks Entry'!AH11) ->  | BP11: 32 | BQ11: 49 | BR11: =IF('Marks Entry'!AI11="","",'Marks Entry'!AI11) -> 56 | BS11: =IF('Marks Entry'!AJ11="","",'Marks Entry'!AJ11) ->  | BT11: 56 | BU11: 105 | BW11: 105 | BX11: 0 | BY11: 0 | BZ11: 100 | CB11: 200 | CD11: =IF(OR($B11="NSO",$B11=0,BR11="",BT11="",BW11=""),"",IF(OR(BR11="AB",BS11="AB",CC11="AB"),"AB",IF(OR(BR11="ML",BT11="ML"),"RE",IF(BS11="MLP","REP",IF(BS11<33%*$AV$6,"FP",IF(BO11<33%*$AR$6,"FP",IF(AND(BU11>=36%*CB11,SUM(BR11)>=20%*BZ11,BV11>=SUM(CA11)*36%),"P",IF(AND(BU11>=34%*CB11,BY11=0,SUM(BR11)>=20%*BZ11,BV11>=SUM(CA11)*36%),"G2",IF(AND(BU11>=31%*CB11,BY11=0,SUM(BR11)>=20%*BZ11,BV11>=SUM(CA11)*36%),"G1",IF(AND(BU11>=25%*CB11,SUM(BR11)>=20%*BZ11),"S","F")))))))))) -> P | CE11: II | CF11: =IF('Marks Entry'!AK11="","",'Marks Entry'!AK11) -> A | CG11: =IF('Marks Entry'!AL11="","",'Marks Entry'!AL11) -> 3 | CH11: =IF('Marks Entry'!AM11="","",'Marks Entry'!AM11) -> 7 | CI11: =IF('Marks Entry'!AN11="","",'Marks Entry'!AN11) -> 9 | CJ11: 19 | CK11: =IF('Marks Entry'!AO11="","",'Marks Entry'!AO11) -> 45 | CL11: =IF('Marks Entry'!AP11="","",'Marks Entry'!AP11) -> 15 | CM11: 60 | CN11: 79 | CO11: =IF('Marks Entry'!AQ11="","",'Marks Entry'!AQ11) -> 65 | CP11: =IF('Marks Entry'!AR11="","",'Marks Entry'!AR11) -> 28 | CQ11: 93 | CR11: 129 | CS11: 43 | CT11: 172 | CU11: 0 | CV11: 0 | CW11: 70 | CX11: 50 | CY11: 150 | DA11: P | DB11: D | DC11: 0 | DD11: =IF('Marks Entry'!AS11="","",IF(OR('Master Sheet'!$D$19="YES",'Marks Entry'!$BA$1=1),'Marks Entry'!AS11,"")) -> B | DE11: =IF('Marks Entry'!AT11="","",IF(OR('Master Sheet'!$D$19="YES",'Marks Entry'!$BA$1=1),'Marks Entry'!AT11,"")) ->  | DF11: =IF('Marks Entry'!AU11="","",IF(OR('Master Sheet'!$D$19="YES",'Marks Entry'!$BA$1=1),'Marks Entry'!AU11,"")) ->  | DG11: =IF('Marks Entry'!AV11="","",IF(OR('Master Sheet'!$D$19="YES",'Marks Entry'!$BA$1=1),'Marks Entry'!AV11,"")) ->  | DI11: =IF('Marks Entry'!AW11="","",IF(OR('Master Sheet'!$D$19="YES",'Marks Entry'!$BA$1=1),'Marks Entry'!AW11,"")) ->  | DJ11: =IF('Marks Entry'!AX11="","",IF(OR('Master Sheet'!$D$19="YES",'Marks Entry'!$BA$1=1),'Marks Entry'!AX11,"")) ->  | DM11: =IF('Marks Entry'!AY11="","",IF(OR('Master Sheet'!$D$19="YES",'Marks Entry'!$BA$1=1),'Marks Entry'!AY11,"")) -> 25 | DN11: =IF('Marks Entry'!AZ11="","",IF(OR('Master Sheet'!$D$19="YES",'Marks Entry'!$BA$1=1),'Marks Entry'!AZ11,"")) -> 18 | DO11: =IF('Marks Entry'!BA11="","",IF(OR('Master Sheet'!$D$19="YES",'Marks Entry'!$BA$1=1),'Marks Entry'!BA11,"")) -> 45 | DP11: 88 | DQ11: 25 | DR11: 18 | DS11: 45 | DT11: 88 | DU11: 0 | DV11: 0 | DW11: 50 | DX11: =IF(OR($B11="NSO",$B11=0,DS11=""),"",IF(AND(DJ11="",DO11=""),"",IF('Master Sheet'!$D$19="YES",$DO$6-COUNTIF(DO11,"ML")*DO$6,DS$6-(COUNTIF(DJ11,"ML")*DJ$6)-(COUNTIF(DO11,"ML")*DO$6)))) -> 70 | DY11: =IF(OR($B11="NSO",$B11=0),"",IF(AND(DH11="",DI11="",DM11=""),"",IF(AND('Master Sheet'!$D$19="YES",'Marks Entry'!$BA$1=1),100,IF(AND(DJ11="",DO11=""),SUM(($DQ$7+$DR$7)-(DU11+DV11)),SUM(($DQ$6+$DR$6)-(DU11+DV11)))))) -> 130 | EA11: P | EB11: III | EC11: =IF('Marks Entry'!BB11="","",'Marks Entry'!BB11) -> 25 | ED11: =IF('Marks Entry'!BC11="","",'Marks Entry'!BC11) -> 25 | EE11: =IF('Marks Entry'!BD11="","",'Marks Entry'!BD11) -> 31 | EF11: 81 | EG11: 0 | EH11: 0 | EI11: 100 | EK11: A | EL11: II | EM11: I | EN11: I | EO11: II | EP11: D | EQ11: III | ER11: 0 | ES11: 0 | ET11: 0 | EU11: 0 | EV11: 0 | EX11: PASS | EY11: =IF('Marks Entry'!BE11="","",'Marks Entry'!BE11) -> 8 | EZ11: =IF('Marks Entry'!BF11="","",'Marks Entry'!BF11) -> 8 | FA11: =IF('Marks Entry'!BG11="","",'Marks Entry'!BG11) -> 8 | FB11: 24 | FC11: =IF('Marks Entry'!BH11="","",'Marks Entry'!BH11) -> 50 | FD11: =IF('Marks Entry'!BI11="","",'Marks Entry'!BI11) -> 80 | FE11: 154 | FF11: B | FG11: =IF(AND(E11=""),"",IF('Student DATA Entry'!L7="","",'Student DATA Entry'!L7)) -> 340 | FH11: =IF(AND(E11=""),"",IF('Student DATA Entry'!M7="","",'Student DATA Entry'!M7)) -> 330 | FI11: 97.1 | FJ11: II | FM11: I | FP11: I | FR11: I | FW11: II | FX11: II | GD11: D | GE11: D | GK11: III | GM11: III | GR11: A | GS11: B | GX11: GEOGRAPHY | GY11: PASS | GZ11: =IF(AND(Q11="",AE11="",AZ11="",BW11="",CT11=""),"",IF(AND('Master Sheet'!$D$19="YES",'Marks Entry'!$BA$1=1),SUM(Q11,AE11,AZ11,BW11,DT11),SUM(Q11,AE11,AZ11,BW11,CT11))) -> 647 | HA11: =IF(GZ11="","",IF(AND('Master Sheet'!$D$19="YES",'Marks Entry'!$BA$1=1),GZ11/((900)-DC11)*100,GZ11/((1000)-DC11)*100)) -> 64.70 | HB11: I | HC11: 64.70 % | HD11: 3 | HE11: =IFERROR(IF(OR(GY11="SUPPLEMENTARY",GY11="RE-EXAM"),'Supp. Result Entry'!AS10,""),"") ->  | HH11: =IF(AND(HE11="",HF11="",HG11=""),"",IF(OR(GY11="SUPPLEMENTARY",GY11="RE-EXAM"),'Supp. Result Entry'!AS10,GY11)) ->  | HY11: =IF('Supp. Result Entry'!U10="","",'Supp. Result Entry'!$U$6) ->  | HZ11: =IF('Supp. Result Entry'!X10="","",'Supp. Result Entry'!$X$6) ->  | IA11: =IF('Supp. Result Entry'!AA10="","",'Supp. Result Entry'!$AA$6) ->  | IB11: =IF('Supp. Result Entry'!AD10="","",'Supp. Result Entry'!$AD$6) ->  | IC11: =IF('Supp. Result Entry'!AG10="","",'Supp. Result Entry'!$AG$6) ->  | ID11: =IF('Supp. Result Entry'!AJ10="","",'Supp. Result Entry'!$AJ$6) ->  | IE11: =IF('Supp. Result Entry'!V10="","",'Supp. Result Entry'!V10) ->  | IF11: =IF('Supp. Result Entry'!Y10="","",'Supp. Result Entry'!Y10) ->  | IG11: =IF('Supp. Result Entry'!AB10="","",'Supp. Result Entry'!AB10) ->  | IH11: =IF('Supp. Result Entry'!AE10="","",'Supp. Result Entry'!AE10) ->  | II11: =IF('Supp. Result Entry'!AH10="","",'Supp. Result Entry'!AH10) ->  | IJ11: =IF('Supp. Result Entry'!AK10="","",'Supp. Result Entry'!AK10) ->  | IK11: =IF('Supp. Result Entry'!W10="","",'Supp. Result Entry'!W10) ->  | IL11: =IF('Supp. Result Entry'!Z10="","",'Supp. Result Entry'!Z10) ->  | IM11: =IF('Supp. Result Entry'!AC10="","",'Supp. Result Entry'!AC10) ->  | IN11: =IF('Supp. Result Entry'!AF10="","",'Supp. Result Entry'!AF10) ->  | IO11: =IF('Supp. Result Entry'!AI10="","",'Supp. Result Entry'!AI10) ->  | IP11: =IF('Supp. Result Entry'!AL10="","",'Supp. Result Entry'!AL10) ->  | IQ11: =COUNTIF('Supp. Result Entry'!K10:Q10,"S") -> 0 | IR11: 0 | IS11: 0
